Workbook

Sheet Ceiling Speaker Calculator
F3: BOSCH / Electro-Voice Ceiling & Pendant Speaker Calculator | I3: =CONCATENATE("Ver. ",'Revision Log'!B4) -> Ver. 4.0
F5: Speaker Placement Pattern | I5: Speakers
I6: Coverage Angle (nominal) | K6: =Calculations!C7 -> 120 | L6: °
I7: Sensitivity (1w/1m) | K7: =Calculations!C8 -> 90 | L7: dB
I8: Total Number of Speakers | K8: =Calculations!C30 -> 48 | L8: pc
I9: Number of Speakers - Width | K9: =Calculations!C28 -> 8 | L9: pc
I10: Number of Speakers - Length | K10: =Calculations!C29 -> 6 | L10: pc
B11: Loudspeaker Selection
B12: Speaker Model | C12: EV EVID-C6.2 | I12: Speaker Placement
B13: Sensitivity | C13: =Calculations!C8 -> 90 | D13: dB | I13: Distance from wall to first speaker (width) | K13: =K14/2 -> 9.375 | L13: =IF($C$19="Feet","ft","m") -> ft
B14: Coverage (-6dB) | C14: =Calculations!C7 -> 120 | D14: ° | I14: Distance between speakers (width) | K14: =C20/K9 -> 18.75 | L14: ft
B15: Tap Wattage Setting | C15: 1.88 | D15: W | I15: Distance from wall to first speaker (length) | K15: =K16/2 -> 10 | L15: ft
B16: - Recommended | C16: =IF(C25<>"None",Calculations!L25,"") ->  | D16: =IF(C25<>"None","W","") ->  | I16: Distance between speakers (length) | K16: =C21/K10 -> 20 | L16: ft
I17: Overlap between 6dB cones (width) | K17: =-K14+Calculations!F20 -> 0.8119855914 | L17: ft
B18: Room Data | I18: Overlap between 6db cones (length) | K18: =-K16+Calculations!F20 -> -0.4380144086 | L18: ft
B19: Units | C19: Feet
B20: Width | C20: 150 | D20: =IF($C$19="Feet","ft","m") -> ft | I20: Room Installation Information (Estimations)
B21: Length | C21: 120 | D21: =IF($C$19="Feet","ft","m") -> ft | I21: SPL variation in room | K21: =Calculations!H37 -> -2.973204722 | L21: dB
B22: Ceiling Height | C22: 12 | D22: =IF($C$19="Feet","ft","m") -> ft | F22: -6dB Coverage Cones | I22: Average SPL in room (at rated power) | K22: =Calculations!C39 -> 88.07975534 | L22: dB
B23: Installation Height | C23: 12 | D23: =IF($C$19="Feet","ft","m") -> ft | I23: Base cabling length needed (wire pair) | K23: =IF(K9>K10,K9*C21+C20,K10*C20+C21) -> 1110 | L23: =IF($C$19="Feet","ft","m") -> ft
B24: Listener Height | C24: 4 | D24: =IF($C$19="Feet","ft","m") -> ft | I24: Total base power requirements | K24: =C15*K8*1.29 -> 116.4096 | L24: W
B25: Use / Application | C25: None | I25: * No factor for cable loss included in power estimate
B26: - Noise dB | D26: =IF(C25<>"None","dB","") -> 
I27: Minimum Wire Size Guide
B28: Configuration | I28: Wire Gauge | J28: Maximum Rated Power
B29: Pattern | C29: Square | J29: @70 Volts | K29: @100 Volts
B30: Density | C30: Medium (good coverage) | I30: 18 | J30: =ROUND(70*3,0) -> 210 | K30: =ROUND(100*3,0) -> 300
B31: Density Adjustment | I31: 16 | J31: =ROUND(70*6,0) -> 420 | K31: =ROUND(100*6,0) -> 600
B32: - Width (-3 to +3) | C32: 0 | I32: 14 | J32: =ROUND(70*15,0) -> 1050 | K32: =ROUND(100*15,0) -> 1500
B33: - Length (-3 to +3) | C33: 0 | I33: 12 | J33: =ROUND(70*20,0) -> 1400 | K33: =ROUND(100*20,0) -> 2000

Sheet Instructions
E2: Quick Guide for the BOSCH / Electro-Voice Ceiling & Pendant Speaker Calculator | R2: =CONCATENATE("Ver. ",'Revision Log'!B4) -> Ver. 4.0
B4: Room Setup
G7: 1) Select the Speaker that you want to use
H8: Here you can see the Sensitivity and Coverage specifications for the selected Speaker
G10: 2) Select the intended Tap Wattage for the Speaker
H11: If a Use/Application is selected this shows you the recommended Tap Wattage Setting. If a higher Tap Setting is required this field will show in Red. If the selected Speaker can't reach the required SPL with any of it's available tap settings, this field will say "Error".
G15: 3) Select if you want data to be shown and input in Metric or Imperial
G16: 4) Input the Width of the room
G17: 5) Input the Length of the room
G18: 6) Input the Height of the Ceiling in the room (for Ceiling Speakers this is also the Installation Height)
G19: 6a) If a Pendant Speaker is selected, input the Installation Height of the Speaker
G20: 7) Input the Listener Height
G21: OPTIONAL - If a Use/Application is desired, select it from the Dropdown box or select "Custom" to input a desired background noise level
G22: OPTIONAL - If a Use/Application is selected, here you'll see the background noise level used for that application. If "Custom" is selected you can input a background noise level
G26: 8) Select a Speaker Pattern: Square or Hexadecimal
G27: 9) Select a Density for the Speaker Pattern. Medium produces around 3dB of maximum level variation in the room
G29: OPTIONAL - Adjust the number of Rows in the Speaker Pattern (from -3 to +3)
G30: OPTIONAL - Adjust the number of Colunns in the Speaker Pattern (from -3 to +3)
B34: Speaker Pattern Results Graph
G37: Speaker Placement Graph
G39: The Speaker Placement Pattern Graph shows the dimensions of the room and the positioning of the loudspeakers in the room
G47: -6dB Coverage Cones Graph
G49: The -6dB Coverage Cones Graph is an elevation that shows the -6dB Coverage Cones of the selected Speaker, both by Width and Length, and how much these cones overlap.
B55: Room Coverage Information
G57: These tables show information about the number of Speakers needed to cover the room, as well as their positions and approximate SPL levels of coverage in the room.
G60: The Room Installation Information table also shows the amount of cable required for connecting the speakers. This assumes that all the speakers are connected together on a single cable. The actual amount of cable required will depend on where the amplifiers are relative the room and, where required, how the room is broken up into zones.
G64: The amplifier requirements for the total number of speakers used is shown on the Room Installation Information table. This value reflects the total number of speakers multiplied by the the power tap selected, plus a factor for loss in the speaker's transformer. If the room uses long runs of wire it may be desirable to increase the amplifier power slightly to compensate of losses in the wiring.
G68: The information is shown in Metric or Imperial units, depending on what's selected in the Room Data table.

Sheet Revision Log (hidden)
A1: BOSCH / Electro-Voice Ceiling & Pendant Speaker Calculator
A3: Current
A4: Version | B4: 4.0
A5: Date | B5: 2020-02-21
A7: Version | B7: Description | C7: Date
A8: 4.0 RC | B8: Completely rewritten from previous ceiling speaker calculator (latest version 3.4). Added the option to account for pendant speakers as well. New speakers added: | C8: 2020-01-13
A9: 4 | B9: Final release after several bug fixes. Works with Excel for Mac 16 (16.16.17) | C9: 2020-02-21

Sheet Speaker Data (hidden)
A1: Model | B1: Sensitivity | C1: Power Rating | D1: Coverage (6dB) | E1: Power Tap #1 (Lowest) | F1: Power Tap #2 | G1: Power Tap #3 | H1: Power Tap #4 | I1: Power Tap #5 (Highest) | J1: Type | Q1: Application | R1: dB Reference
A2: Bosch LBC3951/11 | B2: 88 | D2: 120 | E2: 0.75 | F2: 1.5 | G2: 3 | H2: 6 | J2: Ceiling | Q2: None
A3: Bosch LC1-UM06E8 | B3: 89 | D3: 85 | E3: 0.75 | F3: 1.5 | G3: 3 | H3: 6 | J3: Ceiling | Q3: Custom
A4: Bosch LC1-UM12E8 | B4: 89 | D4: 85 | E4: 1.5 | F4: 3 | G4: 6 | H4: 12 | J4: Ceiling | Q4: Assembly Line | R4: 80
A5: Bosch LC1-UM24E8 | B5: 89 | D5: 85 | E5: 3 | F5: 6 | G5: 12 | H5: 24 | J5: Ceiling | Q5: Bank - Public Area | R5: 70
A6: Bosch LC1-WM06E8 | B6: 88 | D6: 120 | E6: 0.75 | F6: 1.5 | G6: 3 | H6: 6 | J6: Ceiling | Q6: Department Store | R6: 70
A7: Bosch LC2-PC30G6-4 | B7: 86 | C7: 75 | D7: 130 | E7: 1.88 | F7: 3.75 | G7: 7.5 | H7: 15 | I7: 30 | J7: Ceiling | Q7: Doctor's Office | R7: 60
A8: Bosch LC2-PC30G6-8 | B8: 91 | C8: 100 | D8: 110 | E8: 1.88 | F8: 3.75 | G8: 7.5 | H8: 15 | I8: 30 | J8: Ceiling | Q8: Hospital | R8: 60
A9: Bosch LC2-PC30G6-8L | B9: 91 | C9: 100 | D9: 110 | E9: 1.88 | F9: 3.75 | G9: 7.5 | H9: 15 | I9: 30 | J9: Ceiling | Q9: Hotel Lobby | R9: 65
A10: Bosch LC2-PC60G6-12 | B10: 100 | D10: 100 | E10: 4 | F10: 8 | G10: 16 | H10: 32 | I10: 64 | J10: Ceiling | Q10: Machine Shop | R10: 80
A11: Bosch LC2-PC60G6-8H | B11: 93 | C11: 100 | D11: 75 | E11: 7.5 | F11: 15 | G11: 30 | H11: 60 | J11: Ceiling | Q11: Office | R11: 65
A12: Bosch LC4-UC06E | B12: 88 | C12: 9 | D12: 170 | E12: 0.75 | F12: 1.5 | G12: 3 | H12: 6 | J12: Ceiling | Q12: Restaurant/Bar | R12: 70
A13: Bosch LC4-UC12E | B13: 88 | C13: 18 | D13: 170 | E13: 1.5 | F13: 3 | G13: 6 | H13: 12 | J13: Ceiling | Q13: Shipping/Warehouse | R13: 80
A14: Bosch LC4-UC24E | B14: 88 | C14: 36 | D14: 170 | E14: 3 | F14: 6 | G14: 12 | H14: 24 | J14: Ceiling | Q14: Supermarket | R14: 75
A15: Bosch LHM0606/00 | B15: 92 | D15: 85 | E15: 1.5 | F15: 3 | G15: 6 | J15: Ceiling | Q15: Transportation - Waiting Room | R15: 80
A16: Bosch LHM0606/10 | B16: 92 | D16: 85 | E16: 1.5 | F16: 3 | G16: 6 | J16: Ceiling
A17: Bosch LS1-OC100-E1 | B17: 90 | C17: 100 | D17: 137 | E17: 25 | F17: 50 | G17: 100 | J17: Pendant
A18: Bosch LS1-UC10U | B18: 92 | C18: 10 | D18: 120 | E18: 2.5 | F18: 5 | G18: 10 | J18: Pendant
A19: EV EVID C12.2 | B19: 100 | D19: 100 | E19: 4 | F19: 8 | G19: 16 | H19: 32 | I19: 64 | J19: Ceiling
A20: EV EVID C4.2 | B20: 86 | C20: 75 | D20: 130 | E20: 1.88 | F20: 3.75 | G20: 7.5 | H20: 15 | I20: 30 | J20: Ceiling
A21: EV EVID-C4.2LP | B21: 86 | C21: 50 | D21: 130 | E21: 1.88 | F21: 3.75 | G21: 7.5 | H21: 15 | I21: 30 | J21: Ceiling
A22: EV EVID-C6.2 | B22: 90 | C22: 75 | D22: 120 | E22: 1.88 | F22: 3.75 | G22: 7.5 | H22: 15 | I22: 30 | J22: Ceiling
A23: EV EVID C8.2 | B23: 91 | C23: 100 | D23: 110 | E23: 1.88 | F23: 3.75 | G23: 7.5 | H23: 15 | I23: 30 | J23: Ceiling
A24: EV EVID C8.2LP | B24: 91 | C24: 100 | D24: 110 | E24: 1.88 | F24: 3.75 | G24: 7.5 | H24: 15 | I24: 30 | J24: Ceiling
A25: EV EVID C8.2HC | B25: 93 | C25: 100 | D25: 75 | E25: 7.5 | F25: 15 | G25: 30 | H25: 60 | J25: Ceiling
A26: EV EVID-PC6.2 | B26: 87 | C26: 100 | D26: 100 | E26: 7.5 | F26: 15 | G26: 30 | H26: 60 | J26: Ceiling
A27: EV EVID-PC8.2 | B27: 88 | C27: 100 | D27: 120 | E27: 7.5 | F27: 15 | G27: 30 | H27: 60 | J27: Ceiling
A28: EV EVID-P6.2 | B28: 87 | C28: 75 | D28: 115 | E28: 1.88 | F28: 3.75 | G28: 7.5 | H28: 15 | I28: 30 | J28: Pendant

Sheet Calculations (hidden)
B2: Selected Unit Factor | C2: =IF('Ceiling Speaker Calculator'!C19="Feet",3.2808399,1) -> 3.2808399 | K2: Graph Data
K3: Last Width Cell (down) | L3: =ROW(INDEX('Speaker Placement Pattern'!B:B,MATCH(L9,'Speaker Placement Pattern'!B:B,1),0)) -> 8
B4: Selected Speaker | C4: ='Ceiling Speaker Calculator'!C12 -> EV EVID-C6.2 | K4: Last Length Cell (right) | L4: =SUBSTITUTE(ADDRESS(1,COLUMN(INDEX('Speaker Placement Pattern'!1:1,,MATCH(L8,'Speaker Placement Pattern'!1:1,1))),4),"1","") -> J
B5: Speaker Type | C5: =INDEX('Speaker Data'!$A:$J,MATCH($C$4,'Speaker Data'!$A:$A,0),10) -> Ceiling
B6: Tap Settings | C6: =INDEX('Speaker Data'!$A:$I,MATCH($C$4,'Speaker Data'!$A:$A,0),5) -> 1.88 | D6: =INDEX('Speaker Data'!$A:$I,MATCH($C$4,'Speaker Data'!$A:$A,0),6) -> 3.75 | E6: =INDEX('Speaker Data'!$A:$I,MATCH($C$4,'Speaker Data'!$A:$A,0),7) -> 7.5 | F6: =INDEX('Speaker Data'!$A:$I,MATCH($C$4,'Speaker Data'!$A:$A,0),8) -> 15 | G6: =INDEX('Speaker Data'!$A:$I,MATCH($C$4,'Speaker Data'!$A:$A,0),9) -> 30 | K6: Last Cell | L6: =CONCATENATE(L4,L3) -> J8
B7: Coverage | C7: =INDEX('Speaker Data'!$A:$I,MATCH($C$4,'Speaker Data'!$A:$A,0),4) -> 120
B8: Sensitivity | C8: =INDEX('Speaker Data'!$A:$I,MATCH($C$4,'Speaker Data'!$A:$A,0),2) -> 90 | K8: Scale Width (down) | L8: =C28*('Ceiling Speaker Calculator'!K14) -> 150
B9: Ceiling to Listener Distance | C9: ='Ceiling Speaker Calculator'!C23-'Ceiling Speaker Calculator'!C24 -> 8 | K9: Scale Height (right) | L9: =C29*('Ceiling Speaker Calculator'!K16) -> 120
B10: Coverage Factor | C10: =C7/360*PI() -> 1.047197551
B11: Coverage Q Factor | C11: =C9/COS(C10)-C9 -> 8
B12: Coverage Width Factor | C12: =C11*SIN(C10)/1.7 -> 4.075413665 | K12: -6dB Coverage Cones
B13: Coverage Height Factor | C13: =C9*TAN(C10) -> 13.85640646 | K13: Width | L13: =IF(C28>3,'Ceiling Speaker Calculator'!K14*3,'Ceiling Speaker Calculator'!K14*C28) -> 56.25
B14: Calculated Effecitve Coverage | C14: =360*ATAN((C13-C12)/C9)/PI() -> 101.4396489 | K14: Length | L14: =IF(C29>3,'Ceiling Speaker Calculator'!K16*3,'Ceiling Speaker Calculator'!K16*C29) -> 60
B16: Density | C16: =IF(LEFT('Ceiling Speaker Calculator'!C30,1)="L",1,IF(LEFT('Ceiling Speaker Calculator'!C30,1)="M",2,3)) -> 2 | K16: Use/Application Background Noise
B17: Selected Power Tap | C17: ='Ceiling Speaker Calculator'!C15 -> 1.88 | K17: ='Ceiling Speaker Calculator'!C25 -> None | L17: =IF(K17<>"Custom",INDEX('Speaker Data'!R2:R15,MATCH(Calculations!K17,'Speaker Data'!Q2:Q15,0),0),'Ceiling Speaker Calculator'!C26) -> 0
K18: Minimum | L18: =L17+10 -> 10
B19: Coverage Area @Listener | C19: =2*TAN((C7/2)/360*PI()*2)*C9 -> 27.71281292 | K19: Tap #1 | L19: =INDEX('Speaker Data'!$A:$I,MATCH($C$4,'Speaker Data'!$A:$A,0),5) -> 1.88 | M19: =-1+(20*LOG(SQRT(L19)*H36*POWER(10,C8/20)*(C2/C9))+40*LOG(SQRT(L19)*H36*POWER(10,(C8+E37)/20)*(C2/C9)))/3 -> 88.07975534
B20: Coverage Area 6db @ Listener | C20: =IF('Ceiling Speaker Calculator'!C29:D29="Square",Calculations!F20,Calculations!I20) -> 19.56198559 | E20: Square | F20: =2*TAN((C14/2)/360*PI()*2)*C9 -> 19.56198559 | H20: Hex | I20: =2*0.886*TAN((C14/2)/360*PI()*2)*C9 -> 17.33191923 | K20: Tap #2 | L20: =INDEX('Speaker Data'!$A:$I,MATCH($C$4,'Speaker Data'!$A:$A,0),6) -> 3.75 | M20: =IF(L20<>"",M19+3,"") -> 91.07975534
B21: Coverage Area 6db @ Listener | C21: =IF('Ceiling Speaker Calculator'!C29:D29="Square",Calculations!F20,Calculations!I21) -> 19.56198559 | I21: =2*0.577*0.886*TAN((C14/2)/360*PI()*2)*C9 -> 10.0005174 | K21: Tap #3 | L21: =INDEX('Speaker Data'!$A:$I,MATCH($C$4,'Speaker Data'!$A:$A,0),7) -> 7.5 | M21: =IF(L21<>"",M20+3,"") -> 94.07975534
K22: Tap #4 | L22: =INDEX('Speaker Data'!$A:$I,MATCH($C$4,'Speaker Data'!$A:$A,0),8) -> 15 | M22: 97.07975534
B23: Geomerty Hex | C23: ='Ceiling Speaker Calculator'!K14-1/2*Calculations!F20 -> 8.969007204 | K23: Tap #5 | L23: =INDEX('Speaker Data'!$A:$I,MATCH($C$4,'Speaker Data'!$A:$A,0),9) -> 30 | M23: 100.0797553
B24: Geometry Hex | C24: ='Ceiling Speaker Calculator'!K16 -> 20 | K24: Recommended Tap | L24: =INDEX(L19:L23,MATCH(TRUE,L18<M19:M23,0),0) -> 1.88
B25: Geometry Hex | C25: =IF(C23<0,C23+C24,SQRT(POWER(C23,2)+POWER(C24,2))) -> 21.91901207 | K25: Recommended Tap - Used | L25: =_xlfn.IFNA(L24,"Error") -> 1.88
C27: Used (>0) | D27: Real | K27: Density Adjustment | L27: Width | M27: Length
B28: Speakers x Width | C28: =IF(D28>0,D28,1) -> 8 | D28: =ROUND(('Ceiling Speaker Calculator'!C20/Calculations!$C$20)*(Calculations!$C$16/2),0)+'Ceiling Speaker Calculator'!C32 -> 8 | K28: Current | L28: ='Ceiling Speaker Calculator'!C32 -> 0 | M28: ='Ceiling Speaker Calculator'!C33 -> 0
B29: Speakers x Length | C29: =IF(D29>0,D29,1) -> 6 | D29: =ROUND(('Ceiling Speaker Calculator'!C21/Calculations!$C$21)*($C$16/2),0)+'Ceiling Speaker Calculator'!C33 -> 6 | L29: -3 | M29: -3
B30: Total Speakers | C30: =IF('Ceiling Speaker Calculator'!C29:D29="Square",Calculations!C28*Calculations!C29,ROUNDUP((Calculations!C28*Calculations!C29)/2,0)) -> 48 | L30: -2 | M30: -2
L31: -1 | M31: -1
B32: Level Calculations | C32: On Axis | D32: Min Level Hex | E32: Min Level Square | H32: Used (square/hex) | L32: 0 | M32: 0
B33: Polar Radius | C33: =F20/2 -> 9.780992796 | L33: 1 | M33: 1
B34: Actual Distance | C34: =SQRT(POWER('Ceiling Speaker Calculator'!K14,2)+POWER('Ceiling Speaker Calculator'!K16,2)) -> 27.41464025 | D34: =('Ceiling Speaker Calculator'!K14+1/0.577*'Ceiling Speaker Calculator'!K16)/2-1/4*Calculations!F20 -> 21.81552613 | E34: =SQRT(POWER(0.5*'Ceiling Speaker Calculator'!K14,2)+POWER(0.5*'Ceiling Speaker Calculator'!K16,2)) -> 13.70732012 | F34: =('Ceiling Speaker Calculator'!K14+'Ceiling Speaker Calculator'!K16)/2 -> 19.375 | L34: 2 | M34: 2
B35: Level Factor | C35: =0.5*C33/C34 -> 0.1783899534 | D35: =0.5*C33/C25 -> 0.2231166433 | E35: =0.5*C33/E34 -> 0.3567799069 | F35: =0.5*C33/F34 -> 0.2524127173 | L35: 3 | M35: 3
B36: Total | C36: =1+6*C35 -> 2.070339721 | D36: =3*D35 -> 0.6693499299 | E36: =4*E35 -> 1.427119628 | F36: =1+4*F35 -> 2.009650869 | H36: =IF('Ceiling Speaker Calculator'!C29="Square",Calculations!F36,Calculations!C36-0.25) -> 2.009650869
B37: dB Difference | D37: =10*LOG(D36/C36) -> -4.903883922 | E37: =20*(LOG(E36/F36)) -> -2.973204722 | H37: =IF('Ceiling Speaker Calculator'!C29="Square",Calculations!E37,Calculations!D37) -> -2.973204722
B39: Average SPL in Room | C39: =-1+(20*LOG(SQRT(C17)*H36*POWER(10,C8/20)*(C2/C9))+40*LOG(SQRT(C17)*H36*POWER(10,(C8+H37)/20)*(C2/C9)))/3 -> 88.07975534

Sheet Speaker Placement Pattern (hidden)
C1: ='Ceiling Speaker Calculator'!$K$13 -> 9.375 | D1: =$C1+('Ceiling Speaker Calculator'!$K$14*C2) -> 28.125 | E1: =$C1+('Ceiling Speaker Calculator'!$K$14*D2) -> 46.875 | F1: =$C1+('Ceiling Speaker Calculator'!$K$14*E2) -> 65.625 | G1: =$C1+('Ceiling Speaker Calculator'!$K$14*F2) -> 84.375 | H1: =$C1+('Ceiling Speaker Calculator'!$K$14*G2) -> 103.125 | I1: =$C1+('Ceiling Speaker Calculator'!$K$14*H2) -> 121.875 | J1: =$C1+('Ceiling Speaker Calculator'!$K$14*I2) -> 140.625 | K1: =$C1+('Ceiling Speaker Calculator'!$K$14*J2) -> 159.375 | L1: =$C1+('Ceiling Speaker Calculator'!$K$14*K2) -> 178.125 | M1: =$C1+('Ceiling Speaker Calculator'!$K$14*L2) -> 196.875 | N1: =$C1+('Ceiling Speaker Calculator'!$K$14*M2) -> 215.625 | O1: =$C1+('Ceiling Speaker Calculator'!$K$14*N2) -> 234.375 | P1: =$C1+('Ceiling Speaker Calculator'!$K$14*O2) -> 253.125 | Q1: =$C1+('Ceiling Speaker Calculator'!$K$14*P2) -> 271.875 | R1: =$C1+('Ceiling Speaker Calculator'!$K$14*Q2) -> 290.625 | S1: =$C1+('Ceiling Speaker Calculator'!$K$14*R2) -> 309.375 | T1: =$C1+('Ceiling Speaker Calculator'!$K$14*S2) -> 328.125 | U1: =$C1+('Ceiling Speaker Calculator'!$K$14*T2) -> 346.875 | V1: =$C1+('Ceiling Speaker Calculator'!$K$14*U2) -> 365.625 | W1: =$C1+('Ceiling Speaker Calculator'!$K$14*V2) -> 384.375 | X1: =$C1+('Ceiling Speaker Calculator'!$K$14*W2) -> 403.125 | Y1: =$C1+('Ceiling Speaker Calculator'!$K$14*X2) -> 421.875 | Z1: =$C1+('Ceiling Speaker Calculator'!$K$14*Y2) -> 440.625 | AA1: =$C1+('Ceiling Speaker Calculator'!$K$14*Z2) -> 459.375 | AB1: =$C1+('Ceiling Speaker Calculator'!$K$14*AA2) -> 478.125 | AC1: =$C1+('Ceiling Speaker Calculator'!$K$14*AB2) -> 496.875 | AD1: =$C1+('Ceiling Speaker Calculator'!$K$14*AC2) -> 515.625 | AE1: =$C1+('Ceiling Speaker Calculator'!$K$14*AD2) -> 534.375 | AF1: =$C1+('Ceiling Speaker Calculator'!$K$14*AE2) -> 553.125 | AG1: =$C1+('Ceiling Speaker Calculator'!$K$14*AF2) -> 571.875 | AH1: =$C1+('Ceiling Speaker Calculator'!$K$14*AG2) -> 590.625 | AI1: =$C1+('Ceiling Speaker Calculator'!$K$14*AH2) -> 609.375 | AJ1: =$C1+('Ceiling Speaker Calculator'!$K$14*AI2) -> 628.125 | AK1: =$C1+('Ceiling Speaker Calculator'!$K$14*AJ2) -> 646.875 | AL1: =$C1+('Ceiling Speaker Calculator'!$K$14*AK2) -> 665.625 | AM1: =$C1+('Ceiling Speaker Calculator'!$K$14*AL2) -> 684.375 | AN1: =$C1+('Ceiling Speaker Calculator'!$K$14*AM2) -> 703.125 | AO1: =$C1+('Ceiling Speaker Calculator'!$K$14*AN2) -> 721.875 | AP1: =$C1+('Ceiling Speaker Calculator'!$K$14*AO2) -> 740.625 | AQ1: =$C1+('Ceiling Speaker Calculator'!$K$14*AP2) -> 759.375 | AR1: =$C1+('Ceiling Speaker Calculator'!$K$14*AQ2) -> 778.125 | AS1: =$C1+('Ceiling Speaker Calculator'!$K$14*AR2) -> 796.875 | AT1: =$C1+('Ceiling Speaker Calculator'!$K$14*AS2) -> 815.625 | AU1: =$C1+('Ceiling Speaker Calculator'!$K$14*AT2) -> 834.375 | AV1: =$C1+('Ceiling Speaker Calculator'!$K$14*AU2) -> 853.125 | AW1: =$C1+('Ceiling Speaker Calculator'!$K$14*AV2) -> 871.875 | AX1: =$C1+('Ceiling Speaker Calculator'!$K$14*AW2) -> 890.625 | AY1: =$C1+('Ceiling Speaker Calculator'!$K$14*AX2) -> 909.375 | AZ1: =$C1+('Ceiling Speaker Calculator'!$K$14*AY2) -> 928.125 | BA1: =$C1+('Ceiling Speaker Calculator'!$K$14*AZ2) -> 946.875 | BB1: =$C1+('Ceiling Speaker Calculator'!$K$14*BA2) -> 965.625 | BC1: =$C1+('Ceiling Speaker Calculator'!$K$14*BB2) -> 984.375 | BD1: =$C1+('Ceiling Speaker Calculator'!$K$14*BC2) -> 1003.125 | BE1: =$C1+('Ceiling Speaker Calculator'!$K$14*BD2) -> 1021.875 | BF1: =$C1+('Ceiling Speaker Calculator'!$K$14*BE2) -> 1040.625 | BG1: =$C1+('Ceiling Speaker Calculator'!$K$14*BF2) -> 1059.375 | BH1: =$C1+('Ceiling Speaker Calculator'!$K$14*BG2) -> 1078.125 | BI1: =$C1+('Ceiling Speaker Calculator'!$K$14*BH2) -> 1096.875 | BJ1: =$C1+('Ceiling Speaker Calculator'!$K$14*BI2) -> 1115.625 | BK1: =$C1+('Ceiling Speaker Calculator'!$K$14*BJ2) -> 1134.375 | BL1: =$C1+('Ceiling Speaker Calculator'!$K$14*BK2) -> 1153.125 | BM1: =$C1+('Ceiling Speaker Calculator'!$K$14*BL2) -> 1171.875 | BN1: =$C1+('Ceiling Speaker Calculator'!$K$14*BM2) -> 1190.625 | BO1: =$C1+('Ceiling Speaker Calculator'!$K$14*BN2) -> 1209.375 | BP1: =$C1+('Ceiling Speaker Calculator'!$K$14*BO2) -> 1228.125 | BQ1: =$C1+('Ceiling Speaker Calculator'!$K$14*BP2) -> 1246.875 | BR1: =$C1+('Ceiling Speaker Calculator'!$K$14*BQ2) -> 1265.625 | BS1: =$C1+('Ceiling Speaker Calculator'!$K$14*BR2) -> 1284.375 | BT1: =$C1+('Ceiling Speaker Calculator'!$K$14*BS2) -> 1303.125 | BU1: =$C1+('Ceiling Speaker Calculator'!$K$14*BT2) -> 1321.875 | BV1: =$C1+('Ceiling Speaker Calculator'!$K$14*BU2) -> 1340.625 | BW1: =$C1+('Ceiling Speaker Calculator'!$K$14*BV2) -> 1359.375 | BX1: =$C1+('Ceiling Speaker Calculator'!$K$14*BW2) -> 1378.125 | BY1: =$C1+('Ceiling Speaker Calculator'!$K$14*BX2) -> 1396.875 | BZ1: =$C1+('Ceiling Speaker Calculator'!$K$14*BY2) -> 1415.625 | CA1: =$C1+('Ceiling Speaker Calculator'!$K$14*BZ2) -> 1434.375 | CB1: =$C1+('Ceiling Speaker Calculator'!$K$14*CA2) -> 1453.125 | CC1: =$C1+('Ceiling Speaker Calculator'!$K$14*CB2) -> 1471.875 | CD1: =$C1+('Ceiling Speaker Calculator'!$K$14*CC2) -> 1490.625 | CE1: =$C1+('Ceiling Speaker Calculator'!$K$14*CD2) -> 1509.375 | CF1: =$C1+('Ceiling Speaker Calculator'!$K$14*CE2) -> 1528.125 | CG1: =$C1+('Ceiling Speaker Calculator'!$K$14*CF2) -> 1546.875 | CH1: =$C1+('Ceiling Speaker Calculator'!$K$14*CG2) -> 1565.625 | CI1: =$C1+('Ceiling Speaker Calculator'!$K$14*CH2) -> 1584.375 | CJ1: =$C1+('Ceiling Speaker Calculator'!$K$14*CI2) -> 1603.125 | CK1: =$C1+('Ceiling Speaker Calculator'!$K$14*CJ2) -> 1621.875 | CL1: =$C1+('Ceiling Speaker Calculator'!$K$14*CK2) -> 1640.625 | CM1: =$C1+('Ceiling Speaker Calculator'!$K$14*CL2) -> 1659.375 | CN1: =$C1+('Ceiling Speaker Calculator'!$K$14*CM2) -> 1678.125 | CO1: =$C1+('Ceiling Speaker Calculator'!$K$14*CN2) -> 1696.875 | CP1: =$C1+('Ceiling Speaker Calculator'!$K$14*CO2) -> 1715.625 | CQ1: =$C1+('Ceiling Speaker Calculator'!$K$14*CP2) -> 1734.375 | CR1: =$C1+('Ceiling Speaker Calculator'!$K$14*CQ2) -> 1753.125 | CS1: =$C1+('Ceiling Speaker Calculator'!$K$14*CR2) -> 1771.875 | CT1: =$C1+('Ceiling Speaker Calculator'!$K$14*CS2) -> 1790.625 | CU1: =$C1+('Ceiling Speaker Calculator'!$K$14*CT2) -> 1809.375 | CV1: =$C1+('Ceiling Speaker Calculator'!$K$14*CU2) -> 1828.125 | CW1: =$C1+('Ceiling Speaker Calculator'!$K$14*CV2) -> 1846.875 | CX1: =$C1+('Ceiling Speaker Calculator'!$K$14*CW2) -> 1865.625
B2: 0 | C2: 1 | D2: 2 | E2: 3 | F2: 4 | G2: 5 | H2: 6 | I2: 7 | J2: 8 | K2: 9 | L2: 10 | M2: 11 | N2: 12 | O2: 13 | P2: 14 | Q2: 15 | R2: 16 | S2: 17 | T2: 18 | U2: 19 | V2: 20 | W2: 21 | X2: 22 | Y2: 23 | Z2: 24 | AA2: 25 | AB2: 26 | AC2: 27 | AD2: 28 | AE2: 29 | AF2: 30 | AG2: 31 | AH2: 32 | AI2: 33 | AJ2: 34 | AK2: 35 | AL2: 36 | AM2: 37 | AN2: 38 | AO2: 39 | AP2: 40 | AQ2: 41 | AR2: 42 | AS2: 43 | AT2: 44 | AU2: 45 | AV2: 46 | AW2: 47 | AX2: 48 | AY2: 49 | AZ2: 50 | BA2: 51 | BB2: 52 | BC2: 53 | BD2: 54 | BE2: 55 | BF2: 56 | BG2: 57 | BH2: 58 | BI2: 59 | BJ2: 60 | BK2: 61 | BL2: 62 | BM2: 63 | BN2: 64 | BO2: 65 | BP2: 66 | BQ2: 67 | BR2: 68 | BS2: 69 | BT2: 70 | BU2: 71 | BV2: 72 | BW2: 73 | BX2: 74 | BY2: 75 | BZ2: 76 | CA2: 77 | CB2: 78 | CC2: 79 | CD2: 80 | CE2: 81 | CF2: 82 | CG2: 83 | CH2: 84 | CI2: 85 | CJ2: 86 | CK2: 87 | CL2: 88 | CM2: 89 | CN2: 90 | CO2: 91 | CP2: 92 | CQ2: 93 | CR2: 94 | CS2: 95 | CT2: 96 | CU2: 97 | CV2: 98 | CW2: 99 | CX2: 100
A3: 1 | B3: ='Ceiling Speaker Calculator'!K15 -> 10 | C3: =IF('Ceiling Speaker Calculator'!$C$29="Square",C$1,IF(OR(AND(ODD($A3)=$A3,ODD(C$2)=C$2),AND(EVEN($A3)=$A3,EVEN(C$2)=C$2)),C$1,-100)) -> 9.375 | D3: =IF('Ceiling Speaker Calculator'!$C$29="Square",D$1,IF(OR(AND(ODD($A3)=$A3,ODD(D$2)=D$2),AND(EVEN($A3)=$A3,EVEN(D$2)=D$2)),D$1,-100)) -> 28.125 | E3: =IF('Ceiling Speaker Calculator'!$C$29="Square",E$1,IF(OR(AND(ODD($A3)=$A3,ODD(E$2)=E$2),AND(EVEN($A3)=$A3,EVEN(E$2)=E$2)),E$1,-100)) -> 46.875 | F3: =IF('Ceiling Speaker Calculator'!$C$29="Square",F$1,IF(OR(AND(ODD($A3)=$A3,ODD(F$2)=F$2),AND(EVEN($A3)=$A3,EVEN(F$2)=F$2)),F$1,-100)) -> 65.625 | G3: =IF('Ceiling Speaker Calculator'!$C$29="Square",G$1,IF(OR(AND(ODD($A3)=$A3,ODD(G$2)=G$2),AND(EVEN($A3)=$A3,EVEN(G$2)=G$2)),G$1,-100)) -> 84.375 | H3: =IF('Ceiling Speaker Calculator'!$C$29="Square",H$1,IF(OR(AND(ODD($A3)=$A3,ODD(H$2)=H$2),AND(EVEN($A3)=$A3,EVEN(H$2)=H$2)),H$1,-100)) -> 103.125 | I3: =IF('Ceiling Speaker Calculator'!$C$29="Square",I$1,IF(OR(AND(ODD($A3)=$A3,ODD(I$2)=I$2),AND(EVEN($A3)=$A3,EVEN(I$2)=I$2)),I$1,-100)) -> 121.875 | J3: =IF('Ceiling Speaker Calculator'!$C$29="Square",J$1,IF(OR(AND(ODD($A3)=$A3,ODD(J$2)=J$2),AND(EVEN($A3)=$A3,EVEN(J$2)=J$2)),J$1,-100)) -> 140.625 | K3: =IF('Ceiling Speaker Calculator'!$C$29="Square",K$1,IF(OR(AND(ODD($A3)=$A3,ODD(K$2)=K$2),AND(EVEN($A3)=$A3,EVEN(K$2)=K$2)),K$1,-100)) -> 159.375 | L3: =IF('Ceiling Speaker Calculator'!$C$29="Square",L$1,IF(OR(AND(ODD($A3)=$A3,ODD(L$2)=L$2),AND(EVEN($A3)=$A3,EVEN(L$2)=L$2)),L$1,-100)) -> 178.125 | M3: =IF('Ceiling Speaker Calculator'!$C$29="Square",M$1,IF(OR(AND(ODD($A3)=$A3,ODD(M$2)=M$2),AND(EVEN($A3)=$A3,EVEN(M$2)=M$2)),M$1,-100)) -> 196.875 | N3: =IF('Ceiling Speaker Calculator'!$C$29="Square",N$1,IF(OR(AND(ODD($A3)=$A3,ODD(N$2)=N$2),AND(EVEN($A3)=$A3,EVEN(N$2)=N$2)),N$1,-100)) -> 215.625 | O3: =IF('Ceiling Speaker Calculator'!$C$29="Square",O$1,IF(OR(AND(ODD($A3)=$A3,ODD(O$2)=O$2),AND(EVEN($A3)=$A3,EVEN(O$2)=O$2)),O$1,-100)) -> 234.375 | P3: =IF('Ceiling Speaker Calculator'!$C$29="Square",P$1,IF(OR(AND(ODD($A3)=$A3,ODD(P$2)=P$2),AND(EVEN($A3)=$A3,EVEN(P$2)=P$2)),P$1,-100)) -> 253.125 | Q3: =IF('Ceiling Speaker Calculator'!$C$29="Square",Q$1,IF(OR(AND(ODD($A3)=$A3,ODD(Q$2)=Q$2),AND(EVEN($A3)=$A3,EVEN(Q$2)=Q$2)),Q$1,-100)) -> 271.875 | R3: =IF('Ceiling Speaker Calculator'!$C$29="Square",R$1,IF(OR(AND(ODD($A3)=$A3,ODD(R$2)=R$2),AND(EVEN($A3)=$A3,EVEN(R$2)=R$2)),R$1,-100)) -> 290.625 | S3: =IF('Ceiling Speaker Calculator'!$C$29="Square",S$1,IF(OR(AND(ODD($A3)=$A3,ODD(S$2)=S$2),AND(EVEN($A3)=$A3,EVEN(S$2)=S$2)),S$1,-100)) -> 309.375 | T3: =IF('Ceiling Speaker Calculator'!$C$29="Square",T$1,IF(OR(AND(ODD($A3)=$A3,ODD(T$2)=T$2),AND(EVEN($A3)=$A3,EVEN(T$2)=T$2)),T$1,-100)) -> 328.125 | U3: =IF('Ceiling Speaker Calculator'!$C$29="Square",U$1,IF(OR(AND(ODD($A3)=$A3,ODD(U$2)=U$2),AND(EVEN($A3)=$A3,EVEN(U$2)=U$2)),U$1,-100)) -> 346.875 | V3: =IF('Ceiling Speaker Calculator'!$C$29="Square",V$1,IF(OR(AND(ODD($A3)=$A3,ODD(V$2)=V$2),AND(EVEN($A3)=$A3,EVEN(V$2)=V$2)),V$1,-100)) -> 365.625 | W3: =IF('Ceiling Speaker Calculator'!$C$29="Square",W$1,IF(OR(AND(ODD($A3)=$A3,ODD(W$2)=W$2),AND(EVEN($A3)=$A3,EVEN(W$2)=W$2)),W$1,-100)) -> 384.375 | X3: =IF('Ceiling Speaker Calculator'!$C$29="Square",X$1,IF(OR(AND(ODD($A3)=$A3,ODD(X$2)=X$2),AND(EVEN($A3)=$A3,EVEN(X$2)=X$2)),X$1,-100)) -> 403.125 | Y3: =IF('Ceiling Speaker Calculator'!$C$29="Square",Y$1,IF(OR(AND(ODD($A3)=$A3,ODD(Y$2)=Y$2),AND(EVEN($A3)=$A3,EVEN(Y$2)=Y$2)),Y$1,-100)) -> 421.875 | Z3: =IF('Ceiling Speaker Calculator'!$C$29="Square",Z$1,IF(OR(AND(ODD($A3)=$A3,ODD(Z$2)=Z$2),AND(EVEN($A3)=$A3,EVEN(Z$2)=Z$2)),Z$1,-100)) -> 440.625 | AA3: =IF('Ceiling Speaker Calculator'!$C$29="Square",AA$1,IF(OR(AND(ODD($A3)=$A3,ODD(AA$2)=AA$2),AND(EVEN($A3)=$A3,EVEN(AA$2)=AA$2)),AA$1,-100)) -> 459.375 | AB3: =IF('Ceiling Speaker Calculator'!$C$29="Square",AB$1,IF(OR(AND(ODD($A3)=$A3,ODD(AB$2)=AB$2),AND(EVEN($A3)=$A3,EVEN(AB$2)=AB$2)),AB$1,-100)) -> 478.125 | AC3: =IF('Ceiling Speaker Calculator'!$C$29="Square",AC$1,IF(OR(AND(ODD($A3)=$A3,ODD(AC$2)=AC$2),AND(EVEN($A3)=$A3,EVEN(AC$2)=AC$2)),AC$1,-100)) -> 496.875 | AD3: =IF('Ceiling Speaker Calculator'!$C$29="Square",AD$1,IF(OR(AND(ODD($A3)=$A3,ODD(AD$2)=AD$2),AND(EVEN($A3)=$A3,EVEN(AD$2)=AD$2)),AD$1,-100)) -> 515.625 | AE3: =IF('Ceiling Speaker Calculator'!$C$29="Square",AE$1,IF(OR(AND(ODD($A3)=$A3,ODD(AE$2)=AE$2),AND(EVEN($A3)=$A3,EVEN(AE$2)=AE$2)),AE$1,-100)) -> 534.375 | AF3: =IF('Ceiling Speaker Calculator'!$C$29="Square",AF$1,IF(OR(AND(ODD($A3)=$A3,ODD(AF$2)=AF$2),AND(EVEN($A3)=$A3,EVEN(AF$2)=AF$2)),AF$1,-100)) -> 553.125 | AG3: =IF('Ceiling Speaker Calculator'!$C$29="Square",AG$1,IF(OR(AND(ODD($A3)=$A3,ODD(AG$2)=AG$2),AND(EVEN($A3)=$A3,EVEN(AG$2)=AG$2)),AG$1,-100)) -> 571.875 | AH3: =IF('Ceiling Speaker Calculator'!$C$29="Square",AH$1,IF(OR(AND(ODD($A3)=$A3,ODD(AH$2)=AH$2),AND(EVEN($A3)=$A3,EVEN(AH$2)=AH$2)),AH$1,-100)) -> 590.625 | AI3: =IF('Ceiling Speaker Calculator'!$C$29="Square",AI$1,IF(OR(AND(ODD($A3)=$A3,ODD(AI$2)=AI$2),AND(EVEN($A3)=$A3,EVEN(AI$2)=AI$2)),AI$1,-100)) -> 609.375 | AJ3: =IF('Ceiling Speaker Calculator'!$C$29="Square",AJ$1,IF(OR(AND(ODD($A3)=$A3,ODD(AJ$2)=AJ$2),AND(EVEN($A3)=$A3,EVEN(AJ$2)=AJ$2)),AJ$1,-100)) -> 628.125 | AK3: =IF('Ceiling Speaker Calculator'!$C$29="Square",AK$1,IF(OR(AND(ODD($A3)=$A3,ODD(AK$2)=AK$2),AND(EVEN($A3)=$A3,EVEN(AK$2)=AK$2)),AK$1,-100)) -> 646.875 | AL3: =IF('Ceiling Speaker Calculator'!$C$29="Square",AL$1,IF(OR(AND(ODD($A3)=$A3,ODD(AL$2)=AL$2),AND(EVEN($A3)=$A3,EVEN(AL$2)=AL$2)),AL$1,-100)) -> 665.625 | AM3: =IF('Ceiling Speaker Calculator'!$C$29="Square",AM$1,IF(OR(AND(ODD($A3)=$A3,ODD(AM$2)=AM$2),AND(EVEN($A3)=$A3,EVEN(AM$2)=AM$2)),AM$1,-100)) -> 684.375 | AN3: =IF('Ceiling Speaker Calculator'!$C$29="Square",AN$1,IF(OR(AND(ODD($A3)=$A3,ODD(AN$2)=AN$2),AND(EVEN($A3)=$A3,EVEN(AN$2)=AN$2)),AN$1,-100)) -> 703.125 | AO3: =IF('Ceiling Speaker Calculator'!$C$29="Square",AO$1,IF(OR(AND(ODD($A3)=$A3,ODD(AO$2)=AO$2),AND(EVEN($A3)=$A3,EVEN(AO$2)=AO$2)),AO$1,-100)) -> 721.875 | AP3: =IF('Ceiling Speaker Calculator'!$C$29="Square",AP$1,IF(OR(AND(ODD($A3)=$A3,ODD(AP$2)=AP$2),AND(EVEN($A3)=$A3,EVEN(AP$2)=AP$2)),AP$1,-100)) -> 740.625 | AQ3: =IF('Ceiling Speaker Calculator'!$C$29="Square",AQ$1,IF(OR(AND(ODD($A3)=$A3,ODD(AQ$2)=AQ$2),AND(EVEN($A3)=$A3,EVEN(AQ$2)=AQ$2)),AQ$1,-100)) -> 759.375 | AR3: =IF('Ceiling Speaker Calculator'!$C$29="Square",AR$1,IF(OR(AND(ODD($A3)=$A3,ODD(AR$2)=AR$2),AND(EVEN($A3)=$A3,EVEN(AR$2)=AR$2)),AR$1,-100)) -> 778.125 | AS3: =IF('Ceiling Speaker Calculator'!$C$29="Square",AS$1,IF(OR(AND(ODD($A3)=$A3,ODD(AS$2)=AS$2),AND(EVEN($A3)=$A3,EVEN(AS$2)=AS$2)),AS$1,-100)) -> 796.875 | AT3: =IF('Ceiling Speaker Calculator'!$C$29="Square",AT$1,IF(OR(AND(ODD($A3)=$A3,ODD(AT$2)=AT$2),AND(EVEN($A3)=$A3,EVEN(AT$2)=AT$2)),AT$1,-100)) -> 815.625 | AU3: =IF('Ceiling Speaker Calculator'!$C$29="Square",AU$1,IF(OR(AND(ODD($A3)=$A3,ODD(AU$2)=AU$2),AND(EVEN($A3)=$A3,EVEN(AU$2)=AU$2)),AU$1,-100)) -> 834.375 | AV3: =IF('Ceiling Speaker Calculator'!$C$29="Square",AV$1,IF(OR(AND(ODD($A3)=$A3,ODD(AV$2)=AV$2),AND(EVEN($A3)=$A3,EVEN(AV$2)=AV$2)),AV$1,-100)) -> 853.125 | AW3: =IF('Ceiling Speaker Calculator'!$C$29="Square",AW$1,IF(OR(AND(ODD($A3)=$A3,ODD(AW$2)=AW$2),AND(EVEN($A3)=$A3,EVEN(AW$2)=AW$2)),AW$1,-100)) -> 871.875 | AX3: =IF('Ceiling Speaker Calculator'!$C$29="Square",AX$1,IF(OR(AND(ODD($A3)=$A3,ODD(AX$2)=AX$2),AND(EVEN($A3)=$A3,EVEN(AX$2)=AX$2)),AX$1,-100)) -> 890.625 | AY3: =IF('Ceiling Speaker Calculator'!$C$29="Square",AY$1,IF(OR(AND(ODD($A3)=$A3,ODD(AY$2)=AY$2),AND(EVEN($A3)=$A3,EVEN(AY$2)=AY$2)),AY$1,-100)) -> 909.375 | AZ3: =IF('Ceiling Speaker Calculator'!$C$29="Square",AZ$1,IF(OR(AND(ODD($A3)=$A3,ODD(AZ$2)=AZ$2),AND(EVEN($A3)=$A3,EVEN(AZ$2)=AZ$2)),AZ$1,-100)) -> 928.125 | BA3: =IF('Ceiling Speaker Calculator'!$C$29="Square",BA$1,IF(OR(AND(ODD($A3)=$A3,ODD(BA$2)=BA$2),AND(EVEN($A3)=$A3,EVEN(BA$2)=BA$2)),BA$1,-100)) -> 946.875 | BB3: =IF('Ceiling Speaker Calculator'!$C$29="Square",BB$1,IF(OR(AND(ODD($A3)=$A3,ODD(BB$2)=BB$2),AND(EVEN($A3)=$A3,EVEN(BB$2)=BB$2)),BB$1,-100)) -> 965.625 | BC3: =IF('Ceiling Speaker Calculator'!$C$29="Square",BC$1,IF(OR(AND(ODD($A3)=$A3,ODD(BC$2)=BC$2),AND(EVEN($A3)=$A3,EVEN(BC$2)=BC$2)),BC$1,-100)) -> 984.375 | BD3: =IF('Ceiling Speaker Calculator'!$C$29="Square",BD$1,IF(OR(AND(ODD($A3)=$A3,ODD(BD$2)=BD$2),AND(EVEN($A3)=$A3,EVEN(BD$2)=BD$2)),BD$1,-100)) -> 1003.125 | BE3: =IF('Ceiling Speaker Calculator'!$C$29="Square",BE$1,IF(OR(AND(ODD($A3)=$A3,ODD(BE$2)=BE$2),AND(EVEN($A3)=$A3,EVEN(BE$2)=BE$2)),BE$1,-100)) -> 1021.875 | BF3: =IF('Ceiling Speaker Calculator'!$C$29="Square",BF$1,IF(OR(AND(ODD($A3)=$A3,ODD(BF$2)=BF$2),AND(EVEN($A3)=$A3,EVEN(BF$2)=BF$2)),BF$1,-100)) -> 1040.625 | BG3: =IF('Ceiling Speaker Calculator'!$C$29="Square",BG$1,IF(OR(AND(ODD($A3)=$A3,ODD(BG$2)=BG$2),AND(EVEN($A3)=$A3,EVEN(BG$2)=BG$2)),BG$1,-100)) -> 1059.375 | BH3: =IF('Ceiling Speaker Calculator'!$C$29="Square",BH$1,IF(OR(AND(ODD($A3)=$A3,ODD(BH$2)=BH$2),AND(EVEN($A3)=$A3,EVEN(BH$2)=BH$2)),BH$1,-100)) -> 1078.125 | BI3: =IF('Ceiling Speaker Calculator'!$C$29="Square",BI$1,IF(OR(AND(ODD($A3)=$A3,ODD(BI$2)=BI$2),AND(EVEN($A3)=$A3,EVEN(BI$2)=BI$2)),BI$1,-100)) -> 1096.875 | BJ3: =IF('Ceiling Speaker Calculator'!$C$29="Square",BJ$1,IF(OR(AND(ODD($A3)=$A3,ODD(BJ$2)=BJ$2),AND(EVEN($A3)=$A3,EVEN(BJ$2)=BJ$2)),BJ$1,-100)) -> 1115.625 | BK3: =IF('Ceiling Speaker Calculator'!$C$29="Square",BK$1,IF(OR(AND(ODD($A3)=$A3,ODD(BK$2)=BK$2),AND(EVEN($A3)=$A3,EVEN(BK$2)=BK$2)),BK$1,-100)) -> 1134.375 | BL3: =IF('Ceiling Speaker Calculator'!$C$29="Square",BL$1,IF(OR(AND(ODD($A3)=$A3,ODD(BL$2)=BL$2),AND(EVEN($A3)=$A3,EVEN(BL$2)=BL$2)),BL$1,-100)) -> 1153.125 | BM3: =IF('Ceiling Speaker Calculator'!$C$29="Square",BM$1,IF(OR(AND(ODD($A3)=$A3,ODD(BM$2)=BM$2),AND(EVEN($A3)=$A3,EVEN(BM$2)=BM$2)),BM$1,-100)) -> 1171.875 | BN3: =IF('Ceiling Speaker Calculator'!$C$29="Square",BN$1,IF(OR(AND(ODD($A3)=$A3,ODD(BN$2)=BN$2),AND(EVEN($A3)=$A3,EVEN(BN$2)=BN$2)),BN$1,-100)) -> 1190.625 | BO3: =IF('Ceiling Speaker Calculator'!$C$29="Square",BO$1,IF(OR(AND(ODD($A3)=$A3,ODD(BO$2)=BO$2),AND(EVEN($A3)=$A3,EVEN(BO$2)=BO$2)),BO$1,-100)) -> 1209.375 | BP3: =IF('Ceiling Speaker Calculator'!$C$29="Square",BP$1,IF(OR(AND(ODD($A3)=$A3,ODD(BP$2)=BP$2),AND(EVEN($A3)=$A3,EVEN(BP$2)=BP$2)),BP$1,-100)) -> 1228.125 | BQ3: =IF('Ceiling Speaker Calculator'!$C$29="Square",BQ$1,IF(OR(AND(ODD($A3)=$A3,ODD(BQ$2)=BQ$2),AND(EVEN($A3)=$A3,EVEN(BQ$2)=BQ$2)),BQ$1,-100)) -> 1246.875 | BR3: =IF('Ceiling Speaker Calculator'!$C$29="Square",BR$1,IF(OR(AND(ODD($A3)=$A3,ODD(BR$2)=BR$2),AND(EVEN($A3)=$A3,EVEN(BR$2)=BR$2)),BR$1,-100)) -> 1265.625 | BS3: =IF('Ceiling Speaker Calculator'!$C$29="Square",BS$1,IF(OR(AND(ODD($A3)=$A3,ODD(BS$2)=BS$2),AND(EVEN($A3)=$A3,EVEN(BS$2)=BS$2)),BS$1,-100)) -> 1284.375 | BT3: =IF('Ceiling Speaker Calculator'!$C$29="Square",BT$1,IF(OR(AND(ODD($A3)=$A3,ODD(BT$2)=BT$2),AND(EVEN($A3)=$A3,EVEN(BT$2)=BT$2)),BT$1,-100)) -> 1303.125 | BU3: =IF('Ceiling Speaker Calculator'!$C$29="Square",BU$1,IF(OR(AND(ODD($A3)=$A3,ODD(BU$2)=BU$2),AND(EVEN($A3)=$A3,EVEN(BU$2)=BU$2)),BU$1,-100)) -> 1321.875 | BV3: =IF('Ceiling Speaker Calculator'!$C$29="Square",BV$1,IF(OR(AND(ODD($A3)=$A3,ODD(BV$2)=BV$2),AND(EVEN($A3)=$A3,EVEN(BV$2)=BV$2)),BV$1,-100)) -> 1340.625 | BW3: =IF('Ceiling Speaker Calculator'!$C$29="Square",BW$1,IF(OR(AND(ODD($A3)=$A3,ODD(BW$2)=BW$2),AND(EVEN($A3)=$A3,EVEN(BW$2)=BW$2)),BW$1,-100)) -> 1359.375 | BX3: =IF('Ceiling Speaker Calculator'!$C$29="Square",BX$1,IF(OR(AND(ODD($A3)=$A3,ODD(BX$2)=BX$2),AND(EVEN($A3)=$A3,EVEN(BX$2)=BX$2)),BX$1,-100)) -> 1378.125 | BY3: =IF('Ceiling Speaker Calculator'!$C$29="Square",BY$1,IF(OR(AND(ODD($A3)=$A3,ODD(BY$2)=BY$2),AND(EVEN($A3)=$A3,EVEN(BY$2)=BY$2)),BY$1,-100)) -> 1396.875 | BZ3: =IF('Ceiling Speaker Calculator'!$C$29="Square",BZ$1,IF(OR(AND(ODD($A3)=$A3,ODD(BZ$2)=BZ$2),AND(EVEN($A3)=$A3,EVEN(BZ$2)=BZ$2)),BZ$1,-100)) -> 1415.625 | CA3: =IF('Ceiling Speaker Calculator'!$C$29="Square",CA$1,IF(OR(AND(ODD($A3)=$A3,ODD(CA$2)=CA$2),AND(EVEN($A3)=$A3,EVEN(CA$2)=CA$2)),CA$1,-100)) -> 1434.375 | CB3: =IF('Ceiling Speaker Calculator'!$C$29="Square",CB$1,IF(OR(AND(ODD($A3)=$A3,ODD(CB$2)=CB$2),AND(EVEN($A3)=$A3,EVEN(CB$2)=CB$2)),CB$1,-100)) -> 1453.125 | CC3: =IF('Ceiling Speaker Calculator'!$C$29="Square",CC$1,IF(OR(AND(ODD($A3)=$A3,ODD(CC$2)=CC$2),AND(EVEN($A3)=$A3,EVEN(CC$2)=CC$2)),CC$1,-100)) -> 1471.875 | CD3: =IF('Ceiling Speaker Calculator'!$C$29="Square",CD$1,IF(OR(AND(ODD($A3)=$A3,ODD(CD$2)=CD$2),AND(EVEN($A3)=$A3,EVEN(CD$2)=CD$2)),CD$1,-100)) -> 1490.625 | CE3: =IF('Ceiling Speaker Calculator'!$C$29="Square",CE$1,IF(OR(AND(ODD($A3)=$A3,ODD(CE$2)=CE$2),AND(EVEN($A3)=$A3,EVEN(CE$2)=CE$2)),CE$1,-100)) -> 1509.375 | CF3: =IF('Ceiling Speaker Calculator'!$C$29="Square",CF$1,IF(OR(AND(ODD($A3)=$A3,ODD(CF$2)=CF$2),AND(EVEN($A3)=$A3,EVEN(CF$2)=CF$2)),CF$1,-100)) -> 1528.125 | CG3: =IF('Ceiling Speaker Calculator'!$C$29="Square",CG$1,IF(OR(AND(ODD($A3)=$A3,ODD(CG$2)=CG$2),AND(EVEN($A3)=$A3,EVEN(CG$2)=CG$2)),CG$1,-100)) -> 1546.875 | CH3: =IF('Ceiling Speaker Calculator'!$C$29="Square",CH$1,IF(OR(AND(ODD($A3)=$A3,ODD(CH$2)=CH$2),AND(EVEN($A3)=$A3,EVEN(CH$2)=CH$2)),CH$1,-100)) -> 1565.625 | CI3: =IF('Ceiling Speaker Calculator'!$C$29="Square",CI$1,IF(OR(AND(ODD($A3)=$A3,ODD(CI$2)=CI$2),AND(EVEN($A3)=$A3,EVEN(CI$2)=CI$2)),CI$1,-100)) -> 1584.375 | CJ3: =IF('Ceiling Speaker Calculator'!$C$29="Square",CJ$1,IF(OR(AND(ODD($A3)=$A3,ODD(CJ$2)=CJ$2),AND(EVEN($A3)=$A3,EVEN(CJ$2)=CJ$2)),CJ$1,-100)) -> 1603.125 | CK3: =IF('Ceiling Speaker Calculator'!$C$29="Square",CK$1,IF(OR(AND(ODD($A3)=$A3,ODD(CK$2)=CK$2),AND(EVEN($A3)=$A3,EVEN(CK$2)=CK$2)),CK$1,-100)) -> 1621.875 | CL3: =IF('Ceiling Speaker Calculator'!$C$29="Square",CL$1,IF(OR(AND(ODD($A3)=$A3,ODD(CL$2)=CL$2),AND(EVEN($A3)=$A3,EVEN(CL$2)=CL$2)),CL$1,-100)) -> 1640.625 | CM3: =IF('Ceiling Speaker Calculator'!$C$29="Square",CM$1,IF(OR(AND(ODD($A3)=$A3,ODD(CM$2)=CM$2),AND(EVEN($A3)=$A3,EVEN(CM$2)=CM$2)),CM$1,-100)) -> 1659.375 | CN3: =IF('Ceiling Speaker Calculator'!$C$29="Square",CN$1,IF(OR(AND(ODD($A3)=$A3,ODD(CN$2)=CN$2),AND(EVEN($A3)=$A3,EVEN(CN$2)=CN$2)),CN$1,-100)) -> 1678.125 | CO3: =IF('Ceiling Speaker Calculator'!$C$29="Square",CO$1,IF(OR(AND(ODD($A3)=$A3,ODD(CO$2)=CO$2),AND(EVEN($A3)=$A3,EVEN(CO$2)=CO$2)),CO$1,-100)) -> 1696.875 | CP3: =IF('Ceiling Speaker Calculator'!$C$29="Square",CP$1,IF(OR(AND(ODD($A3)=$A3,ODD(CP$2)=CP$2),AND(EVEN($A3)=$A3,EVEN(CP$2)=CP$2)),CP$1,-100)) -> 1715.625 | CQ3: =IF('Ceiling Speaker Calculator'!$C$29="Square",CQ$1,IF(OR(AND(ODD($A3)=$A3,ODD(CQ$2)=CQ$2),AND(EVEN($A3)=$A3,EVEN(CQ$2)=CQ$2)),CQ$1,-100)) -> 1734.375 | CR3: =IF('Ceiling Speaker Calculator'!$C$29="Square",CR$1,IF(OR(AND(ODD($A3)=$A3,ODD(CR$2)=CR$2),AND(EVEN($A3)=$A3,EVEN(CR$2)=CR$2)),CR$1,-100)) -> 1753.125 | CS3: =IF('Ceiling Speaker Calculator'!$C$29="Square",CS$1,IF(OR(AND(ODD($A3)=$A3,ODD(CS$2)=CS$2),AND(EVEN($A3)=$A3,EVEN(CS$2)=CS$2)),CS$1,-100)) -> 1771.875 | CT3: =IF('Ceiling Speaker Calculator'!$C$29="Square",CT$1,IF(OR(AND(ODD($A3)=$A3,ODD(CT$2)=CT$2),AND(EVEN($A3)=$A3,EVEN(CT$2)=CT$2)),CT$1,-100)) -> 1790.625 | CU3: =IF('Ceiling Speaker Calculator'!$C$29="Square",CU$1,IF(OR(AND(ODD($A3)=$A3,ODD(CU$2)=CU$2),AND(EVEN($A3)=$A3,EVEN(CU$2)=CU$2)),CU$1,-100)) -> 1809.375 | CV3: =IF('Ceiling Speaker Calculator'!$C$29="Square",CV$1,IF(OR(AND(ODD($A3)=$A3,ODD(CV$2)=CV$2),AND(EVEN($A3)=$A3,EVEN(CV$2)=CV$2)),CV$1,-100)) -> 1828.125 | CW3: =IF('Ceiling Speaker Calculator'!$C$29="Square",CW$1,IF(OR(AND(ODD($A3)=$A3,ODD(CW$2)=CW$2),AND(EVEN($A3)=$A3,EVEN(CW$2)=CW$2)),CW$1,-100)) -> 1846.875 | CX3: =IF('Ceiling Speaker Calculator'!$C$29="Square",CX$1,IF(OR(AND(ODD($A3)=$A3,ODD(CX$2)=CX$2),AND(EVEN($A3)=$A3,EVEN(CX$2)=CX$2)),CX$1,-100)) -> 1865.625
A4: 2 | B4: =B3+'Ceiling Speaker Calculator'!$K$16 -> 30 | C4: =IF('Ceiling Speaker Calculator'!$C$29="Square",C$1,IF(OR(AND(ODD($A4)=$A4,ODD(C$2)=C$2),AND(EVEN($A4)=$A4,EVEN(C$2)=C$2)),C$1,-100)) -> 9.375 | D4: =IF('Ceiling Speaker Calculator'!$C$29="Square",D$1,IF(OR(AND(ODD($A4)=$A4,ODD(D$2)=D$2),AND(EVEN($A4)=$A4,EVEN(D$2)=D$2)),D$1,-100)) -> 28.125 | E4: =IF('Ceiling Speaker Calculator'!$C$29="Square",E$1,IF(OR(AND(ODD($A4)=$A4,ODD(E$2)=E$2),AND(EVEN($A4)=$A4,EVEN(E$2)=E$2)),E$1,-100)) -> 46.875 | F4: =IF('Ceiling Speaker Calculator'!$C$29="Square",F$1,IF(OR(AND(ODD($A4)=$A4,ODD(F$2)=F$2),AND(EVEN($A4)=$A4,EVEN(F$2)=F$2)),F$1,-100)) -> 65.625 | G4: =IF('Ceiling Speaker Calculator'!$C$29="Square",G$1,IF(OR(AND(ODD($A4)=$A4,ODD(G$2)=G$2),AND(EVEN($A4)=$A4,EVEN(G$2)=G$2)),G$1,-100)) -> 84.375 | H4: =IF('Ceiling Speaker Calculator'!$C$29="Square",H$1,IF(OR(AND(ODD($A4)=$A4,ODD(H$2)=H$2),AND(EVEN($A4)=$A4,EVEN(H$2)=H$2)),H$1,-100)) -> 103.125 | I4: =IF('Ceiling Speaker Calculator'!$C$29="Square",I$1,IF(OR(AND(ODD($A4)=$A4,ODD(I$2)=I$2),AND(EVEN($A4)=$A4,EVEN(I$2)=I$2)),I$1,-100)) -> 121.875 | J4: =IF('Ceiling Speaker Calculator'!$C$29="Square",J$1,IF(OR(AND(ODD($A4)=$A4,ODD(J$2)=J$2),AND(EVEN($A4)=$A4,EVEN(J$2)=J$2)),J$1,-100)) -> 140.625 | K4: =IF('Ceiling Speaker Calculator'!$C$29="Square",K$1,IF(OR(AND(ODD($A4)=$A4,ODD(K$2)=K$2),AND(EVEN($A4)=$A4,EVEN(K$2)=K$2)),K$1,-100)) -> 159.375 | L4: =IF('Ceiling Speaker Calculator'!$C$29="Square",L$1,IF(OR(AND(ODD($A4)=$A4,ODD(L$2)=L$2),AND(EVEN($A4)=$A4,EVEN(L$2)=L$2)),L$1,-100)) -> 178.125 | M4: =IF('Ceiling Speaker Calculator'!$C$29="Square",M$1,IF(OR(AND(ODD($A4)=$A4,ODD(M$2)=M$2),AND(EVEN($A4)=$A4,EVEN(M$2)=M$2)),M$1,-100)) -> 196.875 | N4: =IF('Ceiling Speaker Calculator'!$C$29="Square",N$1,IF(OR(AND(ODD($A4)=$A4,ODD(N$2)=N$2),AND(EVEN($A4)=$A4,EVEN(N$2)=N$2)),N$1,-100)) -> 215.625 | O4: =IF('Ceiling Speaker Calculator'!$C$29="Square",O$1,IF(OR(AND(ODD($A4)=$A4,ODD(O$2)=O$2),AND(EVEN($A4)=$A4,EVEN(O$2)=O$2)),O$1,-100)) -> 234.375 | P4: =IF('Ceiling Speaker Calculator'!$C$29="Square",P$1,IF(OR(AND(ODD($A4)=$A4,ODD(P$2)=P$2),AND(EVEN($A4)=$A4,EVEN(P$2)=P$2)),P$1,-100)) -> 253.125 | Q4: =IF('Ceiling Speaker Calculator'!$C$29="Square",Q$1,IF(OR(AND(ODD($A4)=$A4,ODD(Q$2)=Q$2),AND(EVEN($A4)=$A4,EVEN(Q$2)=Q$2)),Q$1,-100)) -> 271.875 | R4: =IF('Ceiling Speaker Calculator'!$C$29="Square",R$1,IF(OR(AND(ODD($A4)=$A4,ODD(R$2)=R$2),AND(EVEN($A4)=$A4,EVEN(R$2)=R$2)),R$1,-100)) -> 290.625 | S4: =IF('Ceiling Speaker Calculator'!$C$29="Square",S$1,IF(OR(AND(ODD($A4)=$A4,ODD(S$2)=S$2),AND(EVEN($A4)=$A4,EVEN(S$2)=S$2)),S$1,-100)) -> 309.375 | T4: =IF('Ceiling Speaker Calculator'!$C$29="Square",T$1,IF(OR(AND(ODD($A4)=$A4,ODD(T$2)=T$2),AND(EVEN($A4)=$A4,EVEN(T$2)=T$2)),T$1,-100)) -> 328.125 | U4: =IF('Ceiling Speaker Calculator'!$C$29="Square",U$1,IF(OR(AND(ODD($A4)=$A4,ODD(U$2)=U$2),AND(EVEN($A4)=$A4,EVEN(U$2)=U$2)),U$1,-100)) -> 346.875 | V4: =IF('Ceiling Speaker Calculator'!$C$29="Square",V$1,IF(OR(AND(ODD($A4)=$A4,ODD(V$2)=V$2),AND(EVEN($A4)=$A4,EVEN(V$2)=V$2)),V$1,-100)) -> 365.625 | W4: =IF('Ceiling Speaker Calculator'!$C$29="Square",W$1,IF(OR(AND(ODD($A4)=$A4,ODD(W$2)=W$2),AND(EVEN($A4)=$A4,EVEN(W$2)=W$2)),W$1,-100)) -> 384.375 | X4: =IF('Ceiling Speaker Calculator'!$C$29="Square",X$1,IF(OR(AND(ODD($A4)=$A4,ODD(X$2)=X$2),AND(EVEN($A4)=$A4,EVEN(X$2)=X$2)),X$1,-100)) -> 403.125 | Y4: =IF('Ceiling Speaker Calculator'!$C$29="Square",Y$1,IF(OR(AND(ODD($A4)=$A4,ODD(Y$2)=Y$2),AND(EVEN($A4)=$A4,EVEN(Y$2)=Y$2)),Y$1,-100)) -> 421.875 | Z4: =IF('Ceiling Speaker Calculator'!$C$29="Square",Z$1,IF(OR(AND(ODD($A4)=$A4,ODD(Z$2)=Z$2),AND(EVEN($A4)=$A4,EVEN(Z$2)=Z$2)),Z$1,-100)) -> 440.625 | AA4: =IF('Ceiling Speaker Calculator'!$C$29="Square",AA$1,IF(OR(AND(ODD($A4)=$A4,ODD(AA$2)=AA$2),AND(EVEN($A4)=$A4,EVEN(AA$2)=AA$2)),AA$1,-100)) -> 459.375 | AB4: =IF('Ceiling Speaker Calculator'!$C$29="Square",AB$1,IF(OR(AND(ODD($A4)=$A4,ODD(AB$2)=AB$2),AND(EVEN($A4)=$A4,EVEN(AB$2)=AB$2)),AB$1,-100)) -> 478.125 | AC4: =IF('Ceiling Speaker Calculator'!$C$29="Square",AC$1,IF(OR(AND(ODD($A4)=$A4,ODD(AC$2)=AC$2),AND(EVEN($A4)=$A4,EVEN(AC$2)=AC$2)),AC$1,-100)) -> 496.875 | AD4: =IF('Ceiling Speaker Calculator'!$C$29="Square",AD$1,IF(OR(AND(ODD($A4)=$A4,ODD(AD$2)=AD$2),AND(EVEN($A4)=$A4,EVEN(AD$2)=AD$2)),AD$1,-100)) -> 515.625 | AE4: =IF('Ceiling Speaker Calculator'!$C$29="Square",AE$1,IF(OR(AND(ODD($A4)=$A4,ODD(AE$2)=AE$2),AND(EVEN($A4)=$A4,EVEN(AE$2)=AE$2)),AE$1,-100)) -> 534.375 | AF4: =IF('Ceiling Speaker Calculator'!$C$29="Square",AF$1,IF(OR(AND(ODD($A4)=$A4,ODD(AF$2)=AF$2),AND(EVEN($A4)=$A4,EVEN(AF$2)=AF$2)),AF$1,-100)) -> 553.125 | AG4: =IF('Ceiling Speaker Calculator'!$C$29="Square",AG$1,IF(OR(AND(ODD($A4)=$A4,ODD(AG$2)=AG$2),AND(EVEN($A4)=$A4,EVEN(AG$2)=AG$2)),AG$1,-100)) -> 571.875 | AH4: =IF('Ceiling Speaker Calculator'!$C$29="Square",AH$1,IF(OR(AND(ODD($A4)=$A4,ODD(AH$2)=AH$2),AND(EVEN($A4)=$A4,EVEN(AH$2)=AH$2)),AH$1,-100)) -> 590.625 | AI4: =IF('Ceiling Speaker Calculator'!$C$29="Square",AI$1,IF(OR(AND(ODD($A4)=$A4,ODD(AI$2)=AI$2),AND(EVEN($A4)=$A4,EVEN(AI$2)=AI$2)),AI$1,-100)) -> 609.375 | AJ4: =IF('Ceiling Speaker Calculator'!$C$29="Square",AJ$1,IF(OR(AND(ODD($A4)=$A4,ODD(AJ$2)=AJ$2),AND(EVEN($A4)=$A4,EVEN(AJ$2)=AJ$2)),AJ$1,-100)) -> 628.125 | AK4: =IF('Ceiling Speaker Calculator'!$C$29="Square",AK$1,IF(OR(AND(ODD($A4)=$A4,ODD(AK$2)=AK$2),AND(EVEN($A4)=$A4,EVEN(AK$2)=AK$2)),AK$1,-100)) -> 646.875 | AL4: =IF('Ceiling Speaker Calculator'!$C$29="Square",AL$1,IF(OR(AND(ODD($A4)=$A4,ODD(AL$2)=AL$2),AND(EVEN($A4)=$A4,EVEN(AL$2)=AL$2)),AL$1,-100)) -> 665.625 | AM4: =IF('Ceiling Speaker Calculator'!$C$29="Square",AM$1,IF(OR(AND(ODD($A4)=$A4,ODD(AM$2)=AM$2),AND(EVEN($A4)=$A4,EVEN(AM$2)=AM$2)),AM$1,-100)) -> 684.375 | AN4: =IF('Ceiling Speaker Calculator'!$C$29="Square",AN$1,IF(OR(AND(ODD($A4)=$A4,ODD(AN$2)=AN$2),AND(EVEN($A4)=$A4,EVEN(AN$2)=AN$2)),AN$1,-100)) -> 703.125 | AO4: =IF('Ceiling Speaker Calculator'!$C$29="Square",AO$1,IF(OR(AND(ODD($A4)=$A4,ODD(AO$2)=AO$2),AND(EVEN($A4)=$A4,EVEN(AO$2)=AO$2)),AO$1,-100)) -> 721.875 | AP4: =IF('Ceiling Speaker Calculator'!$C$29="Square",AP$1,IF(OR(AND(ODD($A4)=$A4,ODD(AP$2)=AP$2),AND(EVEN($A4)=$A4,EVEN(AP$2)=AP$2)),AP$1,-100)) -> 740.625 | AQ4: =IF('Ceiling Speaker Calculator'!$C$29="Square",AQ$1,IF(OR(AND(ODD($A4)=$A4,ODD(AQ$2)=AQ$2),AND(EVEN($A4)=$A4,EVEN(AQ$2)=AQ$2)),AQ$1,-100)) -> 759.375 | AR4: =IF('Ceiling Speaker Calculator'!$C$29="Square",AR$1,IF(OR(AND(ODD($A4)=$A4,ODD(AR$2)=AR$2),AND(EVEN($A4)=$A4,EVEN(AR$2)=AR$2)),AR$1,-100)) -> 778.125 | AS4: =IF('Ceiling Speaker Calculator'!$C$29="Square",AS$1,IF(OR(AND(ODD($A4)=$A4,ODD(AS$2)=AS$2),AND(EVEN($A4)=$A4,EVEN(AS$2)=AS$2)),AS$1,-100)) -> 796.875 | AT4: =IF('Ceiling Speaker Calculator'!$C$29="Square",AT$1,IF(OR(AND(ODD($A4)=$A4,ODD(AT$2)=AT$2),AND(EVEN($A4)=$A4,EVEN(AT$2)=AT$2)),AT$1,-100)) -> 815.625 | AU4: =IF('Ceiling Speaker Calculator'!$C$29="Square",AU$1,IF(OR(AND(ODD($A4)=$A4,ODD(AU$2)=AU$2),AND(EVEN($A4)=$A4,EVEN(AU$2)=AU$2)),AU$1,-100)) -> 834.375 | AV4: =IF('Ceiling Speaker Calculator'!$C$29="Square",AV$1,IF(OR(AND(ODD($A4)=$A4,ODD(AV$2)=AV$2),AND(EVEN($A4)=$A4,EVEN(AV$2)=AV$2)),AV$1,-100)) -> 853.125 | AW4: =IF('Ceiling Speaker Calculator'!$C$29="Square",AW$1,IF(OR(AND(ODD($A4)=$A4,ODD(AW$2)=AW$2),AND(EVEN($A4)=$A4,EVEN(AW$2)=AW$2)),AW$1,-100)) -> 871.875 | AX4: =IF('Ceiling Speaker Calculator'!$C$29="Square",AX$1,IF(OR(AND(ODD($A4)=$A4,ODD(AX$2)=AX$2),AND(EVEN($A4)=$A4,EVEN(AX$2)=AX$2)),AX$1,-100)) -> 890.625 | AY4: =IF('Ceiling Speaker Calculator'!$C$29="Square",AY$1,IF(OR(AND(ODD($A4)=$A4,ODD(AY$2)=AY$2),AND(EVEN($A4)=$A4,EVEN(AY$2)=AY$2)),AY$1,-100)) -> 909.375 | AZ4: =IF('Ceiling Speaker Calculator'!$C$29="Square",AZ$1,IF(OR(AND(ODD($A4)=$A4,ODD(AZ$2)=AZ$2),AND(EVEN($A4)=$A4,EVEN(AZ$2)=AZ$2)),AZ$1,-100)) -> 928.125 | BA4: =IF('Ceiling Speaker Calculator'!$C$29="Square",BA$1,IF(OR(AND(ODD($A4)=$A4,ODD(BA$2)=BA$2),AND(EVEN($A4)=$A4,EVEN(BA$2)=BA$2)),BA$1,-100)) -> 946.875 | BB4: =IF('Ceiling Speaker Calculator'!$C$29="Square",BB$1,IF(OR(AND(ODD($A4)=$A4,ODD(BB$2)=BB$2),AND(EVEN($A4)=$A4,EVEN(BB$2)=BB$2)),BB$1,-100)) -> 965.625 | BC4: =IF('Ceiling Speaker Calculator'!$C$29="Square",BC$1,IF(OR(AND(ODD($A4)=$A4,ODD(BC$2)=BC$2),AND(EVEN($A4)=$A4,EVEN(BC$2)=BC$2)),BC$1,-100)) -> 984.375 | BD4: =IF('Ceiling Speaker Calculator'!$C$29="Square",BD$1,IF(OR(AND(ODD($A4)=$A4,ODD(BD$2)=BD$2),AND(EVEN($A4)=$A4,EVEN(BD$2)=BD$2)),BD$1,-100)) -> 1003.125 | BE4: =IF('Ceiling Speaker Calculator'!$C$29="Square",BE$1,IF(OR(AND(ODD($A4)=$A4,ODD(BE$2)=BE$2),AND(EVEN($A4)=$A4,EVEN(BE$2)=BE$2)),BE$1,-100)) -> 1021.875 | BF4: =IF('Ceiling Speaker Calculator'!$C$29="Square",BF$1,IF(OR(AND(ODD($A4)=$A4,ODD(BF$2)=BF$2),AND(EVEN($A4)=$A4,EVEN(BF$2)=BF$2)),BF$1,-100)) -> 1040.625 | BG4: =IF('Ceiling Speaker Calculator'!$C$29="Square",BG$1,IF(OR(AND(ODD($A4)=$A4,ODD(BG$2)=BG$2),AND(EVEN($A4)=$A4,EVEN(BG$2)=BG$2)),BG$1,-100)) -> 1059.375 | BH4: =IF('Ceiling Speaker Calculator'!$C$29="Square",BH$1,IF(OR(AND(ODD($A4)=$A4,ODD(BH$2)=BH$2),AND(EVEN($A4)=$A4,EVEN(BH$2)=BH$2)),BH$1,-100)) -> 1078.125 | BI4: =IF('Ceiling Speaker Calculator'!$C$29="Square",BI$1,IF(OR(AND(ODD($A4)=$A4,ODD(BI$2)=BI$2),AND(EVEN($A4)=$A4,EVEN(BI$2)=BI$2)),BI$1,-100)) -> 1096.875 | BJ4: =IF('Ceiling Speaker Calculator'!$C$29="Square",BJ$1,IF(OR(AND(ODD($A4)=$A4,ODD(BJ$2)=BJ$2),AND(EVEN($A4)=$A4,EVEN(BJ$2)=BJ$2)),BJ$1,-100)) -> 1115.625 | BK4: =IF('Ceiling Speaker Calculator'!$C$29="Square",BK$1,IF(OR(AND(ODD($A4)=$A4,ODD(BK$2)=BK$2),AND(EVEN($A4)=$A4,EVEN(BK$2)=BK$2)),BK$1,-100)) -> 1134.375 | BL4: =IF('Ceiling Speaker Calculator'!$C$29="Square",BL$1,IF(OR(AND(ODD($A4)=$A4,ODD(BL$2)=BL$2),AND(EVEN($A4)=$A4,EVEN(BL$2)=BL$2)),BL$1,-100)) -> 1153.125 | BM4: =IF('Ceiling Speaker Calculator'!$C$29="Square",BM$1,IF(OR(AND(ODD($A4)=$A4,ODD(BM$2)=BM$2),AND(EVEN($A4)=$A4,EVEN(BM$2)=BM$2)),BM$1,-100)) -> 1171.875 | BN4: =IF('Ceiling Speaker Calculator'!$C$29="Square",BN$1,IF(OR(AND(ODD($A4)=$A4,ODD(BN$2)=BN$2),AND(EVEN($A4)=$A4,EVEN(BN$2)=BN$2)),BN$1,-100)) -> 1190.625 | BO4: =IF('Ceiling Speaker Calculator'!$C$29="Square",BO$1,IF(OR(AND(ODD($A4)=$A4,ODD(BO$2)=BO$2),AND(EVEN($A4)=$A4,EVEN(BO$2)=BO$2)),BO$1,-100)) -> 1209.375 | BP4: =IF('Ceiling Speaker Calculator'!$C$29="Square",BP$1,IF(OR(AND(ODD($A4)=$A4,ODD(BP$2)=BP$2),AND(EVEN($A4)=$A4,EVEN(BP$2)=BP$2)),BP$1,-100)) -> 1228.125 | BQ4: =IF('Ceiling Speaker Calculator'!$C$29="Square",BQ$1,IF(OR(AND(ODD($A4)=$A4,ODD(BQ$2)=BQ$2),AND(EVEN($A4)=$A4,EVEN(BQ$2)=BQ$2)),BQ$1,-100)) -> 1246.875 | BR4: =IF('Ceiling Speaker Calculator'!$C$29="Square",BR$1,IF(OR(AND(ODD($A4)=$A4,ODD(BR$2)=BR$2),AND(EVEN($A4)=$A4,EVEN(BR$2)=BR$2)),BR$1,-100)) -> 1265.625 | BS4: =IF('Ceiling Speaker Calculator'!$C$29="Square",BS$1,IF(OR(AND(ODD($A4)=$A4,ODD(BS$2)=BS$2),AND(EVEN($A4)=$A4,EVEN(BS$2)=BS$2)),BS$1,-100)) -> 1284.375 | BT4: =IF('Ceiling Speaker Calculator'!$C$29="Square",BT$1,IF(OR(AND(ODD($A4)=$A4,ODD(BT$2)=BT$2),AND(EVEN($A4)=$A4,EVEN(BT$2)=BT$2)),BT$1,-100)) -> 1303.125 | BU4: =IF('Ceiling Speaker Calculator'!$C$29="Square",BU$1,IF(OR(AND(ODD($A4)=$A4,ODD(BU$2)=BU$2),AND(EVEN($A4)=$A4,EVEN(BU$2)=BU$2)),BU$1,-100)) -> 1321.875 | BV4: =IF('Ceiling Speaker Calculator'!$C$29="Square",BV$1,IF(OR(AND(ODD($A4)=$A4,ODD(BV$2)=BV$2),AND(EVEN($A4)=$A4,EVEN(BV$2)=BV$2)),BV$1,-100)) -> 1340.625 | BW4: =IF('Ceiling Speaker Calculator'!$C$29="Square",BW$1,IF(OR(AND(ODD($A4)=$A4,ODD(BW$2)=BW$2),AND(EVEN($A4)=$A4,EVEN(BW$2)=BW$2)),BW$1,-100)) -> 1359.375 | BX4: =IF('Ceiling Speaker Calculator'!$C$29="Square",BX$1,IF(OR(AND(ODD($A4)=$A4,ODD(BX$2)=BX$2),AND(EVEN($A4)=$A4,EVEN(BX$2)=BX$2)),BX$1,-100)) -> 1378.125 | BY4: =IF('Ceiling Speaker Calculator'!$C$29="Square",BY$1,IF(OR(AND(ODD($A4)=$A4,ODD(BY$2)=BY$2),AND(EVEN($A4)=$A4,EVEN(BY$2)=BY$2)),BY$1,-100)) -> 1396.875 | BZ4: =IF('Ceiling Speaker Calculator'!$C$29="Square",BZ$1,IF(OR(AND(ODD($A4)=$A4,ODD(BZ$2)=BZ$2),AND(EVEN($A4)=$A4,EVEN(BZ$2)=BZ$2)),BZ$1,-100)) -> 1415.625 | CA4: =IF('Ceiling Speaker Calculator'!$C$29="Square",CA$1,IF(OR(AND(ODD($A4)=$A4,ODD(CA$2)=CA$2),AND(EVEN($A4)=$A4,EVEN(CA$2)=CA$2)),CA$1,-100)) -> 1434.375 | CB4: =IF('Ceiling Speaker Calculator'!$C$29="Square",CB$1,IF(OR(AND(ODD($A4)=$A4,ODD(CB$2)=CB$2),AND(EVEN($A4)=$A4,EVEN(CB$2)=CB$2)),CB$1,-100)) -> 1453.125 | CC4: =IF('Ceiling Speaker Calculator'!$C$29="Square",CC$1,IF(OR(AND(ODD($A4)=$A4,ODD(CC$2)=CC$2),AND(EVEN($A4)=$A4,EVEN(CC$2)=CC$2)),CC$1,-100)) -> 1471.875 | CD4: =IF('Ceiling Speaker Calculator'!$C$29="Square",CD$1,IF(OR(AND(ODD($A4)=$A4,ODD(CD$2)=CD$2),AND(EVEN($A4)=$A4,EVEN(CD$2)=CD$2)),CD$1,-100)) -> 1490.625 | CE4: =IF('Ceiling Speaker Calculator'!$C$29="Square",CE$1,IF(OR(AND(ODD($A4)=$A4,ODD(CE$2)=CE$2),AND(EVEN($A4)=$A4,EVEN(CE$2)=CE$2)),CE$1,-100)) -> 1509.375 | CF4: =IF('Ceiling Speaker Calculator'!$C$29="Square",CF$1,IF(OR(AND(ODD($A4)=$A4,ODD(CF$2)=CF$2),AND(EVEN($A4)=$A4,EVEN(CF$2)=CF$2)),CF$1,-100)) -> 1528.125 | CG4: =IF('Ceiling Speaker Calculator'!$C$29="Square",CG$1,IF(OR(AND(ODD($A4)=$A4,ODD(CG$2)=CG$2),AND(EVEN($A4)=$A4,EVEN(CG$2)=CG$2)),CG$1,-100)) -> 1546.875 | CH4: =IF('Ceiling Speaker Calculator'!$C$29="Square",CH$1,IF(OR(AND(ODD($A4)=$A4,ODD(CH$2)=CH$2),AND(EVEN($A4)=$A4,EVEN(CH$2)=CH$2)),CH$1,-100)) -> 1565.625 | CI4: =IF('Ceiling Speaker Calculator'!$C$29="Square",CI$1,IF(OR(AND(ODD($A4)=$A4,ODD(CI$2)=CI$2),AND(EVEN($A4)=$A4,EVEN(CI$2)=CI$2)),CI$1,-100)) -> 1584.375 | CJ4: =IF('Ceiling Speaker Calculator'!$C$29="Square",CJ$1,IF(OR(AND(ODD($A4)=$A4,ODD(CJ$2)=CJ$2),AND(EVEN($A4)=$A4,EVEN(CJ$2)=CJ$2)),CJ$1,-100)) -> 1603.125 | CK4: =IF('Ceiling Speaker Calculator'!$C$29="Square",CK$1,IF(OR(AND(ODD($A4)=$A4,ODD(CK$2)=CK$2),AND(EVEN($A4)=$A4,EVEN(CK$2)=CK$2)),CK$1,-100)) -> 1621.875 | CL4: =IF('Ceiling Speaker Calculator'!$C$29="Square",CL$1,IF(OR(AND(ODD($A4)=$A4,ODD(CL$2)=CL$2),AND(EVEN($A4)=$A4,EVEN(CL$2)=CL$2)),CL$1,-100)) -> 1640.625 | CM4: =IF('Ceiling Speaker Calculator'!$C$29="Square",CM$1,IF(OR(AND(ODD($A4)=$A4,ODD(CM$2)=CM$2),AND(EVEN($A4)=$A4,EVEN(CM$2)=CM$2)),CM$1,-100)) -> 1659.375 | CN4: =IF('Ceiling Speaker Calculator'!$C$29="Square",CN$1,IF(OR(AND(ODD($A4)=$A4,ODD(CN$2)=CN$2),AND(EVEN($A4)=$A4,EVEN(CN$2)=CN$2)),CN$1,-100)) -> 1678.125 | CO4: =IF('Ceiling Speaker Calculator'!$C$29="Square",CO$1,IF(OR(AND(ODD($A4)=$A4,ODD(CO$2)=CO$2),AND(EVEN($A4)=$A4,EVEN(CO$2)=CO$2)),CO$1,-100)) -> 1696.875 | CP4: =IF('Ceiling Speaker Calculator'!$C$29="Square",CP$1,IF(OR(AND(ODD($A4)=$A4,ODD(CP$2)=CP$2),AND(EVEN($A4)=$A4,EVEN(CP$2)=CP$2)),CP$1,-100)) -> 1715.625 | CQ4: =IF('Ceiling Speaker Calculator'!$C$29="Square",CQ$1,IF(OR(AND(ODD($A4)=$A4,ODD(CQ$2)=CQ$2),AND(EVEN($A4)=$A4,EVEN(CQ$2)=CQ$2)),CQ$1,-100)) -> 1734.375 | CR4: =IF('Ceiling Speaker Calculator'!$C$29="Square",CR$1,IF(OR(AND(ODD($A4)=$A4,ODD(CR$2)=CR$2),AND(EVEN($A4)=$A4,EVEN(CR$2)=CR$2)),CR$1,-100)) -> 1753.125 | CS4: =IF('Ceiling Speaker Calculator'!$C$29="Square",CS$1,IF(OR(AND(ODD($A4)=$A4,ODD(CS$2)=CS$2),AND(EVEN($A4)=$A4,EVEN(CS$2)=CS$2)),CS$1,-100)) -> 1771.875 | CT4: =IF('Ceiling Speaker Calculator'!$C$29="Square",CT$1,IF(OR(AND(ODD($A4)=$A4,ODD(CT$2)=CT$2),AND(EVEN($A4)=$A4,EVEN(CT$2)=CT$2)),CT$1,-100)) -> 1790.625 | CU4: =IF('Ceiling Speaker Calculator'!$C$29="Square",CU$1,IF(OR(AND(ODD($A4)=$A4,ODD(CU$2)=CU$2),AND(EVEN($A4)=$A4,EVEN(CU$2)=CU$2)),CU$1,-100)) -> 1809.375 | CV4: =IF('Ceiling Speaker Calculator'!$C$29="Square",CV$1,IF(OR(AND(ODD($A4)=$A4,ODD(CV$2)=CV$2),AND(EVEN($A4)=$A4,EVEN(CV$2)=CV$2)),CV$1,-100)) -> 1828.125 | CW4: =IF('Ceiling Speaker Calculator'!$C$29="Square",CW$1,IF(OR(AND(ODD($A4)=$A4,ODD(CW$2)=CW$2),AND(EVEN($A4)=$A4,EVEN(CW$2)=CW$2)),CW$1,-100)) -> 1846.875 | CX4: =IF('Ceiling Speaker Calculator'!$C$29="Square",CX$1,IF(OR(AND(ODD($A4)=$A4,ODD(CX$2)=CX$2),AND(EVEN($A4)=$A4,EVEN(CX$2)=CX$2)),CX$1,-100)) -> 1865.625
A5: 3 | B5: =B4+'Ceiling Speaker Calculator'!$K$16 -> 50 | C5: =IF('Ceiling Speaker Calculator'!$C$29="Square",C$1,IF(OR(AND(ODD($A5)=$A5,ODD(C$2)=C$2),AND(EVEN($A5)=$A5,EVEN(C$2)=C$2)),C$1,-100)) -> 9.375 | D5: =IF('Ceiling Speaker Calculator'!$C$29="Square",D$1,IF(OR(AND(ODD($A5)=$A5,ODD(D$2)=D$2),AND(EVEN($A5)=$A5,EVEN(D$2)=D$2)),D$1,-100)) -> 28.125 | E5: =IF('Ceiling Speaker Calculator'!$C$29="Square",E$1,IF(OR(AND(ODD($A5)=$A5,ODD(E$2)=E$2),AND(EVEN($A5)=$A5,EVEN(E$2)=E$2)),E$1,-100)) -> 46.875 | F5: =IF('Ceiling Speaker Calculator'!$C$29="Square",F$1,IF(OR(AND(ODD($A5)=$A5,ODD(F$2)=F$2),AND(EVEN($A5)=$A5,EVEN(F$2)=F$2)),F$1,-100)) -> 65.625 | G5: =IF('Ceiling Speaker Calculator'!$C$29="Square",G$1,IF(OR(AND(ODD($A5)=$A5,ODD(G$2)=G$2),AND(EVEN($A5)=$A5,EVEN(G$2)=G$2)),G$1,-100)) -> 84.375 | H5: =IF('Ceiling Speaker Calculator'!$C$29="Square",H$1,IF(OR(AND(ODD($A5)=$A5,ODD(H$2)=H$2),AND(EVEN($A5)=$A5,EVEN(H$2)=H$2)),H$1,-100)) -> 103.125 | I5: =IF('Ceiling Speaker Calculator'!$C$29="Square",I$1,IF(OR(AND(ODD($A5)=$A5,ODD(I$2)=I$2),AND(EVEN($A5)=$A5,EVEN(I$2)=I$2)),I$1,-100)) -> 121.875 | J5: =IF('Ceiling Speaker Calculator'!$C$29="Square",J$1,IF(OR(AND(ODD($A5)=$A5,ODD(J$2)=J$2),AND(EVEN($A5)=$A5,EVEN(J$2)=J$2)),J$1,-100)) -> 140.625 | K5: =IF('Ceiling Speaker Calculator'!$C$29="Square",K$1,IF(OR(AND(ODD($A5)=$A5,ODD(K$2)=K$2),AND(EVEN($A5)=$A5,EVEN(K$2)=K$2)),K$1,-100)) -> 159.375 | L5: =IF('Ceiling Speaker Calculator'!$C$29="Square",L$1,IF(OR(AND(ODD($A5)=$A5,ODD(L$2)=L$2),AND(EVEN($A5)=$A5,EVEN(L$2)=L$2)),L$1,-100)) -> 178.125 | M5: =IF('Ceiling Speaker Calculator'!$C$29="Square",M$1,IF(OR(AND(ODD($A5)=$A5,ODD(M$2)=M$2),AND(EVEN($A5)=$A5,EVEN(M$2)=M$2)),M$1,-100)) -> 196.875 | N5: =IF('Ceiling Speaker Calculator'!$C$29="Square",N$1,IF(OR(AND(ODD($A5)=$A5,ODD(N$2)=N$2),AND(EVEN($A5)=$A5,EVEN(N$2)=N$2)),N$1,-100)) -> 215.625 | O5: =IF('Ceiling Speaker Calculator'!$C$29="Square",O$1,IF(OR(AND(ODD($A5)=$A5,ODD(O$2)=O$2),AND(EVEN($A5)=$A5,EVEN(O$2)=O$2)),O$1,-100)) -> 234.375 | P5: =IF('Ceiling Speaker Calculator'!$C$29="Square",P$1,IF(OR(AND(ODD($A5)=$A5,ODD(P$2)=P$2),AND(EVEN($A5)=$A5,EVEN(P$2)=P$2)),P$1,-100)) -> 253.125 | Q5: =IF('Ceiling Speaker Calculator'!$C$29="Square",Q$1,IF(OR(AND(ODD($A5)=$A5,ODD(Q$2)=Q$2),AND(EVEN($A5)=$A5,EVEN(Q$2)=Q$2)),Q$1,-100)) -> 271.875 | R5: =IF('Ceiling Speaker Calculator'!$C$29="Square",R$1,IF(OR(AND(ODD($A5)=$A5,ODD(R$2)=R$2),AND(EVEN($A5)=$A5,EVEN(R$2)=R$2)),R$1,-100)) -> 290.625 | S5: =IF('Ceiling Speaker Calculator'!$C$29="Square",S$1,IF(OR(AND(ODD($A5)=$A5,ODD(S$2)=S$2),AND(EVEN($A5)=$A5,EVEN(S$2)=S$2)),S$1,-100)) -> 309.375 | T5: =IF('Ceiling Speaker Calculator'!$C$29="Square",T$1,IF(OR(AND(ODD($A5)=$A5,ODD(T$2)=T$2),AND(EVEN($A5)=$A5,EVEN(T$2)=T$2)),T$1,-100)) -> 328.125 | U5: =IF('Ceiling Speaker Calculator'!$C$29="Square",U$1,IF(OR(AND(ODD($A5)=$A5,ODD(U$2)=U$2),AND(EVEN($A5)=$A5,EVEN(U$2)=U$2)),U$1,-100)) -> 346.875 | V5: =IF('Ceiling Speaker Calculator'!$C$29="Square",V$1,IF(OR(AND(ODD($A5)=$A5,ODD(V$2)=V$2),AND(EVEN($A5)=$A5,EVEN(V$2)=V$2)),V$1,-100)) -> 365.625 | W5: =IF('Ceiling Speaker Calculator'!$C$29="Square",W$1,IF(OR(AND(ODD($A5)=$A5,ODD(W$2)=W$2),AND(EVEN($A5)=$A5,EVEN(W$2)=W$2)),W$1,-100)) -> 384.375 | X5: =IF('Ceiling Speaker Calculator'!$C$29="Square",X$1,IF(OR(AND(ODD($A5)=$A5,ODD(X$2)=X$2),AND(EVEN($A5)=$A5,EVEN(X$2)=X$2)),X$1,-100)) -> 403.125 | Y5: =IF('Ceiling Speaker Calculator'!$C$29="Square",Y$1,IF(OR(AND(ODD($A5)=$A5,ODD(Y$2)=Y$2),AND(EVEN($A5)=$A5,EVEN(Y$2)=Y$2)),Y$1,-100)) -> 421.875 | Z5: =IF('Ceiling Speaker Calculator'!$C$29="Square",Z$1,IF(OR(AND(ODD($A5)=$A5,ODD(Z$2)=Z$2),AND(EVEN($A5)=$A5,EVEN(Z$2)=Z$2)),Z$1,-100)) -> 440.625 | AA5: =IF('Ceiling Speaker Calculator'!$C$29="Square",AA$1,IF(OR(AND(ODD($A5)=$A5,ODD(AA$2)=AA$2),AND(EVEN($A5)=$A5,EVEN(AA$2)=AA$2)),AA$1,-100)) -> 459.375 | AB5: =IF('Ceiling Speaker Calculator'!$C$29="Square",AB$1,IF(OR(AND(ODD($A5)=$A5,ODD(AB$2)=AB$2),AND(EVEN($A5)=$A5,EVEN(AB$2)=AB$2)),AB$1,-100)) -> 478.125 | AC5: =IF('Ceiling Speaker Calculator'!$C$29="Square",AC$1,IF(OR(AND(ODD($A5)=$A5,ODD(AC$2)=AC$2),AND(EVEN($A5)=$A5,EVEN(AC$2)=AC$2)),AC$1,-100)) -> 496.875 | AD5: =IF('Ceiling Speaker Calculator'!$C$29="Square",AD$1,IF(OR(AND(ODD($A5)=$A5,ODD(AD$2)=AD$2),AND(EVEN($A5)=$A5,EVEN(AD$2)=AD$2)),AD$1,-100)) -> 515.625 | AE5: =IF('Ceiling Speaker Calculator'!$C$29="Square",AE$1,IF(OR(AND(ODD($A5)=$A5,ODD(AE$2)=AE$2),AND(EVEN($A5)=$A5,EVEN(AE$2)=AE$2)),AE$1,-100)) -> 534.375 | AF5: =IF('Ceiling Speaker Calculator'!$C$29="Square",AF$1,IF(OR(AND(ODD($A5)=$A5,ODD(AF$2)=AF$2),AND(EVEN($A5)=$A5,EVEN(AF$2)=AF$2)),AF$1,-100)) -> 553.125 | AG5: =IF('Ceiling Speaker Calculator'!$C$29="Square",AG$1,IF(OR(AND(ODD($A5)=$A5,ODD(AG$2)=AG$2),AND(EVEN($A5)=$A5,EVEN(AG$2)=AG$2)),AG$1,-100)) -> 571.875 | AH5: =IF('Ceiling Speaker Calculator'!$C$29="Square",AH$1,IF(OR(AND(ODD($A5)=$A5,ODD(AH$2)=AH$2),AND(EVEN($A5)=$A5,EVEN(AH$2)=AH$2)),AH$1,-100)) -> 590.625 | AI5: =IF('Ceiling Speaker Calculator'!$C$29="Square",AI$1,IF(OR(AND(ODD($A5)=$A5,ODD(AI$2)=AI$2),AND(EVEN($A5)=$A5,EVEN(AI$2)=AI$2)),AI$1,-100)) -> 609.375 | AJ5: =IF('Ceiling Speaker Calculator'!$C$29="Square",AJ$1,IF(OR(AND(ODD($A5)=$A5,ODD(AJ$2)=AJ$2),AND(EVEN($A5)=$A5,EVEN(AJ$2)=AJ$2)),AJ$1,-100)) -> 628.125 | AK5: =IF('Ceiling Speaker Calculator'!$C$29="Square",AK$1,IF(OR(AND(ODD($A5)=$A5,ODD(AK$2)=AK$2),AND(EVEN($A5)=$A5,EVEN(AK$2)=AK$2)),AK$1,-100)) -> 646.875 | AL5: =IF('Ceiling Speaker Calculator'!$C$29="Square",AL$1,IF(OR(AND(ODD($A5)=$A5,ODD(AL$2)=AL$2),AND(EVEN($A5)=$A5,EVEN(AL$2)=AL$2)),AL$1,-100)) -> 665.625 | AM5: =IF('Ceiling Speaker Calculator'!$C$29="Square",AM$1,IF(OR(AND(ODD($A5)=$A5,ODD(AM$2)=AM$2),AND(EVEN($A5)=$A5,EVEN(AM$2)=AM$2)),AM$1,-100)) -> 684.375 | AN5: =IF('Ceiling Speaker Calculator'!$C$29="Square",AN$1,IF(OR(AND(ODD($A5)=$A5,ODD(AN$2)=AN$2),AND(EVEN($A5)=$A5,EVEN(AN$2)=AN$2)),AN$1,-100)) -> 703.125 | AO5: =IF('Ceiling Speaker Calculator'!$C$29="Square",AO$1,IF(OR(AND(ODD($A5)=$A5,ODD(AO$2)=AO$2),AND(EVEN($A5)=$A5,EVEN(AO$2)=AO$2)),AO$1,-100)) -> 721.875 | AP5: =IF('Ceiling Speaker Calculator'!$C$29="Square",AP$1,IF(OR(AND(ODD($A5)=$A5,ODD(AP$2)=AP$2),AND(EVEN($A5)=$A5,EVEN(AP$2)=AP$2)),AP$1,-100)) -> 740.625 | AQ5: =IF('Ceiling Speaker Calculator'!$C$29="Square",AQ$1,IF(OR(AND(ODD($A5)=$A5,ODD(AQ$2)=AQ$2),AND(EVEN($A5)=$A5,EVEN(AQ$2)=AQ$2)),AQ$1,-100)) -> 759.375 | AR5: =IF('Ceiling Speaker Calculator'!$C$29="Square",AR$1,IF(OR(AND(ODD($A5)=$A5,ODD(AR$2)=AR$2),AND(EVEN($A5)=$A5,EVEN(AR$2)=AR$2)),AR$1,-100)) -> 778.125 | AS5: =IF('Ceiling Speaker Calculator'!$C$29="Square",AS$1,IF(OR(AND(ODD($A5)=$A5,ODD(AS$2)=AS$2),AND(EVEN($A5)=$A5,EVEN(AS$2)=AS$2)),AS$1,-100)) -> 796.875 | AT5: =IF('Ceiling Speaker Calculator'!$C$29="Square",AT$1,IF(OR(AND(ODD($A5)=$A5,ODD(AT$2)=AT$2),AND(EVEN($A5)=$A5,EVEN(AT$2)=AT$2)),AT$1,-100)) -> 815.625 | AU5: =IF('Ceiling Speaker Calculator'!$C$29="Square",AU$1,IF(OR(AND(ODD($A5)=$A5,ODD(AU$2)=AU$2),AND(EVEN($A5)=$A5,EVEN(AU$2)=AU$2)),AU$1,-100)) -> 834.375 | AV5: =IF('Ceiling Speaker Calculator'!$C$29="Square",AV$1,IF(OR(AND(ODD($A5)=$A5,ODD(AV$2)=AV$2),AND(EVEN($A5)=$A5,EVEN(AV$2)=AV$2)),AV$1,-100)) -> 853.125 | AW5: =IF('Ceiling Speaker Calculator'!$C$29="Square",AW$1,IF(OR(AND(ODD($A5)=$A5,ODD(AW$2)=AW$2),AND(EVEN($A5)=$A5,EVEN(AW$2)=AW$2)),AW$1,-100)) -> 871.875 | AX5: =IF('Ceiling Speaker Calculator'!$C$29="Square",AX$1,IF(OR(AND(ODD($A5)=$A5,ODD(AX$2)=AX$2),AND(EVEN($A5)=$A5,EVEN(AX$2)=AX$2)),AX$1,-100)) -> 890.625 | AY5: =IF('Ceiling Speaker Calculator'!$C$29="Square",AY$1,IF(OR(AND(ODD($A5)=$A5,ODD(AY$2)=AY$2),AND(EVEN($A5)=$A5,EVEN(AY$2)=AY$2)),AY$1,-100)) -> 909.375 | AZ5: =IF('Ceiling Speaker Calculator'!$C$29="Square",AZ$1,IF(OR(AND(ODD($A5)=$A5,ODD(AZ$2)=AZ$2),AND(EVEN($A5)=$A5,EVEN(AZ$2)=AZ$2)),AZ$1,-100)) -> 928.125 | BA5: =IF('Ceiling Speaker Calculator'!$C$29="Square",BA$1,IF(OR(AND(ODD($A5)=$A5,ODD(BA$2)=BA$2),AND(EVEN($A5)=$A5,EVEN(BA$2)=BA$2)),BA$1,-100)) -> 946.875 | BB5: =IF('Ceiling Speaker Calculator'!$C$29="Square",BB$1,IF(OR(AND(ODD($A5)=$A5,ODD(BB$2)=BB$2),AND(EVEN($A5)=$A5,EVEN(BB$2)=BB$2)),BB$1,-100)) -> 965.625 | BC5: =IF('Ceiling Speaker Calculator'!$C$29="Square",BC$1,IF(OR(AND(ODD($A5)=$A5,ODD(BC$2)=BC$2),AND(EVEN($A5)=$A5,EVEN(BC$2)=BC$2)),BC$1,-100)) -> 984.375 | BD5: =IF('Ceiling Speaker Calculator'!$C$29="Square",BD$1,IF(OR(AND(ODD($A5)=$A5,ODD(BD$2)=BD$2),AND(EVEN($A5)=$A5,EVEN(BD$2)=BD$2)),BD$1,-100)) -> 1003.125 | BE5: =IF('Ceiling Speaker Calculator'!$C$29="Square",BE$1,IF(OR(AND(ODD($A5)=$A5,ODD(BE$2)=BE$2),AND(EVEN($A5)=$A5,EVEN(BE$2)=BE$2)),BE$1,-100)) -> 1021.875 | BF5: =IF('Ceiling Speaker Calculator'!$C$29="Square",BF$1,IF(OR(AND(ODD($A5)=$A5,ODD(BF$2)=BF$2),AND(EVEN($A5)=$A5,EVEN(BF$2)=BF$2)),BF$1,-100)) -> 1040.625 | BG5: =IF('Ceiling Speaker Calculator'!$C$29="Square",BG$1,IF(OR(AND(ODD($A5)=$A5,ODD(BG$2)=BG$2),AND(EVEN($A5)=$A5,EVEN(BG$2)=BG$2)),BG$1,-100)) -> 1059.375 | BH5: =IF('Ceiling Speaker Calculator'!$C$29="Square",BH$1,IF(OR(AND(ODD($A5)=$A5,ODD(BH$2)=BH$2),AND(EVEN($A5)=$A5,EVEN(BH$2)=BH$2)),BH$1,-100)) -> 1078.125 | BI5: =IF('Ceiling Speaker Calculator'!$C$29="Square",BI$1,IF(OR(AND(ODD($A5)=$A5,ODD(BI$2)=BI$2),AND(EVEN($A5)=$A5,EVEN(BI$2)=BI$2)),BI$1,-100)) -> 1096.875 | BJ5: =IF('Ceiling Speaker Calculator'!$C$29="Square",BJ$1,IF(OR(AND(ODD($A5)=$A5,ODD(BJ$2)=BJ$2),AND(EVEN($A5)=$A5,EVEN(BJ$2)=BJ$2)),BJ$1,-100)) -> 1115.625 | BK5: =IF('Ceiling Speaker Calculator'!$C$29="Square",BK$1,IF(OR(AND(ODD($A5)=$A5,ODD(BK$2)=BK$2),AND(EVEN($A5)=$A5,EVEN(BK$2)=BK$2)),BK$1,-100)) -> 1134.375 | BL5: =IF('Ceiling Speaker Calculator'!$C$29="Square",BL$1,IF(OR(AND(ODD($A5)=$A5,ODD(BL$2)=BL$2),AND(EVEN($A5)=$A5,EVEN(BL$2)=BL$2)),BL$1,-100)) -> 1153.125 | BM5: =IF('Ceiling Speaker Calculator'!$C$29="Square",BM$1,IF(OR(AND(ODD($A5)=$A5,ODD(BM$2)=BM$2),AND(EVEN($A5)=$A5,EVEN(BM$2)=BM$2)),BM$1,-100)) -> 1171.875 | BN5: =IF('Ceiling Speaker Calculator'!$C$29="Square",BN$1,IF(OR(AND(ODD($A5)=$A5,ODD(BN$2)=BN$2),AND(EVEN($A5)=$A5,EVEN(BN$2)=BN$2)),BN$1,-100)) -> 1190.625 | BO5: =IF('Ceiling Speaker Calculator'!$C$29="Square",BO$1,IF(OR(AND(ODD($A5)=$A5,ODD(BO$2)=BO$2),AND(EVEN($A5)=$A5,EVEN(BO$2)=BO$2)),BO$1,-100)) -> 1209.375 | BP5: =IF('Ceiling Speaker Calculator'!$C$29="Square",BP$1,IF(OR(AND(ODD($A5)=$A5,ODD(BP$2)=BP$2),AND(EVEN($A5)=$A5,EVEN(BP$2)=BP$2)),BP$1,-100)) -> 1228.125 | BQ5: =IF('Ceiling Speaker Calculator'!$C$29="Square",BQ$1,IF(OR(AND(ODD($A5)=$A5,ODD(BQ$2)=BQ$2),AND(EVEN($A5)=$A5,EVEN(BQ$2)=BQ$2)),BQ$1,-100)) -> 1246.875 | BR5: =IF('Ceiling Speaker Calculator'!$C$29="Square",BR$1,IF(OR(AND(ODD($A5)=$A5,ODD(BR$2)=BR$2),AND(EVEN($A5)=$A5,EVEN(BR$2)=BR$2)),BR$1,-100)) -> 1265.625 | BS5: =IF('Ceiling Speaker Calculator'!$C$29="Square",BS$1,IF(OR(AND(ODD($A5)=$A5,ODD(BS$2)=BS$2),AND(EVEN($A5)=$A5,EVEN(BS$2)=BS$2)),BS$1,-100)) -> 1284.375 | BT5: =IF('Ceiling Speaker Calculator'!$C$29="Square",BT$1,IF(OR(AND(ODD($A5)=$A5,ODD(BT$2)=BT$2),AND(EVEN($A5)=$A5,EVEN(BT$2)=BT$2)),BT$1,-100)) -> 1303.125 | BU5: =IF('Ceiling Speaker Calculator'!$C$29="Square",BU$1,IF(OR(AND(ODD($A5)=$A5,ODD(BU$2)=BU$2),AND(EVEN($A5)=$A5,EVEN(BU$2)=BU$2)),BU$1,-100)) -> 1321.875 | BV5: =IF('Ceiling Speaker Calculator'!$C$29="Square",BV$1,IF(OR(AND(ODD($A5)=$A5,ODD(BV$2)=BV$2),AND(EVEN($A5)=$A5,EVEN(BV$2)=BV$2)),BV$1,-100)) -> 1340.625 | BW5: =IF('Ceiling Speaker Calculator'!$C$29="Square",BW$1,IF(OR(AND(ODD($A5)=$A5,ODD(BW$2)=BW$2),AND(EVEN($A5)=$A5,EVEN(BW$2)=BW$2)),BW$1,-100)) -> 1359.375 | BX5: =IF('Ceiling Speaker Calculator'!$C$29="Square",BX$1,IF(OR(AND(ODD($A5)=$A5,ODD(BX$2)=BX$2),AND(EVEN($A5)=$A5,EVEN(BX$2)=BX$2)),BX$1,-100)) -> 1378.125 | BY5: =IF('Ceiling Speaker Calculator'!$C$29="Square",BY$1,IF(OR(AND(ODD($A5)=$A5,ODD(BY$2)=BY$2),AND(EVEN($A5)=$A5,EVEN(BY$2)=BY$2)),BY$1,-100)) -> 1396.875 | BZ5: =IF('Ceiling Speaker Calculator'!$C$29="Square",BZ$1,IF(OR(AND(ODD($A5)=$A5,ODD(BZ$2)=BZ$2),AND(EVEN($A5)=$A5,EVEN(BZ$2)=BZ$2)),BZ$1,-100)) -> 1415.625 | CA5: =IF('Ceiling Speaker Calculator'!$C$29="Square",CA$1,IF(OR(AND(ODD($A5)=$A5,ODD(CA$2)=CA$2),AND(EVEN($A5)=$A5,EVEN(CA$2)=CA$2)),CA$1,-100)) -> 1434.375 | CB5: =IF('Ceiling Speaker Calculator'!$C$29="Square",CB$1,IF(OR(AND(ODD($A5)=$A5,ODD(CB$2)=CB$2),AND(EVEN($A5)=$A5,EVEN(CB$2)=CB$2)),CB$1,-100)) -> 1453.125 | CC5: =IF('Ceiling Speaker Calculator'!$C$29="Square",CC$1,IF(OR(AND(ODD($A5)=$A5,ODD(CC$2)=CC$2),AND(EVEN($A5)=$A5,EVEN(CC$2)=CC$2)),CC$1,-100)) -> 1471.875 | CD5: =IF('Ceiling Speaker Calculator'!$C$29="Square",CD$1,IF(OR(AND(ODD($A5)=$A5,ODD(CD$2)=CD$2),AND(EVEN($A5)=$A5,EVEN(CD$2)=CD$2)),CD$1,-100)) -> 1490.625 | CE5: =IF('Ceiling Speaker Calculator'!$C$29="Square",CE$1,IF(OR(AND(ODD($A5)=$A5,ODD(CE$2)=CE$2),AND(EVEN($A5)=$A5,EVEN(CE$2)=CE$2)),CE$1,-100)) -> 1509.375 | CF5: =IF('Ceiling Speaker Calculator'!$C$29="Square",CF$1,IF(OR(AND(ODD($A5)=$A5,ODD(CF$2)=CF$2),AND(EVEN($A5)=$A5,EVEN(CF$2)=CF$2)),CF$1,-100)) -> 1528.125 | CG5: =IF('Ceiling Speaker Calculator'!$C$29="Square",CG$1,IF(OR(AND(ODD($A5)=$A5,ODD(CG$2)=CG$2),AND(EVEN($A5)=$A5,EVEN(CG$2)=CG$2)),CG$1,-100)) -> 1546.875 | CH5: =IF('Ceiling Speaker Calculator'!$C$29="Square",CH$1,IF(OR(AND(ODD($A5)=$A5,ODD(CH$2)=CH$2),AND(EVEN($A5)=$A5,EVEN(CH$2)=CH$2)),CH$1,-100)) -> 1565.625 | CI5: =IF('Ceiling Speaker Calculator'!$C$29="Square",CI$1,IF(OR(AND(ODD($A5)=$A5,ODD(CI$2)=CI$2),AND(EVEN($A5)=$A5,EVEN(CI$2)=CI$2)),CI$1,-100)) -> 1584.375 | CJ5: =IF('Ceiling Speaker Calculator'!$C$29="Square",CJ$1,IF(OR(AND(ODD($A5)=$A5,ODD(CJ$2)=CJ$2),AND(EVEN($A5)=$A5,EVEN(CJ$2)=CJ$2)),CJ$1,-100)) -> 1603.125 | CK5: =IF('Ceiling Speaker Calculator'!$C$29="Square",CK$1,IF(OR(AND(ODD($A5)=$A5,ODD(CK$2)=CK$2),AND(EVEN($A5)=$A5,EVEN(CK$2)=CK$2)),CK$1,-100)) -> 1621.875 | CL5: =IF('Ceiling Speaker Calculator'!$C$29="Square",CL$1,IF(OR(AND(ODD($A5)=$A5,ODD(CL$2)=CL$2),AND(EVEN($A5)=$A5,EVEN(CL$2)=CL$2)),CL$1,-100)) -> 1640.625 | CM5: =IF('Ceiling Speaker Calculator'!$C$29="Square",CM$1,IF(OR(AND(ODD($A5)=$A5,ODD(CM$2)=CM$2),AND(EVEN($A5)=$A5,EVEN(CM$2)=CM$2)),CM$1,-100)) -> 1659.375 | CN5: =IF('Ceiling Speaker Calculator'!$C$29="Square",CN$1,IF(OR(AND(ODD($A5)=$A5,ODD(CN$2)=CN$2),AND(EVEN($A5)=$A5,EVEN(CN$2)=CN$2)),CN$1,-100)) -> 1678.125 | CO5: =IF('Ceiling Speaker Calculator'!$C$29="Square",CO$1,IF(OR(AND(ODD($A5)=$A5,ODD(CO$2)=CO$2),AND(EVEN($A5)=$A5,EVEN(CO$2)=CO$2)),CO$1,-100)) -> 1696.875 | CP5: =IF('Ceiling Speaker Calculator'!$C$29="Square",CP$1,IF(OR(AND(ODD($A5)=$A5,ODD(CP$2)=CP$2),AND(EVEN($A5)=$A5,EVEN(CP$2)=CP$2)),CP$1,-100)) -> 1715.625 | CQ5: =IF('Ceiling Speaker Calculator'!$C$29="Square",CQ$1,IF(OR(AND(ODD($A5)=$A5,ODD(CQ$2)=CQ$2),AND(EVEN($A5)=$A5,EVEN(CQ$2)=CQ$2)),CQ$1,-100)) -> 1734.375 | CR5: =IF('Ceiling Speaker Calculator'!$C$29="Square",CR$1,IF(OR(AND(ODD($A5)=$A5,ODD(CR$2)=CR$2),AND(EVEN($A5)=$A5,EVEN(CR$2)=CR$2)),CR$1,-100)) -> 1753.125 | CS5: =IF('Ceiling Speaker Calculator'!$C$29="Square",CS$1,IF(OR(AND(ODD($A5)=$A5,ODD(CS$2)=CS$2),AND(EVEN($A5)=$A5,EVEN(CS$2)=CS$2)),CS$1,-100)) -> 1771.875 | CT5: =IF('Ceiling Speaker Calculator'!$C$29="Square",CT$1,IF(OR(AND(ODD($A5)=$A5,ODD(CT$2)=CT$2),AND(EVEN($A5)=$A5,EVEN(CT$2)=CT$2)),CT$1,-100)) -> 1790.625 | CU5: =IF('Ceiling Speaker Calculator'!$C$29="Square",CU$1,IF(OR(AND(ODD($A5)=$A5,ODD(CU$2)=CU$2),AND(EVEN($A5)=$A5,EVEN(CU$2)=CU$2)),CU$1,-100)) -> 1809.375 | CV5: =IF('Ceiling Speaker Calculator'!$C$29="Square",CV$1,IF(OR(AND(ODD($A5)=$A5,ODD(CV$2)=CV$2),AND(EVEN($A5)=$A5,EVEN(CV$2)=CV$2)),CV$1,-100)) -> 1828.125 | CW5: =IF('Ceiling Speaker Calculator'!$C$29="Square",CW$1,IF(OR(AND(ODD($A5)=$A5,ODD(CW$2)=CW$2),AND(EVEN($A5)=$A5,EVEN(CW$2)=CW$2)),CW$1,-100)) -> 1846.875 | CX5: =IF('Ceiling Speaker Calculator'!$C$29="Square",CX$1,IF(OR(AND(ODD($A5)=$A5,ODD(CX$2)=CX$2),AND(EVEN($A5)=$A5,EVEN(CX$2)=CX$2)),CX$1,-100)) -> 1865.625
A6: 4 | B6: =B5+'Ceiling Speaker Calculator'!$K$16 -> 70 | C6: =IF('Ceiling Speaker Calculator'!$C$29="Square",C$1,IF(OR(AND(ODD($A6)=$A6,ODD(C$2)=C$2),AND(EVEN($A6)=$A6,EVEN(C$2)=C$2)),C$1,-100)) -> 9.375 | D6: =IF('Ceiling Speaker Calculator'!$C$29="Square",D$1,IF(OR(AND(ODD($A6)=$A6,ODD(D$2)=D$2),AND(EVEN($A6)=$A6,EVEN(D$2)=D$2)),D$1,-100)) -> 28.125 | E6: =IF('Ceiling Speaker Calculator'!$C$29="Square",E$1,IF(OR(AND(ODD($A6)=$A6,ODD(E$2)=E$2),AND(EVEN($A6)=$A6,EVEN(E$2)=E$2)),E$1,-100)) -> 46.875 | F6: =IF('Ceiling Speaker Calculator'!$C$29="Square",F$1,IF(OR(AND(ODD($A6)=$A6,ODD(F$2)=F$2),AND(EVEN($A6)=$A6,EVEN(F$2)=F$2)),F$1,-100)) -> 65.625 | G6: =IF('Ceiling Speaker Calculator'!$C$29="Square",G$1,IF(OR(AND(ODD($A6)=$A6,ODD(G$2)=G$2),AND(EVEN($A6)=$A6,EVEN(G$2)=G$2)),G$1,-100)) -> 84.375 | H6: =IF('Ceiling Speaker Calculator'!$C$29="Square",H$1,IF(OR(AND(ODD($A6)=$A6,ODD(H$2)=H$2),AND(EVEN($A6)=$A6,EVEN(H$2)=H$2)),H$1,-100)) -> 103.125 | I6: =IF('Ceiling Speaker Calculator'!$C$29="Square",I$1,IF(OR(AND(ODD($A6)=$A6,ODD(I$2)=I$2),AND(EVEN($A6)=$A6,EVEN(I$2)=I$2)),I$1,-100)) -> 121.875 | J6: =IF('Ceiling Speaker Calculator'!$C$29="Square",J$1,IF(OR(AND(ODD($A6)=$A6,ODD(J$2)=J$2),AND(EVEN($A6)=$A6,EVEN(J$2)=J$2)),J$1,-100)) -> 140.625 | K6: =IF('Ceiling Speaker Calculator'!$C$29="Square",K$1,IF(OR(AND(ODD($A6)=$A6,ODD(K$2)=K$2),AND(EVEN($A6)=$A6,EVEN(K$2)=K$2)),K$1,-100)) -> 159.375 | L6: =IF('Ceiling Speaker Calculator'!$C$29="Square",L$1,IF(OR(AND(ODD($A6)=$A6,ODD(L$2)=L$2),AND(EVEN($A6)=$A6,EVEN(L$2)=L$2)),L$1,-100)) -> 178.125 | M6: =IF('Ceiling Speaker Calculator'!$C$29="Square",M$1,IF(OR(AND(ODD($A6)=$A6,ODD(M$2)=M$2),AND(EVEN($A6)=$A6,EVEN(M$2)=M$2)),M$1,-100)) -> 196.875 | N6: =IF('Ceiling Speaker Calculator'!$C$29="Square",N$1,IF(OR(AND(ODD($A6)=$A6,ODD(N$2)=N$2),AND(EVEN($A6)=$A6,EVEN(N$2)=N$2)),N$1,-100)) -> 215.625 | O6: =IF('Ceiling Speaker Calculator'!$C$29="Square",O$1,IF(OR(AND(ODD($A6)=$A6,ODD(O$2)=O$2),AND(EVEN($A6)=$A6,EVEN(O$2)=O$2)),O$1,-100)) -> 234.375 | P6: =IF('Ceiling Speaker Calculator'!$C$29="Square",P$1,IF(OR(AND(ODD($A6)=$A6,ODD(P$2)=P$2),AND(EVEN($A6)=$A6,EVEN(P$2)=P$2)),P$1,-100)) -> 253.125 | Q6: =IF('Ceiling Speaker Calculator'!$C$29="Square",Q$1,IF(OR(AND(ODD($A6)=$A6,ODD(Q$2)=Q$2),AND(EVEN($A6)=$A6,EVEN(Q$2)=Q$2)),Q$1,-100)) -> 271.875 | R6: =IF('Ceiling Speaker Calculator'!$C$29="Square",R$1,IF(OR(AND(ODD($A6)=$A6,ODD(R$2)=R$2),AND(EVEN($A6)=$A6,EVEN(R$2)=R$2)),R$1,-100)) -> 290.625 | S6: =IF('Ceiling Speaker Calculator'!$C$29="Square",S$1,IF(OR(AND(ODD($A6)=$A6,ODD(S$2)=S$2),AND(EVEN($A6)=$A6,EVEN(S$2)=S$2)),S$1,-100)) -> 309.375 | T6: =IF('Ceiling Speaker Calculator'!$C$29="Square",T$1,IF(OR(AND(ODD($A6)=$A6,ODD(T$2)=T$2),AND(EVEN($A6)=$A6,EVEN(T$2)=T$2)),T$1,-100)) -> 328.125 | U6: =IF('Ceiling Speaker Calculator'!$C$29="Square",U$1,IF(OR(AND(ODD($A6)=$A6,ODD(U$2)=U$2),AND(EVEN($A6)=$A6,EVEN(U$2)=U$2)),U$1,-100)) -> 346.875 | V6: =IF('Ceiling Speaker Calculator'!$C$29="Square",V$1,IF(OR(AND(ODD($A6)=$A6,ODD(V$2)=V$2),AND(EVEN($A6)=$A6,EVEN(V$2)=V$2)),V$1,-100)) -> 365.625 | W6: =IF('Ceiling Speaker Calculator'!$C$29="Square",W$1,IF(OR(AND(ODD($A6)=$A6,ODD(W$2)=W$2),AND(EVEN($A6)=$A6,EVEN(W$2)=W$2)),W$1,-100)) -> 384.375 | X6: =IF('Ceiling Speaker Calculator'!$C$29="Square",X$1,IF(OR(AND(ODD($A6)=$A6,ODD(X$2)=X$2),AND(EVEN($A6)=$A6,EVEN(X$2)=X$2)),X$1,-100)) -> 403.125 | Y6: =IF('Ceiling Speaker Calculator'!$C$29="Square",Y$1,IF(OR(AND(ODD($A6)=$A6,ODD(Y$2)=Y$2),AND(EVEN($A6)=$A6,EVEN(Y$2)=Y$2)),Y$1,-100)) -> 421.875 | Z6: =IF('Ceiling Speaker Calculator'!$C$29="Square",Z$1,IF(OR(AND(ODD($A6)=$A6,ODD(Z$2)=Z$2),AND(EVEN($A6)=$A6,EVEN(Z$2)=Z$2)),Z$1,-100)) -> 440.625 | AA6: =IF('Ceiling Speaker Calculator'!$C$29="Square",AA$1,IF(OR(AND(ODD($A6)=$A6,ODD(AA$2)=AA$2),AND(EVEN($A6)=$A6,EVEN(AA$2)=AA$2)),AA$1,-100)) -> 459.375 | AB6: =IF('Ceiling Speaker Calculator'!$C$29="Square",AB$1,IF(OR(AND(ODD($A6)=$A6,ODD(AB$2)=AB$2),AND(EVEN($A6)=$A6,EVEN(AB$2)=AB$2)),AB$1,-100)) -> 478.125 | AC6: =IF('Ceiling Speaker Calculator'!$C$29="Square",AC$1,IF(OR(AND(ODD($A6)=$A6,ODD(AC$2)=AC$2),AND(EVEN($A6)=$A6,EVEN(AC$2)=AC$2)),AC$1,-100)) -> 496.875 | AD6: =IF('Ceiling Speaker Calculator'!$C$29="Square",AD$1,IF(OR(AND(ODD($A6)=$A6,ODD(AD$2)=AD$2),AND(EVEN($A6)=$A6,EVEN(AD$2)=AD$2)),AD$1,-100)) -> 515.625 | AE6: =IF('Ceiling Speaker Calculator'!$C$29="Square",AE$1,IF(OR(AND(ODD($A6)=$A6,ODD(AE$2)=AE$2),AND(EVEN($A6)=$A6,EVEN(AE$2)=AE$2)),AE$1,-100)) -> 534.375 | AF6: =IF('Ceiling Speaker Calculator'!$C$29="Square",AF$1,IF(OR(AND(ODD($A6)=$A6,ODD(AF$2)=AF$2),AND(EVEN($A6)=$A6,EVEN(AF$2)=AF$2)),AF$1,-100)) -> 553.125 | AG6: =IF('Ceiling Speaker Calculator'!$C$29="Square",AG$1,IF(OR(AND(ODD($A6)=$A6,ODD(AG$2)=AG$2),AND(EVEN($A6)=$A6,EVEN(AG$2)=AG$2)),AG$1,-100)) -> 571.875 | AH6: =IF('Ceiling Speaker Calculator'!$C$29="Square",AH$1,IF(OR(AND(ODD($A6)=$A6,ODD(AH$2)=AH$2),AND(EVEN($A6)=$A6,EVEN(AH$2)=AH$2)),AH$1,-100)) -> 590.625 | AI6: =IF('Ceiling Speaker Calculator'!$C$29="Square",AI$1,IF(OR(AND(ODD($A6)=$A6,ODD(AI$2)=AI$2),AND(EVEN($A6)=$A6,EVEN(AI$2)=AI$2)),AI$1,-100)) -> 609.375 | AJ6: =IF('Ceiling Speaker Calculator'!$C$29="Square",AJ$1,IF(OR(AND(ODD($A6)=$A6,ODD(AJ$2)=AJ$2),AND(EVEN($A6)=$A6,EVEN(AJ$2)=AJ$2)),AJ$1,-100)) -> 628.125 | AK6: =IF('Ceiling Speaker Calculator'!$C$29="Square",AK$1,IF(OR(AND(ODD($A6)=$A6,ODD(AK$2)=AK$2),AND(EVEN($A6)=$A6,EVEN(AK$2)=AK$2)),AK$1,-100)) -> 646.875 | AL6: =IF('Ceiling Speaker Calculator'!$C$29="Square",AL$1,IF(OR(AND(ODD($A6)=$A6,ODD(AL$2)=AL$2),AND(EVEN($A6)=$A6,EVEN(AL$2)=AL$2)),AL$1,-100)) -> 665.625 | AM6: =IF('Ceiling Speaker Calculator'!$C$29="Square",AM$1,IF(OR(AND(ODD($A6)=$A6,ODD(AM$2)=AM$2),AND(EVEN($A6)=$A6,EVEN(AM$2)=AM$2)),AM$1,-100)) -> 684.375 | AN6: =IF('Ceiling Speaker Calculator'!$C$29="Square",AN$1,IF(OR(AND(ODD($A6)=$A6,ODD(AN$2)=AN$2),AND(EVEN($A6)=$A6,EVEN(AN$2)=AN$2)),AN$1,-100)) -> 703.125 | AO6: =IF('Ceiling Speaker Calculator'!$C$29="Square",AO$1,IF(OR(AND(ODD($A6)=$A6,ODD(AO$2)=AO$2),AND(EVEN($A6)=$A6,EVEN(AO$2)=AO$2)),AO$1,-100)) -> 721.875 | AP6: =IF('Ceiling Speaker Calculator'!$C$29="Square",AP$1,IF(OR(AND(ODD($A6)=$A6,ODD(AP$2)=AP$2),AND(EVEN($A6)=$A6,EVEN(AP$2)=AP$2)),AP$1,-100)) -> 740.625 | AQ6: =IF('Ceiling Speaker Calculator'!$C$29="Square",AQ$1,IF(OR(AND(ODD($A6)=$A6,ODD(AQ$2)=AQ$2),AND(EVEN($A6)=$A6,EVEN(AQ$2)=AQ$2)),AQ$1,-100)) -> 759.375 | AR6: =IF('Ceiling Speaker Calculator'!$C$29="Square",AR$1,IF(OR(AND(ODD($A6)=$A6,ODD(AR$2)=AR$2),AND(EVEN($A6)=$A6,EVEN(AR$2)=AR$2)),AR$1,-100)) -> 778.125 | AS6: =IF('Ceiling Speaker Calculator'!$C$29="Square",AS$1,IF(OR(AND(ODD($A6)=$A6,ODD(AS$2)=AS$2),AND(EVEN($A6)=$A6,EVEN(AS$2)=AS$2)),AS$1,-100)) -> 796.875 | AT6: =IF('Ceiling Speaker Calculator'!$C$29="Square",AT$1,IF(OR(AND(ODD($A6)=$A6,ODD(AT$2)=AT$2),AND(EVEN($A6)=$A6,EVEN(AT$2)=AT$2)),AT$1,-100)) -> 815.625 | AU6: =IF('Ceiling Speaker Calculator'!$C$29="Square",AU$1,IF(OR(AND(ODD($A6)=$A6,ODD(AU$2)=AU$2),AND(EVEN($A6)=$A6,EVEN(AU$2)=AU$2)),AU$1,-100)) -> 834.375 | AV6: =IF('Ceiling Speaker Calculator'!$C$29="Square",AV$1,IF(OR(AND(ODD($A6)=$A6,ODD(AV$2)=AV$2),AND(EVEN($A6)=$A6,EVEN(AV$2)=AV$2)),AV$1,-100)) -> 853.125 | AW6: =IF('Ceiling Speaker Calculator'!$C$29="Square",AW$1,IF(OR(AND(ODD($A6)=$A6,ODD(AW$2)=AW$2),AND(EVEN($A6)=$A6,EVEN(AW$2)=AW$2)),AW$1,-100)) -> 871.875 | AX6: =IF('Ceiling Speaker Calculator'!$C$29="Square",AX$1,IF(OR(AND(ODD($A6)=$A6,ODD(AX$2)=AX$2),AND(EVEN($A6)=$A6,EVEN(AX$2)=AX$2)),AX$1,-100)) -> 890.625 | AY6: =IF('Ceiling Speaker Calculator'!$C$29="Square",AY$1,IF(OR(AND(ODD($A6)=$A6,ODD(AY$2)=AY$2),AND(EVEN($A6)=$A6,EVEN(AY$2)=AY$2)),AY$1,-100)) -> 909.375 | AZ6: =IF('Ceiling Speaker Calculator'!$C$29="Square",AZ$1,IF(OR(AND(ODD($A6)=$A6,ODD(AZ$2)=AZ$2),AND(EVEN($A6)=$A6,EVEN(AZ$2)=AZ$2)),AZ$1,-100)) -> 928.125 | BA6: =IF('Ceiling Speaker Calculator'!$C$29="Square",BA$1,IF(OR(AND(ODD($A6)=$A6,ODD(BA$2)=BA$2),AND(EVEN($A6)=$A6,EVEN(BA$2)=BA$2)),BA$1,-100)) -> 946.875 | BB6: =IF('Ceiling Speaker Calculator'!$C$29="Square",BB$1,IF(OR(AND(ODD($A6)=$A6,ODD(BB$2)=BB$2),AND(EVEN($A6)=$A6,EVEN(BB$2)=BB$2)),BB$1,-100)) -> 965.625 | BC6: =IF('Ceiling Speaker Calculator'!$C$29="Square",BC$1,IF(OR(AND(ODD($A6)=$A6,ODD(BC$2)=BC$2),AND(EVEN($A6)=$A6,EVEN(BC$2)=BC$2)),BC$1,-100)) -> 984.375 | BD6: =IF('Ceiling Speaker Calculator'!$C$29="Square",BD$1,IF(OR(AND(ODD($A6)=$A6,ODD(BD$2)=BD$2),AND(EVEN($A6)=$A6,EVEN(BD$2)=BD$2)),BD$1,-100)) -> 1003.125 | BE6: =IF('Ceiling Speaker Calculator'!$C$29="Square",BE$1,IF(OR(AND(ODD($A6)=$A6,ODD(BE$2)=BE$2),AND(EVEN($A6)=$A6,EVEN(BE$2)=BE$2)),BE$1,-100)) -> 1021.875 | BF6: =IF('Ceiling Speaker Calculator'!$C$29="Square",BF$1,IF(OR(AND(ODD($A6)=$A6,ODD(BF$2)=BF$2),AND(EVEN($A6)=$A6,EVEN(BF$2)=BF$2)),BF$1,-100)) -> 1040.625 | BG6: =IF('Ceiling Speaker Calculator'!$C$29="Square",BG$1,IF(OR(AND(ODD($A6)=$A6,ODD(BG$2)=BG$2),AND(EVEN($A6)=$A6,EVEN(BG$2)=BG$2)),BG$1,-100)) -> 1059.375 | BH6: =IF('Ceiling Speaker Calculator'!$C$29="Square",BH$1,IF(OR(AND(ODD($A6)=$A6,ODD(BH$2)=BH$2),AND(EVEN($A6)=$A6,EVEN(BH$2)=BH$2)),BH$1,-100)) -> 1078.125 | BI6: =IF('Ceiling Speaker Calculator'!$C$29="Square",BI$1,IF(OR(AND(ODD($A6)=$A6,ODD(BI$2)=BI$2),AND(EVEN($A6)=$A6,EVEN(BI$2)=BI$2)),BI$1,-100)) -> 1096.875 | BJ6: =IF('Ceiling Speaker Calculator'!$C$29="Square",BJ$1,IF(OR(AND(ODD($A6)=$A6,ODD(BJ$2)=BJ$2),AND(EVEN($A6)=$A6,EVEN(BJ$2)=BJ$2)),BJ$1,-100)) -> 1115.625 | BK6: =IF('Ceiling Speaker Calculator'!$C$29="Square",BK$1,IF(OR(AND(ODD($A6)=$A6,ODD(BK$2)=BK$2),AND(EVEN($A6)=$A6,EVEN(BK$2)=BK$2)),BK$1,-100)) -> 1134.375 | BL6: =IF('Ceiling Speaker Calculator'!$C$29="Square",BL$1,IF(OR(AND(ODD($A6)=$A6,ODD(BL$2)=BL$2),AND(EVEN($A6)=$A6,EVEN(BL$2)=BL$2)),BL$1,-100)) -> 1153.125 | BM6: =IF('Ceiling Speaker Calculator'!$C$29="Square",BM$1,IF(OR(AND(ODD($A6)=$A6,ODD(BM$2)=BM$2),AND(EVEN($A6)=$A6,EVEN(BM$2)=BM$2)),BM$1,-100)) -> 1171.875 | BN6: =IF('Ceiling Speaker Calculator'!$C$29="Square",BN$1,IF(OR(AND(ODD($A6)=$A6,ODD(BN$2)=BN$2),AND(EVEN($A6)=$A6,EVEN(BN$2)=BN$2)),BN$1,-100)) -> 1190.625 | BO6: =IF('Ceiling Speaker Calculator'!$C$29="Square",BO$1,IF(OR(AND(ODD($A6)=$A6,ODD(BO$2)=BO$2),AND(EVEN($A6)=$A6,EVEN(BO$2)=BO$2)),BO$1,-100)) -> 1209.375 | BP6: =IF('Ceiling Speaker Calculator'!$C$29="Square",BP$1,IF(OR(AND(ODD($A6)=$A6,ODD(BP$2)=BP$2),AND(EVEN($A6)=$A6,EVEN(BP$2)=BP$2)),BP$1,-100)) -> 1228.125 | BQ6: =IF('Ceiling Speaker Calculator'!$C$29="Square",BQ$1,IF(OR(AND(ODD($A6)=$A6,ODD(BQ$2)=BQ$2),AND(EVEN($A6)=$A6,EVEN(BQ$2)=BQ$2)),BQ$1,-100)) -> 1246.875 | BR6: =IF('Ceiling Speaker Calculator'!$C$29="Square",BR$1,IF(OR(AND(ODD($A6)=$A6,ODD(BR$2)=BR$2),AND(EVEN($A6)=$A6,EVEN(BR$2)=BR$2)),BR$1,-100)) -> 1265.625 | BS6: =IF('Ceiling Speaker Calculator'!$C$29="Square",BS$1,IF(OR(AND(ODD($A6)=$A6,ODD(BS$2)=BS$2),AND(EVEN($A6)=$A6,EVEN(BS$2)=BS$2)),BS$1,-100)) -> 1284.375 | BT6: =IF('Ceiling Speaker Calculator'!$C$29="Square",BT$1,IF(OR(AND(ODD($A6)=$A6,ODD(BT$2)=BT$2),AND(EVEN($A6)=$A6,EVEN(BT$2)=BT$2)),BT$1,-100)) -> 1303.125 | BU6: =IF('Ceiling Speaker Calculator'!$C$29="Square",BU$1,IF(OR(AND(ODD($A6)=$A6,ODD(BU$2)=BU$2),AND(EVEN($A6)=$A6,EVEN(BU$2)=BU$2)),BU$1,-100)) -> 1321.875 | BV6: =IF('Ceiling Speaker Calculator'!$C$29="Square",BV$1,IF(OR(AND(ODD($A6)=$A6,ODD(BV$2)=BV$2),AND(EVEN($A6)=$A6,EVEN(BV$2)=BV$2)),BV$1,-100)) -> 1340.625 | BW6: =IF('Ceiling Speaker Calculator'!$C$29="Square",BW$1,IF(OR(AND(ODD($A6)=$A6,ODD(BW$2)=BW$2),AND(EVEN($A6)=$A6,EVEN(BW$2)=BW$2)),BW$1,-100)) -> 1359.375 | BX6: =IF('Ceiling Speaker Calculator'!$C$29="Square",BX$1,IF(OR(AND(ODD($A6)=$A6,ODD(BX$2)=BX$2),AND(EVEN($A6)=$A6,EVEN(BX$2)=BX$2)),BX$1,-100)) -> 1378.125 | BY6: =IF('Ceiling Speaker Calculator'!$C$29="Square",BY$1,IF(OR(AND(ODD($A6)=$A6,ODD(BY$2)=BY$2),AND(EVEN($A6)=$A6,EVEN(BY$2)=BY$2)),BY$1,-100)) -> 1396.875 | BZ6: =IF('Ceiling Speaker Calculator'!$C$29="Square",BZ$1,IF(OR(AND(ODD($A6)=$A6,ODD(BZ$2)=BZ$2),AND(EVEN($A6)=$A6,EVEN(BZ$2)=BZ$2)),BZ$1,-100)) -> 1415.625 | CA6: =IF('Ceiling Speaker Calculator'!$C$29="Square",CA$1,IF(OR(AND(ODD($A6)=$A6,ODD(CA$2)=CA$2),AND(EVEN($A6)=$A6,EVEN(CA$2)=CA$2)),CA$1,-100)) -> 1434.375 | CB6: =IF('Ceiling Speaker Calculator'!$C$29="Square",CB$1,IF(OR(AND(ODD($A6)=$A6,ODD(CB$2)=CB$2),AND(EVEN($A6)=$A6,EVEN(CB$2)=CB$2)),CB$1,-100)) -> 1453.125 | CC6: =IF('Ceiling Speaker Calculator'!$C$29="Square",CC$1,IF(OR(AND(ODD($A6)=$A6,ODD(CC$2)=CC$2),AND(EVEN($A6)=$A6,EVEN(CC$2)=CC$2)),CC$1,-100)) -> 1471.875 | CD6: =IF('Ceiling Speaker Calculator'!$C$29="Square",CD$1,IF(OR(AND(ODD($A6)=$A6,ODD(CD$2)=CD$2),AND(EVEN($A6)=$A6,EVEN(CD$2)=CD$2)),CD$1,-100)) -> 1490.625 | CE6: =IF('Ceiling Speaker Calculator'!$C$29="Square",CE$1,IF(OR(AND(ODD($A6)=$A6,ODD(CE$2)=CE$2),AND(EVEN($A6)=$A6,EVEN(CE$2)=CE$2)),CE$1,-100)) -> 1509.375 | CF6: =IF('Ceiling Speaker Calculator'!$C$29="Square",CF$1,IF(OR(AND(ODD($A6)=$A6,ODD(CF$2)=CF$2),AND(EVEN($A6)=$A6,EVEN(CF$2)=CF$2)),CF$1,-100)) -> 1528.125 | CG6: =IF('Ceiling Speaker Calculator'!$C$29="Square",CG$1,IF(OR(AND(ODD($A6)=$A6,ODD(CG$2)=CG$2),AND(EVEN($A6)=$A6,EVEN(CG$2)=CG$2)),CG$1,-100)) -> 1546.875 | CH6: =IF('Ceiling Speaker Calculator'!$C$29="Square",CH$1,IF(OR(AND(ODD($A6)=$A6,ODD(CH$2)=CH$2),AND(EVEN($A6)=$A6,EVEN(CH$2)=CH$2)),CH$1,-100)) -> 1565.625 | CI6: =IF('Ceiling Speaker Calculator'!$C$29="Square",CI$1,IF(OR(AND(ODD($A6)=$A6,ODD(CI$2)=CI$2),AND(EVEN($A6)=$A6,EVEN(CI$2)=CI$2)),CI$1,-100)) -> 1584.375 | CJ6: =IF('Ceiling Speaker Calculator'!$C$29="Square",CJ$1,IF(OR(AND(ODD($A6)=$A6,ODD(CJ$2)=CJ$2),AND(EVEN($A6)=$A6,EVEN(CJ$2)=CJ$2)),CJ$1,-100)) -> 1603.125 | CK6: =IF('Ceiling Speaker Calculator'!$C$29="Square",CK$1,IF(OR(AND(ODD($A6)=$A6,ODD(CK$2)=CK$2),AND(EVEN($A6)=$A6,EVEN(CK$2)=CK$2)),CK$1,-100)) -> 1621.875 | CL6: =IF('Ceiling Speaker Calculator'!$C$29="Square",CL$1,IF(OR(AND(ODD($A6)=$A6,ODD(CL$2)=CL$2),AND(EVEN($A6)=$A6,EVEN(CL$2)=CL$2)),CL$1,-100)) -> 1640.625 | CM6: =IF('Ceiling Speaker Calculator'!$C$29="Square",CM$1,IF(OR(AND(ODD($A6)=$A6,ODD(CM$2)=CM$2),AND(EVEN($A6)=$A6,EVEN(CM$2)=CM$2)),CM$1,-100)) -> 1659.375 | CN6: =IF('Ceiling Speaker Calculator'!$C$29="Square",CN$1,IF(OR(AND(ODD($A6)=$A6,ODD(CN$2)=CN$2),AND(EVEN($A6)=$A6,EVEN(CN$2)=CN$2)),CN$1,-100)) -> 1678.125 | CO6: =IF('Ceiling Speaker Calculator'!$C$29="Square",CO$1,IF(OR(AND(ODD($A6)=$A6,ODD(CO$2)=CO$2),AND(EVEN($A6)=$A6,EVEN(CO$2)=CO$2)),CO$1,-100)) -> 1696.875 | CP6: =IF('Ceiling Speaker Calculator'!$C$29="Square",CP$1,IF(OR(AND(ODD($A6)=$A6,ODD(CP$2)=CP$2),AND(EVEN($A6)=$A6,EVEN(CP$2)=CP$2)),CP$1,-100)) -> 1715.625 | CQ6: =IF('Ceiling Speaker Calculator'!$C$29="Square",CQ$1,IF(OR(AND(ODD($A6)=$A6,ODD(CQ$2)=CQ$2),AND(EVEN($A6)=$A6,EVEN(CQ$2)=CQ$2)),CQ$1,-100)) -> 1734.375 | CR6: =IF('Ceiling Speaker Calculator'!$C$29="Square",CR$1,IF(OR(AND(ODD($A6)=$A6,ODD(CR$2)=CR$2),AND(EVEN($A6)=$A6,EVEN(CR$2)=CR$2)),CR$1,-100)) -> 1753.125 | CS6: =IF('Ceiling Speaker Calculator'!$C$29="Square",CS$1,IF(OR(AND(ODD($A6)=$A6,ODD(CS$2)=CS$2),AND(EVEN($A6)=$A6,EVEN(CS$2)=CS$2)),CS$1,-100)) -> 1771.875 | CT6: =IF('Ceiling Speaker Calculator'!$C$29="Square",CT$1,IF(OR(AND(ODD($A6)=$A6,ODD(CT$2)=CT$2),AND(EVEN($A6)=$A6,EVEN(CT$2)=CT$2)),CT$1,-100)) -> 1790.625 | CU6: =IF('Ceiling Speaker Calculator'!$C$29="Square",CU$1,IF(OR(AND(ODD($A6)=$A6,ODD(CU$2)=CU$2),AND(EVEN($A6)=$A6,EVEN(CU$2)=CU$2)),CU$1,-100)) -> 1809.375 | CV6: =IF('Ceiling Speaker Calculator'!$C$29="Square",CV$1,IF(OR(AND(ODD($A6)=$A6,ODD(CV$2)=CV$2),AND(EVEN($A6)=$A6,EVEN(CV$2)=CV$2)),CV$1,-100)) -> 1828.125 | CW6: =IF('Ceiling Speaker Calculator'!$C$29="Square",CW$1,IF(OR(AND(ODD($A6)=$A6,ODD(CW$2)=CW$2),AND(EVEN($A6)=$A6,EVEN(CW$2)=CW$2)),CW$1,-100)) -> 1846.875 | CX6: =IF('Ceiling Speaker Calculator'!$C$29="Square",CX$1,IF(OR(AND(ODD($A6)=$A6,ODD(CX$2)=CX$2),AND(EVEN($A6)=$A6,EVEN(CX$2)=CX$2)),CX$1,-100)) -> 1865.625
A7: 5 | B7: =B6+'Ceiling Speaker Calculator'!$K$16 -> 90 | C7: =IF('Ceiling Speaker Calculator'!$C$29="Square",C$1,IF(OR(AND(ODD($A7)=$A7,ODD(C$2)=C$2),AND(EVEN($A7)=$A7,EVEN(C$2)=C$2)),C$1,-100)) -> 9.375 | D7: =IF('Ceiling Speaker Calculator'!$C$29="Square",D$1,IF(OR(AND(ODD($A7)=$A7,ODD(D$2)=D$2),AND(EVEN($A7)=$A7,EVEN(D$2)=D$2)),D$1,-100)) -> 28.125 | E7: =IF('Ceiling Speaker Calculator'!$C$29="Square",E$1,IF(OR(AND(ODD($A7)=$A7,ODD(E$2)=E$2),AND(EVEN($A7)=$A7,EVEN(E$2)=E$2)),E$1,-100)) -> 46.875 | F7: =IF('Ceiling Speaker Calculator'!$C$29="Square",F$1,IF(OR(AND(ODD($A7)=$A7,ODD(F$2)=F$2),AND(EVEN($A7)=$A7,EVEN(F$2)=F$2)),F$1,-100)) -> 65.625 | G7: =IF('Ceiling Speaker Calculator'!$C$29="Square",G$1,IF(OR(AND(ODD($A7)=$A7,ODD(G$2)=G$2),AND(EVEN($A7)=$A7,EVEN(G$2)=G$2)),G$1,-100)) -> 84.375 | H7: =IF('Ceiling Speaker Calculator'!$C$29="Square",H$1,IF(OR(AND(ODD($A7)=$A7,ODD(H$2)=H$2),AND(EVEN($A7)=$A7,EVEN(H$2)=H$2)),H$1,-100)) -> 103.125 | I7: =IF('Ceiling Speaker Calculator'!$C$29="Square",I$1,IF(OR(AND(ODD($A7)=$A7,ODD(I$2)=I$2),AND(EVEN($A7)=$A7,EVEN(I$2)=I$2)),I$1,-100)) -> 121.875 | J7: =IF('Ceiling Speaker Calculator'!$C$29="Square",J$1,IF(OR(AND(ODD($A7)=$A7,ODD(J$2)=J$2),AND(EVEN($A7)=$A7,EVEN(J$2)=J$2)),J$1,-100)) -> 140.625 | K7: =IF('Ceiling Speaker Calculator'!$C$29="Square",K$1,IF(OR(AND(ODD($A7)=$A7,ODD(K$2)=K$2),AND(EVEN($A7)=$A7,EVEN(K$2)=K$2)),K$1,-100)) -> 159.375 | L7: =IF('Ceiling Speaker Calculator'!$C$29="Square",L$1,IF(OR(AND(ODD($A7)=$A7,ODD(L$2)=L$2),AND(EVEN($A7)=$A7,EVEN(L$2)=L$2)),L$1,-100)) -> 178.125 | M7: =IF('Ceiling Speaker Calculator'!$C$29="Square",M$1,IF(OR(AND(ODD($A7)=$A7,ODD(M$2)=M$2),AND(EVEN($A7)=$A7,EVEN(M$2)=M$2)),M$1,-100)) -> 196.875 | N7: =IF('Ceiling Speaker Calculator'!$C$29="Square",N$1,IF(OR(AND(ODD($A7)=$A7,ODD(N$2)=N$2),AND(EVEN($A7)=$A7,EVEN(N$2)=N$2)),N$1,-100)) -> 215.625 | O7: =IF('Ceiling Speaker Calculator'!$C$29="Square",O$1,IF(OR(AND(ODD($A7)=$A7,ODD(O$2)=O$2),AND(EVEN($A7)=$A7,EVEN(O$2)=O$2)),O$1,-100)) -> 234.375 | P7: =IF('Ceiling Speaker Calculator'!$C$29="Square",P$1,IF(OR(AND(ODD($A7)=$A7,ODD(P$2)=P$2),AND(EVEN($A7)=$A7,EVEN(P$2)=P$2)),P$1,-100)) -> 253.125 | Q7: =IF('Ceiling Speaker Calculator'!$C$29="Square",Q$1,IF(OR(AND(ODD($A7)=$A7,ODD(Q$2)=Q$2),AND(EVEN($A7)=$A7,EVEN(Q$2)=Q$2)),Q$1,-100)) -> 271.875 | R7: =IF('Ceiling Speaker Calculator'!$C$29="Square",R$1,IF(OR(AND(ODD($A7)=$A7,ODD(R$2)=R$2),AND(EVEN($A7)=$A7,EVEN(R$2)=R$2)),R$1,-100)) -> 290.625 | S7: =IF('Ceiling Speaker Calculator'!$C$29="Square",S$1,IF(OR(AND(ODD($A7)=$A7,ODD(S$2)=S$2),AND(EVEN($A7)=$A7,EVEN(S$2)=S$2)),S$1,-100)) -> 309.375 | T7: =IF('Ceiling Speaker Calculator'!$C$29="Square",T$1,IF(OR(AND(ODD($A7)=$A7,ODD(T$2)=T$2),AND(EVEN($A7)=$A7,EVEN(T$2)=T$2)),T$1,-100)) -> 328.125 | U7: =IF('Ceiling Speaker Calculator'!$C$29="Square",U$1,IF(OR(AND(ODD($A7)=$A7,ODD(U$2)=U$2),AND(EVEN($A7)=$A7,EVEN(U$2)=U$2)),U$1,-100)) -> 346.875 | V7: =IF('Ceiling Speaker Calculator'!$C$29="Square",V$1,IF(OR(AND(ODD($A7)=$A7,ODD(V$2)=V$2),AND(EVEN($A7)=$A7,EVEN(V$2)=V$2)),V$1,-100)) -> 365.625 | W7: =IF('Ceiling Speaker Calculator'!$C$29="Square",W$1,IF(OR(AND(ODD($A7)=$A7,ODD(W$2)=W$2),AND(EVEN($A7)=$A7,EVEN(W$2)=W$2)),W$1,-100)) -> 384.375 | X7: =IF('Ceiling Speaker Calculator'!$C$29="Square",X$1,IF(OR(AND(ODD($A7)=$A7,ODD(X$2)=X$2),AND(EVEN($A7)=$A7,EVEN(X$2)=X$2)),X$1,-100)) -> 403.125 | Y7: =IF('Ceiling Speaker Calculator'!$C$29="Square",Y$1,IF(OR(AND(ODD($A7)=$A7,ODD(Y$2)=Y$2),AND(EVEN($A7)=$A7,EVEN(Y$2)=Y$2)),Y$1,-100)) -> 421.875 | Z7: =IF('Ceiling Speaker Calculator'!$C$29="Square",Z$1,IF(OR(AND(ODD($A7)=$A7,ODD(Z$2)=Z$2),AND(EVEN($A7)=$A7,EVEN(Z$2)=Z$2)),Z$1,-100)) -> 440.625 | AA7: =IF('Ceiling Speaker Calculator'!$C$29="Square",AA$1,IF(OR(AND(ODD($A7)=$A7,ODD(AA$2)=AA$2),AND(EVEN($A7)=$A7,EVEN(AA$2)=AA$2)),AA$1,-100)) -> 459.375 | AB7: =IF('Ceiling Speaker Calculator'!$C$29="Square",AB$1,IF(OR(AND(ODD($A7)=$A7,ODD(AB$2)=AB$2),AND(EVEN($A7)=$A7,EVEN(AB$2)=AB$2)),AB$1,-100)) -> 478.125 | AC7: =IF('Ceiling Speaker Calculator'!$C$29="Square",AC$1,IF(OR(AND(ODD($A7)=$A7,ODD(AC$2)=AC$2),AND(EVEN($A7)=$A7,EVEN(AC$2)=AC$2)),AC$1,-100)) -> 496.875 | AD7: =IF('Ceiling Speaker Calculator'!$C$29="Square",AD$1,IF(OR(AND(ODD($A7)=$A7,ODD(AD$2)=AD$2),AND(EVEN($A7)=$A7,EVEN(AD$2)=AD$2)),AD$1,-100)) -> 515.625 | AE7: =IF('Ceiling Speaker Calculator'!$C$29="Square",AE$1,IF(OR(AND(ODD($A7)=$A7,ODD(AE$2)=AE$2),AND(EVEN($A7)=$A7,EVEN(AE$2)=AE$2)),AE$1,-100)) -> 534.375 | AF7: =IF('Ceiling Speaker Calculator'!$C$29="Square",AF$1,IF(OR(AND(ODD($A7)=$A7,ODD(AF$2)=AF$2),AND(EVEN($A7)=$A7,EVEN(AF$2)=AF$2)),AF$1,-100)) -> 553.125 | AG7: =IF('Ceiling Speaker Calculator'!$C$29="Square",AG$1,IF(OR(AND(ODD($A7)=$A7,ODD(AG$2)=AG$2),AND(EVEN($A7)=$A7,EVEN(AG$2)=AG$2)),AG$1,-100)) -> 571.875 | AH7: =IF('Ceiling Speaker Calculator'!$C$29="Square",AH$1,IF(OR(AND(ODD($A7)=$A7,ODD(AH$2)=AH$2),AND(EVEN($A7)=$A7,EVEN(AH$2)=AH$2)),AH$1,-100)) -> 590.625 | AI7: =IF('Ceiling Speaker Calculator'!$C$29="Square",AI$1,IF(OR(AND(ODD($A7)=$A7,ODD(AI$2)=AI$2),AND(EVEN($A7)=$A7,EVEN(AI$2)=AI$2)),AI$1,-100)) -> 609.375 | AJ7: =IF('Ceiling Speaker Calculator'!$C$29="Square",AJ$1,IF(OR(AND(ODD($A7)=$A7,ODD(AJ$2)=AJ$2),AND(EVEN($A7)=$A7,EVEN(AJ$2)=AJ$2)),AJ$1,-100)) -> 628.125 | AK7: =IF('Ceiling Speaker Calculator'!$C$29="Square",AK$1,IF(OR(AND(ODD($A7)=$A7,ODD(AK$2)=AK$2),AND(EVEN($A7)=$A7,EVEN(AK$2)=AK$2)),AK$1,-100)) -> 646.875 | AL7: =IF('Ceiling Speaker Calculator'!$C$29="Square",AL$1,IF(OR(AND(ODD($A7)=$A7,ODD(AL$2)=AL$2),AND(EVEN($A7)=$A7,EVEN(AL$2)=AL$2)),AL$1,-100)) -> 665.625 | AM7: =IF('Ceiling Speaker Calculator'!$C$29="Square",AM$1,IF(OR(AND(ODD($A7)=$A7,ODD(AM$2)=AM$2),AND(EVEN($A7)=$A7,EVEN(AM$2)=AM$2)),AM$1,-100)) -> 684.375 | AN7: =IF('Ceiling Speaker Calculator'!$C$29="Square",AN$1,IF(OR(AND(ODD($A7)=$A7,ODD(AN$2)=AN$2),AND(EVEN($A7)=$A7,EVEN(AN$2)=AN$2)),AN$1,-100)) -> 703.125 | AO7: =IF('Ceiling Speaker Calculator'!$C$29="Square",AO$1,IF(OR(AND(ODD($A7)=$A7,ODD(AO$2)=AO$2),AND(EVEN($A7)=$A7,EVEN(AO$2)=AO$2)),AO$1,-100)) -> 721.875 | AP7: =IF('Ceiling Speaker Calculator'!$C$29="Square",AP$1,IF(OR(AND(ODD($A7)=$A7,ODD(AP$2)=AP$2),AND(EVEN($A7)=$A7,EVEN(AP$2)=AP$2)),AP$1,-100)) -> 740.625 | AQ7: =IF('Ceiling Speaker Calculator'!$C$29="Square",AQ$1,IF(OR(AND(ODD($A7)=$A7,ODD(AQ$2)=AQ$2),AND(EVEN($A7)=$A7,EVEN(AQ$2)=AQ$2)),AQ$1,-100)) -> 759.375 | AR7: =IF('Ceiling Speaker Calculator'!$C$29="Square",AR$1,IF(OR(AND(ODD($A7)=$A7,ODD(AR$2)=AR$2),AND(EVEN($A7)=$A7,EVEN(AR$2)=AR$2)),AR$1,-100)) -> 778.125 | AS7: =IF('Ceiling Speaker Calculator'!$C$29="Square",AS$1,IF(OR(AND(ODD($A7)=$A7,ODD(AS$2)=AS$2),AND(EVEN($A7)=$A7,EVEN(AS$2)=AS$2)),AS$1,-100)) -> 796.875 | AT7: =IF('Ceiling Speaker Calculator'!$C$29="Square",AT$1,IF(OR(AND(ODD($A7)=$A7,ODD(AT$2)=AT$2),AND(EVEN($A7)=$A7,EVEN(AT$2)=AT$2)),AT$1,-100)) -> 815.625 | AU7: =IF('Ceiling Speaker Calculator'!$C$29="Square",AU$1,IF(OR(AND(ODD($A7)=$A7,ODD(AU$2)=AU$2),AND(EVEN($A7)=$A7,EVEN(AU$2)=AU$2)),AU$1,-100)) -> 834.375 | AV7: =IF('Ceiling Speaker Calculator'!$C$29="Square",AV$1,IF(OR(AND(ODD($A7)=$A7,ODD(AV$2)=AV$2),AND(EVEN($A7)=$A7,EVEN(AV$2)=AV$2)),AV$1,-100)) -> 853.125 | AW7: =IF('Ceiling Speaker Calculator'!$C$29="Square",AW$1,IF(OR(AND(ODD($A7)=$A7,ODD(AW$2)=AW$2),AND(EVEN($A7)=$A7,EVEN(AW$2)=AW$2)),AW$1,-100)) -> 871.875 | AX7: =IF('Ceiling Speaker Calculator'!$C$29="Square",AX$1,IF(OR(AND(ODD($A7)=$A7,ODD(AX$2)=AX$2),AND(EVEN($A7)=$A7,EVEN(AX$2)=AX$2)),AX$1,-100)) -> 890.625 | AY7: =IF('Ceiling Speaker Calculator'!$C$29="Square",AY$1,IF(OR(AND(ODD($A7)=$A7,ODD(AY$2)=AY$2),AND(EVEN($A7)=$A7,EVEN(AY$2)=AY$2)),AY$1,-100)) -> 909.375 | AZ7: =IF('Ceiling Speaker Calculator'!$C$29="Square",AZ$1,IF(OR(AND(ODD($A7)=$A7,ODD(AZ$2)=AZ$2),AND(EVEN($A7)=$A7,EVEN(AZ$2)=AZ$2)),AZ$1,-100)) -> 928.125 | BA7: =IF('Ceiling Speaker Calculator'!$C$29="Square",BA$1,IF(OR(AND(ODD($A7)=$A7,ODD(BA$2)=BA$2),AND(EVEN($A7)=$A7,EVEN(BA$2)=BA$2)),BA$1,-100)) -> 946.875 | BB7: =IF('Ceiling Speaker Calculator'!$C$29="Square",BB$1,IF(OR(AND(ODD($A7)=$A7,ODD(BB$2)=BB$2),AND(EVEN($A7)=$A7,EVEN(BB$2)=BB$2)),BB$1,-100)) -> 965.625 | BC7: =IF('Ceiling Speaker Calculator'!$C$29="Square",BC$1,IF(OR(AND(ODD($A7)=$A7,ODD(BC$2)=BC$2),AND(EVEN($A7)=$A7,EVEN(BC$2)=BC$2)),BC$1,-100)) -> 984.375 | BD7: =IF('Ceiling Speaker Calculator'!$C$29="Square",BD$1,IF(OR(AND(ODD($A7)=$A7,ODD(BD$2)=BD$2),AND(EVEN($A7)=$A7,EVEN(BD$2)=BD$2)),BD$1,-100)) -> 1003.125 | BE7: =IF('Ceiling Speaker Calculator'!$C$29="Square",BE$1,IF(OR(AND(ODD($A7)=$A7,ODD(BE$2)=BE$2),AND(EVEN($A7)=$A7,EVEN(BE$2)=BE$2)),BE$1,-100)) -> 1021.875 | BF7: =IF('Ceiling Speaker Calculator'!$C$29="Square",BF$1,IF(OR(AND(ODD($A7)=$A7,ODD(BF$2)=BF$2),AND(EVEN($A7)=$A7,EVEN(BF$2)=BF$2)),BF$1,-100)) -> 1040.625 | BG7: =IF('Ceiling Speaker Calculator'!$C$29="Square",BG$1,IF(OR(AND(ODD($A7)=$A7,ODD(BG$2)=BG$2),AND(EVEN($A7)=$A7,EVEN(BG$2)=BG$2)),BG$1,-100)) -> 1059.375 | BH7: =IF('Ceiling Speaker Calculator'!$C$29="Square",BH$1,IF(OR(AND(ODD($A7)=$A7,ODD(BH$2)=BH$2),AND(EVEN($A7)=$A7,EVEN(BH$2)=BH$2)),BH$1,-100)) -> 1078.125 | BI7: =IF('Ceiling Speaker Calculator'!$C$29="Square",BI$1,IF(OR(AND(ODD($A7)=$A7,ODD(BI$2)=BI$2),AND(EVEN($A7)=$A7,EVEN(BI$2)=BI$2)),BI$1,-100)) -> 1096.875 | BJ7: =IF('Ceiling Speaker Calculator'!$C$29="Square",BJ$1,IF(OR(AND(ODD($A7)=$A7,ODD(BJ$2)=BJ$2),AND(EVEN($A7)=$A7,EVEN(BJ$2)=BJ$2)),BJ$1,-100)) -> 1115.625 | BK7: =IF('Ceiling Speaker Calculator'!$C$29="Square",BK$1,IF(OR(AND(ODD($A7)=$A7,ODD(BK$2)=BK$2),AND(EVEN($A7)=$A7,EVEN(BK$2)=BK$2)),BK$1,-100)) -> 1134.375 | BL7: =IF('Ceiling Speaker Calculator'!$C$29="Square",BL$1,IF(OR(AND(ODD($A7)=$A7,ODD(BL$2)=BL$2),AND(EVEN($A7)=$A7,EVEN(BL$2)=BL$2)),BL$1,-100)) -> 1153.125 | BM7: =IF('Ceiling Speaker Calculator'!$C$29="Square",BM$1,IF(OR(AND(ODD($A7)=$A7,ODD(BM$2)=BM$2),AND(EVEN($A7)=$A7,EVEN(BM$2)=BM$2)),BM$1,-100)) -> 1171.875 | BN7: =IF('Ceiling Speaker Calculator'!$C$29="Square",BN$1,IF(OR(AND(ODD($A7)=$A7,ODD(BN$2)=BN$2),AND(EVEN($A7)=$A7,EVEN(BN$2)=BN$2)),BN$1,-100)) -> 1190.625 | BO7: =IF('Ceiling Speaker Calculator'!$C$29="Square",BO$1,IF(OR(AND(ODD($A7)=$A7,ODD(BO$2)=BO$2),AND(EVEN($A7)=$A7,EVEN(BO$2)=BO$2)),BO$1,-100)) -> 1209.375 | BP7: =IF('Ceiling Speaker Calculator'!$C$29="Square",BP$1,IF(OR(AND(ODD($A7)=$A7,ODD(BP$2)=BP$2),AND(EVEN($A7)=$A7,EVEN(BP$2)=BP$2)),BP$1,-100)) -> 1228.125 | BQ7: =IF('Ceiling Speaker Calculator'!$C$29="Square",BQ$1,IF(OR(AND(ODD($A7)=$A7,ODD(BQ$2)=BQ$2),AND(EVEN($A7)=$A7,EVEN(BQ$2)=BQ$2)),BQ$1,-100)) -> 1246.875 | BR7: =IF('Ceiling Speaker Calculator'!$C$29="Square",BR$1,IF(OR(AND(ODD($A7)=$A7,ODD(BR$2)=BR$2),AND(EVEN($A7)=$A7,EVEN(BR$2)=BR$2)),BR$1,-100)) -> 1265.625 | BS7: =IF('Ceiling Speaker Calculator'!$C$29="Square",BS$1,IF(OR(AND(ODD($A7)=$A7,ODD(BS$2)=BS$2),AND(EVEN($A7)=$A7,EVEN(BS$2)=BS$2)),BS$1,-100)) -> 1284.375 | BT7: =IF('Ceiling Speaker Calculator'!$C$29="Square",BT$1,IF(OR(AND(ODD($A7)=$A7,ODD(BT$2)=BT$2),AND(EVEN($A7)=$A7,EVEN(BT$2)=BT$2)),BT$1,-100)) -> 1303.125 | BU7: =IF('Ceiling Speaker Calculator'!$C$29="Square",BU$1,IF(OR(AND(ODD($A7)=$A7,ODD(BU$2)=BU$2),AND(EVEN($A7)=$A7,EVEN(BU$2)=BU$2)),BU$1,-100)) -> 1321.875 | BV7: =IF('Ceiling Speaker Calculator'!$C$29="Square",BV$1,IF(OR(AND(ODD($A7)=$A7,ODD(BV$2)=BV$2),AND(EVEN($A7)=$A7,EVEN(BV$2)=BV$2)),BV$1,-100)) -> 1340.625 | BW7: =IF('Ceiling Speaker Calculator'!$C$29="Square",BW$1,IF(OR(AND(ODD($A7)=$A7,ODD(BW$2)=BW$2),AND(EVEN($A7)=$A7,EVEN(BW$2)=BW$2)),BW$1,-100)) -> 1359.375 | BX7: =IF('Ceiling Speaker Calculator'!$C$29="Square",BX$1,IF(OR(AND(ODD($A7)=$A7,ODD(BX$2)=BX$2),AND(EVEN($A7)=$A7,EVEN(BX$2)=BX$2)),BX$1,-100)) -> 1378.125 | BY7: =IF('Ceiling Speaker Calculator'!$C$29="Square",BY$1,IF(OR(AND(ODD($A7)=$A7,ODD(BY$2)=BY$2),AND(EVEN($A7)=$A7,EVEN(BY$2)=BY$2)),BY$1,-100)) -> 1396.875 | BZ7: =IF('Ceiling Speaker Calculator'!$C$29="Square",BZ$1,IF(OR(AND(ODD($A7)=$A7,ODD(BZ$2)=BZ$2),AND(EVEN($A7)=$A7,EVEN(BZ$2)=BZ$2)),BZ$1,-100)) -> 1415.625 | CA7: =IF('Ceiling Speaker Calculator'!$C$29="Square",CA$1,IF(OR(AND(ODD($A7)=$A7,ODD(CA$2)=CA$2),AND(EVEN($A7)=$A7,EVEN(CA$2)=CA$2)),CA$1,-100)) -> 1434.375 | CB7: =IF('Ceiling Speaker Calculator'!$C$29="Square",CB$1,IF(OR(AND(ODD($A7)=$A7,ODD(CB$2)=CB$2),AND(EVEN($A7)=$A7,EVEN(CB$2)=CB$2)),CB$1,-100)) -> 1453.125 | CC7: =IF('Ceiling Speaker Calculator'!$C$29="Square",CC$1,IF(OR(AND(ODD($A7)=$A7,ODD(CC$2)=CC$2),AND(EVEN($A7)=$A7,EVEN(CC$2)=CC$2)),CC$1,-100)) -> 1471.875 | CD7: =IF('Ceiling Speaker Calculator'!$C$29="Square",CD$1,IF(OR(AND(ODD($A7)=$A7,ODD(CD$2)=CD$2),AND(EVEN($A7)=$A7,EVEN(CD$2)=CD$2)),CD$1,-100)) -> 1490.625 | CE7: =IF('Ceiling Speaker Calculator'!$C$29="Square",CE$1,IF(OR(AND(ODD($A7)=$A7,ODD(CE$2)=CE$2),AND(EVEN($A7)=$A7,EVEN(CE$2)=CE$2)),CE$1,-100)) -> 1509.375 | CF7: =IF('Ceiling Speaker Calculator'!$C$29="Square",CF$1,IF(OR(AND(ODD($A7)=$A7,ODD(CF$2)=CF$2),AND(EVEN($A7)=$A7,EVEN(CF$2)=CF$2)),CF$1,-100)) -> 1528.125 | CG7: =IF('Ceiling Speaker Calculator'!$C$29="Square",CG$1,IF(OR(AND(ODD($A7)=$A7,ODD(CG$2)=CG$2),AND(EVEN($A7)=$A7,EVEN(CG$2)=CG$2)),CG$1,-100)) -> 1546.875 | CH7: =IF('Ceiling Speaker Calculator'!$C$29="Square",CH$1,IF(OR(AND(ODD($A7)=$A7,ODD(CH$2)=CH$2),AND(EVEN($A7)=$A7,EVEN(CH$2)=CH$2)),CH$1,-100)) -> 1565.625 | CI7: =IF('Ceiling Speaker Calculator'!$C$29="Square",CI$1,IF(OR(AND(ODD($A7)=$A7,ODD(CI$2)=CI$2),AND(EVEN($A7)=$A7,EVEN(CI$2)=CI$2)),CI$1,-100)) -> 1584.375 | CJ7: =IF('Ceiling Speaker Calculator'!$C$29="Square",CJ$1,IF(OR(AND(ODD($A7)=$A7,ODD(CJ$2)=CJ$2),AND(EVEN($A7)=$A7,EVEN(CJ$2)=CJ$2)),CJ$1,-100)) -> 1603.125 | CK7: =IF('Ceiling Speaker Calculator'!$C$29="Square",CK$1,IF(OR(AND(ODD($A7)=$A7,ODD(CK$2)=CK$2),AND(EVEN($A7)=$A7,EVEN(CK$2)=CK$2)),CK$1,-100)) -> 1621.875 | CL7: =IF('Ceiling Speaker Calculator'!$C$29="Square",CL$1,IF(OR(AND(ODD($A7)=$A7,ODD(CL$2)=CL$2),AND(EVEN($A7)=$A7,EVEN(CL$2)=CL$2)),CL$1,-100)) -> 1640.625 | CM7: =IF('Ceiling Speaker Calculator'!$C$29="Square",CM$1,IF(OR(AND(ODD($A7)=$A7,ODD(CM$2)=CM$2),AND(EVEN($A7)=$A7,EVEN(CM$2)=CM$2)),CM$1,-100)) -> 1659.375 | CN7: =IF('Ceiling Speaker Calculator'!$C$29="Square",CN$1,IF(OR(AND(ODD($A7)=$A7,ODD(CN$2)=CN$2),AND(EVEN($A7)=$A7,EVEN(CN$2)=CN$2)),CN$1,-100)) -> 1678.125 | CO7: =IF('Ceiling Speaker Calculator'!$C$29="Square",CO$1,IF(OR(AND(ODD($A7)=$A7,ODD(CO$2)=CO$2),AND(EVEN($A7)=$A7,EVEN(CO$2)=CO$2)),CO$1,-100)) -> 1696.875 | CP7: =IF('Ceiling Speaker Calculator'!$C$29="Square",CP$1,IF(OR(AND(ODD($A7)=$A7,ODD(CP$2)=CP$2),AND(EVEN($A7)=$A7,EVEN(CP$2)=CP$2)),CP$1,-100)) -> 1715.625 | CQ7: =IF('Ceiling Speaker Calculator'!$C$29="Square",CQ$1,IF(OR(AND(ODD($A7)=$A7,ODD(CQ$2)=CQ$2),AND(EVEN($A7)=$A7,EVEN(CQ$2)=CQ$2)),CQ$1,-100)) -> 1734.375 | CR7: =IF('Ceiling Speaker Calculator'!$C$29="Square",CR$1,IF(OR(AND(ODD($A7)=$A7,ODD(CR$2)=CR$2),AND(EVEN($A7)=$A7,EVEN(CR$2)=CR$2)),CR$1,-100)) -> 1753.125 | CS7: =IF('Ceiling Speaker Calculator'!$C$29="Square",CS$1,IF(OR(AND(ODD($A7)=$A7,ODD(CS$2)=CS$2),AND(EVEN($A7)=$A7,EVEN(CS$2)=CS$2)),CS$1,-100)) -> 1771.875 | CT7: =IF('Ceiling Speaker Calculator'!$C$29="Square",CT$1,IF(OR(AND(ODD($A7)=$A7,ODD(CT$2)=CT$2),AND(EVEN($A7)=$A7,EVEN(CT$2)=CT$2)),CT$1,-100)) -> 1790.625 | CU7: =IF('Ceiling Speaker Calculator'!$C$29="Square",CU$1,IF(OR(AND(ODD($A7)=$A7,ODD(CU$2)=CU$2),AND(EVEN($A7)=$A7,EVEN(CU$2)=CU$2)),CU$1,-100)) -> 1809.375 | CV7: =IF('Ceiling Speaker Calculator'!$C$29="Square",CV$1,IF(OR(AND(ODD($A7)=$A7,ODD(CV$2)=CV$2),AND(EVEN($A7)=$A7,EVEN(CV$2)=CV$2)),CV$1,-100)) -> 1828.125 | CW7: =IF('Ceiling Speaker Calculator'!$C$29="Square",CW$1,IF(OR(AND(ODD($A7)=$A7,ODD(CW$2)=CW$2),AND(EVEN($A7)=$A7,EVEN(CW$2)=CW$2)),CW$1,-100)) -> 1846.875 | CX7: =IF('Ceiling Speaker Calculator'!$C$29="Square",CX$1,IF(OR(AND(ODD($A7)=$A7,ODD(CX$2)=CX$2),AND(EVEN($A7)=$A7,EVEN(CX$2)=CX$2)),CX$1,-100)) -> 1865.625
A8: 6 | B8: =B7+'Ceiling Speaker Calculator'!$K$16 -> 110 | C8: =IF('Ceiling Speaker Calculator'!$C$29="Square",C$1,IF(OR(AND(ODD($A8)=$A8,ODD(C$2)=C$2),AND(EVEN($A8)=$A8,EVEN(C$2)=C$2)),C$1,-100)) -> 9.375 | D8: =IF('Ceiling Speaker Calculator'!$C$29="Square",D$1,IF(OR(AND(ODD($A8)=$A8,ODD(D$2)=D$2),AND(EVEN($A8)=$A8,EVEN(D$2)=D$2)),D$1,-100)) -> 28.125 | E8: =IF('Ceiling Speaker Calculator'!$C$29="Square",E$1,IF(OR(AND(ODD($A8)=$A8,ODD(E$2)=E$2),AND(EVEN($A8)=$A8,EVEN(E$2)=E$2)),E$1,-100)) -> 46.875 | F8: =IF('Ceiling Speaker Calculator'!$C$29="Square",F$1,IF(OR(AND(ODD($A8)=$A8,ODD(F$2)=F$2),AND(EVEN($A8)=$A8,EVEN(F$2)=F$2)),F$1,-100)) -> 65.625 | G8: =IF('Ceiling Speaker Calculator'!$C$29="Square",G$1,IF(OR(AND(ODD($A8)=$A8,ODD(G$2)=G$2),AND(EVEN($A8)=$A8,EVEN(G$2)=G$2)),G$1,-100)) -> 84.375 | H8: =IF('Ceiling Speaker Calculator'!$C$29="Square",H$1,IF(OR(AND(ODD($A8)=$A8,ODD(H$2)=H$2),AND(EVEN($A8)=$A8,EVEN(H$2)=H$2)),H$1,-100)) -> 103.125 | I8: =IF('Ceiling Speaker Calculator'!$C$29="Square",I$1,IF(OR(AND(ODD($A8)=$A8,ODD(I$2)=I$2),AND(EVEN($A8)=$A8,EVEN(I$2)=I$2)),I$1,-100)) -> 121.875 | J8: =IF('Ceiling Speaker Calculator'!$C$29="Square",J$1,IF(OR(AND(ODD($A8)=$A8,ODD(J$2)=J$2),AND(EVEN($A8)=$A8,EVEN(J$2)=J$2)),J$1,-100)) -> 140.625 | K8: =IF('Ceiling Speaker Calculator'!$C$29="Square",K$1,IF(OR(AND(ODD($A8)=$A8,ODD(K$2)=K$2),AND(EVEN($A8)=$A8,EVEN(K$2)=K$2)),K$1,-100)) -> 159.375 | L8: =IF('Ceiling Speaker Calculator'!$C$29="Square",L$1,IF(OR(AND(ODD($A8)=$A8,ODD(L$2)=L$2),AND(EVEN($A8)=$A8,EVEN(L$2)=L$2)),L$1,-100)) -> 178.125 | M8: =IF('Ceiling Speaker Calculator'!$C$29="Square",M$1,IF(OR(AND(ODD($A8)=$A8,ODD(M$2)=M$2),AND(EVEN($A8)=$A8,EVEN(M$2)=M$2)),M$1,-100)) -> 196.875 | N8: =IF('Ceiling Speaker Calculator'!$C$29="Square",N$1,IF(OR(AND(ODD($A8)=$A8,ODD(N$2)=N$2),AND(EVEN($A8)=$A8,EVEN(N$2)=N$2)),N$1,-100)) -> 215.625 | O8: =IF('Ceiling Speaker Calculator'!$C$29="Square",O$1,IF(OR(AND(ODD($A8)=$A8,ODD(O$2)=O$2),AND(EVEN($A8)=$A8,EVEN(O$2)=O$2)),O$1,-100)) -> 234.375 | P8: =IF('Ceiling Speaker Calculator'!$C$29="Square",P$1,IF(OR(AND(ODD($A8)=$A8,ODD(P$2)=P$2),AND(EVEN($A8)=$A8,EVEN(P$2)=P$2)),P$1,-100)) -> 253.125 | Q8: =IF('Ceiling Speaker Calculator'!$C$29="Square",Q$1,IF(OR(AND(ODD($A8)=$A8,ODD(Q$2)=Q$2),AND(EVEN($A8)=$A8,EVEN(Q$2)=Q$2)),Q$1,-100)) -> 271.875 | R8: =IF('Ceiling Speaker Calculator'!$C$29="Square",R$1,IF(OR(AND(ODD($A8)=$A8,ODD(R$2)=R$2),AND(EVEN($A8)=$A8,EVEN(R$2)=R$2)),R$1,-100)) -> 290.625 | S8: =IF('Ceiling Speaker Calculator'!$C$29="Square",S$1,IF(OR(AND(ODD($A8)=$A8,ODD(S$2)=S$2),AND(EVEN($A8)=$A8,EVEN(S$2)=S$2)),S$1,-100)) -> 309.375 | T8: =IF('Ceiling Speaker Calculator'!$C$29="Square",T$1,IF(OR(AND(ODD($A8)=$A8,ODD(T$2)=T$2),AND(EVEN($A8)=$A8,EVEN(T$2)=T$2)),T$1,-100)) -> 328.125 | U8: =IF('Ceiling Speaker Calculator'!$C$29="Square",U$1,IF(OR(AND(ODD($A8)=$A8,ODD(U$2)=U$2),AND(EVEN($A8)=$A8,EVEN(U$2)=U$2)),U$1,-100)) -> 346.875 | V8: =IF('Ceiling Speaker Calculator'!$C$29="Square",V$1,IF(OR(AND(ODD($A8)=$A8,ODD(V$2)=V$2),AND(EVEN($A8)=$A8,EVEN(V$2)=V$2)),V$1,-100)) -> 365.625 | W8: =IF('Ceiling Speaker Calculator'!$C$29="Square",W$1,IF(OR(AND(ODD($A8)=$A8,ODD(W$2)=W$2),AND(EVEN($A8)=$A8,EVEN(W$2)=W$2)),W$1,-100)) -> 384.375 | X8: =IF('Ceiling Speaker Calculator'!$C$29="Square",X$1,IF(OR(AND(ODD($A8)=$A8,ODD(X$2)=X$2),AND(EVEN($A8)=$A8,EVEN(X$2)=X$2)),X$1,-100)) -> 403.125 | Y8: =IF('Ceiling Speaker Calculator'!$C$29="Square",Y$1,IF(OR(AND(ODD($A8)=$A8,ODD(Y$2)=Y$2),AND(EVEN($A8)=$A8,EVEN(Y$2)=Y$2)),Y$1,-100)) -> 421.875 | Z8: =IF('Ceiling Speaker Calculator'!$C$29="Square",Z$1,IF(OR(AND(ODD($A8)=$A8,ODD(Z$2)=Z$2),AND(EVEN($A8)=$A8,EVEN(Z$2)=Z$2)),Z$1,-100)) -> 440.625 | AA8: =IF('Ceiling Speaker Calculator'!$C$29="Square",AA$1,IF(OR(AND(ODD($A8)=$A8,ODD(AA$2)=AA$2),AND(EVEN($A8)=$A8,EVEN(AA$2)=AA$2)),AA$1,-100)) -> 459.375 | AB8: =IF('Ceiling Speaker Calculator'!$C$29="Square",AB$1,IF(OR(AND(ODD($A8)=$A8,ODD(AB$2)=AB$2),AND(EVEN($A8)=$A8,EVEN(AB$2)=AB$2)),AB$1,-100)) -> 478.125 | AC8: =IF('Ceiling Speaker Calculator'!$C$29="Square",AC$1,IF(OR(AND(ODD($A8)=$A8,ODD(AC$2)=AC$2),AND(EVEN($A8)=$A8,EVEN(AC$2)=AC$2)),AC$1,-100)) -> 496.875 | AD8: =IF('Ceiling Speaker Calculator'!$C$29="Square",AD$1,IF(OR(AND(ODD($A8)=$A8,ODD(AD$2)=AD$2),AND(EVEN($A8)=$A8,EVEN(AD$2)=AD$2)),AD$1,-100)) -> 515.625 | AE8: =IF('Ceiling Speaker Calculator'!$C$29="Square",AE$1,IF(OR(AND(ODD($A8)=$A8,ODD(AE$2)=AE$2),AND(EVEN($A8)=$A8,EVEN(AE$2)=AE$2)),AE$1,-100)) -> 534.375 | AF8: =IF('Ceiling Speaker Calculator'!$C$29="Square",AF$1,IF(OR(AND(ODD($A8)=$A8,ODD(AF$2)=AF$2),AND(EVEN($A8)=$A8,EVEN(AF$2)=AF$2)),AF$1,-100)) -> 553.125 | AG8: =IF('Ceiling Speaker Calculator'!$C$29="Square",AG$1,IF(OR(AND(ODD($A8)=$A8,ODD(AG$2)=AG$2),AND(EVEN($A8)=$A8,EVEN(AG$2)=AG$2)),AG$1,-100)) -> 571.875 | AH8: =IF('Ceiling Speaker Calculator'!$C$29="Square",AH$1,IF(OR(AND(ODD($A8)=$A8,ODD(AH$2)=AH$2),AND(EVEN($A8)=$A8,EVEN(AH$2)=AH$2)),AH$1,-100)) -> 590.625 | AI8: =IF('Ceiling Speaker Calculator'!$C$29="Square",AI$1,IF(OR(AND(ODD($A8)=$A8,ODD(AI$2)=AI$2),AND(EVEN($A8)=$A8,EVEN(AI$2)=AI$2)),AI$1,-100)) -> 609.375 | AJ8: =IF('Ceiling Speaker Calculator'!$C$29="Square",AJ$1,IF(OR(AND(ODD($A8)=$A8,ODD(AJ$2)=AJ$2),AND(EVEN($A8)=$A8,EVEN(AJ$2)=AJ$2)),AJ$1,-100)) -> 628.125 | AK8: =IF('Ceiling Speaker Calculator'!$C$29="Square",AK$1,IF(OR(AND(ODD($A8)=$A8,ODD(AK$2)=AK$2),AND(EVEN($A8)=$A8,EVEN(AK$2)=AK$2)),AK$1,-100)) -> 646.875 | AL8: =IF('Ceiling Speaker Calculator'!$C$29="Square",AL$1,IF(OR(AND(ODD($A8)=$A8,ODD(AL$2)=AL$2),AND(EVEN($A8)=$A8,EVEN(AL$2)=AL$2)),AL$1,-100)) -> 665.625 | AM8: =IF('Ceiling Speaker Calculator'!$C$29="Square",AM$1,IF(OR(AND(ODD($A8)=$A8,ODD(AM$2)=AM$2),AND(EVEN($A8)=$A8,EVEN(AM$2)=AM$2)),AM$1,-100)) -> 684.375 | AN8: =IF('Ceiling Speaker Calculator'!$C$29="Square",AN$1,IF(OR(AND(ODD($A8)=$A8,ODD(AN$2)=AN$2),AND(EVEN($A8)=$A8,EVEN(AN$2)=AN$2)),AN$1,-100)) -> 703.125 | AO8: =IF('Ceiling Speaker Calculator'!$C$29="Square",AO$1,IF(OR(AND(ODD($A8)=$A8,ODD(AO$2)=AO$2),AND(EVEN($A8)=$A8,EVEN(AO$2)=AO$2)),AO$1,-100)) -> 721.875 | AP8: =IF('Ceiling Speaker Calculator'!$C$29="Square",AP$1,IF(OR(AND(ODD($A8)=$A8,ODD(AP$2)=AP$2),AND(EVEN($A8)=$A8,EVEN(AP$2)=AP$2)),AP$1,-100)) -> 740.625 | AQ8: =IF('Ceiling Speaker Calculator'!$C$29="Square",AQ$1,IF(OR(AND(ODD($A8)=$A8,ODD(AQ$2)=AQ$2),AND(EVEN($A8)=$A8,EVEN(AQ$2)=AQ$2)),AQ$1,-100)) -> 759.375 | AR8: =IF('Ceiling Speaker Calculator'!$C$29="Square",AR$1,IF(OR(AND(ODD($A8)=$A8,ODD(AR$2)=AR$2),AND(EVEN($A8)=$A8,EVEN(AR$2)=AR$2)),AR$1,-100)) -> 778.125 | AS8: =IF('Ceiling Speaker Calculator'!$C$29="Square",AS$1,IF(OR(AND(ODD($A8)=$A8,ODD(AS$2)=AS$2),AND(EVEN($A8)=$A8,EVEN(AS$2)=AS$2)),AS$1,-100)) -> 796.875 | AT8: =IF('Ceiling Speaker Calculator'!$C$29="Square",AT$1,IF(OR(AND(ODD($A8)=$A8,ODD(AT$2)=AT$2),AND(EVEN($A8)=$A8,EVEN(AT$2)=AT$2)),AT$1,-100)) -> 815.625 | AU8: =IF('Ceiling Speaker Calculator'!$C$29="Square",AU$1,IF(OR(AND(ODD($A8)=$A8,ODD(AU$2)=AU$2),AND(EVEN($A8)=$A8,EVEN(AU$2)=AU$2)),AU$1,-100)) -> 834.375 | AV8: =IF('Ceiling Speaker Calculator'!$C$29="Square",AV$1,IF(OR(AND(ODD($A8)=$A8,ODD(AV$2)=AV$2),AND(EVEN($A8)=$A8,EVEN(AV$2)=AV$2)),AV$1,-100)) -> 853.125 | AW8: =IF('Ceiling Speaker Calculator'!$C$29="Square",AW$1,IF(OR(AND(ODD($A8)=$A8,ODD(AW$2)=AW$2),AND(EVEN($A8)=$A8,EVEN(AW$2)=AW$2)),AW$1,-100)) -> 871.875 | AX8: =IF('Ceiling Speaker Calculator'!$C$29="Square",AX$1,IF(OR(AND(ODD($A8)=$A8,ODD(AX$2)=AX$2),AND(EVEN($A8)=$A8,EVEN(AX$2)=AX$2)),AX$1,-100)) -> 890.625 | AY8: =IF('Ceiling Speaker Calculator'!$C$29="Square",AY$1,IF(OR(AND(ODD($A8)=$A8,ODD(AY$2)=AY$2),AND(EVEN($A8)=$A8,EVEN(AY$2)=AY$2)),AY$1,-100)) -> 909.375 | AZ8: =IF('Ceiling Speaker Calculator'!$C$29="Square",AZ$1,IF(OR(AND(ODD($A8)=$A8,ODD(AZ$2)=AZ$2),AND(EVEN($A8)=$A8,EVEN(AZ$2)=AZ$2)),AZ$1,-100)) -> 928.125 | BA8: =IF('Ceiling Speaker Calculator'!$C$29="Square",BA$1,IF(OR(AND(ODD($A8)=$A8,ODD(BA$2)=BA$2),AND(EVEN($A8)=$A8,EVEN(BA$2)=BA$2)),BA$1,-100)) -> 946.875 | BB8: =IF('Ceiling Speaker Calculator'!$C$29="Square",BB$1,IF(OR(AND(ODD($A8)=$A8,ODD(BB$2)=BB$2),AND(EVEN($A8)=$A8,EVEN(BB$2)=BB$2)),BB$1,-100)) -> 965.625 | BC8: =IF('Ceiling Speaker Calculator'!$C$29="Square",BC$1,IF(OR(AND(ODD($A8)=$A8,ODD(BC$2)=BC$2),AND(EVEN($A8)=$A8,EVEN(BC$2)=BC$2)),BC$1,-100)) -> 984.375 | BD8: =IF('Ceiling Speaker Calculator'!$C$29="Square",BD$1,IF(OR(AND(ODD($A8)=$A8,ODD(BD$2)=BD$2),AND(EVEN($A8)=$A8,EVEN(BD$2)=BD$2)),BD$1,-100)) -> 1003.125 | BE8: =IF('Ceiling Speaker Calculator'!$C$29="Square",BE$1,IF(OR(AND(ODD($A8)=$A8,ODD(BE$2)=BE$2),AND(EVEN($A8)=$A8,EVEN(BE$2)=BE$2)),BE$1,-100)) -> 1021.875 | BF8: =IF('Ceiling Speaker Calculator'!$C$29="Square",BF$1,IF(OR(AND(ODD($A8)=$A8,ODD(BF$2)=BF$2),AND(EVEN($A8)=$A8,EVEN(BF$2)=BF$2)),BF$1,-100)) -> 1040.625 | BG8: =IF('Ceiling Speaker Calculator'!$C$29="Square",BG$1,IF(OR(AND(ODD($A8)=$A8,ODD(BG$2)=BG$2),AND(EVEN($A8)=$A8,EVEN(BG$2)=BG$2)),BG$1,-100)) -> 1059.375 | BH8: =IF('Ceiling Speaker Calculator'!$C$29="Square",BH$1,IF(OR(AND(ODD($A8)=$A8,ODD(BH$2)=BH$2),AND(EVEN($A8)=$A8,EVEN(BH$2)=BH$2)),BH$1,-100)) -> 1078.125 | BI8: =IF('Ceiling Speaker Calculator'!$C$29="Square",BI$1,IF(OR(AND(ODD($A8)=$A8,ODD(BI$2)=BI$2),AND(EVEN($A8)=$A8,EVEN(BI$2)=BI$2)),BI$1,-100)) -> 1096.875 | BJ8: =IF('Ceiling Speaker Calculator'!$C$29="Square",BJ$1,IF(OR(AND(ODD($A8)=$A8,ODD(BJ$2)=BJ$2),AND(EVEN($A8)=$A8,EVEN(BJ$2)=BJ$2)),BJ$1,-100)) -> 1115.625 | BK8: =IF('Ceiling Speaker Calculator'!$C$29="Square",BK$1,IF(OR(AND(ODD($A8)=$A8,ODD(BK$2)=BK$2),AND(EVEN($A8)=$A8,EVEN(BK$2)=BK$2)),BK$1,-100)) -> 1134.375 | BL8: =IF('Ceiling Speaker Calculator'!$C$29="Square",BL$1,IF(OR(AND(ODD($A8)=$A8,ODD(BL$2)=BL$2),AND(EVEN($A8)=$A8,EVEN(BL$2)=BL$2)),BL$1,-100)) -> 1153.125 | BM8: =IF('Ceiling Speaker Calculator'!$C$29="Square",BM$1,IF(OR(AND(ODD($A8)=$A8,ODD(BM$2)=BM$2),AND(EVEN($A8)=$A8,EVEN(BM$2)=BM$2)),BM$1,-100)) -> 1171.875 | BN8: =IF('Ceiling Speaker Calculator'!$C$29="Square",BN$1,IF(OR(AND(ODD($A8)=$A8,ODD(BN$2)=BN$2),AND(EVEN($A8)=$A8,EVEN(BN$2)=BN$2)),BN$1,-100)) -> 1190.625 | BO8: =IF('Ceiling Speaker Calculator'!$C$29="Square",BO$1,IF(OR(AND(ODD($A8)=$A8,ODD(BO$2)=BO$2),AND(EVEN($A8)=$A8,EVEN(BO$2)=BO$2)),BO$1,-100)) -> 1209.375 | BP8: =IF('Ceiling Speaker Calculator'!$C$29="Square",BP$1,IF(OR(AND(ODD($A8)=$A8,ODD(BP$2)=BP$2),AND(EVEN($A8)=$A8,EVEN(BP$2)=BP$2)),BP$1,-100)) -> 1228.125 | BQ8: =IF('Ceiling Speaker Calculator'!$C$29="Square",BQ$1,IF(OR(AND(ODD($A8)=$A8,ODD(BQ$2)=BQ$2),AND(EVEN($A8)=$A8,EVEN(BQ$2)=BQ$2)),BQ$1,-100)) -> 1246.875 | BR8: =IF('Ceiling Speaker Calculator'!$C$29="Square",BR$1,IF(OR(AND(ODD($A8)=$A8,ODD(BR$2)=BR$2),AND(EVEN($A8)=$A8,EVEN(BR$2)=BR$2)),BR$1,-100)) -> 1265.625 | BS8: =IF('Ceiling Speaker Calculator'!$C$29="Square",BS$1,IF(OR(AND(ODD($A8)=$A8,ODD(BS$2)=BS$2),AND(EVEN($A8)=$A8,EVEN(BS$2)=BS$2)),BS$1,-100)) -> 1284.375 | BT8: =IF('Ceiling Speaker Calculator'!$C$29="Square",BT$1,IF(OR(AND(ODD($A8)=$A8,ODD(BT$2)=BT$2),AND(EVEN($A8)=$A8,EVEN(BT$2)=BT$2)),BT$1,-100)) -> 1303.125 | BU8: =IF('Ceiling Speaker Calculator'!$C$29="Square",BU$1,IF(OR(AND(ODD($A8)=$A8,ODD(BU$2)=BU$2),AND(EVEN($A8)=$A8,EVEN(BU$2)=BU$2)),BU$1,-100)) -> 1321.875 | BV8: =IF('Ceiling Speaker Calculator'!$C$29="Square",BV$1,IF(OR(AND(ODD($A8)=$A8,ODD(BV$2)=BV$2),AND(EVEN($A8)=$A8,EVEN(BV$2)=BV$2)),BV$1,-100)) -> 1340.625 | BW8: =IF('Ceiling Speaker Calculator'!$C$29="Square",BW$1,IF(OR(AND(ODD($A8)=$A8,ODD(BW$2)=BW$2),AND(EVEN($A8)=$A8,EVEN(BW$2)=BW$2)),BW$1,-100)) -> 1359.375 | BX8: =IF('Ceiling Speaker Calculator'!$C$29="Square",BX$1,IF(OR(AND(ODD($A8)=$A8,ODD(BX$2)=BX$2),AND(EVEN($A8)=$A8,EVEN(BX$2)=BX$2)),BX$1,-100)) -> 1378.125 | BY8: =IF('Ceiling Speaker Calculator'!$C$29="Square",BY$1,IF(OR(AND(ODD($A8)=$A8,ODD(BY$2)=BY$2),AND(EVEN($A8)=$A8,EVEN(BY$2)=BY$2)),BY$1,-100)) -> 1396.875 | BZ8: =IF('Ceiling Speaker Calculator'!$C$29="Square",BZ$1,IF(OR(AND(ODD($A8)=$A8,ODD(BZ$2)=BZ$2),AND(EVEN($A8)=$A8,EVEN(BZ$2)=BZ$2)),BZ$1,-100)) -> 1415.625 | CA8: =IF('Ceiling Speaker Calculator'!$C$29="Square",CA$1,IF(OR(AND(ODD($A8)=$A8,ODD(CA$2)=CA$2),AND(EVEN($A8)=$A8,EVEN(CA$2)=CA$2)),CA$1,-100)) -> 1434.375 | CB8: =IF('Ceiling Speaker Calculator'!$C$29="Square",CB$1,IF(OR(AND(ODD($A8)=$A8,ODD(CB$2)=CB$2),AND(EVEN($A8)=$A8,EVEN(CB$2)=CB$2)),CB$1,-100)) -> 1453.125 | CC8: =IF('Ceiling Speaker Calculator'!$C$29="Square",CC$1,IF(OR(AND(ODD($A8)=$A8,ODD(CC$2)=CC$2),AND(EVEN($A8)=$A8,EVEN(CC$2)=CC$2)),CC$1,-100)) -> 1471.875 | CD8: =IF('Ceiling Speaker Calculator'!$C$29="Square",CD$1,IF(OR(AND(ODD($A8)=$A8,ODD(CD$2)=CD$2),AND(EVEN($A8)=$A8,EVEN(CD$2)=CD$2)),CD$1,-100)) -> 1490.625 | CE8: =IF('Ceiling Speaker Calculator'!$C$29="Square",CE$1,IF(OR(AND(ODD($A8)=$A8,ODD(CE$2)=CE$2),AND(EVEN($A8)=$A8,EVEN(CE$2)=CE$2)),CE$1,-100)) -> 1509.375 | CF8: =IF('Ceiling Speaker Calculator'!$C$29="Square",CF$1,IF(OR(AND(ODD($A8)=$A8,ODD(CF$2)=CF$2),AND(EVEN($A8)=$A8,EVEN(CF$2)=CF$2)),CF$1,-100)) -> 1528.125 | CG8: =IF('Ceiling Speaker Calculator'!$C$29="Square",CG$1,IF(OR(AND(ODD($A8)=$A8,ODD(CG$2)=CG$2),AND(EVEN($A8)=$A8,EVEN(CG$2)=CG$2)),CG$1,-100)) -> 1546.875 | CH8: =IF('Ceiling Speaker Calculator'!$C$29="Square",CH$1,IF(OR(AND(ODD($A8)=$A8,ODD(CH$2)=CH$2),AND(EVEN($A8)=$A8,EVEN(CH$2)=CH$2)),CH$1,-100)) -> 1565.625 | CI8: =IF('Ceiling Speaker Calculator'!$C$29="Square",CI$1,IF(OR(AND(ODD($A8)=$A8,ODD(CI$2)=CI$2),AND(EVEN($A8)=$A8,EVEN(CI$2)=CI$2)),CI$1,-100)) -> 1584.375 | CJ8: =IF('Ceiling Speaker Calculator'!$C$29="Square",CJ$1,IF(OR(AND(ODD($A8)=$A8,ODD(CJ$2)=CJ$2),AND(EVEN($A8)=$A8,EVEN(CJ$2)=CJ$2)),CJ$1,-100)) -> 1603.125 | CK8: =IF('Ceiling Speaker Calculator'!$C$29="Square",CK$1,IF(OR(AND(ODD($A8)=$A8,ODD(CK$2)=CK$2),AND(EVEN($A8)=$A8,EVEN(CK$2)=CK$2)),CK$1,-100)) -> 1621.875 | CL8: =IF('Ceiling Speaker Calculator'!$C$29="Square",CL$1,IF(OR(AND(ODD($A8)=$A8,ODD(CL$2)=CL$2),AND(EVEN($A8)=$A8,EVEN(CL$2)=CL$2)),CL$1,-100)) -> 1640.625 | CM8: =IF('Ceiling Speaker Calculator'!$C$29="Square",CM$1,IF(OR(AND(ODD($A8)=$A8,ODD(CM$2)=CM$2),AND(EVEN($A8)=$A8,EVEN(CM$2)=CM$2)),CM$1,-100)) -> 1659.375 | CN8: =IF('Ceiling Speaker Calculator'!$C$29="Square",CN$1,IF(OR(AND(ODD($A8)=$A8,ODD(CN$2)=CN$2),AND(EVEN($A8)=$A8,EVEN(CN$2)=CN$2)),CN$1,-100)) -> 1678.125 | CO8: =IF('Ceiling Speaker Calculator'!$C$29="Square",CO$1,IF(OR(AND(ODD($A8)=$A8,ODD(CO$2)=CO$2),AND(EVEN($A8)=$A8,EVEN(CO$2)=CO$2)),CO$1,-100)) -> 1696.875 | CP8: =IF('Ceiling Speaker Calculator'!$C$29="Square",CP$1,IF(OR(AND(ODD($A8)=$A8,ODD(CP$2)=CP$2),AND(EVEN($A8)=$A8,EVEN(CP$2)=CP$2)),CP$1,-100)) -> 1715.625 | CQ8: =IF('Ceiling Speaker Calculator'!$C$29="Square",CQ$1,IF(OR(AND(ODD($A8)=$A8,ODD(CQ$2)=CQ$2),AND(EVEN($A8)=$A8,EVEN(CQ$2)=CQ$2)),CQ$1,-100)) -> 1734.375 | CR8: =IF('Ceiling Speaker Calculator'!$C$29="Square",CR$1,IF(OR(AND(ODD($A8)=$A8,ODD(CR$2)=CR$2),AND(EVEN($A8)=$A8,EVEN(CR$2)=CR$2)),CR$1,-100)) -> 1753.125 | CS8: =IF('Ceiling Speaker Calculator'!$C$29="Square",CS$1,IF(OR(AND(ODD($A8)=$A8,ODD(CS$2)=CS$2),AND(EVEN($A8)=$A8,EVEN(CS$2)=CS$2)),CS$1,-100)) -> 1771.875 | CT8: =IF('Ceiling Speaker Calculator'!$C$29="Square",CT$1,IF(OR(AND(ODD($A8)=$A8,ODD(CT$2)=CT$2),AND(EVEN($A8)=$A8,EVEN(CT$2)=CT$2)),CT$1,-100)) -> 1790.625 | CU8: =IF('Ceiling Speaker Calculator'!$C$29="Square",CU$1,IF(OR(AND(ODD($A8)=$A8,ODD(CU$2)=CU$2),AND(EVEN($A8)=$A8,EVEN(CU$2)=CU$2)),CU$1,-100)) -> 1809.375 | CV8: =IF('Ceiling Speaker Calculator'!$C$29="Square",CV$1,IF(OR(AND(ODD($A8)=$A8,ODD(CV$2)=CV$2),AND(EVEN($A8)=$A8,EVEN(CV$2)=CV$2)),CV$1,-100)) -> 1828.125 | CW8: =IF('Ceiling Speaker Calculator'!$C$29="Square",CW$1,IF(OR(AND(ODD($A8)=$A8,ODD(CW$2)=CW$2),AND(EVEN($A8)=$A8,EVEN(CW$2)=CW$2)),CW$1,-100)) -> 1846.875 | CX8: =IF('Ceiling Speaker Calculator'!$C$29="Square",CX$1,IF(OR(AND(ODD($A8)=$A8,ODD(CX$2)=CX$2),AND(EVEN($A8)=$A8,EVEN(CX$2)=CX$2)),CX$1,-100)) -> 1865.625
A9: 7 | B9: =B8+'Ceiling Speaker Calculator'!$K$16 -> 130 | C9: =IF('Ceiling Speaker Calculator'!$C$29="Square",C$1,IF(OR(AND(ODD($A9)=$A9,ODD(C$2)=C$2),AND(EVEN($A9)=$A9,EVEN(C$2)=C$2)),C$1,-100)) -> 9.375 | D9: =IF('Ceiling Speaker Calculator'!$C$29="Square",D$1,IF(OR(AND(ODD($A9)=$A9,ODD(D$2)=D$2),AND(EVEN($A9)=$A9,EVEN(D$2)=D$2)),D$1,-100)) -> 28.125 | E9: =IF('Ceiling Speaker Calculator'!$C$29="Square",E$1,IF(OR(AND(ODD($A9)=$A9,ODD(E$2)=E$2),AND(EVEN($A9)=$A9,EVEN(E$2)=E$2)),E$1,-100)) -> 46.875 | F9: =IF('Ceiling Speaker Calculator'!$C$29="Square",F$1,IF(OR(AND(ODD($A9)=$A9,ODD(F$2)=F$2),AND(EVEN($A9)=$A9,EVEN(F$2)=F$2)),F$1,-100)) -> 65.625 | G9: =IF('Ceiling Speaker Calculator'!$C$29="Square",G$1,IF(OR(AND(ODD($A9)=$A9,ODD(G$2)=G$2),AND(EVEN($A9)=$A9,EVEN(G$2)=G$2)),G$1,-100)) -> 84.375 | H9: =IF('Ceiling Speaker Calculator'!$C$29="Square",H$1,IF(OR(AND(ODD($A9)=$A9,ODD(H$2)=H$2),AND(EVEN($A9)=$A9,EVEN(H$2)=H$2)),H$1,-100)) -> 103.125 | I9: =IF('Ceiling Speaker Calculator'!$C$29="Square",I$1,IF(OR(AND(ODD($A9)=$A9,ODD(I$2)=I$2),AND(EVEN($A9)=$A9,EVEN(I$2)=I$2)),I$1,-100)) -> 121.875 | J9: =IF('Ceiling Speaker Calculator'!$C$29="Square",J$1,IF(OR(AND(ODD($A9)=$A9,ODD(J$2)=J$2),AND(EVEN($A9)=$A9,EVEN(J$2)=J$2)),J$1,-100)) -> 140.625 | K9: =IF('Ceiling Speaker Calculator'!$C$29="Square",K$1,IF(OR(AND(ODD($A9)=$A9,ODD(K$2)=K$2),AND(EVEN($A9)=$A9,EVEN(K$2)=K$2)),K$1,-100)) -> 159.375 | L9: =IF('Ceiling Speaker Calculator'!$C$29="Square",L$1,IF(OR(AND(ODD($A9)=$A9,ODD(L$2)=L$2),AND(EVEN($A9)=$A9,EVEN(L$2)=L$2)),L$1,-100)) -> 178.125 | M9: =IF('Ceiling Speaker Calculator'!$C$29="Square",M$1,IF(OR(AND(ODD($A9)=$A9,ODD(M$2)=M$2),AND(EVEN($A9)=$A9,EVEN(M$2)=M$2)),M$1,-100)) -> 196.875 | N9: =IF('Ceiling Speaker Calculator'!$C$29="Square",N$1,IF(OR(AND(ODD($A9)=$A9,ODD(N$2)=N$2),AND(EVEN($A9)=$A9,EVEN(N$2)=N$2)),N$1,-100)) -> 215.625 | O9: =IF('Ceiling Speaker Calculator'!$C$29="Square",O$1,IF(OR(AND(ODD($A9)=$A9,ODD(O$2)=O$2),AND(EVEN($A9)=$A9,EVEN(O$2)=O$2)),O$1,-100)) -> 234.375 | P9: =IF('Ceiling Speaker Calculator'!$C$29="Square",P$1,IF(OR(AND(ODD($A9)=$A9,ODD(P$2)=P$2),AND(EVEN($A9)=$A9,EVEN(P$2)=P$2)),P$1,-100)) -> 253.125 | Q9: =IF('Ceiling Speaker Calculator'!$C$29="Square",Q$1,IF(OR(AND(ODD($A9)=$A9,ODD(Q$2)=Q$2),AND(EVEN($A9)=$A9,EVEN(Q$2)=Q$2)),Q$1,-100)) -> 271.875 | R9: =IF('Ceiling Speaker Calculator'!$C$29="Square",R$1,IF(OR(AND(ODD($A9)=$A9,ODD(R$2)=R$2),AND(EVEN($A9)=$A9,EVEN(R$2)=R$2)),R$1,-100)) -> 290.625 | S9: =IF('Ceiling Speaker Calculator'!$C$29="Square",S$1,IF(OR(AND(ODD($A9)=$A9,ODD(S$2)=S$2),AND(EVEN($A9)=$A9,EVEN(S$2)=S$2)),S$1,-100)) -> 309.375 | T9: =IF('Ceiling Speaker Calculator'!$C$29="Square",T$1,IF(OR(AND(ODD($A9)=$A9,ODD(T$2)=T$2),AND(EVEN($A9)=$A9,EVEN(T$2)=T$2)),T$1,-100)) -> 328.125 | U9: =IF('Ceiling Speaker Calculator'!$C$29="Square",U$1,IF(OR(AND(ODD($A9)=$A9,ODD(U$2)=U$2),AND(EVEN($A9)=$A9,EVEN(U$2)=U$2)),U$1,-100)) -> 346.875 | V9: =IF('Ceiling Speaker Calculator'!$C$29="Square",V$1,IF(OR(AND(ODD($A9)=$A9,ODD(V$2)=V$2),AND(EVEN($A9)=$A9,EVEN(V$2)=V$2)),V$1,-100)) -> 365.625 | W9: =IF('Ceiling Speaker Calculator'!$C$29="Square",W$1,IF(OR(AND(ODD($A9)=$A9,ODD(W$2)=W$2),AND(EVEN($A9)=$A9,EVEN(W$2)=W$2)),W$1,-100)) -> 384.375 | X9: =IF('Ceiling Speaker Calculator'!$C$29="Square",X$1,IF(OR(AND(ODD($A9)=$A9,ODD(X$2)=X$2),AND(EVEN($A9)=$A9,EVEN(X$2)=X$2)),X$1,-100)) -> 403.125 | Y9: =IF('Ceiling Speaker Calculator'!$C$29="Square",Y$1,IF(OR(AND(ODD($A9)=$A9,ODD(Y$2)=Y$2),AND(EVEN($A9)=$A9,EVEN(Y$2)=Y$2)),Y$1,-100)) -> 421.875 | Z9: =IF('Ceiling Speaker Calculator'!$C$29="Square",Z$1,IF(OR(AND(ODD($A9)=$A9,ODD(Z$2)=Z$2),AND(EVEN($A9)=$A9,EVEN(Z$2)=Z$2)),Z$1,-100)) -> 440.625 | AA9: =IF('Ceiling Speaker Calculator'!$C$29="Square",AA$1,IF(OR(AND(ODD($A9)=$A9,ODD(AA$2)=AA$2),AND(EVEN($A9)=$A9,EVEN(AA$2)=AA$2)),AA$1,-100)) -> 459.375 | AB9: =IF('Ceiling Speaker Calculator'!$C$29="Square",AB$1,IF(OR(AND(ODD($A9)=$A9,ODD(AB$2)=AB$2),AND(EVEN($A9)=$A9,EVEN(AB$2)=AB$2)),AB$1,-100)) -> 478.125 | AC9: =IF('Ceiling Speaker Calculator'!$C$29="Square",AC$1,IF(OR(AND(ODD($A9)=$A9,ODD(AC$2)=AC$2),AND(EVEN($A9)=$A9,EVEN(AC$2)=AC$2)),AC$1,-100)) -> 496.875 | AD9: =IF('Ceiling Speaker Calculator'!$C$29="Square",AD$1,IF(OR(AND(ODD($A9)=$A9,ODD(AD$2)=AD$2),AND(EVEN($A9)=$A9,EVEN(AD$2)=AD$2)),AD$1,-100)) -> 515.625 | AE9: =IF('Ceiling Speaker Calculator'!$C$29="Square",AE$1,IF(OR(AND(ODD($A9)=$A9,ODD(AE$2)=AE$2),AND(EVEN($A9)=$A9,EVEN(AE$2)=AE$2)),AE$1,-100)) -> 534.375 | AF9: =IF('Ceiling Speaker Calculator'!$C$29="Square",AF$1,IF(OR(AND(ODD($A9)=$A9,ODD(AF$2)=AF$2),AND(EVEN($A9)=$A9,EVEN(AF$2)=AF$2)),AF$1,-100)) -> 553.125 | AG9: =IF('Ceiling Speaker Calculator'!$C$29="Square",AG$1,IF(OR(AND(ODD($A9)=$A9,ODD(AG$2)=AG$2),AND(EVEN($A9)=$A9,EVEN(AG$2)=AG$2)),AG$1,-100)) -> 571.875 | AH9: =IF('Ceiling Speaker Calculator'!$C$29="Square",AH$1,IF(OR(AND(ODD($A9)=$A9,ODD(AH$2)=AH$2),AND(EVEN($A9)=$A9,EVEN(AH$2)=AH$2)),AH$1,-100)) -> 590.625 | AI9: =IF('Ceiling Speaker Calculator'!$C$29="Square",AI$1,IF(OR(AND(ODD($A9)=$A9,ODD(AI$2)=AI$2),AND(EVEN($A9)=$A9,EVEN(AI$2)=AI$2)),AI$1,-100)) -> 609.375 | AJ9: =IF('Ceiling Speaker Calculator'!$C$29="Square",AJ$1,IF(OR(AND(ODD($A9)=$A9,ODD(AJ$2)=AJ$2),AND(EVEN($A9)=$A9,EVEN(AJ$2)=AJ$2)),AJ$1,-100)) -> 628.125 | AK9: =IF('Ceiling Speaker Calculator'!$C$29="Square",AK$1,IF(OR(AND(ODD($A9)=$A9,ODD(AK$2)=AK$2),AND(EVEN($A9)=$A9,EVEN(AK$2)=AK$2)),AK$1,-100)) -> 646.875 | AL9: =IF('Ceiling Speaker Calculator'!$C$29="Square",AL$1,IF(OR(AND(ODD($A9)=$A9,ODD(AL$2)=AL$2),AND(EVEN($A9)=$A9,EVEN(AL$2)=AL$2)),AL$1,-100)) -> 665.625 | AM9: =IF('Ceiling Speaker Calculator'!$C$29="Square",AM$1,IF(OR(AND(ODD($A9)=$A9,ODD(AM$2)=AM$2),AND(EVEN($A9)=$A9,EVEN(AM$2)=AM$2)),AM$1,-100)) -> 684.375 | AN9: =IF('Ceiling Speaker Calculator'!$C$29="Square",AN$1,IF(OR(AND(ODD($A9)=$A9,ODD(AN$2)=AN$2),AND(EVEN($A9)=$A9,EVEN(AN$2)=AN$2)),AN$1,-100)) -> 703.125 | AO9: =IF('Ceiling Speaker Calculator'!$C$29="Square",AO$1,IF(OR(AND(ODD($A9)=$A9,ODD(AO$2)=AO$2),AND(EVEN($A9)=$A9,EVEN(AO$2)=AO$2)),AO$1,-100)) -> 721.875 | AP9: =IF('Ceiling Speaker Calculator'!$C$29="Square",AP$1,IF(OR(AND(ODD($A9)=$A9,ODD(AP$2)=AP$2),AND(EVEN($A9)=$A9,EVEN(AP$2)=AP$2)),AP$1,-100)) -> 740.625 | AQ9: =IF('Ceiling Speaker Calculator'!$C$29="Square",AQ$1,IF(OR(AND(ODD($A9)=$A9,ODD(AQ$2)=AQ$2),AND(EVEN($A9)=$A9,EVEN(AQ$2)=AQ$2)),AQ$1,-100)) -> 759.375 | AR9: =IF('Ceiling Speaker Calculator'!$C$29="Square",AR$1,IF(OR(AND(ODD($A9)=$A9,ODD(AR$2)=AR$2),AND(EVEN($A9)=$A9,EVEN(AR$2)=AR$2)),AR$1,-100)) -> 778.125 | AS9: =IF('Ceiling Speaker Calculator'!$C$29="Square",AS$1,IF(OR(AND(ODD($A9)=$A9,ODD(AS$2)=AS$2),AND(EVEN($A9)=$A9,EVEN(AS$2)=AS$2)),AS$1,-100)) -> 796.875 | AT9: =IF('Ceiling Speaker Calculator'!$C$29="Square",AT$1,IF(OR(AND(ODD($A9)=$A9,ODD(AT$2)=AT$2),AND(EVEN($A9)=$A9,EVEN(AT$2)=AT$2)),AT$1,-100)) -> 815.625 | AU9: =IF('Ceiling Speaker Calculator'!$C$29="Square",AU$1,IF(OR(AND(ODD($A9)=$A9,ODD(AU$2)=AU$2),AND(EVEN($A9)=$A9,EVEN(AU$2)=AU$2)),AU$1,-100)) -> 834.375 | AV9: =IF('Ceiling Speaker Calculator'!$C$29="Square",AV$1,IF(OR(AND(ODD($A9)=$A9,ODD(AV$2)=AV$2),AND(EVEN($A9)=$A9,EVEN(AV$2)=AV$2)),AV$1,-100)) -> 853.125 | AW9: =IF('Ceiling Speaker Calculator'!$C$29="Square",AW$1,IF(OR(AND(ODD($A9)=$A9,ODD(AW$2)=AW$2),AND(EVEN($A9)=$A9,EVEN(AW$2)=AW$2)),AW$1,-100)) -> 871.875 | AX9: =IF('Ceiling Speaker Calculator'!$C$29="Square",AX$1,IF(OR(AND(ODD($A9)=$A9,ODD(AX$2)=AX$2),AND(EVEN($A9)=$A9,EVEN(AX$2)=AX$2)),AX$1,-100)) -> 890.625 | AY9: =IF('Ceiling Speaker Calculator'!$C$29="Square",AY$1,IF(OR(AND(ODD($A9)=$A9,ODD(AY$2)=AY$2),AND(EVEN($A9)=$A9,EVEN(AY$2)=AY$2)),AY$1,-100)) -> 909.375 | AZ9: =IF('Ceiling Speaker Calculator'!$C$29="Square",AZ$1,IF(OR(AND(ODD($A9)=$A9,ODD(AZ$2)=AZ$2),AND(EVEN($A9)=$A9,EVEN(AZ$2)=AZ$2)),AZ$1,-100)) -> 928.125 | BA9: =IF('Ceiling Speaker Calculator'!$C$29="Square",BA$1,IF(OR(AND(ODD($A9)=$A9,ODD(BA$2)=BA$2),AND(EVEN($A9)=$A9,EVEN(BA$2)=BA$2)),BA$1,-100)) -> 946.875 | BB9: =IF('Ceiling Speaker Calculator'!$C$29="Square",BB$1,IF(OR(AND(ODD($A9)=$A9,ODD(BB$2)=BB$2),AND(EVEN($A9)=$A9,EVEN(BB$2)=BB$2)),BB$1,-100)) -> 965.625 | BC9: =IF('Ceiling Speaker Calculator'!$C$29="Square",BC$1,IF(OR(AND(ODD($A9)=$A9,ODD(BC$2)=BC$2),AND(EVEN($A9)=$A9,EVEN(BC$2)=BC$2)),BC$1,-100)) -> 984.375 | BD9: =IF('Ceiling Speaker Calculator'!$C$29="Square",BD$1,IF(OR(AND(ODD($A9)=$A9,ODD(BD$2)=BD$2),AND(EVEN($A9)=$A9,EVEN(BD$2)=BD$2)),BD$1,-100)) -> 1003.125 | BE9: =IF('Ceiling Speaker Calculator'!$C$29="Square",BE$1,IF(OR(AND(ODD($A9)=$A9,ODD(BE$2)=BE$2),AND(EVEN($A9)=$A9,EVEN(BE$2)=BE$2)),BE$1,-100)) -> 1021.875 | BF9: =IF('Ceiling Speaker Calculator'!$C$29="Square",BF$1,IF(OR(AND(ODD($A9)=$A9,ODD(BF$2)=BF$2),AND(EVEN($A9)=$A9,EVEN(BF$2)=BF$2)),BF$1,-100)) -> 1040.625 | BG9: =IF('Ceiling Speaker Calculator'!$C$29="Square",BG$1,IF(OR(AND(ODD($A9)=$A9,ODD(BG$2)=BG$2),AND(EVEN($A9)=$A9,EVEN(BG$2)=BG$2)),BG$1,-100)) -> 1059.375 | BH9: =IF('Ceiling Speaker Calculator'!$C$29="Square",BH$1,IF(OR(AND(ODD($A9)=$A9,ODD(BH$2)=BH$2),AND(EVEN($A9)=$A9,EVEN(BH$2)=BH$2)),BH$1,-100)) -> 1078.125 | BI9: =IF('Ceiling Speaker Calculator'!$C$29="Square",BI$1,IF(OR(AND(ODD($A9)=$A9,ODD(BI$2)=BI$2),AND(EVEN($A9)=$A9,EVEN(BI$2)=BI$2)),BI$1,-100)) -> 1096.875 | BJ9: =IF('Ceiling Speaker Calculator'!$C$29="Square",BJ$1,IF(OR(AND(ODD($A9)=$A9,ODD(BJ$2)=BJ$2),AND(EVEN($A9)=$A9,EVEN(BJ$2)=BJ$2)),BJ$1,-100)) -> 1115.625 | BK9: =IF('Ceiling Speaker Calculator'!$C$29="Square",BK$1,IF(OR(AND(ODD($A9)=$A9,ODD(BK$2)=BK$2),AND(EVEN($A9)=$A9,EVEN(BK$2)=BK$2)),BK$1,-100)) -> 1134.375 | BL9: =IF('Ceiling Speaker Calculator'!$C$29="Square",BL$1,IF(OR(AND(ODD($A9)=$A9,ODD(BL$2)=BL$2),AND(EVEN($A9)=$A9,EVEN(BL$2)=BL$2)),BL$1,-100)) -> 1153.125 | BM9: =IF('Ceiling Speaker Calculator'!$C$29="Square",BM$1,IF(OR(AND(ODD($A9)=$A9,ODD(BM$2)=BM$2),AND(EVEN($A9)=$A9,EVEN(BM$2)=BM$2)),BM$1,-100)) -> 1171.875 | BN9: =IF('Ceiling Speaker Calculator'!$C$29="Square",BN$1,IF(OR(AND(ODD($A9)=$A9,ODD(BN$2)=BN$2),AND(EVEN($A9)=$A9,EVEN(BN$2)=BN$2)),BN$1,-100)) -> 1190.625 | BO9: =IF('Ceiling Speaker Calculator'!$C$29="Square",BO$1,IF(OR(AND(ODD($A9)=$A9,ODD(BO$2)=BO$2),AND(EVEN($A9)=$A9,EVEN(BO$2)=BO$2)),BO$1,-100)) -> 1209.375 | BP9: =IF('Ceiling Speaker Calculator'!$C$29="Square",BP$1,IF(OR(AND(ODD($A9)=$A9,ODD(BP$2)=BP$2),AND(EVEN($A9)=$A9,EVEN(BP$2)=BP$2)),BP$1,-100)) -> 1228.125 | BQ9: =IF('Ceiling Speaker Calculator'!$C$29="Square",BQ$1,IF(OR(AND(ODD($A9)=$A9,ODD(BQ$2)=BQ$2),AND(EVEN($A9)=$A9,EVEN(BQ$2)=BQ$2)),BQ$1,-100)) -> 1246.875 | BR9: =IF('Ceiling Speaker Calculator'!$C$29="Square",BR$1,IF(OR(AND(ODD($A9)=$A9,ODD(BR$2)=BR$2),AND(EVEN($A9)=$A9,EVEN(BR$2)=BR$2)),BR$1,-100)) -> 1265.625 | BS9: =IF('Ceiling Speaker Calculator'!$C$29="Square",BS$1,IF(OR(AND(ODD($A9)=$A9,ODD(BS$2)=BS$2),AND(EVEN($A9)=$A9,EVEN(BS$2)=BS$2)),BS$1,-100)) -> 1284.375 | BT9: =IF('Ceiling Speaker Calculator'!$C$29="Square",BT$1,IF(OR(AND(ODD($A9)=$A9,ODD(BT$2)=BT$2),AND(EVEN($A9)=$A9,EVEN(BT$2)=BT$2)),BT$1,-100)) -> 1303.125 | BU9: =IF('Ceiling Speaker Calculator'!$C$29="Square",BU$1,IF(OR(AND(ODD($A9)=$A9,ODD(BU$2)=BU$2),AND(EVEN($A9)=$A9,EVEN(BU$2)=BU$2)),BU$1,-100)) -> 1321.875 | BV9: =IF('Ceiling Speaker Calculator'!$C$29="Square",BV$1,IF(OR(AND(ODD($A9)=$A9,ODD(BV$2)=BV$2),AND(EVEN($A9)=$A9,EVEN(BV$2)=BV$2)),BV$1,-100)) -> 1340.625 | BW9: =IF('Ceiling Speaker Calculator'!$C$29="Square",BW$1,IF(OR(AND(ODD($A9)=$A9,ODD(BW$2)=BW$2),AND(EVEN($A9)=$A9,EVEN(BW$2)=BW$2)),BW$1,-100)) -> 1359.375 | BX9: =IF('Ceiling Speaker Calculator'!$C$29="Square",BX$1,IF(OR(AND(ODD($A9)=$A9,ODD(BX$2)=BX$2),AND(EVEN($A9)=$A9,EVEN(BX$2)=BX$2)),BX$1,-100)) -> 1378.125 | BY9: =IF('Ceiling Speaker Calculator'!$C$29="Square",BY$1,IF(OR(AND(ODD($A9)=$A9,ODD(BY$2)=BY$2),AND(EVEN($A9)=$A9,EVEN(BY$2)=BY$2)),BY$1,-100)) -> 1396.875 | BZ9: =IF('Ceiling Speaker Calculator'!$C$29="Square",BZ$1,IF(OR(AND(ODD($A9)=$A9,ODD(BZ$2)=BZ$2),AND(EVEN($A9)=$A9,EVEN(BZ$2)=BZ$2)),BZ$1,-100)) -> 1415.625 | CA9: =IF('Ceiling Speaker Calculator'!$C$29="Square",CA$1,IF(OR(AND(ODD($A9)=$A9,ODD(CA$2)=CA$2),AND(EVEN($A9)=$A9,EVEN(CA$2)=CA$2)),CA$1,-100)) -> 1434.375 | CB9: =IF('Ceiling Speaker Calculator'!$C$29="Square",CB$1,IF(OR(AND(ODD($A9)=$A9,ODD(CB$2)=CB$2),AND(EVEN($A9)=$A9,EVEN(CB$2)=CB$2)),CB$1,-100)) -> 1453.125 | CC9: =IF('Ceiling Speaker Calculator'!$C$29="Square",CC$1,IF(OR(AND(ODD($A9)=$A9,ODD(CC$2)=CC$2),AND(EVEN($A9)=$A9,EVEN(CC$2)=CC$2)),CC$1,-100)) -> 1471.875 | CD9: =IF('Ceiling Speaker Calculator'!$C$29="Square",CD$1,IF(OR(AND(ODD($A9)=$A9,ODD(CD$2)=CD$2),AND(EVEN($A9)=$A9,EVEN(CD$2)=CD$2)),CD$1,-100)) -> 1490.625 | CE9: =IF('Ceiling Speaker Calculator'!$C$29="Square",CE$1,IF(OR(AND(ODD($A9)=$A9,ODD(CE$2)=CE$2),AND(EVEN($A9)=$A9,EVEN(CE$2)=CE$2)),CE$1,-100)) -> 1509.375 | CF9: =IF('Ceiling Speaker Calculator'!$C$29="Square",CF$1,IF(OR(AND(ODD($A9)=$A9,ODD(CF$2)=CF$2),AND(EVEN($A9)=$A9,EVEN(CF$2)=CF$2)),CF$1,-100)) -> 1528.125 | CG9: =IF('Ceiling Speaker Calculator'!$C$29="Square",CG$1,IF(OR(AND(ODD($A9)=$A9,ODD(CG$2)=CG$2),AND(EVEN($A9)=$A9,EVEN(CG$2)=CG$2)),CG$1,-100)) -> 1546.875 | CH9: =IF('Ceiling Speaker Calculator'!$C$29="Square",CH$1,IF(OR(AND(ODD($A9)=$A9,ODD(CH$2)=CH$2),AND(EVEN($A9)=$A9,EVEN(CH$2)=CH$2)),CH$1,-100)) -> 1565.625 | CI9: =IF('Ceiling Speaker Calculator'!$C$29="Square",CI$1,IF(OR(AND(ODD($A9)=$A9,ODD(CI$2)=CI$2),AND(EVEN($A9)=$A9,EVEN(CI$2)=CI$2)),CI$1,-100)) -> 1584.375 | CJ9: =IF('Ceiling Speaker Calculator'!$C$29="Square",CJ$1,IF(OR(AND(ODD($A9)=$A9,ODD(CJ$2)=CJ$2),AND(EVEN($A9)=$A9,EVEN(CJ$2)=CJ$2)),CJ$1,-100)) -> 1603.125 | CK9: =IF('Ceiling Speaker Calculator'!$C$29="Square",CK$1,IF(OR(AND(ODD($A9)=$A9,ODD(CK$2)=CK$2),AND(EVEN($A9)=$A9,EVEN(CK$2)=CK$2)),CK$1,-100)) -> 1621.875 | CL9: =IF('Ceiling Speaker Calculator'!$C$29="Square",CL$1,IF(OR(AND(ODD($A9)=$A9,ODD(CL$2)=CL$2),AND(EVEN($A9)=$A9,EVEN(CL$2)=CL$2)),CL$1,-100)) -> 1640.625 | CM9: =IF('Ceiling Speaker Calculator'!$C$29="Square",CM$1,IF(OR(AND(ODD($A9)=$A9,ODD(CM$2)=CM$2),AND(EVEN($A9)=$A9,EVEN(CM$2)=CM$2)),CM$1,-100)) -> 1659.375 | CN9: =IF('Ceiling Speaker Calculator'!$C$29="Square",CN$1,IF(OR(AND(ODD($A9)=$A9,ODD(CN$2)=CN$2),AND(EVEN($A9)=$A9,EVEN(CN$2)=CN$2)),CN$1,-100)) -> 1678.125 | CO9: =IF('Ceiling Speaker Calculator'!$C$29="Square",CO$1,IF(OR(AND(ODD($A9)=$A9,ODD(CO$2)=CO$2),AND(EVEN($A9)=$A9,EVEN(CO$2)=CO$2)),CO$1,-100)) -> 1696.875 | CP9: =IF('Ceiling Speaker Calculator'!$C$29="Square",CP$1,IF(OR(AND(ODD($A9)=$A9,ODD(CP$2)=CP$2),AND(EVEN($A9)=$A9,EVEN(CP$2)=CP$2)),CP$1,-100)) -> 1715.625 | CQ9: =IF('Ceiling Speaker Calculator'!$C$29="Square",CQ$1,IF(OR(AND(ODD($A9)=$A9,ODD(CQ$2)=CQ$2),AND(EVEN($A9)=$A9,EVEN(CQ$2)=CQ$2)),CQ$1,-100)) -> 1734.375 | CR9: =IF('Ceiling Speaker Calculator'!$C$29="Square",CR$1,IF(OR(AND(ODD($A9)=$A9,ODD(CR$2)=CR$2),AND(EVEN($A9)=$A9,EVEN(CR$2)=CR$2)),CR$1,-100)) -> 1753.125 | CS9: =IF('Ceiling Speaker Calculator'!$C$29="Square",CS$1,IF(OR(AND(ODD($A9)=$A9,ODD(CS$2)=CS$2),AND(EVEN($A9)=$A9,EVEN(CS$2)=CS$2)),CS$1,-100)) -> 1771.875 | CT9: =IF('Ceiling Speaker Calculator'!$C$29="Square",CT$1,IF(OR(AND(ODD($A9)=$A9,ODD(CT$2)=CT$2),AND(EVEN($A9)=$A9,EVEN(CT$2)=CT$2)),CT$1,-100)) -> 1790.625 | CU9: =IF('Ceiling Speaker Calculator'!$C$29="Square",CU$1,IF(OR(AND(ODD($A9)=$A9,ODD(CU$2)=CU$2),AND(EVEN($A9)=$A9,EVEN(CU$2)=CU$2)),CU$1,-100)) -> 1809.375 | CV9: =IF('Ceiling Speaker Calculator'!$C$29="Square",CV$1,IF(OR(AND(ODD($A9)=$A9,ODD(CV$2)=CV$2),AND(EVEN($A9)=$A9,EVEN(CV$2)=CV$2)),CV$1,-100)) -> 1828.125 | CW9: =IF('Ceiling Speaker Calculator'!$C$29="Square",CW$1,IF(OR(AND(ODD($A9)=$A9,ODD(CW$2)=CW$2),AND(EVEN($A9)=$A9,EVEN(CW$2)=CW$2)),CW$1,-100)) -> 1846.875 | CX9: =IF('Ceiling Speaker Calculator'!$C$29="Square",CX$1,IF(OR(AND(ODD($A9)=$A9,ODD(CX$2)=CX$2),AND(EVEN($A9)=$A9,EVEN(CX$2)=CX$2)),CX$1,-100)) -> 1865.625
A10: 8 | B10: =B9+'Ceiling Speaker Calculator'!$K$16 -> 150 | C10: =IF('Ceiling Speaker Calculator'!$C$29="Square",C$1,IF(OR(AND(ODD($A10)=$A10,ODD(C$2)=C$2),AND(EVEN($A10)=$A10,EVEN(C$2)=C$2)),C$1,-100)) -> 9.375 | D10: =IF('Ceiling Speaker Calculator'!$C$29="Square",D$1,IF(OR(AND(ODD($A10)=$A10,ODD(D$2)=D$2),AND(EVEN($A10)=$A10,EVEN(D$2)=D$2)),D$1,-100)) -> 28.125 | E10: =IF('Ceiling Speaker Calculator'!$C$29="Square",E$1,IF(OR(AND(ODD($A10)=$A10,ODD(E$2)=E$2),AND(EVEN($A10)=$A10,EVEN(E$2)=E$2)),E$1,-100)) -> 46.875 | F10: =IF('Ceiling Speaker Calculator'!$C$29="Square",F$1,IF(OR(AND(ODD($A10)=$A10,ODD(F$2)=F$2),AND(EVEN($A10)=$A10,EVEN(F$2)=F$2)),F$1,-100)) -> 65.625 | G10: =IF('Ceiling Speaker Calculator'!$C$29="Square",G$1,IF(OR(AND(ODD($A10)=$A10,ODD(G$2)=G$2),AND(EVEN($A10)=$A10,EVEN(G$2)=G$2)),G$1,-100)) -> 84.375 | H10: =IF('Ceiling Speaker Calculator'!$C$29="Square",H$1,IF(OR(AND(ODD($A10)=$A10,ODD(H$2)=H$2),AND(EVEN($A10)=$A10,EVEN(H$2)=H$2)),H$1,-100)) -> 103.125 | I10: =IF('Ceiling Speaker Calculator'!$C$29="Square",I$1,IF(OR(AND(ODD($A10)=$A10,ODD(I$2)=I$2),AND(EVEN($A10)=$A10,EVEN(I$2)=I$2)),I$1,-100)) -> 121.875 | J10: =IF('Ceiling Speaker Calculator'!$C$29="Square",J$1,IF(OR(AND(ODD($A10)=$A10,ODD(J$2)=J$2),AND(EVEN($A10)=$A10,EVEN(J$2)=J$2)),J$1,-100)) -> 140.625 | K10: =IF('Ceiling Speaker Calculator'!$C$29="Square",K$1,IF(OR(AND(ODD($A10)=$A10,ODD(K$2)=K$2),AND(EVEN($A10)=$A10,EVEN(K$2)=K$2)),K$1,-100)) -> 159.375 | L10: =IF('Ceiling Speaker Calculator'!$C$29="Square",L$1,IF(OR(AND(ODD($A10)=$A10,ODD(L$2)=L$2),AND(EVEN($A10)=$A10,EVEN(L$2)=L$2)),L$1,-100)) -> 178.125 | M10: =IF('Ceiling Speaker Calculator'!$C$29="Square",M$1,IF(OR(AND(ODD($A10)=$A10,ODD(M$2)=M$2),AND(EVEN($A10)=$A10,EVEN(M$2)=M$2)),M$1,-100)) -> 196.875 | N10: =IF('Ceiling Speaker Calculator'!$C$29="Square",N$1,IF(OR(AND(ODD($A10)=$A10,ODD(N$2)=N$2),AND(EVEN($A10)=$A10,EVEN(N$2)=N$2)),N$1,-100)) -> 215.625 | O10: =IF('Ceiling Speaker Calculator'!$C$29="Square",O$1,IF(OR(AND(ODD($A10)=$A10,ODD(O$2)=O$2),AND(EVEN($A10)=$A10,EVEN(O$2)=O$2)),O$1,-100)) -> 234.375 | P10: =IF('Ceiling Speaker Calculator'!$C$29="Square",P$1,IF(OR(AND(ODD($A10)=$A10,ODD(P$2)=P$2),AND(EVEN($A10)=$A10,EVEN(P$2)=P$2)),P$1,-100)) -> 253.125 | Q10: =IF('Ceiling Speaker Calculator'!$C$29="Square",Q$1,IF(OR(AND(ODD($A10)=$A10,ODD(Q$2)=Q$2),AND(EVEN($A10)=$A10,EVEN(Q$2)=Q$2)),Q$1,-100)) -> 271.875 | R10: =IF('Ceiling Speaker Calculator'!$C$29="Square",R$1,IF(OR(AND(ODD($A10)=$A10,ODD(R$2)=R$2),AND(EVEN($A10)=$A10,EVEN(R$2)=R$2)),R$1,-100)) -> 290.625 | S10: =IF('Ceiling Speaker Calculator'!$C$29="Square",S$1,IF(OR(AND(ODD($A10)=$A10,ODD(S$2)=S$2),AND(EVEN($A10)=$A10,EVEN(S$2)=S$2)),S$1,-100)) -> 309.375 | T10: =IF('Ceiling Speaker Calculator'!$C$29="Square",T$1,IF(OR(AND(ODD($A10)=$A10,ODD(T$2)=T$2),AND(EVEN($A10)=$A10,EVEN(T$2)=T$2)),T$1,-100)) -> 328.125 | U10: =IF('Ceiling Speaker Calculator'!$C$29="Square",U$1,IF(OR(AND(ODD($A10)=$A10,ODD(U$2)=U$2),AND(EVEN($A10)=$A10,EVEN(U$2)=U$2)),U$1,-100)) -> 346.875 | V10: =IF('Ceiling Speaker Calculator'!$C$29="Square",V$1,IF(OR(AND(ODD($A10)=$A10,ODD(V$2)=V$2),AND(EVEN($A10)=$A10,EVEN(V$2)=V$2)),V$1,-100)) -> 365.625 | W10: =IF('Ceiling Speaker Calculator'!$C$29="Square",W$1,IF(OR(AND(ODD($A10)=$A10,ODD(W$2)=W$2),AND(EVEN($A10)=$A10,EVEN(W$2)=W$2)),W$1,-100)) -> 384.375 | X10: =IF('Ceiling Speaker Calculator'!$C$29="Square",X$1,IF(OR(AND(ODD($A10)=$A10,ODD(X$2)=X$2),AND(EVEN($A10)=$A10,EVEN(X$2)=X$2)),X$1,-100)) -> 403.125 | Y10: =IF('Ceiling Speaker Calculator'!$C$29="Square",Y$1,IF(OR(AND(ODD($A10)=$A10,ODD(Y$2)=Y$2),AND(EVEN($A10)=$A10,EVEN(Y$2)=Y$2)),Y$1,-100)) -> 421.875 | Z10: =IF('Ceiling Speaker Calculator'!$C$29="Square",Z$1,IF(OR(AND(ODD($A10)=$A10,ODD(Z$2)=Z$2),AND(EVEN($A10)=$A10,EVEN(Z$2)=Z$2)),Z$1,-100)) -> 440.625 | AA10: =IF('Ceiling Speaker Calculator'!$C$29="Square",AA$1,IF(OR(AND(ODD($A10)=$A10,ODD(AA$2)=AA$2),AND(EVEN($A10)=$A10,EVEN(AA$2)=AA$2)),AA$1,-100)) -> 459.375 | AB10: =IF('Ceiling Speaker Calculator'!$C$29="Square",AB$1,IF(OR(AND(ODD($A10)=$A10,ODD(AB$2)=AB$2),AND(EVEN($A10)=$A10,EVEN(AB$2)=AB$2)),AB$1,-100)) -> 478.125 | AC10: =IF('Ceiling Speaker Calculator'!$C$29="Square",AC$1,IF(OR(AND(ODD($A10)=$A10,ODD(AC$2)=AC$2),AND(EVEN($A10)=$A10,EVEN(AC$2)=AC$2)),AC$1,-100)) -> 496.875 | AD10: =IF('Ceiling Speaker Calculator'!$C$29="Square",AD$1,IF(OR(AND(ODD($A10)=$A10,ODD(AD$2)=AD$2),AND(EVEN($A10)=$A10,EVEN(AD$2)=AD$2)),AD$1,-100)) -> 515.625 | AE10: =IF('Ceiling Speaker Calculator'!$C$29="Square",AE$1,IF(OR(AND(ODD($A10)=$A10,ODD(AE$2)=AE$2),AND(EVEN($A10)=$A10,EVEN(AE$2)=AE$2)),AE$1,-100)) -> 534.375 | AF10: =IF('Ceiling Speaker Calculator'!$C$29="Square",AF$1,IF(OR(AND(ODD($A10)=$A10,ODD(AF$2)=AF$2),AND(EVEN($A10)=$A10,EVEN(AF$2)=AF$2)),AF$1,-100)) -> 553.125 | AG10: =IF('Ceiling Speaker Calculator'!$C$29="Square",AG$1,IF(OR(AND(ODD($A10)=$A10,ODD(AG$2)=AG$2),AND(EVEN($A10)=$A10,EVEN(AG$2)=AG$2)),AG$1,-100)) -> 571.875 | AH10: =IF('Ceiling Speaker Calculator'!$C$29="Square",AH$1,IF(OR(AND(ODD($A10)=$A10,ODD(AH$2)=AH$2),AND(EVEN($A10)=$A10,EVEN(AH$2)=AH$2)),AH$1,-100)) -> 590.625 | AI10: =IF('Ceiling Speaker Calculator'!$C$29="Square",AI$1,IF(OR(AND(ODD($A10)=$A10,ODD(AI$2)=AI$2),AND(EVEN($A10)=$A10,EVEN(AI$2)=AI$2)),AI$1,-100)) -> 609.375 | AJ10: =IF('Ceiling Speaker Calculator'!$C$29="Square",AJ$1,IF(OR(AND(ODD($A10)=$A10,ODD(AJ$2)=AJ$2),AND(EVEN($A10)=$A10,EVEN(AJ$2)=AJ$2)),AJ$1,-100)) -> 628.125 | AK10: =IF('Ceiling Speaker Calculator'!$C$29="Square",AK$1,IF(OR(AND(ODD($A10)=$A10,ODD(AK$2)=AK$2),AND(EVEN($A10)=$A10,EVEN(AK$2)=AK$2)),AK$1,-100)) -> 646.875 | AL10: =IF('Ceiling Speaker Calculator'!$C$29="Square",AL$1,IF(OR(AND(ODD($A10)=$A10,ODD(AL$2)=AL$2),AND(EVEN($A10)=$A10,EVEN(AL$2)=AL$2)),AL$1,-100)) -> 665.625 | AM10: =IF('Ceiling Speaker Calculator'!$C$29="Square",AM$1,IF(OR(AND(ODD($A10)=$A10,ODD(AM$2)=AM$2),AND(EVEN($A10)=$A10,EVEN(AM$2)=AM$2)),AM$1,-100)) -> 684.375 | AN10: =IF('Ceiling Speaker Calculator'!$C$29="Square",AN$1,IF(OR(AND(ODD($A10)=$A10,ODD(AN$2)=AN$2),AND(EVEN($A10)=$A10,EVEN(AN$2)=AN$2)),AN$1,-100)) -> 703.125 | AO10: =IF('Ceiling Speaker Calculator'!$C$29="Square",AO$1,IF(OR(AND(ODD($A10)=$A10,ODD(AO$2)=AO$2),AND(EVEN($A10)=$A10,EVEN(AO$2)=AO$2)),AO$1,-100)) -> 721.875 | AP10: =IF('Ceiling Speaker Calculator'!$C$29="Square",AP$1,IF(OR(AND(ODD($A10)=$A10,ODD(AP$2)=AP$2),AND(EVEN($A10)=$A10,EVEN(AP$2)=AP$2)),AP$1,-100)) -> 740.625 | AQ10: =IF('Ceiling Speaker Calculator'!$C$29="Square",AQ$1,IF(OR(AND(ODD($A10)=$A10,ODD(AQ$2)=AQ$2),AND(EVEN($A10)=$A10,EVEN(AQ$2)=AQ$2)),AQ$1,-100)) -> 759.375 | AR10: =IF('Ceiling Speaker Calculator'!$C$29="Square",AR$1,IF(OR(AND(ODD($A10)=$A10,ODD(AR$2)=AR$2),AND(EVEN($A10)=$A10,EVEN(AR$2)=AR$2)),AR$1,-100)) -> 778.125 | AS10: =IF('Ceiling Speaker Calculator'!$C$29="Square",AS$1,IF(OR(AND(ODD($A10)=$A10,ODD(AS$2)=AS$2),AND(EVEN($A10)=$A10,EVEN(AS$2)=AS$2)),AS$1,-100)) -> 796.875 | AT10: =IF('Ceiling Speaker Calculator'!$C$29="Square",AT$1,IF(OR(AND(ODD($A10)=$A10,ODD(AT$2)=AT$2),AND(EVEN($A10)=$A10,EVEN(AT$2)=AT$2)),AT$1,-100)) -> 815.625 | AU10: =IF('Ceiling Speaker Calculator'!$C$29="Square",AU$1,IF(OR(AND(ODD($A10)=$A10,ODD(AU$2)=AU$2),AND(EVEN($A10)=$A10,EVEN(AU$2)=AU$2)),AU$1,-100)) -> 834.375 | AV10: =IF('Ceiling Speaker Calculator'!$C$29="Square",AV$1,IF(OR(AND(ODD($A10)=$A10,ODD(AV$2)=AV$2),AND(EVEN($A10)=$A10,EVEN(AV$2)=AV$2)),AV$1,-100)) -> 853.125 | AW10: =IF('Ceiling Speaker Calculator'!$C$29="Square",AW$1,IF(OR(AND(ODD($A10)=$A10,ODD(AW$2)=AW$2),AND(EVEN($A10)=$A10,EVEN(AW$2)=AW$2)),AW$1,-100)) -> 871.875 | AX10: =IF('Ceiling Speaker Calculator'!$C$29="Square",AX$1,IF(OR(AND(ODD($A10)=$A10,ODD(AX$2)=AX$2),AND(EVEN($A10)=$A10,EVEN(AX$2)=AX$2)),AX$1,-100)) -> 890.625 | AY10: =IF('Ceiling Speaker Calculator'!$C$29="Square",AY$1,IF(OR(AND(ODD($A10)=$A10,ODD(AY$2)=AY$2),AND(EVEN($A10)=$A10,EVEN(AY$2)=AY$2)),AY$1,-100)) -> 909.375 | AZ10: =IF('Ceiling Speaker Calculator'!$C$29="Square",AZ$1,IF(OR(AND(ODD($A10)=$A10,ODD(AZ$2)=AZ$2),AND(EVEN($A10)=$A10,EVEN(AZ$2)=AZ$2)),AZ$1,-100)) -> 928.125 | BA10: =IF('Ceiling Speaker Calculator'!$C$29="Square",BA$1,IF(OR(AND(ODD($A10)=$A10,ODD(BA$2)=BA$2),AND(EVEN($A10)=$A10,EVEN(BA$2)=BA$2)),BA$1,-100)) -> 946.875 | BB10: =IF('Ceiling Speaker Calculator'!$C$29="Square",BB$1,IF(OR(AND(ODD($A10)=$A10,ODD(BB$2)=BB$2),AND(EVEN($A10)=$A10,EVEN(BB$2)=BB$2)),BB$1,-100)) -> 965.625 | BC10: =IF('Ceiling Speaker Calculator'!$C$29="Square",BC$1,IF(OR(AND(ODD($A10)=$A10,ODD(BC$2)=BC$2),AND(EVEN($A10)=$A10,EVEN(BC$2)=BC$2)),BC$1,-100)) -> 984.375 | BD10: =IF('Ceiling Speaker Calculator'!$C$29="Square",BD$1,IF(OR(AND(ODD($A10)=$A10,ODD(BD$2)=BD$2),AND(EVEN($A10)=$A10,EVEN(BD$2)=BD$2)),BD$1,-100)) -> 1003.125 | BE10: =IF('Ceiling Speaker Calculator'!$C$29="Square",BE$1,IF(OR(AND(ODD($A10)=$A10,ODD(BE$2)=BE$2),AND(EVEN($A10)=$A10,EVEN(BE$2)=BE$2)),BE$1,-100)) -> 1021.875 | BF10: =IF('Ceiling Speaker Calculator'!$C$29="Square",BF$1,IF(OR(AND(ODD($A10)=$A10,ODD(BF$2)=BF$2),AND(EVEN($A10)=$A10,EVEN(BF$2)=BF$2)),BF$1,-100)) -> 1040.625 | BG10: =IF('Ceiling Speaker Calculator'!$C$29="Square",BG$1,IF(OR(AND(ODD($A10)=$A10,ODD(BG$2)=BG$2),AND(EVEN($A10)=$A10,EVEN(BG$2)=BG$2)),BG$1,-100)) -> 1059.375 | BH10: =IF('Ceiling Speaker Calculator'!$C$29="Square",BH$1,IF(OR(AND(ODD($A10)=$A10,ODD(BH$2)=BH$2),AND(EVEN($A10)=$A10,EVEN(BH$2)=BH$2)),BH$1,-100)) -> 1078.125 | BI10: =IF('Ceiling Speaker Calculator'!$C$29="Square",BI$1,IF(OR(AND(ODD($A10)=$A10,ODD(BI$2)=BI$2),AND(EVEN($A10)=$A10,EVEN(BI$2)=BI$2)),BI$1,-100)) -> 1096.875 | BJ10: =IF('Ceiling Speaker Calculator'!$C$29="Square",BJ$1,IF(OR(AND(ODD($A10)=$A10,ODD(BJ$2)=BJ$2),AND(EVEN($A10)=$A10,EVEN(BJ$2)=BJ$2)),BJ$1,-100)) -> 1115.625 | BK10: =IF('Ceiling Speaker Calculator'!$C$29="Square",BK$1,IF(OR(AND(ODD($A10)=$A10,ODD(BK$2)=BK$2),AND(EVEN($A10)=$A10,EVEN(BK$2)=BK$2)),BK$1,-100)) -> 1134.375 | BL10: =IF('Ceiling Speaker Calculator'!$C$29="Square",BL$1,IF(OR(AND(ODD($A10)=$A10,ODD(BL$2)=BL$2),AND(EVEN($A10)=$A10,EVEN(BL$2)=BL$2)),BL$1,-100)) -> 1153.125 | BM10: =IF('Ceiling Speaker Calculator'!$C$29="Square",BM$1,IF(OR(AND(ODD($A10)=$A10,ODD(BM$2)=BM$2),AND(EVEN($A10)=$A10,EVEN(BM$2)=BM$2)),BM$1,-100)) -> 1171.875 | BN10: =IF('Ceiling Speaker Calculator'!$C$29="Square",BN$1,IF(OR(AND(ODD($A10)=$A10,ODD(BN$2)=BN$2),AND(EVEN($A10)=$A10,EVEN(BN$2)=BN$2)),BN$1,-100)) -> 1190.625 | BO10: =IF('Ceiling Speaker Calculator'!$C$29="Square",BO$1,IF(OR(AND(ODD($A10)=$A10,ODD(BO$2)=BO$2),AND(EVEN($A10)=$A10,EVEN(BO$2)=BO$2)),BO$1,-100)) -> 1209.375 | BP10: =IF('Ceiling Speaker Calculator'!$C$29="Square",BP$1,IF(OR(AND(ODD($A10)=$A10,ODD(BP$2)=BP$2),AND(EVEN($A10)=$A10,EVEN(BP$2)=BP$2)),BP$1,-100)) -> 1228.125 | BQ10: =IF('Ceiling Speaker Calculator'!$C$29="Square",BQ$1,IF(OR(AND(ODD($A10)=$A10,ODD(BQ$2)=BQ$2),AND(EVEN($A10)=$A10,EVEN(BQ$2)=BQ$2)),BQ$1,-100)) -> 1246.875 | BR10: =IF('Ceiling Speaker Calculator'!$C$29="Square",BR$1,IF(OR(AND(ODD($A10)=$A10,ODD(BR$2)=BR$2),AND(EVEN($A10)=$A10,EVEN(BR$2)=BR$2)),BR$1,-100)) -> 1265.625 | BS10: =IF('Ceiling Speaker Calculator'!$C$29="Square",BS$1,IF(OR(AND(ODD($A10)=$A10,ODD(BS$2)=BS$2),AND(EVEN($A10)=$A10,EVEN(BS$2)=BS$2)),BS$1,-100)) -> 1284.375 | BT10: =IF('Ceiling Speaker Calculator'!$C$29="Square",BT$1,IF(OR(AND(ODD($A10)=$A10,ODD(BT$2)=BT$2),AND(EVEN($A10)=$A10,EVEN(BT$2)=BT$2)),BT$1,-100)) -> 1303.125 | BU10: =IF('Ceiling Speaker Calculator'!$C$29="Square",BU$1,IF(OR(AND(ODD($A10)=$A10,ODD(BU$2)=BU$2),AND(EVEN($A10)=$A10,EVEN(BU$2)=BU$2)),BU$1,-100)) -> 1321.875 | BV10: =IF('Ceiling Speaker Calculator'!$C$29="Square",BV$1,IF(OR(AND(ODD($A10)=$A10,ODD(BV$2)=BV$2),AND(EVEN($A10)=$A10,EVEN(BV$2)=BV$2)),BV$1,-100)) -> 1340.625 | BW10: =IF('Ceiling Speaker Calculator'!$C$29="Square",BW$1,IF(OR(AND(ODD($A10)=$A10,ODD(BW$2)=BW$2),AND(EVEN($A10)=$A10,EVEN(BW$2)=BW$2)),BW$1,-100)) -> 1359.375 | BX10: =IF('Ceiling Speaker Calculator'!$C$29="Square",BX$1,IF(OR(AND(ODD($A10)=$A10,ODD(BX$2)=BX$2),AND(EVEN($A10)=$A10,EVEN(BX$2)=BX$2)),BX$1,-100)) -> 1378.125 | BY10: =IF('Ceiling Speaker Calculator'!$C$29="Square",BY$1,IF(OR(AND(ODD($A10)=$A10,ODD(BY$2)=BY$2),AND(EVEN($A10)=$A10,EVEN(BY$2)=BY$2)),BY$1,-100)) -> 1396.875 | BZ10: =IF('Ceiling Speaker Calculator'!$C$29="Square",BZ$1,IF(OR(AND(ODD($A10)=$A10,ODD(BZ$2)=BZ$2),AND(EVEN($A10)=$A10,EVEN(BZ$2)=BZ$2)),BZ$1,-100)) -> 1415.625 | CA10: =IF('Ceiling Speaker Calculator'!$C$29="Square",CA$1,IF(OR(AND(ODD($A10)=$A10,ODD(CA$2)=CA$2),AND(EVEN($A10)=$A10,EVEN(CA$2)=CA$2)),CA$1,-100)) -> 1434.375 | CB10: =IF('Ceiling Speaker Calculator'!$C$29="Square",CB$1,IF(OR(AND(ODD($A10)=$A10,ODD(CB$2)=CB$2),AND(EVEN($A10)=$A10,EVEN(CB$2)=CB$2)),CB$1,-100)) -> 1453.125 | CC10: =IF('Ceiling Speaker Calculator'!$C$29="Square",CC$1,IF(OR(AND(ODD($A10)=$A10,ODD(CC$2)=CC$2),AND(EVEN($A10)=$A10,EVEN(CC$2)=CC$2)),CC$1,-100)) -> 1471.875 | CD10: =IF('Ceiling Speaker Calculator'!$C$29="Square",CD$1,IF(OR(AND(ODD($A10)=$A10,ODD(CD$2)=CD$2),AND(EVEN($A10)=$A10,EVEN(CD$2)=CD$2)),CD$1,-100)) -> 1490.625 | CE10: =IF('Ceiling Speaker Calculator'!$C$29="Square",CE$1,IF(OR(AND(ODD($A10)=$A10,ODD(CE$2)=CE$2),AND(EVEN($A10)=$A10,EVEN(CE$2)=CE$2)),CE$1,-100)) -> 1509.375 | CF10: =IF('Ceiling Speaker Calculator'!$C$29="Square",CF$1,IF(OR(AND(ODD($A10)=$A10,ODD(CF$2)=CF$2),AND(EVEN($A10)=$A10,EVEN(CF$2)=CF$2)),CF$1,-100)) -> 1528.125 | CG10: =IF('Ceiling Speaker Calculator'!$C$29="Square",CG$1,IF(OR(AND(ODD($A10)=$A10,ODD(CG$2)=CG$2),AND(EVEN($A10)=$A10,EVEN(CG$2)=CG$2)),CG$1,-100)) -> 1546.875 | CH10: =IF('Ceiling Speaker Calculator'!$C$29="Square",CH$1,IF(OR(AND(ODD($A10)=$A10,ODD(CH$2)=CH$2),AND(EVEN($A10)=$A10,EVEN(CH$2)=CH$2)),CH$1,-100)) -> 1565.625 | CI10: =IF('Ceiling Speaker Calculator'!$C$29="Square",CI$1,IF(OR(AND(ODD($A10)=$A10,ODD(CI$2)=CI$2),AND(EVEN($A10)=$A10,EVEN(CI$2)=CI$2)),CI$1,-100)) -> 1584.375 | CJ10: =IF('Ceiling Speaker Calculator'!$C$29="Square",CJ$1,IF(OR(AND(ODD($A10)=$A10,ODD(CJ$2)=CJ$2),AND(EVEN($A10)=$A10,EVEN(CJ$2)=CJ$2)),CJ$1,-100)) -> 1603.125 | CK10: =IF('Ceiling Speaker Calculator'!$C$29="Square",CK$1,IF(OR(AND(ODD($A10)=$A10,ODD(CK$2)=CK$2),AND(EVEN($A10)=$A10,EVEN(CK$2)=CK$2)),CK$1,-100)) -> 1621.875 | CL10: =IF('Ceiling Speaker Calculator'!$C$29="Square",CL$1,IF(OR(AND(ODD($A10)=$A10,ODD(CL$2)=CL$2),AND(EVEN($A10)=$A10,EVEN(CL$2)=CL$2)),CL$1,-100)) -> 1640.625 | CM10: =IF('Ceiling Speaker Calculator'!$C$29="Square",CM$1,IF(OR(AND(ODD($A10)=$A10,ODD(CM$2)=CM$2),AND(EVEN($A10)=$A10,EVEN(CM$2)=CM$2)),CM$1,-100)) -> 1659.375 | CN10: =IF('Ceiling Speaker Calculator'!$C$29="Square",CN$1,IF(OR(AND(ODD($A10)=$A10,ODD(CN$2)=CN$2),AND(EVEN($A10)=$A10,EVEN(CN$2)=CN$2)),CN$1,-100)) -> 1678.125 | CO10: =IF('Ceiling Speaker Calculator'!$C$29="Square",CO$1,IF(OR(AND(ODD($A10)=$A10,ODD(CO$2)=CO$2),AND(EVEN($A10)=$A10,EVEN(CO$2)=CO$2)),CO$1,-100)) -> 1696.875 | CP10: =IF('Ceiling Speaker Calculator'!$C$29="Square",CP$1,IF(OR(AND(ODD($A10)=$A10,ODD(CP$2)=CP$2),AND(EVEN($A10)=$A10,EVEN(CP$2)=CP$2)),CP$1,-100)) -> 1715.625 | CQ10: =IF('Ceiling Speaker Calculator'!$C$29="Square",CQ$1,IF(OR(AND(ODD($A10)=$A10,ODD(CQ$2)=CQ$2),AND(EVEN($A10)=$A10,EVEN(CQ$2)=CQ$2)),CQ$1,-100)) -> 1734.375 | CR10: =IF('Ceiling Speaker Calculator'!$C$29="Square",CR$1,IF(OR(AND(ODD($A10)=$A10,ODD(CR$2)=CR$2),AND(EVEN($A10)=$A10,EVEN(CR$2)=CR$2)),CR$1,-100)) -> 1753.125 | CS10: =IF('Ceiling Speaker Calculator'!$C$29="Square",CS$1,IF(OR(AND(ODD($A10)=$A10,ODD(CS$2)=CS$2),AND(EVEN($A10)=$A10,EVEN(CS$2)=CS$2)),CS$1,-100)) -> 1771.875 | CT10: =IF('Ceiling Speaker Calculator'!$C$29="Square",CT$1,IF(OR(AND(ODD($A10)=$A10,ODD(CT$2)=CT$2),AND(EVEN($A10)=$A10,EVEN(CT$2)=CT$2)),CT$1,-100)) -> 1790.625 | CU10: =IF('Ceiling Speaker Calculator'!$C$29="Square",CU$1,IF(OR(AND(ODD($A10)=$A10,ODD(CU$2)=CU$2),AND(EVEN($A10)=$A10,EVEN(CU$2)=CU$2)),CU$1,-100)) -> 1809.375 | CV10: =IF('Ceiling Speaker Calculator'!$C$29="Square",CV$1,IF(OR(AND(ODD($A10)=$A10,ODD(CV$2)=CV$2),AND(EVEN($A10)=$A10,EVEN(CV$2)=CV$2)),CV$1,-100)) -> 1828.125 | CW10: =IF('Ceiling Speaker Calculator'!$C$29="Square",CW$1,IF(OR(AND(ODD($A10)=$A10,ODD(CW$2)=CW$2),AND(EVEN($A10)=$A10,EVEN(CW$2)=CW$2)),CW$1,-100)) -> 1846.875 | CX10: =IF('Ceiling Speaker Calculator'!$C$29="Square",CX$1,IF(OR(AND(ODD($A10)=$A10,ODD(CX$2)=CX$2),AND(EVEN($A10)=$A10,EVEN(CX$2)=CX$2)),CX$1,-100)) -> 1865.625
A11: 9 | B11: =B10+'Ceiling Speaker Calculator'!$K$16 -> 170 | C11: =IF('Ceiling Speaker Calculator'!$C$29="Square",C$1,IF(OR(AND(ODD($A11)=$A11,ODD(C$2)=C$2),AND(EVEN($A11)=$A11,EVEN(C$2)=C$2)),C$1,-100)) -> 9.375 | D11: =IF('Ceiling Speaker Calculator'!$C$29="Square",D$1,IF(OR(AND(ODD($A11)=$A11,ODD(D$2)=D$2),AND(EVEN($A11)=$A11,EVEN(D$2)=D$2)),D$1,-100)) -> 28.125 | E11: =IF('Ceiling Speaker Calculator'!$C$29="Square",E$1,IF(OR(AND(ODD($A11)=$A11,ODD(E$2)=E$2),AND(EVEN($A11)=$A11,EVEN(E$2)=E$2)),E$1,-100)) -> 46.875 | F11: =IF('Ceiling Speaker Calculator'!$C$29="Square",F$1,IF(OR(AND(ODD($A11)=$A11,ODD(F$2)=F$2),AND(EVEN($A11)=$A11,EVEN(F$2)=F$2)),F$1,-100)) -> 65.625 | G11: =IF('Ceiling Speaker Calculator'!$C$29="Square",G$1,IF(OR(AND(ODD($A11)=$A11,ODD(G$2)=G$2),AND(EVEN($A11)=$A11,EVEN(G$2)=G$2)),G$1,-100)) -> 84.375 | H11: =IF('Ceiling Speaker Calculator'!$C$29="Square",H$1,IF(OR(AND(ODD($A11)=$A11,ODD(H$2)=H$2),AND(EVEN($A11)=$A11,EVEN(H$2)=H$2)),H$1,-100)) -> 103.125 | I11: =IF('Ceiling Speaker Calculator'!$C$29="Square",I$1,IF(OR(AND(ODD($A11)=$A11,ODD(I$2)=I$2),AND(EVEN($A11)=$A11,EVEN(I$2)=I$2)),I$1,-100)) -> 121.875 | J11: =IF('Ceiling Speaker Calculator'!$C$29="Square",J$1,IF(OR(AND(ODD($A11)=$A11,ODD(J$2)=J$2),AND(EVEN($A11)=$A11,EVEN(J$2)=J$2)),J$1,-100)) -> 140.625 | K11: =IF('Ceiling Speaker Calculator'!$C$29="Square",K$1,IF(OR(AND(ODD($A11)=$A11,ODD(K$2)=K$2),AND(EVEN($A11)=$A11,EVEN(K$2)=K$2)),K$1,-100)) -> 159.375 | L11: =IF('Ceiling Speaker Calculator'!$C$29="Square",L$1,IF(OR(AND(ODD($A11)=$A11,ODD(L$2)=L$2),AND(EVEN($A11)=$A11,EVEN(L$2)=L$2)),L$1,-100)) -> 178.125 | M11: =IF('Ceiling Speaker Calculator'!$C$29="Square",M$1,IF(OR(AND(ODD($A11)=$A11,ODD(M$2)=M$2),AND(EVEN($A11)=$A11,EVEN(M$2)=M$2)),M$1,-100)) -> 196.875 | N11: =IF('Ceiling Speaker Calculator'!$C$29="Square",N$1,IF(OR(AND(ODD($A11)=$A11,ODD(N$2)=N$2),AND(EVEN($A11)=$A11,EVEN(N$2)=N$2)),N$1,-100)) -> 215.625 | O11: =IF('Ceiling Speaker Calculator'!$C$29="Square",O$1,IF(OR(AND(ODD($A11)=$A11,ODD(O$2)=O$2),AND(EVEN($A11)=$A11,EVEN(O$2)=O$2)),O$1,-100)) -> 234.375 | P11: =IF('Ceiling Speaker Calculator'!$C$29="Square",P$1,IF(OR(AND(ODD($A11)=$A11,ODD(P$2)=P$2),AND(EVEN($A11)=$A11,EVEN(P$2)=P$2)),P$1,-100)) -> 253.125 | Q11: =IF('Ceiling Speaker Calculator'!$C$29="Square",Q$1,IF(OR(AND(ODD($A11)=$A11,ODD(Q$2)=Q$2),AND(EVEN($A11)=$A11,EVEN(Q$2)=Q$2)),Q$1,-100)) -> 271.875 | R11: =IF('Ceiling Speaker Calculator'!$C$29="Square",R$1,IF(OR(AND(ODD($A11)=$A11,ODD(R$2)=R$2),AND(EVEN($A11)=$A11,EVEN(R$2)=R$2)),R$1,-100)) -> 290.625 | S11: =IF('Ceiling Speaker Calculator'!$C$29="Square",S$1,IF(OR(AND(ODD($A11)=$A11,ODD(S$2)=S$2),AND(EVEN($A11)=$A11,EVEN(S$2)=S$2)),S$1,-100)) -> 309.375 | T11: =IF('Ceiling Speaker Calculator'!$C$29="Square",T$1,IF(OR(AND(ODD($A11)=$A11,ODD(T$2)=T$2),AND(EVEN($A11)=$A11,EVEN(T$2)=T$2)),T$1,-100)) -> 328.125 | U11: =IF('Ceiling Speaker Calculator'!$C$29="Square",U$1,IF(OR(AND(ODD($A11)=$A11,ODD(U$2)=U$2),AND(EVEN($A11)=$A11,EVEN(U$2)=U$2)),U$1,-100)) -> 346.875 | V11: =IF('Ceiling Speaker Calculator'!$C$29="Square",V$1,IF(OR(AND(ODD($A11)=$A11,ODD(V$2)=V$2),AND(EVEN($A11)=$A11,EVEN(V$2)=V$2)),V$1,-100)) -> 365.625 | W11: =IF('Ceiling Speaker Calculator'!$C$29="Square",W$1,IF(OR(AND(ODD($A11)=$A11,ODD(W$2)=W$2),AND(EVEN($A11)=$A11,EVEN(W$2)=W$2)),W$1,-100)) -> 384.375 | X11: =IF('Ceiling Speaker Calculator'!$C$29="Square",X$1,IF(OR(AND(ODD($A11)=$A11,ODD(X$2)=X$2),AND(EVEN($A11)=$A11,EVEN(X$2)=X$2)),X$1,-100)) -> 403.125 | Y11: =IF('Ceiling Speaker Calculator'!$C$29="Square",Y$1,IF(OR(AND(ODD($A11)=$A11,ODD(Y$2)=Y$2),AND(EVEN($A11)=$A11,EVEN(Y$2)=Y$2)),Y$1,-100)) -> 421.875 | Z11: =IF('Ceiling Speaker Calculator'!$C$29="Square",Z$1,IF(OR(AND(ODD($A11)=$A11,ODD(Z$2)=Z$2),AND(EVEN($A11)=$A11,EVEN(Z$2)=Z$2)),Z$1,-100)) -> 440.625 | AA11: =IF('Ceiling Speaker Calculator'!$C$29="Square",AA$1,IF(OR(AND(ODD($A11)=$A11,ODD(AA$2)=AA$2),AND(EVEN($A11)=$A11,EVEN(AA$2)=AA$2)),AA$1,-100)) -> 459.375 | AB11: =IF('Ceiling Speaker Calculator'!$C$29="Square",AB$1,IF(OR(AND(ODD($A11)=$A11,ODD(AB$2)=AB$2),AND(EVEN($A11)=$A11,EVEN(AB$2)=AB$2)),AB$1,-100)) -> 478.125 | AC11: =IF('Ceiling Speaker Calculator'!$C$29="Square",AC$1,IF(OR(AND(ODD($A11)=$A11,ODD(AC$2)=AC$2),AND(EVEN($A11)=$A11,EVEN(AC$2)=AC$2)),AC$1,-100)) -> 496.875 | AD11: =IF('Ceiling Speaker Calculator'!$C$29="Square",AD$1,IF(OR(AND(ODD($A11)=$A11,ODD(AD$2)=AD$2),AND(EVEN($A11)=$A11,EVEN(AD$2)=AD$2)),AD$1,-100)) -> 515.625 | AE11: =IF('Ceiling Speaker Calculator'!$C$29="Square",AE$1,IF(OR(AND(ODD($A11)=$A11,ODD(AE$2)=AE$2),AND(EVEN($A11)=$A11,EVEN(AE$2)=AE$2)),AE$1,-100)) -> 534.375 | AF11: =IF('Ceiling Speaker Calculator'!$C$29="Square",AF$1,IF(OR(AND(ODD($A11)=$A11,ODD(AF$2)=AF$2),AND(EVEN($A11)=$A11,EVEN(AF$2)=AF$2)),AF$1,-100)) -> 553.125 | AG11: =IF('Ceiling Speaker Calculator'!$C$29="Square",AG$1,IF(OR(AND(ODD($A11)=$A11,ODD(AG$2)=AG$2),AND(EVEN($A11)=$A11,EVEN(AG$2)=AG$2)),AG$1,-100)) -> 571.875 | AH11: =IF('Ceiling Speaker Calculator'!$C$29="Square",AH$1,IF(OR(AND(ODD($A11)=$A11,ODD(AH$2)=AH$2),AND(EVEN($A11)=$A11,EVEN(AH$2)=AH$2)),AH$1,-100)) -> 590.625 | AI11: =IF('Ceiling Speaker Calculator'!$C$29="Square",AI$1,IF(OR(AND(ODD($A11)=$A11,ODD(AI$2)=AI$2),AND(EVEN($A11)=$A11,EVEN(AI$2)=AI$2)),AI$1,-100)) -> 609.375 | AJ11: =IF('Ceiling Speaker Calculator'!$C$29="Square",AJ$1,IF(OR(AND(ODD($A11)=$A11,ODD(AJ$2)=AJ$2),AND(EVEN($A11)=$A11,EVEN(AJ$2)=AJ$2)),AJ$1,-100)) -> 628.125 | AK11: =IF('Ceiling Speaker Calculator'!$C$29="Square",AK$1,IF(OR(AND(ODD($A11)=$A11,ODD(AK$2)=AK$2),AND(EVEN($A11)=$A11,EVEN(AK$2)=AK$2)),AK$1,-100)) -> 646.875 | AL11: =IF('Ceiling Speaker Calculator'!$C$29="Square",AL$1,IF(OR(AND(ODD($A11)=$A11,ODD(AL$2)=AL$2),AND(EVEN($A11)=$A11,EVEN(AL$2)=AL$2)),AL$1,-100)) -> 665.625 | AM11: =IF('Ceiling Speaker Calculator'!$C$29="Square",AM$1,IF(OR(AND(ODD($A11)=$A11,ODD(AM$2)=AM$2),AND(EVEN($A11)=$A11,EVEN(AM$2)=AM$2)),AM$1,-100)) -> 684.375 | AN11: =IF('Ceiling Speaker Calculator'!$C$29="Square",AN$1,IF(OR(AND(ODD($A11)=$A11,ODD(AN$2)=AN$2),AND(EVEN($A11)=$A11,EVEN(AN$2)=AN$2)),AN$1,-100)) -> 703.125 | AO11: =IF('Ceiling Speaker Calculator'!$C$29="Square",AO$1,IF(OR(AND(ODD($A11)=$A11,ODD(AO$2)=AO$2),AND(EVEN($A11)=$A11,EVEN(AO$2)=AO$2)),AO$1,-100)) -> 721.875 | AP11: =IF('Ceiling Speaker Calculator'!$C$29="Square",AP$1,IF(OR(AND(ODD($A11)=$A11,ODD(AP$2)=AP$2),AND(EVEN($A11)=$A11,EVEN(AP$2)=AP$2)),AP$1,-100)) -> 740.625 | AQ11: =IF('Ceiling Speaker Calculator'!$C$29="Square",AQ$1,IF(OR(AND(ODD($A11)=$A11,ODD(AQ$2)=AQ$2),AND(EVEN($A11)=$A11,EVEN(AQ$2)=AQ$2)),AQ$1,-100)) -> 759.375 | AR11: =IF('Ceiling Speaker Calculator'!$C$29="Square",AR$1,IF(OR(AND(ODD($A11)=$A11,ODD(AR$2)=AR$2),AND(EVEN($A11)=$A11,EVEN(AR$2)=AR$2)),AR$1,-100)) -> 778.125 | AS11: =IF('Ceiling Speaker Calculator'!$C$29="Square",AS$1,IF(OR(AND(ODD($A11)=$A11,ODD(AS$2)=AS$2),AND(EVEN($A11)=$A11,EVEN(AS$2)=AS$2)),AS$1,-100)) -> 796.875 | AT11: =IF('Ceiling Speaker Calculator'!$C$29="Square",AT$1,IF(OR(AND(ODD($A11)=$A11,ODD(AT$2)=AT$2),AND(EVEN($A11)=$A11,EVEN(AT$2)=AT$2)),AT$1,-100)) -> 815.625 | AU11: =IF('Ceiling Speaker Calculator'!$C$29="Square",AU$1,IF(OR(AND(ODD($A11)=$A11,ODD(AU$2)=AU$2),AND(EVEN($A11)=$A11,EVEN(AU$2)=AU$2)),AU$1,-100)) -> 834.375 | AV11: =IF('Ceiling Speaker Calculator'!$C$29="Square",AV$1,IF(OR(AND(ODD($A11)=$A11,ODD(AV$2)=AV$2),AND(EVEN($A11)=$A11,EVEN(AV$2)=AV$2)),AV$1,-100)) -> 853.125 | AW11: =IF('Ceiling Speaker Calculator'!$C$29="Square",AW$1,IF(OR(AND(ODD($A11)=$A11,ODD(AW$2)=AW$2),AND(EVEN($A11)=$A11,EVEN(AW$2)=AW$2)),AW$1,-100)) -> 871.875 | AX11: =IF('Ceiling Speaker Calculator'!$C$29="Square",AX$1,IF(OR(AND(ODD($A11)=$A11,ODD(AX$2)=AX$2),AND(EVEN($A11)=$A11,EVEN(AX$2)=AX$2)),AX$1,-100)) -> 890.625 | AY11: =IF('Ceiling Speaker Calculator'!$C$29="Square",AY$1,IF(OR(AND(ODD($A11)=$A11,ODD(AY$2)=AY$2),AND(EVEN($A11)=$A11,EVEN(AY$2)=AY$2)),AY$1,-100)) -> 909.375 | AZ11: =IF('Ceiling Speaker Calculator'!$C$29="Square",AZ$1,IF(OR(AND(ODD($A11)=$A11,ODD(AZ$2)=AZ$2),AND(EVEN($A11)=$A11,EVEN(AZ$2)=AZ$2)),AZ$1,-100)) -> 928.125 | BA11: =IF('Ceiling Speaker Calculator'!$C$29="Square",BA$1,IF(OR(AND(ODD($A11)=$A11,ODD(BA$2)=BA$2),AND(EVEN($A11)=$A11,EVEN(BA$2)=BA$2)),BA$1,-100)) -> 946.875 | BB11: =IF('Ceiling Speaker Calculator'!$C$29="Square",BB$1,IF(OR(AND(ODD($A11)=$A11,ODD(BB$2)=BB$2),AND(EVEN($A11)=$A11,EVEN(BB$2)=BB$2)),BB$1,-100)) -> 965.625 | BC11: =IF('Ceiling Speaker Calculator'!$C$29="Square",BC$1,IF(OR(AND(ODD($A11)=$A11,ODD(BC$2)=BC$2),AND(EVEN($A11)=$A11,EVEN(BC$2)=BC$2)),BC$1,-100)) -> 984.375 | BD11: =IF('Ceiling Speaker Calculator'!$C$29="Square",BD$1,IF(OR(AND(ODD($A11)=$A11,ODD(BD$2)=BD$2),AND(EVEN($A11)=$A11,EVEN(BD$2)=BD$2)),BD$1,-100)) -> 1003.125 | BE11: =IF('Ceiling Speaker Calculator'!$C$29="Square",BE$1,IF(OR(AND(ODD($A11)=$A11,ODD(BE$2)=BE$2),AND(EVEN($A11)=$A11,EVEN(BE$2)=BE$2)),BE$1,-100)) -> 1021.875 | BF11: =IF('Ceiling Speaker Calculator'!$C$29="Square",BF$1,IF(OR(AND(ODD($A11)=$A11,ODD(BF$2)=BF$2),AND(EVEN($A11)=$A11,EVEN(BF$2)=BF$2)),BF$1,-100)) -> 1040.625 | BG11: =IF('Ceiling Speaker Calculator'!$C$29="Square",BG$1,IF(OR(AND(ODD($A11)=$A11,ODD(BG$2)=BG$2),AND(EVEN($A11)=$A11,EVEN(BG$2)=BG$2)),BG$1,-100)) -> 1059.375 | BH11: =IF('Ceiling Speaker Calculator'!$C$29="Square",BH$1,IF(OR(AND(ODD($A11)=$A11,ODD(BH$2)=BH$2),AND(EVEN($A11)=$A11,EVEN(BH$2)=BH$2)),BH$1,-100)) -> 1078.125 | BI11: =IF('Ceiling Speaker Calculator'!$C$29="Square",BI$1,IF(OR(AND(ODD($A11)=$A11,ODD(BI$2)=BI$2),AND(EVEN($A11)=$A11,EVEN(BI$2)=BI$2)),BI$1,-100)) -> 1096.875 | BJ11: =IF('Ceiling Speaker Calculator'!$C$29="Square",BJ$1,IF(OR(AND(ODD($A11)=$A11,ODD(BJ$2)=BJ$2),AND(EVEN($A11)=$A11,EVEN(BJ$2)=BJ$2)),BJ$1,-100)) -> 1115.625 | BK11: =IF('Ceiling Speaker Calculator'!$C$29="Square",BK$1,IF(OR(AND(ODD($A11)=$A11,ODD(BK$2)=BK$2),AND(EVEN($A11)=$A11,EVEN(BK$2)=BK$2)),BK$1,-100)) -> 1134.375 | BL11: =IF('Ceiling Speaker Calculator'!$C$29="Square",BL$1,IF(OR(AND(ODD($A11)=$A11,ODD(BL$2)=BL$2),AND(EVEN($A11)=$A11,EVEN(BL$2)=BL$2)),BL$1,-100)) -> 1153.125 | BM11: =IF('Ceiling Speaker Calculator'!$C$29="Square",BM$1,IF(OR(AND(ODD($A11)=$A11,ODD(BM$2)=BM$2),AND(EVEN($A11)=$A11,EVEN(BM$2)=BM$2)),BM$1,-100)) -> 1171.875 | BN11: =IF('Ceiling Speaker Calculator'!$C$29="Square",BN$1,IF(OR(AND(ODD($A11)=$A11,ODD(BN$2)=BN$2),AND(EVEN($A11)=$A11,EVEN(BN$2)=BN$2)),BN$1,-100)) -> 1190.625 | BO11: =IF('Ceiling Speaker Calculator'!$C$29="Square",BO$1,IF(OR(AND(ODD($A11)=$A11,ODD(BO$2)=BO$2),AND(EVEN($A11)=$A11,EVEN(BO$2)=BO$2)),BO$1,-100)) -> 1209.375 | BP11: =IF('Ceiling Speaker Calculator'!$C$29="Square",BP$1,IF(OR(AND(ODD($A11)=$A11,ODD(BP$2)=BP$2),AND(EVEN($A11)=$A11,EVEN(BP$2)=BP$2)),BP$1,-100)) -> 1228.125 | BQ11: =IF('Ceiling Speaker Calculator'!$C$29="Square",BQ$1,IF(OR(AND(ODD($A11)=$A11,ODD(BQ$2)=BQ$2),AND(EVEN($A11)=$A11,EVEN(BQ$2)=BQ$2)),BQ$1,-100)) -> 1246.875 | BR11: =IF('Ceiling Speaker Calculator'!$C$29="Square",BR$1,IF(OR(AND(ODD($A11)=$A11,ODD(BR$2)=BR$2),AND(EVEN($A11)=$A11,EVEN(BR$2)=BR$2)),BR$1,-100)) -> 1265.625 | BS11: =IF('Ceiling Speaker Calculator'!$C$29="Square",BS$1,IF(OR(AND(ODD($A11)=$A11,ODD(BS$2)=BS$2),AND(EVEN($A11)=$A11,EVEN(BS$2)=BS$2)),BS$1,-100)) -> 1284.375 | BT11: =IF('Ceiling Speaker Calculator'!$C$29="Square",BT$1,IF(OR(AND(ODD($A11)=$A11,ODD(BT$2)=BT$2),AND(EVEN($A11)=$A11,EVEN(BT$2)=BT$2)),BT$1,-100)) -> 1303.125 | BU11: =IF('Ceiling Speaker Calculator'!$C$29="Square",BU$1,IF(OR(AND(ODD($A11)=$A11,ODD(BU$2)=BU$2),AND(EVEN($A11)=$A11,EVEN(BU$2)=BU$2)),BU$1,-100)) -> 1321.875 | BV11: =IF('Ceiling Speaker Calculator'!$C$29="Square",BV$1,IF(OR(AND(ODD($A11)=$A11,ODD(BV$2)=BV$2),AND(EVEN($A11)=$A11,EVEN(BV$2)=BV$2)),BV$1,-100)) -> 1340.625 | BW11: =IF('Ceiling Speaker Calculator'!$C$29="Square",BW$1,IF(OR(AND(ODD($A11)=$A11,ODD(BW$2)=BW$2),AND(EVEN($A11)=$A11,EVEN(BW$2)=BW$2)),BW$1,-100)) -> 1359.375 | BX11: =IF('Ceiling Speaker Calculator'!$C$29="Square",BX$1,IF(OR(AND(ODD($A11)=$A11,ODD(BX$2)=BX$2),AND(EVEN($A11)=$A11,EVEN(BX$2)=BX$2)),BX$1,-100)) -> 1378.125 | BY11: =IF('Ceiling Speaker Calculator'!$C$29="Square",BY$1,IF(OR(AND(ODD($A11)=$A11,ODD(BY$2)=BY$2),AND(EVEN($A11)=$A11,EVEN(BY$2)=BY$2)),BY$1,-100)) -> 1396.875 | BZ11: =IF('Ceiling Speaker Calculator'!$C$29="Square",BZ$1,IF(OR(AND(ODD($A11)=$A11,ODD(BZ$2)=BZ$2),AND(EVEN($A11)=$A11,EVEN(BZ$2)=BZ$2)),BZ$1,-100)) -> 1415.625 | CA11: =IF('Ceiling Speaker Calculator'!$C$29="Square",CA$1,IF(OR(AND(ODD($A11)=$A11,ODD(CA$2)=CA$2),AND(EVEN($A11)=$A11,EVEN(CA$2)=CA$2)),CA$1,-100)) -> 1434.375 | CB11: =IF('Ceiling Speaker Calculator'!$C$29="Square",CB$1,IF(OR(AND(ODD($A11)=$A11,ODD(CB$2)=CB$2),AND(EVEN($A11)=$A11,EVEN(CB$2)=CB$2)),CB$1,-100)) -> 1453.125 | CC11: =IF('Ceiling Speaker Calculator'!$C$29="Square",CC$1,IF(OR(AND(ODD($A11)=$A11,ODD(CC$2)=CC$2),AND(EVEN($A11)=$A11,EVEN(CC$2)=CC$2)),CC$1,-100)) -> 1471.875 | CD11: =IF('Ceiling Speaker Calculator'!$C$29="Square",CD$1,IF(OR(AND(ODD($A11)=$A11,ODD(CD$2)=CD$2),AND(EVEN($A11)=$A11,EVEN(CD$2)=CD$2)),CD$1,-100)) -> 1490.625 | CE11: =IF('Ceiling Speaker Calculator'!$C$29="Square",CE$1,IF(OR(AND(ODD($A11)=$A11,ODD(CE$2)=CE$2),AND(EVEN($A11)=$A11,EVEN(CE$2)=CE$2)),CE$1,-100)) -> 1509.375 | CF11: =IF('Ceiling Speaker Calculator'!$C$29="Square",CF$1,IF(OR(AND(ODD($A11)=$A11,ODD(CF$2)=CF$2),AND(EVEN($A11)=$A11,EVEN(CF$2)=CF$2)),CF$1,-100)) -> 1528.125 | CG11: =IF('Ceiling Speaker Calculator'!$C$29="Square",CG$1,IF(OR(AND(ODD($A11)=$A11,ODD(CG$2)=CG$2),AND(EVEN($A11)=$A11,EVEN(CG$2)=CG$2)),CG$1,-100)) -> 1546.875 | CH11: =IF('Ceiling Speaker Calculator'!$C$29="Square",CH$1,IF(OR(AND(ODD($A11)=$A11,ODD(CH$2)=CH$2),AND(EVEN($A11)=$A11,EVEN(CH$2)=CH$2)),CH$1,-100)) -> 1565.625 | CI11: =IF('Ceiling Speaker Calculator'!$C$29="Square",CI$1,IF(OR(AND(ODD($A11)=$A11,ODD(CI$2)=CI$2),AND(EVEN($A11)=$A11,EVEN(CI$2)=CI$2)),CI$1,-100)) -> 1584.375 | CJ11: =IF('Ceiling Speaker Calculator'!$C$29="Square",CJ$1,IF(OR(AND(ODD($A11)=$A11,ODD(CJ$2)=CJ$2),AND(EVEN($A11)=$A11,EVEN(CJ$2)=CJ$2)),CJ$1,-100)) -> 1603.125 | CK11: =IF('Ceiling Speaker Calculator'!$C$29="Square",CK$1,IF(OR(AND(ODD($A11)=$A11,ODD(CK$2)=CK$2),AND(EVEN($A11)=$A11,EVEN(CK$2)=CK$2)),CK$1,-100)) -> 1621.875 | CL11: =IF('Ceiling Speaker Calculator'!$C$29="Square",CL$1,IF(OR(AND(ODD($A11)=$A11,ODD(CL$2)=CL$2),AND(EVEN($A11)=$A11,EVEN(CL$2)=CL$2)),CL$1,-100)) -> 1640.625 | CM11: =IF('Ceiling Speaker Calculator'!$C$29="Square",CM$1,IF(OR(AND(ODD($A11)=$A11,ODD(CM$2)=CM$2),AND(EVEN($A11)=$A11,EVEN(CM$2)=CM$2)),CM$1,-100)) -> 1659.375 | CN11: =IF('Ceiling Speaker Calculator'!$C$29="Square",CN$1,IF(OR(AND(ODD($A11)=$A11,ODD(CN$2)=CN$2),AND(EVEN($A11)=$A11,EVEN(CN$2)=CN$2)),CN$1,-100)) -> 1678.125 | CO11: =IF('Ceiling Speaker Calculator'!$C$29="Square",CO$1,IF(OR(AND(ODD($A11)=$A11,ODD(CO$2)=CO$2),AND(EVEN($A11)=$A11,EVEN(CO$2)=CO$2)),CO$1,-100)) -> 1696.875 | CP11: =IF('Ceiling Speaker Calculator'!$C$29="Square",CP$1,IF(OR(AND(ODD($A11)=$A11,ODD(CP$2)=CP$2),AND(EVEN($A11)=$A11,EVEN(CP$2)=CP$2)),CP$1,-100)) -> 1715.625 | CQ11: =IF('Ceiling Speaker Calculator'!$C$29="Square",CQ$1,IF(OR(AND(ODD($A11)=$A11,ODD(CQ$2)=CQ$2),AND(EVEN($A11)=$A11,EVEN(CQ$2)=CQ$2)),CQ$1,-100)) -> 1734.375 | CR11: =IF('Ceiling Speaker Calculator'!$C$29="Square",CR$1,IF(OR(AND(ODD($A11)=$A11,ODD(CR$2)=CR$2),AND(EVEN($A11)=$A11,EVEN(CR$2)=CR$2)),CR$1,-100)) -> 1753.125 | CS11: =IF('Ceiling Speaker Calculator'!$C$29="Square",CS$1,IF(OR(AND(ODD($A11)=$A11,ODD(CS$2)=CS$2),AND(EVEN($A11)=$A11,EVEN(CS$2)=CS$2)),CS$1,-100)) -> 1771.875 | CT11: =IF('Ceiling Speaker Calculator'!$C$29="Square",CT$1,IF(OR(AND(ODD($A11)=$A11,ODD(CT$2)=CT$2),AND(EVEN($A11)=$A11,EVEN(CT$2)=CT$2)),CT$1,-100)) -> 1790.625 | CU11: =IF('Ceiling Speaker Calculator'!$C$29="Square",CU$1,IF(OR(AND(ODD($A11)=$A11,ODD(CU$2)=CU$2),AND(EVEN($A11)=$A11,EVEN(CU$2)=CU$2)),CU$1,-100)) -> 1809.375 | CV11: =IF('Ceiling Speaker Calculator'!$C$29="Square",CV$1,IF(OR(AND(ODD($A11)=$A11,ODD(CV$2)=CV$2),AND(EVEN($A11)=$A11,EVEN(CV$2)=CV$2)),CV$1,-100)) -> 1828.125 | CW11: =IF('Ceiling Speaker Calculator'!$C$29="Square",CW$1,IF(OR(AND(ODD($A11)=$A11,ODD(CW$2)=CW$2),AND(EVEN($A11)=$A11,EVEN(CW$2)=CW$2)),CW$1,-100)) -> 1846.875 | CX11: =IF('Ceiling Speaker Calculator'!$C$29="Square",CX$1,IF(OR(AND(ODD($A11)=$A11,ODD(CX$2)=CX$2),AND(EVEN($A11)=$A11,EVEN(CX$2)=CX$2)),CX$1,-100)) -> 1865.625
A12: 10 | B12: =B11+'Ceiling Speaker Calculator'!$K$16 -> 190 | C12: =IF('Ceiling Speaker Calculator'!$C$29="Square",C$1,IF(OR(AND(ODD($A12)=$A12,ODD(C$2)=C$2),AND(EVEN($A12)=$A12,EVEN(C$2)=C$2)),C$1,-100)) -> 9.375 | D12: =IF('Ceiling Speaker Calculator'!$C$29="Square",D$1,IF(OR(AND(ODD($A12)=$A12,ODD(D$2)=D$2),AND(EVEN($A12)=$A12,EVEN(D$2)=D$2)),D$1,-100)) -> 28.125 | E12: =IF('Ceiling Speaker Calculator'!$C$29="Square",E$1,IF(OR(AND(ODD($A12)=$A12,ODD(E$2)=E$2),AND(EVEN($A12)=$A12,EVEN(E$2)=E$2)),E$1,-100)) -> 46.875 | F12: =IF('Ceiling Speaker Calculator'!$C$29="Square",F$1,IF(OR(AND(ODD($A12)=$A12,ODD(F$2)=F$2),AND(EVEN($A12)=$A12,EVEN(F$2)=F$2)),F$1,-100)) -> 65.625 | G12: =IF('Ceiling Speaker Calculator'!$C$29="Square",G$1,IF(OR(AND(ODD($A12)=$A12,ODD(G$2)=G$2),AND(EVEN($A12)=$A12,EVEN(G$2)=G$2)),G$1,-100)) -> 84.375 | H12: =IF('Ceiling Speaker Calculator'!$C$29="Square",H$1,IF(OR(AND(ODD($A12)=$A12,ODD(H$2)=H$2),AND(EVEN($A12)=$A12,EVEN(H$2)=H$2)),H$1,-100)) -> 103.125 | I12: =IF('Ceiling Speaker Calculator'!$C$29="Square",I$1,IF(OR(AND(ODD($A12)=$A12,ODD(I$2)=I$2),AND(EVEN($A12)=$A12,EVEN(I$2)=I$2)),I$1,-100)) -> 121.875 | J12: =IF('Ceiling Speaker Calculator'!$C$29="Square",J$1,IF(OR(AND(ODD($A12)=$A12,ODD(J$2)=J$2),AND(EVEN($A12)=$A12,EVEN(J$2)=J$2)),J$1,-100)) -> 140.625 | K12: =IF('Ceiling Speaker Calculator'!$C$29="Square",K$1,IF(OR(AND(ODD($A12)=$A12,ODD(K$2)=K$2),AND(EVEN($A12)=$A12,EVEN(K$2)=K$2)),K$1,-100)) -> 159.375 | L12: =IF('Ceiling Speaker Calculator'!$C$29="Square",L$1,IF(OR(AND(ODD($A12)=$A12,ODD(L$2)=L$2),AND(EVEN($A12)=$A12,EVEN(L$2)=L$2)),L$1,-100)) -> 178.125 | M12: =IF('Ceiling Speaker Calculator'!$C$29="Square",M$1,IF(OR(AND(ODD($A12)=$A12,ODD(M$2)=M$2),AND(EVEN($A12)=$A12,EVEN(M$2)=M$2)),M$1,-100)) -> 196.875 | N12: =IF('Ceiling Speaker Calculator'!$C$29="Square",N$1,IF(OR(AND(ODD($A12)=$A12,ODD(N$2)=N$2),AND(EVEN($A12)=$A12,EVEN(N$2)=N$2)),N$1,-100)) -> 215.625 | O12: =IF('Ceiling Speaker Calculator'!$C$29="Square",O$1,IF(OR(AND(ODD($A12)=$A12,ODD(O$2)=O$2),AND(EVEN($A12)=$A12,EVEN(O$2)=O$2)),O$1,-100)) -> 234.375 | P12: =IF('Ceiling Speaker Calculator'!$C$29="Square",P$1,IF(OR(AND(ODD($A12)=$A12,ODD(P$2)=P$2),AND(EVEN($A12)=$A12,EVEN(P$2)=P$2)),P$1,-100)) -> 253.125 | Q12: =IF('Ceiling Speaker Calculator'!$C$29="Square",Q$1,IF(OR(AND(ODD($A12)=$A12,ODD(Q$2)=Q$2),AND(EVEN($A12)=$A12,EVEN(Q$2)=Q$2)),Q$1,-100)) -> 271.875 | R12: =IF('Ceiling Speaker Calculator'!$C$29="Square",R$1,IF(OR(AND(ODD($A12)=$A12,ODD(R$2)=R$2),AND(EVEN($A12)=$A12,EVEN(R$2)=R$2)),R$1,-100)) -> 290.625 | S12: =IF('Ceiling Speaker Calculator'!$C$29="Square",S$1,IF(OR(AND(ODD($A12)=$A12,ODD(S$2)=S$2),AND(EVEN($A12)=$A12,EVEN(S$2)=S$2)),S$1,-100)) -> 309.375 | T12: =IF('Ceiling Speaker Calculator'!$C$29="Square",T$1,IF(OR(AND(ODD($A12)=$A12,ODD(T$2)=T$2),AND(EVEN($A12)=$A12,EVEN(T$2)=T$2)),T$1,-100)) -> 328.125 | U12: =IF('Ceiling Speaker Calculator'!$C$29="Square",U$1,IF(OR(AND(ODD($A12)=$A12,ODD(U$2)=U$2),AND(EVEN($A12)=$A12,EVEN(U$2)=U$2)),U$1,-100)) -> 346.875 | V12: =IF('Ceiling Speaker Calculator'!$C$29="Square",V$1,IF(OR(AND(ODD($A12)=$A12,ODD(V$2)=V$2),AND(EVEN($A12)=$A12,EVEN(V$2)=V$2)),V$1,-100)) -> 365.625 | W12: =IF('Ceiling Speaker Calculator'!$C$29="Square",W$1,IF(OR(AND(ODD($A12)=$A12,ODD(W$2)=W$2),AND(EVEN($A12)=$A12,EVEN(W$2)=W$2)),W$1,-100)) -> 384.375 | X12: =IF('Ceiling Speaker Calculator'!$C$29="Square",X$1,IF(OR(AND(ODD($A12)=$A12,ODD(X$2)=X$2),AND(EVEN($A12)=$A12,EVEN(X$2)=X$2)),X$1,-100)) -> 403.125 | Y12: =IF('Ceiling Speaker Calculator'!$C$29="Square",Y$1,IF(OR(AND(ODD($A12)=$A12,ODD(Y$2)=Y$2),AND(EVEN($A12)=$A12,EVEN(Y$2)=Y$2)),Y$1,-100)) -> 421.875 | Z12: =IF('Ceiling Speaker Calculator'!$C$29="Square",Z$1,IF(OR(AND(ODD($A12)=$A12,ODD(Z$2)=Z$2),AND(EVEN($A12)=$A12,EVEN(Z$2)=Z$2)),Z$1,-100)) -> 440.625 | AA12: =IF('Ceiling Speaker Calculator'!$C$29="Square",AA$1,IF(OR(AND(ODD($A12)=$A12,ODD(AA$2)=AA$2),AND(EVEN($A12)=$A12,EVEN(AA$2)=AA$2)),AA$1,-100)) -> 459.375 | AB12: =IF('Ceiling Speaker Calculator'!$C$29="Square",AB$1,IF(OR(AND(ODD($A12)=$A12,ODD(AB$2)=AB$2),AND(EVEN($A12)=$A12,EVEN(AB$2)=AB$2)),AB$1,-100)) -> 478.125 | AC12: =IF('Ceiling Speaker Calculator'!$C$29="Square",AC$1,IF(OR(AND(ODD($A12)=$A12,ODD(AC$2)=AC$2),AND(EVEN($A12)=$A12,EVEN(AC$2)=AC$2)),AC$1,-100)) -> 496.875 | AD12: =IF('Ceiling Speaker Calculator'!$C$29="Square",AD$1,IF(OR(AND(ODD($A12)=$A12,ODD(AD$2)=AD$2),AND(EVEN($A12)=$A12,EVEN(AD$2)=AD$2)),AD$1,-100)) -> 515.625 | AE12: =IF('Ceiling Speaker Calculator'!$C$29="Square",AE$1,IF(OR(AND(ODD($A12)=$A12,ODD(AE$2)=AE$2),AND(EVEN($A12)=$A12,EVEN(AE$2)=AE$2)),AE$1,-100)) -> 534.375 | AF12: =IF('Ceiling Speaker Calculator'!$C$29="Square",AF$1,IF(OR(AND(ODD($A12)=$A12,ODD(AF$2)=AF$2),AND(EVEN($A12)=$A12,EVEN(AF$2)=AF$2)),AF$1,-100)) -> 553.125 | AG12: =IF('Ceiling Speaker Calculator'!$C$29="Square",AG$1,IF(OR(AND(ODD($A12)=$A12,ODD(AG$2)=AG$2),AND(EVEN($A12)=$A12,EVEN(AG$2)=AG$2)),AG$1,-100)) -> 571.875 | AH12: =IF('Ceiling Speaker Calculator'!$C$29="Square",AH$1,IF(OR(AND(ODD($A12)=$A12,ODD(AH$2)=AH$2),AND(EVEN($A12)=$A12,EVEN(AH$2)=AH$2)),AH$1,-100)) -> 590.625 | AI12: =IF('Ceiling Speaker Calculator'!$C$29="Square",AI$1,IF(OR(AND(ODD($A12)=$A12,ODD(AI$2)=AI$2),AND(EVEN($A12)=$A12,EVEN(AI$2)=AI$2)),AI$1,-100)) -> 609.375 | AJ12: =IF('Ceiling Speaker Calculator'!$C$29="Square",AJ$1,IF(OR(AND(ODD($A12)=$A12,ODD(AJ$2)=AJ$2),AND(EVEN($A12)=$A12,EVEN(AJ$2)=AJ$2)),AJ$1,-100)) -> 628.125 | AK12: =IF('Ceiling Speaker Calculator'!$C$29="Square",AK$1,IF(OR(AND(ODD($A12)=$A12,ODD(AK$2)=AK$2),AND(EVEN($A12)=$A12,EVEN(AK$2)=AK$2)),AK$1,-100)) -> 646.875 | AL12: =IF('Ceiling Speaker Calculator'!$C$29="Square",AL$1,IF(OR(AND(ODD($A12)=$A12,ODD(AL$2)=AL$2),AND(EVEN($A12)=$A12,EVEN(AL$2)=AL$2)),AL$1,-100)) -> 665.625 | AM12: =IF('Ceiling Speaker Calculator'!$C$29="Square",AM$1,IF(OR(AND(ODD($A12)=$A12,ODD(AM$2)=AM$2),AND(EVEN($A12)=$A12,EVEN(AM$2)=AM$2)),AM$1,-100)) -> 684.375 | AN12: =IF('Ceiling Speaker Calculator'!$C$29="Square",AN$1,IF(OR(AND(ODD($A12)=$A12,ODD(AN$2)=AN$2),AND(EVEN($A12)=$A12,EVEN(AN$2)=AN$2)),AN$1,-100)) -> 703.125 | AO12: =IF('Ceiling Speaker Calculator'!$C$29="Square",AO$1,IF(OR(AND(ODD($A12)=$A12,ODD(AO$2)=AO$2),AND(EVEN($A12)=$A12,EVEN(AO$2)=AO$2)),AO$1,-100)) -> 721.875 | AP12: =IF('Ceiling Speaker Calculator'!$C$29="Square",AP$1,IF(OR(AND(ODD($A12)=$A12,ODD(AP$2)=AP$2),AND(EVEN($A12)=$A12,EVEN(AP$2)=AP$2)),AP$1,-100)) -> 740.625 | AQ12: =IF('Ceiling Speaker Calculator'!$C$29="Square",AQ$1,IF(OR(AND(ODD($A12)=$A12,ODD(AQ$2)=AQ$2),AND(EVEN($A12)=$A12,EVEN(AQ$2)=AQ$2)),AQ$1,-100)) -> 759.375 | AR12: =IF('Ceiling Speaker Calculator'!$C$29="Square",AR$1,IF(OR(AND(ODD($A12)=$A12,ODD(AR$2)=AR$2),AND(EVEN($A12)=$A12,EVEN(AR$2)=AR$2)),AR$1,-100)) -> 778.125 | AS12: =IF('Ceiling Speaker Calculator'!$C$29="Square",AS$1,IF(OR(AND(ODD($A12)=$A12,ODD(AS$2)=AS$2),AND(EVEN($A12)=$A12,EVEN(AS$2)=AS$2)),AS$1,-100)) -> 796.875 | AT12: =IF('Ceiling Speaker Calculator'!$C$29="Square",AT$1,IF(OR(AND(ODD($A12)=$A12,ODD(AT$2)=AT$2),AND(EVEN($A12)=$A12,EVEN(AT$2)=AT$2)),AT$1,-100)) -> 815.625 | AU12: =IF('Ceiling Speaker Calculator'!$C$29="Square",AU$1,IF(OR(AND(ODD($A12)=$A12,ODD(AU$2)=AU$2),AND(EVEN($A12)=$A12,EVEN(AU$2)=AU$2)),AU$1,-100)) -> 834.375 | AV12: =IF('Ceiling Speaker Calculator'!$C$29="Square",AV$1,IF(OR(AND(ODD($A12)=$A12,ODD(AV$2)=AV$2),AND(EVEN($A12)=$A12,EVEN(AV$2)=AV$2)),AV$1,-100)) -> 853.125 | AW12: =IF('Ceiling Speaker Calculator'!$C$29="Square",AW$1,IF(OR(AND(ODD($A12)=$A12,ODD(AW$2)=AW$2),AND(EVEN($A12)=$A12,EVEN(AW$2)=AW$2)),AW$1,-100)) -> 871.875 | AX12: =IF('Ceiling Speaker Calculator'!$C$29="Square",AX$1,IF(OR(AND(ODD($A12)=$A12,ODD(AX$2)=AX$2),AND(EVEN($A12)=$A12,EVEN(AX$2)=AX$2)),AX$1,-100)) -> 890.625 | AY12: =IF('Ceiling Speaker Calculator'!$C$29="Square",AY$1,IF(OR(AND(ODD($A12)=$A12,ODD(AY$2)=AY$2),AND(EVEN($A12)=$A12,EVEN(AY$2)=AY$2)),AY$1,-100)) -> 909.375 | AZ12: =IF('Ceiling Speaker Calculator'!$C$29="Square",AZ$1,IF(OR(AND(ODD($A12)=$A12,ODD(AZ$2)=AZ$2),AND(EVEN($A12)=$A12,EVEN(AZ$2)=AZ$2)),AZ$1,-100)) -> 928.125 | BA12: =IF('Ceiling Speaker Calculator'!$C$29="Square",BA$1,IF(OR(AND(ODD($A12)=$A12,ODD(BA$2)=BA$2),AND(EVEN($A12)=$A12,EVEN(BA$2)=BA$2)),BA$1,-100)) -> 946.875 | BB12: =IF('Ceiling Speaker Calculator'!$C$29="Square",BB$1,IF(OR(AND(ODD($A12)=$A12,ODD(BB$2)=BB$2),AND(EVEN($A12)=$A12,EVEN(BB$2)=BB$2)),BB$1,-100)) -> 965.625 | BC12: =IF('Ceiling Speaker Calculator'!$C$29="Square",BC$1,IF(OR(AND(ODD($A12)=$A12,ODD(BC$2)=BC$2),AND(EVEN($A12)=$A12,EVEN(BC$2)=BC$2)),BC$1,-100)) -> 984.375 | BD12: =IF('Ceiling Speaker Calculator'!$C$29="Square",BD$1,IF(OR(AND(ODD($A12)=$A12,ODD(BD$2)=BD$2),AND(EVEN($A12)=$A12,EVEN(BD$2)=BD$2)),BD$1,-100)) -> 1003.125 | BE12: =IF('Ceiling Speaker Calculator'!$C$29="Square",BE$1,IF(OR(AND(ODD($A12)=$A12,ODD(BE$2)=BE$2),AND(EVEN($A12)=$A12,EVEN(BE$2)=BE$2)),BE$1,-100)) -> 1021.875 | BF12: =IF('Ceiling Speaker Calculator'!$C$29="Square",BF$1,IF(OR(AND(ODD($A12)=$A12,ODD(BF$2)=BF$2),AND(EVEN($A12)=$A12,EVEN(BF$2)=BF$2)),BF$1,-100)) -> 1040.625 | BG12: =IF('Ceiling Speaker Calculator'!$C$29="Square",BG$1,IF(OR(AND(ODD($A12)=$A12,ODD(BG$2)=BG$2),AND(EVEN($A12)=$A12,EVEN(BG$2)=BG$2)),BG$1,-100)) -> 1059.375 | BH12: =IF('Ceiling Speaker Calculator'!$C$29="Square",BH$1,IF(OR(AND(ODD($A12)=$A12,ODD(BH$2)=BH$2),AND(EVEN($A12)=$A12,EVEN(BH$2)=BH$2)),BH$1,-100)) -> 1078.125 | BI12: =IF('Ceiling Speaker Calculator'!$C$29="Square",BI$1,IF(OR(AND(ODD($A12)=$A12,ODD(BI$2)=BI$2),AND(EVEN($A12)=$A12,EVEN(BI$2)=BI$2)),BI$1,-100)) -> 1096.875 | BJ12: =IF('Ceiling Speaker Calculator'!$C$29="Square",BJ$1,IF(OR(AND(ODD($A12)=$A12,ODD(BJ$2)=BJ$2),AND(EVEN($A12)=$A12,EVEN(BJ$2)=BJ$2)),BJ$1,-100)) -> 1115.625 | BK12: =IF('Ceiling Speaker Calculator'!$C$29="Square",BK$1,IF(OR(AND(ODD($A12)=$A12,ODD(BK$2)=BK$2),AND(EVEN($A12)=$A12,EVEN(BK$2)=BK$2)),BK$1,-100)) -> 1134.375 | BL12: =IF('Ceiling Speaker Calculator'!$C$29="Square",BL$1,IF(OR(AND(ODD($A12)=$A12,ODD(BL$2)=BL$2),AND(EVEN($A12)=$A12,EVEN(BL$2)=BL$2)),BL$1,-100)) -> 1153.125 | BM12: =IF('Ceiling Speaker Calculator'!$C$29="Square",BM$1,IF(OR(AND(ODD($A12)=$A12,ODD(BM$2)=BM$2),AND(EVEN($A12)=$A12,EVEN(BM$2)=BM$2)),BM$1,-100)) -> 1171.875 | BN12: =IF('Ceiling Speaker Calculator'!$C$29="Square",BN$1,IF(OR(AND(ODD($A12)=$A12,ODD(BN$2)=BN$2),AND(EVEN($A12)=$A12,EVEN(BN$2)=BN$2)),BN$1,-100)) -> 1190.625 | BO12: =IF('Ceiling Speaker Calculator'!$C$29="Square",BO$1,IF(OR(AND(ODD($A12)=$A12,ODD(BO$2)=BO$2),AND(EVEN($A12)=$A12,EVEN(BO$2)=BO$2)),BO$1,-100)) -> 1209.375 | BP12: =IF('Ceiling Speaker Calculator'!$C$29="Square",BP$1,IF(OR(AND(ODD($A12)=$A12,ODD(BP$2)=BP$2),AND(EVEN($A12)=$A12,EVEN(BP$2)=BP$2)),BP$1,-100)) -> 1228.125 | BQ12: =IF('Ceiling Speaker Calculator'!$C$29="Square",BQ$1,IF(OR(AND(ODD($A12)=$A12,ODD(BQ$2)=BQ$2),AND(EVEN($A12)=$A12,EVEN(BQ$2)=BQ$2)),BQ$1,-100)) -> 1246.875 | BR12: =IF('Ceiling Speaker Calculator'!$C$29="Square",BR$1,IF(OR(AND(ODD($A12)=$A12,ODD(BR$2)=BR$2),AND(EVEN($A12)=$A12,EVEN(BR$2)=BR$2)),BR$1,-100)) -> 1265.625 | BS12: =IF('Ceiling Speaker Calculator'!$C$29="Square",BS$1,IF(OR(AND(ODD($A12)=$A12,ODD(BS$2)=BS$2),AND(EVEN($A12)=$A12,EVEN(BS$2)=BS$2)),BS$1,-100)) -> 1284.375 | BT12: =IF('Ceiling Speaker Calculator'!$C$29="Square",BT$1,IF(OR(AND(ODD($A12)=$A12,ODD(BT$2)=BT$2),AND(EVEN($A12)=$A12,EVEN(BT$2)=BT$2)),BT$1,-100)) -> 1303.125 | BU12: =IF('Ceiling Speaker Calculator'!$C$29="Square",BU$1,IF(OR(AND(ODD($A12)=$A12,ODD(BU$2)=BU$2),AND(EVEN($A12)=$A12,EVEN(BU$2)=BU$2)),BU$1,-100)) -> 1321.875 | BV12: =IF('Ceiling Speaker Calculator'!$C$29="Square",BV$1,IF(OR(AND(ODD($A12)=$A12,ODD(BV$2)=BV$2),AND(EVEN($A12)=$A12,EVEN(BV$2)=BV$2)),BV$1,-100)) -> 1340.625 | BW12: =IF('Ceiling Speaker Calculator'!$C$29="Square",BW$1,IF(OR(AND(ODD($A12)=$A12,ODD(BW$2)=BW$2),AND(EVEN($A12)=$A12,EVEN(BW$2)=BW$2)),BW$1,-100)) -> 1359.375 | BX12: =IF('Ceiling Speaker Calculator'!$C$29="Square",BX$1,IF(OR(AND(ODD($A12)=$A12,ODD(BX$2)=BX$2),AND(EVEN($A12)=$A12,EVEN(BX$2)=BX$2)),BX$1,-100)) -> 1378.125 | BY12: =IF('Ceiling Speaker Calculator'!$C$29="Square",BY$1,IF(OR(AND(ODD($A12)=$A12,ODD(BY$2)=BY$2),AND(EVEN($A12)=$A12,EVEN(BY$2)=BY$2)),BY$1,-100)) -> 1396.875 | BZ12: =IF('Ceiling Speaker Calculator'!$C$29="Square",BZ$1,IF(OR(AND(ODD($A12)=$A12,ODD(BZ$2)=BZ$2),AND(EVEN($A12)=$A12,EVEN(BZ$2)=BZ$2)),BZ$1,-100)) -> 1415.625 | CA12: =IF('Ceiling Speaker Calculator'!$C$29="Square",CA$1,IF(OR(AND(ODD($A12)=$A12,ODD(CA$2)=CA$2),AND(EVEN($A12)=$A12,EVEN(CA$2)=CA$2)),CA$1,-100)) -> 1434.375 | CB12: =IF('Ceiling Speaker Calculator'!$C$29="Square",CB$1,IF(OR(AND(ODD($A12)=$A12,ODD(CB$2)=CB$2),AND(EVEN($A12)=$A12,EVEN(CB$2)=CB$2)),CB$1,-100)) -> 1453.125 | CC12: =IF('Ceiling Speaker Calculator'!$C$29="Square",CC$1,IF(OR(AND(ODD($A12)=$A12,ODD(CC$2)=CC$2),AND(EVEN($A12)=$A12,EVEN(CC$2)=CC$2)),CC$1,-100)) -> 1471.875 | CD12: =IF('Ceiling Speaker Calculator'!$C$29="Square",CD$1,IF(OR(AND(ODD($A12)=$A12,ODD(CD$2)=CD$2),AND(EVEN($A12)=$A12,EVEN(CD$2)=CD$2)),CD$1,-100)) -> 1490.625 | CE12: =IF('Ceiling Speaker Calculator'!$C$29="Square",CE$1,IF(OR(AND(ODD($A12)=$A12,ODD(CE$2)=CE$2),AND(EVEN($A12)=$A12,EVEN(CE$2)=CE$2)),CE$1,-100)) -> 1509.375 | CF12: =IF('Ceiling Speaker Calculator'!$C$29="Square",CF$1,IF(OR(AND(ODD($A12)=$A12,ODD(CF$2)=CF$2),AND(EVEN($A12)=$A12,EVEN(CF$2)=CF$2)),CF$1,-100)) -> 1528.125 | CG12: =IF('Ceiling Speaker Calculator'!$C$29="Square",CG$1,IF(OR(AND(ODD($A12)=$A12,ODD(CG$2)=CG$2),AND(EVEN($A12)=$A12,EVEN(CG$2)=CG$2)),CG$1,-100)) -> 1546.875 | CH12: =IF('Ceiling Speaker Calculator'!$C$29="Square",CH$1,IF(OR(AND(ODD($A12)=$A12,ODD(CH$2)=CH$2),AND(EVEN($A12)=$A12,EVEN(CH$2)=CH$2)),CH$1,-100)) -> 1565.625 | CI12: =IF('Ceiling Speaker Calculator'!$C$29="Square",CI$1,IF(OR(AND(ODD($A12)=$A12,ODD(CI$2)=CI$2),AND(EVEN($A12)=$A12,EVEN(CI$2)=CI$2)),CI$1,-100)) -> 1584.375 | CJ12: =IF('Ceiling Speaker Calculator'!$C$29="Square",CJ$1,IF(OR(AND(ODD($A12)=$A12,ODD(CJ$2)=CJ$2),AND(EVEN($A12)=$A12,EVEN(CJ$2)=CJ$2)),CJ$1,-100)) -> 1603.125 | CK12: =IF('Ceiling Speaker Calculator'!$C$29="Square",CK$1,IF(OR(AND(ODD($A12)=$A12,ODD(CK$2)=CK$2),AND(EVEN($A12)=$A12,EVEN(CK$2)=CK$2)),CK$1,-100)) -> 1621.875 | CL12: =IF('Ceiling Speaker Calculator'!$C$29="Square",CL$1,IF(OR(AND(ODD($A12)=$A12,ODD(CL$2)=CL$2),AND(EVEN($A12)=$A12,EVEN(CL$2)=CL$2)),CL$1,-100)) -> 1640.625 | CM12: =IF('Ceiling Speaker Calculator'!$C$29="Square",CM$1,IF(OR(AND(ODD($A12)=$A12,ODD(CM$2)=CM$2),AND(EVEN($A12)=$A12,EVEN(CM$2)=CM$2)),CM$1,-100)) -> 1659.375 | CN12: =IF('Ceiling Speaker Calculator'!$C$29="Square",CN$1,IF(OR(AND(ODD($A12)=$A12,ODD(CN$2)=CN$2),AND(EVEN($A12)=$A12,EVEN(CN$2)=CN$2)),CN$1,-100)) -> 1678.125 | CO12: =IF('Ceiling Speaker Calculator'!$C$29="Square",CO$1,IF(OR(AND(ODD($A12)=$A12,ODD(CO$2)=CO$2),AND(EVEN($A12)=$A12,EVEN(CO$2)=CO$2)),CO$1,-100)) -> 1696.875 | CP12: =IF('Ceiling Speaker Calculator'!$C$29="Square",CP$1,IF(OR(AND(ODD($A12)=$A12,ODD(CP$2)=CP$2),AND(EVEN($A12)=$A12,EVEN(CP$2)=CP$2)),CP$1,-100)) -> 1715.625 | CQ12: =IF('Ceiling Speaker Calculator'!$C$29="Square",CQ$1,IF(OR(AND(ODD($A12)=$A12,ODD(CQ$2)=CQ$2),AND(EVEN($A12)=$A12,EVEN(CQ$2)=CQ$2)),CQ$1,-100)) -> 1734.375 | CR12: =IF('Ceiling Speaker Calculator'!$C$29="Square",CR$1,IF(OR(AND(ODD($A12)=$A12,ODD(CR$2)=CR$2),AND(EVEN($A12)=$A12,EVEN(CR$2)=CR$2)),CR$1,-100)) -> 1753.125 | CS12: =IF('Ceiling Speaker Calculator'!$C$29="Square",CS$1,IF(OR(AND(ODD($A12)=$A12,ODD(CS$2)=CS$2),AND(EVEN($A12)=$A12,EVEN(CS$2)=CS$2)),CS$1,-100)) -> 1771.875 | CT12: =IF('Ceiling Speaker Calculator'!$C$29="Square",CT$1,IF(OR(AND(ODD($A12)=$A12,ODD(CT$2)=CT$2),AND(EVEN($A12)=$A12,EVEN(CT$2)=CT$2)),CT$1,-100)) -> 1790.625 | CU12: =IF('Ceiling Speaker Calculator'!$C$29="Square",CU$1,IF(OR(AND(ODD($A12)=$A12,ODD(CU$2)=CU$2),AND(EVEN($A12)=$A12,EVEN(CU$2)=CU$2)),CU$1,-100)) -> 1809.375 | CV12: =IF('Ceiling Speaker Calculator'!$C$29="Square",CV$1,IF(OR(AND(ODD($A12)=$A12,ODD(CV$2)=CV$2),AND(EVEN($A12)=$A12,EVEN(CV$2)=CV$2)),CV$1,-100)) -> 1828.125 | CW12: =IF('Ceiling Speaker Calculator'!$C$29="Square",CW$1,IF(OR(AND(ODD($A12)=$A12,ODD(CW$2)=CW$2),AND(EVEN($A12)=$A12,EVEN(CW$2)=CW$2)),CW$1,-100)) -> 1846.875 | CX12: =IF('Ceiling Speaker Calculator'!$C$29="Square",CX$1,IF(OR(AND(ODD($A12)=$A12,ODD(CX$2)=CX$2),AND(EVEN($A12)=$A12,EVEN(CX$2)=CX$2)),CX$1,-100)) -> 1865.625
A13: 11 | B13: =B12+'Ceiling Speaker Calculator'!$K$16 -> 210 | C13: =IF('Ceiling Speaker Calculator'!$C$29="Square",C$1,IF(OR(AND(ODD($A13)=$A13,ODD(C$2)=C$2),AND(EVEN($A13)=$A13,EVEN(C$2)=C$2)),C$1,-100)) -> 9.375 | D13: =IF('Ceiling Speaker Calculator'!$C$29="Square",D$1,IF(OR(AND(ODD($A13)=$A13,ODD(D$2)=D$2),AND(EVEN($A13)=$A13,EVEN(D$2)=D$2)),D$1,-100)) -> 28.125 | E13: =IF('Ceiling Speaker Calculator'!$C$29="Square",E$1,IF(OR(AND(ODD($A13)=$A13,ODD(E$2)=E$2),AND(EVEN($A13)=$A13,EVEN(E$2)=E$2)),E$1,-100)) -> 46.875 | F13: =IF('Ceiling Speaker Calculator'!$C$29="Square",F$1,IF(OR(AND(ODD($A13)=$A13,ODD(F$2)=F$2),AND(EVEN($A13)=$A13,EVEN(F$2)=F$2)),F$1,-100)) -> 65.625 | G13: =IF('Ceiling Speaker Calculator'!$C$29="Square",G$1,IF(OR(AND(ODD($A13)=$A13,ODD(G$2)=G$2),AND(EVEN($A13)=$A13,EVEN(G$2)=G$2)),G$1,-100)) -> 84.375 | H13: =IF('Ceiling Speaker Calculator'!$C$29="Square",H$1,IF(OR(AND(ODD($A13)=$A13,ODD(H$2)=H$2),AND(EVEN($A13)=$A13,EVEN(H$2)=H$2)),H$1,-100)) -> 103.125 | I13: =IF('Ceiling Speaker Calculator'!$C$29="Square",I$1,IF(OR(AND(ODD($A13)=$A13,ODD(I$2)=I$2),AND(EVEN($A13)=$A13,EVEN(I$2)=I$2)),I$1,-100)) -> 121.875 | J13: =IF('Ceiling Speaker Calculator'!$C$29="Square",J$1,IF(OR(AND(ODD($A13)=$A13,ODD(J$2)=J$2),AND(EVEN($A13)=$A13,EVEN(J$2)=J$2)),J$1,-100)) -> 140.625 | K13: =IF('Ceiling Speaker Calculator'!$C$29="Square",K$1,IF(OR(AND(ODD($A13)=$A13,ODD(K$2)=K$2),AND(EVEN($A13)=$A13,EVEN(K$2)=K$2)),K$1,-100)) -> 159.375 | L13: =IF('Ceiling Speaker Calculator'!$C$29="Square",L$1,IF(OR(AND(ODD($A13)=$A13,ODD(L$2)=L$2),AND(EVEN($A13)=$A13,EVEN(L$2)=L$2)),L$1,-100)) -> 178.125 | M13: =IF('Ceiling Speaker Calculator'!$C$29="Square",M$1,IF(OR(AND(ODD($A13)=$A13,ODD(M$2)=M$2),AND(EVEN($A13)=$A13,EVEN(M$2)=M$2)),M$1,-100)) -> 196.875 | N13: =IF('Ceiling Speaker Calculator'!$C$29="Square",N$1,IF(OR(AND(ODD($A13)=$A13,ODD(N$2)=N$2),AND(EVEN($A13)=$A13,EVEN(N$2)=N$2)),N$1,-100)) -> 215.625 | O13: =IF('Ceiling Speaker Calculator'!$C$29="Square",O$1,IF(OR(AND(ODD($A13)=$A13,ODD(O$2)=O$2),AND(EVEN($A13)=$A13,EVEN(O$2)=O$2)),O$1,-100)) -> 234.375 | P13: =IF('Ceiling Speaker Calculator'!$C$29="Square",P$1,IF(OR(AND(ODD($A13)=$A13,ODD(P$2)=P$2),AND(EVEN($A13)=$A13,EVEN(P$2)=P$2)),P$1,-100)) -> 253.125 | Q13: =IF('Ceiling Speaker Calculator'!$C$29="Square",Q$1,IF(OR(AND(ODD($A13)=$A13,ODD(Q$2)=Q$2),AND(EVEN($A13)=$A13,EVEN(Q$2)=Q$2)),Q$1,-100)) -> 271.875 | R13: =IF('Ceiling Speaker Calculator'!$C$29="Square",R$1,IF(OR(AND(ODD($A13)=$A13,ODD(R$2)=R$2),AND(EVEN($A13)=$A13,EVEN(R$2)=R$2)),R$1,-100)) -> 290.625 | S13: =IF('Ceiling Speaker Calculator'!$C$29="Square",S$1,IF(OR(AND(ODD($A13)=$A13,ODD(S$2)=S$2),AND(EVEN($A13)=$A13,EVEN(S$2)=S$2)),S$1,-100)) -> 309.375 | T13: =IF('Ceiling Speaker Calculator'!$C$29="Square",T$1,IF(OR(AND(ODD($A13)=$A13,ODD(T$2)=T$2),AND(EVEN($A13)=$A13,EVEN(T$2)=T$2)),T$1,-100)) -> 328.125 | U13: =IF('Ceiling Speaker Calculator'!$C$29="Square",U$1,IF(OR(AND(ODD($A13)=$A13,ODD(U$2)=U$2),AND(EVEN($A13)=$A13,EVEN(U$2)=U$2)),U$1,-100)) -> 346.875 | V13: =IF('Ceiling Speaker Calculator'!$C$29="Square",V$1,IF(OR(AND(ODD($A13)=$A13,ODD(V$2)=V$2),AND(EVEN($A13)=$A13,EVEN(V$2)=V$2)),V$1,-100)) -> 365.625 | W13: =IF('Ceiling Speaker Calculator'!$C$29="Square",W$1,IF(OR(AND(ODD($A13)=$A13,ODD(W$2)=W$2),AND(EVEN($A13)=$A13,EVEN(W$2)=W$2)),W$1,-100)) -> 384.375 | X13: =IF('Ceiling Speaker Calculator'!$C$29="Square",X$1,IF(OR(AND(ODD($A13)=$A13,ODD(X$2)=X$2),AND(EVEN($A13)=$A13,EVEN(X$2)=X$2)),X$1,-100)) -> 403.125 | Y13: =IF('Ceiling Speaker Calculator'!$C$29="Square",Y$1,IF(OR(AND(ODD($A13)=$A13,ODD(Y$2)=Y$2),AND(EVEN($A13)=$A13,EVEN(Y$2)=Y$2)),Y$1,-100)) -> 421.875 | Z13: =IF('Ceiling Speaker Calculator'!$C$29="Square",Z$1,IF(OR(AND(ODD($A13)=$A13,ODD(Z$2)=Z$2),AND(EVEN($A13)=$A13,EVEN(Z$2)=Z$2)),Z$1,-100)) -> 440.625 | AA13: =IF('Ceiling Speaker Calculator'!$C$29="Square",AA$1,IF(OR(AND(ODD($A13)=$A13,ODD(AA$2)=AA$2),AND(EVEN($A13)=$A13,EVEN(AA$2)=AA$2)),AA$1,-100)) -> 459.375 | AB13: =IF('Ceiling Speaker Calculator'!$C$29="Square",AB$1,IF(OR(AND(ODD($A13)=$A13,ODD(AB$2)=AB$2),AND(EVEN($A13)=$A13,EVEN(AB$2)=AB$2)),AB$1,-100)) -> 478.125 | AC13: =IF('Ceiling Speaker Calculator'!$C$29="Square",AC$1,IF(OR(AND(ODD($A13)=$A13,ODD(AC$2)=AC$2),AND(EVEN($A13)=$A13,EVEN(AC$2)=AC$2)),AC$1,-100)) -> 496.875 | AD13: =IF('Ceiling Speaker Calculator'!$C$29="Square",AD$1,IF(OR(AND(ODD($A13)=$A13,ODD(AD$2)=AD$2),AND(EVEN($A13)=$A13,EVEN(AD$2)=AD$2)),AD$1,-100)) -> 515.625 | AE13: =IF('Ceiling Speaker Calculator'!$C$29="Square",AE$1,IF(OR(AND(ODD($A13)=$A13,ODD(AE$2)=AE$2),AND(EVEN($A13)=$A13,EVEN(AE$2)=AE$2)),AE$1,-100)) -> 534.375 | AF13: =IF('Ceiling Speaker Calculator'!$C$29="Square",AF$1,IF(OR(AND(ODD($A13)=$A13,ODD(AF$2)=AF$2),AND(EVEN($A13)=$A13,EVEN(AF$2)=AF$2)),AF$1,-100)) -> 553.125 | AG13: =IF('Ceiling Speaker Calculator'!$C$29="Square",AG$1,IF(OR(AND(ODD($A13)=$A13,ODD(AG$2)=AG$2),AND(EVEN($A13)=$A13,EVEN(AG$2)=AG$2)),AG$1,-100)) -> 571.875 | AH13: =IF('Ceiling Speaker Calculator'!$C$29="Square",AH$1,IF(OR(AND(ODD($A13)=$A13,ODD(AH$2)=AH$2),AND(EVEN($A13)=$A13,EVEN(AH$2)=AH$2)),AH$1,-100)) -> 590.625 | AI13: =IF('Ceiling Speaker Calculator'!$C$29="Square",AI$1,IF(OR(AND(ODD($A13)=$A13,ODD(AI$2)=AI$2),AND(EVEN($A13)=$A13,EVEN(AI$2)=AI$2)),AI$1,-100)) -> 609.375 | AJ13: =IF('Ceiling Speaker Calculator'!$C$29="Square",AJ$1,IF(OR(AND(ODD($A13)=$A13,ODD(AJ$2)=AJ$2),AND(EVEN($A13)=$A13,EVEN(AJ$2)=AJ$2)),AJ$1,-100)) -> 628.125 | AK13: =IF('Ceiling Speaker Calculator'!$C$29="Square",AK$1,IF(OR(AND(ODD($A13)=$A13,ODD(AK$2)=AK$2),AND(EVEN($A13)=$A13,EVEN(AK$2)=AK$2)),AK$1,-100)) -> 646.875 | AL13: =IF('Ceiling Speaker Calculator'!$C$29="Square",AL$1,IF(OR(AND(ODD($A13)=$A13,ODD(AL$2)=AL$2),AND(EVEN($A13)=$A13,EVEN(AL$2)=AL$2)),AL$1,-100)) -> 665.625 | AM13: =IF('Ceiling Speaker Calculator'!$C$29="Square",AM$1,IF(OR(AND(ODD($A13)=$A13,ODD(AM$2)=AM$2),AND(EVEN($A13)=$A13,EVEN(AM$2)=AM$2)),AM$1,-100)) -> 684.375 | AN13: =IF('Ceiling Speaker Calculator'!$C$29="Square",AN$1,IF(OR(AND(ODD($A13)=$A13,ODD(AN$2)=AN$2),AND(EVEN($A13)=$A13,EVEN(AN$2)=AN$2)),AN$1,-100)) -> 703.125 | AO13: =IF('Ceiling Speaker Calculator'!$C$29="Square",AO$1,IF(OR(AND(ODD($A13)=$A13,ODD(AO$2)=AO$2),AND(EVEN($A13)=$A13,EVEN(AO$2)=AO$2)),AO$1,-100)) -> 721.875 | AP13: =IF('Ceiling Speaker Calculator'!$C$29="Square",AP$1,IF(OR(AND(ODD($A13)=$A13,ODD(AP$2)=AP$2),AND(EVEN($A13)=$A13,EVEN(AP$2)=AP$2)),AP$1,-100)) -> 740.625 | AQ13: =IF('Ceiling Speaker Calculator'!$C$29="Square",AQ$1,IF(OR(AND(ODD($A13)=$A13,ODD(AQ$2)=AQ$2),AND(EVEN($A13)=$A13,EVEN(AQ$2)=AQ$2)),AQ$1,-100)) -> 759.375 | AR13: =IF('Ceiling Speaker Calculator'!$C$29="Square",AR$1,IF(OR(AND(ODD($A13)=$A13,ODD(AR$2)=AR$2),AND(EVEN($A13)=$A13,EVEN(AR$2)=AR$2)),AR$1,-100)) -> 778.125 | AS13: =IF('Ceiling Speaker Calculator'!$C$29="Square",AS$1,IF(OR(AND(ODD($A13)=$A13,ODD(AS$2)=AS$2),AND(EVEN($A13)=$A13,EVEN(AS$2)=AS$2)),AS$1,-100)) -> 796.875 | AT13: =IF('Ceiling Speaker Calculator'!$C$29="Square",AT$1,IF(OR(AND(ODD($A13)=$A13,ODD(AT$2)=AT$2),AND(EVEN($A13)=$A13,EVEN(AT$2)=AT$2)),AT$1,-100)) -> 815.625 | AU13: =IF('Ceiling Speaker Calculator'!$C$29="Square",AU$1,IF(OR(AND(ODD($A13)=$A13,ODD(AU$2)=AU$2),AND(EVEN($A13)=$A13,EVEN(AU$2)=AU$2)),AU$1,-100)) -> 834.375 | AV13: =IF('Ceiling Speaker Calculator'!$C$29="Square",AV$1,IF(OR(AND(ODD($A13)=$A13,ODD(AV$2)=AV$2),AND(EVEN($A13)=$A13,EVEN(AV$2)=AV$2)),AV$1,-100)) -> 853.125 | AW13: =IF('Ceiling Speaker Calculator'!$C$29="Square",AW$1,IF(OR(AND(ODD($A13)=$A13,ODD(AW$2)=AW$2),AND(EVEN($A13)=$A13,EVEN(AW$2)=AW$2)),AW$1,-100)) -> 871.875 | AX13: =IF('Ceiling Speaker Calculator'!$C$29="Square",AX$1,IF(OR(AND(ODD($A13)=$A13,ODD(AX$2)=AX$2),AND(EVEN($A13)=$A13,EVEN(AX$2)=AX$2)),AX$1,-100)) -> 890.625 | AY13: =IF('Ceiling Speaker Calculator'!$C$29="Square",AY$1,IF(OR(AND(ODD($A13)=$A13,ODD(AY$2)=AY$2),AND(EVEN($A13)=$A13,EVEN(AY$2)=AY$2)),AY$1,-100)) -> 909.375 | AZ13: =IF('Ceiling Speaker Calculator'!$C$29="Square",AZ$1,IF(OR(AND(ODD($A13)=$A13,ODD(AZ$2)=AZ$2),AND(EVEN($A13)=$A13,EVEN(AZ$2)=AZ$2)),AZ$1,-100)) -> 928.125 | BA13: =IF('Ceiling Speaker Calculator'!$C$29="Square",BA$1,IF(OR(AND(ODD($A13)=$A13,ODD(BA$2)=BA$2),AND(EVEN($A13)=$A13,EVEN(BA$2)=BA$2)),BA$1,-100)) -> 946.875 | BB13: =IF('Ceiling Speaker Calculator'!$C$29="Square",BB$1,IF(OR(AND(ODD($A13)=$A13,ODD(BB$2)=BB$2),AND(EVEN($A13)=$A13,EVEN(BB$2)=BB$2)),BB$1,-100)) -> 965.625 | BC13: =IF('Ceiling Speaker Calculator'!$C$29="Square",BC$1,IF(OR(AND(ODD($A13)=$A13,ODD(BC$2)=BC$2),AND(EVEN($A13)=$A13,EVEN(BC$2)=BC$2)),BC$1,-100)) -> 984.375 | BD13: =IF('Ceiling Speaker Calculator'!$C$29="Square",BD$1,IF(OR(AND(ODD($A13)=$A13,ODD(BD$2)=BD$2),AND(EVEN($A13)=$A13,EVEN(BD$2)=BD$2)),BD$1,-100)) -> 1003.125 | BE13: =IF('Ceiling Speaker Calculator'!$C$29="Square",BE$1,IF(OR(AND(ODD($A13)=$A13,ODD(BE$2)=BE$2),AND(EVEN($A13)=$A13,EVEN(BE$2)=BE$2)),BE$1,-100)) -> 1021.875 | BF13: =IF('Ceiling Speaker Calculator'!$C$29="Square",BF$1,IF(OR(AND(ODD($A13)=$A13,ODD(BF$2)=BF$2),AND(EVEN($A13)=$A13,EVEN(BF$2)=BF$2)),BF$1,-100)) -> 1040.625 | BG13: =IF('Ceiling Speaker Calculator'!$C$29="Square",BG$1,IF(OR(AND(ODD($A13)=$A13,ODD(BG$2)=BG$2),AND(EVEN($A13)=$A13,EVEN(BG$2)=BG$2)),BG$1,-100)) -> 1059.375 | BH13: =IF('Ceiling Speaker Calculator'!$C$29="Square",BH$1,IF(OR(AND(ODD($A13)=$A13,ODD(BH$2)=BH$2),AND(EVEN($A13)=$A13,EVEN(BH$2)=BH$2)),BH$1,-100)) -> 1078.125 | BI13: =IF('Ceiling Speaker Calculator'!$C$29="Square",BI$1,IF(OR(AND(ODD($A13)=$A13,ODD(BI$2)=BI$2),AND(EVEN($A13)=$A13,EVEN(BI$2)=BI$2)),BI$1,-100)) -> 1096.875 | BJ13: =IF('Ceiling Speaker Calculator'!$C$29="Square",BJ$1,IF(OR(AND(ODD($A13)=$A13,ODD(BJ$2)=BJ$2),AND(EVEN($A13)=$A13,EVEN(BJ$2)=BJ$2)),BJ$1,-100)) -> 1115.625 | BK13: =IF('Ceiling Speaker Calculator'!$C$29="Square",BK$1,IF(OR(AND(ODD($A13)=$A13,ODD(BK$2)=BK$2),AND(EVEN($A13)=$A13,EVEN(BK$2)=BK$2)),BK$1,-100)) -> 1134.375 | BL13: =IF('Ceiling Speaker Calculator'!$C$29="Square",BL$1,IF(OR(AND(ODD($A13)=$A13,ODD(BL$2)=BL$2),AND(EVEN($A13)=$A13,EVEN(BL$2)=BL$2)),BL$1,-100)) -> 1153.125 | BM13: =IF('Ceiling Speaker Calculator'!$C$29="Square",BM$1,IF(OR(AND(ODD($A13)=$A13,ODD(BM$2)=BM$2),AND(EVEN($A13)=$A13,EVEN(BM$2)=BM$2)),BM$1,-100)) -> 1171.875 | BN13: =IF('Ceiling Speaker Calculator'!$C$29="Square",BN$1,IF(OR(AND(ODD($A13)=$A13,ODD(BN$2)=BN$2),AND(EVEN($A13)=$A13,EVEN(BN$2)=BN$2)),BN$1,-100)) -> 1190.625 | BO13: =IF('Ceiling Speaker Calculator'!$C$29="Square",BO$1,IF(OR(AND(ODD($A13)=$A13,ODD(BO$2)=BO$2),AND(EVEN($A13)=$A13,EVEN(BO$2)=BO$2)),BO$1,-100)) -> 1209.375 | BP13: =IF('Ceiling Speaker Calculator'!$C$29="Square",BP$1,IF(OR(AND(ODD($A13)=$A13,ODD(BP$2)=BP$2),AND(EVEN($A13)=$A13,EVEN(BP$2)=BP$2)),BP$1,-100)) -> 1228.125 | BQ13: =IF('Ceiling Speaker Calculator'!$C$29="Square",BQ$1,IF(OR(AND(ODD($A13)=$A13,ODD(BQ$2)=BQ$2),AND(EVEN($A13)=$A13,EVEN(BQ$2)=BQ$2)),BQ$1,-100)) -> 1246.875 | BR13: =IF('Ceiling Speaker Calculator'!$C$29="Square",BR$1,IF(OR(AND(ODD($A13)=$A13,ODD(BR$2)=BR$2),AND(EVEN($A13)=$A13,EVEN(BR$2)=BR$2)),BR$1,-100)) -> 1265.625 | BS13: =IF('Ceiling Speaker Calculator'!$C$29="Square",BS$1,IF(OR(AND(ODD($A13)=$A13,ODD(BS$2)=BS$2),AND(EVEN($A13)=$A13,EVEN(BS$2)=BS$2)),BS$1,-100)) -> 1284.375 | BT13: =IF('Ceiling Speaker Calculator'!$C$29="Square",BT$1,IF(OR(AND(ODD($A13)=$A13,ODD(BT$2)=BT$2),AND(EVEN($A13)=$A13,EVEN(BT$2)=BT$2)),BT$1,-100)) -> 1303.125 | BU13: =IF('Ceiling Speaker Calculator'!$C$29="Square",BU$1,IF(OR(AND(ODD($A13)=$A13,ODD(BU$2)=BU$2),AND(EVEN($A13)=$A13,EVEN(BU$2)=BU$2)),BU$1,-100)) -> 1321.875 | BV13: =IF('Ceiling Speaker Calculator'!$C$29="Square",BV$1,IF(OR(AND(ODD($A13)=$A13,ODD(BV$2)=BV$2),AND(EVEN($A13)=$A13,EVEN(BV$2)=BV$2)),BV$1,-100)) -> 1340.625 | BW13: =IF('Ceiling Speaker Calculator'!$C$29="Square",BW$1,IF(OR(AND(ODD($A13)=$A13,ODD(BW$2)=BW$2),AND(EVEN($A13)=$A13,EVEN(BW$2)=BW$2)),BW$1,-100)) -> 1359.375 | BX13: =IF('Ceiling Speaker Calculator'!$C$29="Square",BX$1,IF(OR(AND(ODD($A13)=$A13,ODD(BX$2)=BX$2),AND(EVEN($A13)=$A13,EVEN(BX$2)=BX$2)),BX$1,-100)) -> 1378.125 | BY13: =IF('Ceiling Speaker Calculator'!$C$29="Square",BY$1,IF(OR(AND(ODD($A13)=$A13,ODD(BY$2)=BY$2),AND(EVEN($A13)=$A13,EVEN(BY$2)=BY$2)),BY$1,-100)) -> 1396.875 | BZ13: =IF('Ceiling Speaker Calculator'!$C$29="Square",BZ$1,IF(OR(AND(ODD($A13)=$A13,ODD(BZ$2)=BZ$2),AND(EVEN($A13)=$A13,EVEN(BZ$2)=BZ$2)),BZ$1,-100)) -> 1415.625 | CA13: =IF('Ceiling Speaker Calculator'!$C$29="Square",CA$1,IF(OR(AND(ODD($A13)=$A13,ODD(CA$2)=CA$2),AND(EVEN($A13)=$A13,EVEN(CA$2)=CA$2)),CA$1,-100)) -> 1434.375 | CB13: =IF('Ceiling Speaker Calculator'!$C$29="Square",CB$1,IF(OR(AND(ODD($A13)=$A13,ODD(CB$2)=CB$2),AND(EVEN($A13)=$A13,EVEN(CB$2)=CB$2)),CB$1,-100)) -> 1453.125 | CC13: =IF('Ceiling Speaker Calculator'!$C$29="Square",CC$1,IF(OR(AND(ODD($A13)=$A13,ODD(CC$2)=CC$2),AND(EVEN($A13)=$A13,EVEN(CC$2)=CC$2)),CC$1,-100)) -> 1471.875 | CD13: =IF('Ceiling Speaker Calculator'!$C$29="Square",CD$1,IF(OR(AND(ODD($A13)=$A13,ODD(CD$2)=CD$2),AND(EVEN($A13)=$A13,EVEN(CD$2)=CD$2)),CD$1,-100)) -> 1490.625 | CE13: =IF('Ceiling Speaker Calculator'!$C$29="Square",CE$1,IF(OR(AND(ODD($A13)=$A13,ODD(CE$2)=CE$2),AND(EVEN($A13)=$A13,EVEN(CE$2)=CE$2)),CE$1,-100)) -> 1509.375 | CF13: =IF('Ceiling Speaker Calculator'!$C$29="Square",CF$1,IF(OR(AND(ODD($A13)=$A13,ODD(CF$2)=CF$2),AND(EVEN($A13)=$A13,EVEN(CF$2)=CF$2)),CF$1,-100)) -> 1528.125 | CG13: =IF('Ceiling Speaker Calculator'!$C$29="Square",CG$1,IF(OR(AND(ODD($A13)=$A13,ODD(CG$2)=CG$2),AND(EVEN($A13)=$A13,EVEN(CG$2)=CG$2)),CG$1,-100)) -> 1546.875 | CH13: =IF('Ceiling Speaker Calculator'!$C$29="Square",CH$1,IF(OR(AND(ODD($A13)=$A13,ODD(CH$2)=CH$2),AND(EVEN($A13)=$A13,EVEN(CH$2)=CH$2)),CH$1,-100)) -> 1565.625 | CI13: =IF('Ceiling Speaker Calculator'!$C$29="Square",CI$1,IF(OR(AND(ODD($A13)=$A13,ODD(CI$2)=CI$2),AND(EVEN($A13)=$A13,EVEN(CI$2)=CI$2)),CI$1,-100)) -> 1584.375 | CJ13: =IF('Ceiling Speaker Calculator'!$C$29="Square",CJ$1,IF(OR(AND(ODD($A13)=$A13,ODD(CJ$2)=CJ$2),AND(EVEN($A13)=$A13,EVEN(CJ$2)=CJ$2)),CJ$1,-100)) -> 1603.125 | CK13: =IF('Ceiling Speaker Calculator'!$C$29="Square",CK$1,IF(OR(AND(ODD($A13)=$A13,ODD(CK$2)=CK$2),AND(EVEN($A13)=$A13,EVEN(CK$2)=CK$2)),CK$1,-100)) -> 1621.875 | CL13: =IF('Ceiling Speaker Calculator'!$C$29="Square",CL$1,IF(OR(AND(ODD($A13)=$A13,ODD(CL$2)=CL$2),AND(EVEN($A13)=$A13,EVEN(CL$2)=CL$2)),CL$1,-100)) -> 1640.625 | CM13: =IF('Ceiling Speaker Calculator'!$C$29="Square",CM$1,IF(OR(AND(ODD($A13)=$A13,ODD(CM$2)=CM$2),AND(EVEN($A13)=$A13,EVEN(CM$2)=CM$2)),CM$1,-100)) -> 1659.375 | CN13: =IF('Ceiling Speaker Calculator'!$C$29="Square",CN$1,IF(OR(AND(ODD($A13)=$A13,ODD(CN$2)=CN$2),AND(EVEN($A13)=$A13,EVEN(CN$2)=CN$2)),CN$1,-100)) -> 1678.125 | CO13: =IF('Ceiling Speaker Calculator'!$C$29="Square",CO$1,IF(OR(AND(ODD($A13)=$A13,ODD(CO$2)=CO$2),AND(EVEN($A13)=$A13,EVEN(CO$2)=CO$2)),CO$1,-100)) -> 1696.875 | CP13: =IF('Ceiling Speaker Calculator'!$C$29="Square",CP$1,IF(OR(AND(ODD($A13)=$A13,ODD(CP$2)=CP$2),AND(EVEN($A13)=$A13,EVEN(CP$2)=CP$2)),CP$1,-100)) -> 1715.625 | CQ13: =IF('Ceiling Speaker Calculator'!$C$29="Square",CQ$1,IF(OR(AND(ODD($A13)=$A13,ODD(CQ$2)=CQ$2),AND(EVEN($A13)=$A13,EVEN(CQ$2)=CQ$2)),CQ$1,-100)) -> 1734.375 | CR13: =IF('Ceiling Speaker Calculator'!$C$29="Square",CR$1,IF(OR(AND(ODD($A13)=$A13,ODD(CR$2)=CR$2),AND(EVEN($A13)=$A13,EVEN(CR$2)=CR$2)),CR$1,-100)) -> 1753.125 | CS13: =IF('Ceiling Speaker Calculator'!$C$29="Square",CS$1,IF(OR(AND(ODD($A13)=$A13,ODD(CS$2)=CS$2),AND(EVEN($A13)=$A13,EVEN(CS$2)=CS$2)),CS$1,-100)) -> 1771.875 | CT13: =IF('Ceiling Speaker Calculator'!$C$29="Square",CT$1,IF(OR(AND(ODD($A13)=$A13,ODD(CT$2)=CT$2),AND(EVEN($A13)=$A13,EVEN(CT$2)=CT$2)),CT$1,-100)) -> 1790.625 | CU13: =IF('Ceiling Speaker Calculator'!$C$29="Square",CU$1,IF(OR(AND(ODD($A13)=$A13,ODD(CU$2)=CU$2),AND(EVEN($A13)=$A13,EVEN(CU$2)=CU$2)),CU$1,-100)) -> 1809.375 | CV13: =IF('Ceiling Speaker Calculator'!$C$29="Square",CV$1,IF(OR(AND(ODD($A13)=$A13,ODD(CV$2)=CV$2),AND(EVEN($A13)=$A13,EVEN(CV$2)=CV$2)),CV$1,-100)) -> 1828.125 | CW13: =IF('Ceiling Speaker Calculator'!$C$29="Square",CW$1,IF(OR(AND(ODD($A13)=$A13,ODD(CW$2)=CW$2),AND(EVEN($A13)=$A13,EVEN(CW$2)=CW$2)),CW$1,-100)) -> 1846.875 | CX13: =IF('Ceiling Speaker Calculator'!$C$29="Square",CX$1,IF(OR(AND(ODD($A13)=$A13,ODD(CX$2)=CX$2),AND(EVEN($A13)=$A13,EVEN(CX$2)=CX$2)),CX$1,-100)) -> 1865.625
A14: 12 | B14: =B13+'Ceiling Speaker Calculator'!$K$16 -> 230 | C14: =IF('Ceiling Speaker Calculator'!$C$29="Square",C$1,IF(OR(AND(ODD($A14)=$A14,ODD(C$2)=C$2),AND(EVEN($A14)=$A14,EVEN(C$2)=C$2)),C$1,-100)) -> 9.375 | D14: =IF('Ceiling Speaker Calculator'!$C$29="Square",D$1,IF(OR(AND(ODD($A14)=$A14,ODD(D$2)=D$2),AND(EVEN($A14)=$A14,EVEN(D$2)=D$2)),D$1,-100)) -> 28.125 | E14: =IF('Ceiling Speaker Calculator'!$C$29="Square",E$1,IF(OR(AND(ODD($A14)=$A14,ODD(E$2)=E$2),AND(EVEN($A14)=$A14,EVEN(E$2)=E$2)),E$1,-100)) -> 46.875 | F14: =IF('Ceiling Speaker Calculator'!$C$29="Square",F$1,IF(OR(AND(ODD($A14)=$A14,ODD(F$2)=F$2),AND(EVEN($A14)=$A14,EVEN(F$2)=F$2)),F$1,-100)) -> 65.625 | G14: =IF('Ceiling Speaker Calculator'!$C$29="Square",G$1,IF(OR(AND(ODD($A14)=$A14,ODD(G$2)=G$2),AND(EVEN($A14)=$A14,EVEN(G$2)=G$2)),G$1,-100)) -> 84.375 | H14: =IF('Ceiling Speaker Calculator'!$C$29="Square",H$1,IF(OR(AND(ODD($A14)=$A14,ODD(H$2)=H$2),AND(EVEN($A14)=$A14,EVEN(H$2)=H$2)),H$1,-100)) -> 103.125 | I14: =IF('Ceiling Speaker Calculator'!$C$29="Square",I$1,IF(OR(AND(ODD($A14)=$A14,ODD(I$2)=I$2),AND(EVEN($A14)=$A14,EVEN(I$2)=I$2)),I$1,-100)) -> 121.875 | J14: =IF('Ceiling Speaker Calculator'!$C$29="Square",J$1,IF(OR(AND(ODD($A14)=$A14,ODD(J$2)=J$2),AND(EVEN($A14)=$A14,EVEN(J$2)=J$2)),J$1,-100)) -> 140.625 | K14: =IF('Ceiling Speaker Calculator'!$C$29="Square",K$1,IF(OR(AND(ODD($A14)=$A14,ODD(K$2)=K$2),AND(EVEN($A14)=$A14,EVEN(K$2)=K$2)),K$1,-100)) -> 159.375 | L14: =IF('Ceiling Speaker Calculator'!$C$29="Square",L$1,IF(OR(AND(ODD($A14)=$A14,ODD(L$2)=L$2),AND(EVEN($A14)=$A14,EVEN(L$2)=L$2)),L$1,-100)) -> 178.125 | M14: =IF('Ceiling Speaker Calculator'!$C$29="Square",M$1,IF(OR(AND(ODD($A14)=$A14,ODD(M$2)=M$2),AND(EVEN($A14)=$A14,EVEN(M$2)=M$2)),M$1,-100)) -> 196.875 | N14: =IF('Ceiling Speaker Calculator'!$C$29="Square",N$1,IF(OR(AND(ODD($A14)=$A14,ODD(N$2)=N$2),AND(EVEN($A14)=$A14,EVEN(N$2)=N$2)),N$1,-100)) -> 215.625 | O14: =IF('Ceiling Speaker Calculator'!$C$29="Square",O$1,IF(OR(AND(ODD($A14)=$A14,ODD(O$2)=O$2),AND(EVEN($A14)=$A14,EVEN(O$2)=O$2)),O$1,-100)) -> 234.375 | P14: =IF('Ceiling Speaker Calculator'!$C$29="Square",P$1,IF(OR(AND(ODD($A14)=$A14,ODD(P$2)=P$2),AND(EVEN($A14)=$A14,EVEN(P$2)=P$2)),P$1,-100)) -> 253.125 | Q14: =IF('Ceiling Speaker Calculator'!$C$29="Square",Q$1,IF(OR(AND(ODD($A14)=$A14,ODD(Q$2)=Q$2),AND(EVEN($A14)=$A14,EVEN(Q$2)=Q$2)),Q$1,-100)) -> 271.875 | R14: =IF('Ceiling Speaker Calculator'!$C$29="Square",R$1,IF(OR(AND(ODD($A14)=$A14,ODD(R$2)=R$2),AND(EVEN($A14)=$A14,EVEN(R$2)=R$2)),R$1,-100)) -> 290.625 | S14: =IF('Ceiling Speaker Calculator'!$C$29="Square",S$1,IF(OR(AND(ODD($A14)=$A14,ODD(S$2)=S$2),AND(EVEN($A14)=$A14,EVEN(S$2)=S$2)),S$1,-100)) -> 309.375 | T14: =IF('Ceiling Speaker Calculator'!$C$29="Square",T$1,IF(OR(AND(ODD($A14)=$A14,ODD(T$2)=T$2),AND(EVEN($A14)=$A14,EVEN(T$2)=T$2)),T$1,-100)) -> 328.125 | U14: =IF('Ceiling Speaker Calculator'!$C$29="Square",U$1,IF(OR(AND(ODD($A14)=$A14,ODD(U$2)=U$2),AND(EVEN($A14)=$A14,EVEN(U$2)=U$2)),U$1,-100)) -> 346.875 | V14: =IF('Ceiling Speaker Calculator'!$C$29="Square",V$1,IF(OR(AND(ODD($A14)=$A14,ODD(V$2)=V$2),AND(EVEN($A14)=$A14,EVEN(V$2)=V$2)),V$1,-100)) -> 365.625 | W14: =IF('Ceiling Speaker Calculator'!$C$29="Square",W$1,IF(OR(AND(ODD($A14)=$A14,ODD(W$2)=W$2),AND(EVEN($A14)=$A14,EVEN(W$2)=W$2)),W$1,-100)) -> 384.375 | X14: =IF('Ceiling Speaker Calculator'!$C$29="Square",X$1,IF(OR(AND(ODD($A14)=$A14,ODD(X$2)=X$2),AND(EVEN($A14)=$A14,EVEN(X$2)=X$2)),X$1,-100)) -> 403.125 | Y14: =IF('Ceiling Speaker Calculator'!$C$29="Square",Y$1,IF(OR(AND(ODD($A14)=$A14,ODD(Y$2)=Y$2),AND(EVEN($A14)=$A14,EVEN(Y$2)=Y$2)),Y$1,-100)) -> 421.875 | Z14: =IF('Ceiling Speaker Calculator'!$C$29="Square",Z$1,IF(OR(AND(ODD($A14)=$A14,ODD(Z$2)=Z$2),AND(EVEN($A14)=$A14,EVEN(Z$2)=Z$2)),Z$1,-100)) -> 440.625 | AA14: =IF('Ceiling Speaker Calculator'!$C$29="Square",AA$1,IF(OR(AND(ODD($A14)=$A14,ODD(AA$2)=AA$2),AND(EVEN($A14)=$A14,EVEN(AA$2)=AA$2)),AA$1,-100)) -> 459.375 | AB14: =IF('Ceiling Speaker Calculator'!$C$29="Square",AB$1,IF(OR(AND(ODD($A14)=$A14,ODD(AB$2)=AB$2),AND(EVEN($A14)=$A14,EVEN(AB$2)=AB$2)),AB$1,-100)) -> 478.125 | AC14: =IF('Ceiling Speaker Calculator'!$C$29="Square",AC$1,IF(OR(AND(ODD($A14)=$A14,ODD(AC$2)=AC$2),AND(EVEN($A14)=$A14,EVEN(AC$2)=AC$2)),AC$1,-100)) -> 496.875 | AD14: =IF('Ceiling Speaker Calculator'!$C$29="Square",AD$1,IF(OR(AND(ODD($A14)=$A14,ODD(AD$2)=AD$2),AND(EVEN($A14)=$A14,EVEN(AD$2)=AD$2)),AD$1,-100)) -> 515.625 | AE14: =IF('Ceiling Speaker Calculator'!$C$29="Square",AE$1,IF(OR(AND(ODD($A14)=$A14,ODD(AE$2)=AE$2),AND(EVEN($A14)=$A14,EVEN(AE$2)=AE$2)),AE$1,-100)) -> 534.375 | AF14: =IF('Ceiling Speaker Calculator'!$C$29="Square",AF$1,IF(OR(AND(ODD($A14)=$A14,ODD(AF$2)=AF$2),AND(EVEN($A14)=$A14,EVEN(AF$2)=AF$2)),AF$1,-100)) -> 553.125 | AG14: =IF('Ceiling Speaker Calculator'!$C$29="Square",AG$1,IF(OR(AND(ODD($A14)=$A14,ODD(AG$2)=AG$2),AND(EVEN($A14)=$A14,EVEN(AG$2)=AG$2)),AG$1,-100)) -> 571.875 | AH14: =IF('Ceiling Speaker Calculator'!$C$29="Square",AH$1,IF(OR(AND(ODD($A14)=$A14,ODD(AH$2)=AH$2),AND(EVEN($A14)=$A14,EVEN(AH$2)=AH$2)),AH$1,-100)) -> 590.625 | AI14: =IF('Ceiling Speaker Calculator'!$C$29="Square",AI$1,IF(OR(AND(ODD($A14)=$A14,ODD(AI$2)=AI$2),AND(EVEN($A14)=$A14,EVEN(AI$2)=AI$2)),AI$1,-100)) -> 609.375 | AJ14: =IF('Ceiling Speaker Calculator'!$C$29="Square",AJ$1,IF(OR(AND(ODD($A14)=$A14,ODD(AJ$2)=AJ$2),AND(EVEN($A14)=$A14,EVEN(AJ$2)=AJ$2)),AJ$1,-100)) -> 628.125 | AK14: =IF('Ceiling Speaker Calculator'!$C$29="Square",AK$1,IF(OR(AND(ODD($A14)=$A14,ODD(AK$2)=AK$2),AND(EVEN($A14)=$A14,EVEN(AK$2)=AK$2)),AK$1,-100)) -> 646.875 | AL14: =IF('Ceiling Speaker Calculator'!$C$29="Square",AL$1,IF(OR(AND(ODD($A14)=$A14,ODD(AL$2)=AL$2),AND(EVEN($A14)=$A14,EVEN(AL$2)=AL$2)),AL$1,-100)) -> 665.625 | AM14: =IF('Ceiling Speaker Calculator'!$C$29="Square",AM$1,IF(OR(AND(ODD($A14)=$A14,ODD(AM$2)=AM$2),AND(EVEN($A14)=$A14,EVEN(AM$2)=AM$2)),AM$1,-100)) -> 684.375 | AN14: =IF('Ceiling Speaker Calculator'!$C$29="Square",AN$1,IF(OR(AND(ODD($A14)=$A14,ODD(AN$2)=AN$2),AND(EVEN($A14)=$A14,EVEN(AN$2)=AN$2)),AN$1,-100)) -> 703.125 | AO14: =IF('Ceiling Speaker Calculator'!$C$29="Square",AO$1,IF(OR(AND(ODD($A14)=$A14,ODD(AO$2)=AO$2),AND(EVEN($A14)=$A14,EVEN(AO$2)=AO$2)),AO$1,-100)) -> 721.875 | AP14: =IF('Ceiling Speaker Calculator'!$C$29="Square",AP$1,IF(OR(AND(ODD($A14)=$A14,ODD(AP$2)=AP$2),AND(EVEN($A14)=$A14,EVEN(AP$2)=AP$2)),AP$1,-100)) -> 740.625 | AQ14: =IF('Ceiling Speaker Calculator'!$C$29="Square",AQ$1,IF(OR(AND(ODD($A14)=$A14,ODD(AQ$2)=AQ$2),AND(EVEN($A14)=$A14,EVEN(AQ$2)=AQ$2)),AQ$1,-100)) -> 759.375 | AR14: =IF('Ceiling Speaker Calculator'!$C$29="Square",AR$1,IF(OR(AND(ODD($A14)=$A14,ODD(AR$2)=AR$2),AND(EVEN($A14)=$A14,EVEN(AR$2)=AR$2)),AR$1,-100)) -> 778.125 | AS14: =IF('Ceiling Speaker Calculator'!$C$29="Square",AS$1,IF(OR(AND(ODD($A14)=$A14,ODD(AS$2)=AS$2),AND(EVEN($A14)=$A14,EVEN(AS$2)=AS$2)),AS$1,-100)) -> 796.875 | AT14: =IF('Ceiling Speaker Calculator'!$C$29="Square",AT$1,IF(OR(AND(ODD($A14)=$A14,ODD(AT$2)=AT$2),AND(EVEN($A14)=$A14,EVEN(AT$2)=AT$2)),AT$1,-100)) -> 815.625 | AU14: =IF('Ceiling Speaker Calculator'!$C$29="Square",AU$1,IF(OR(AND(ODD($A14)=$A14,ODD(AU$2)=AU$2),AND(EVEN($A14)=$A14,EVEN(AU$2)=AU$2)),AU$1,-100)) -> 834.375 | AV14: =IF('Ceiling Speaker Calculator'!$C$29="Square",AV$1,IF(OR(AND(ODD($A14)=$A14,ODD(AV$2)=AV$2),AND(EVEN($A14)=$A14,EVEN(AV$2)=AV$2)),AV$1,-100)) -> 853.125 | AW14: =IF('Ceiling Speaker Calculator'!$C$29="Square",AW$1,IF(OR(AND(ODD($A14)=$A14,ODD(AW$2)=AW$2),AND(EVEN($A14)=$A14,EVEN(AW$2)=AW$2)),AW$1,-100)) -> 871.875 | AX14: =IF('Ceiling Speaker Calculator'!$C$29="Square",AX$1,IF(OR(AND(ODD($A14)=$A14,ODD(AX$2)=AX$2),AND(EVEN($A14)=$A14,EVEN(AX$2)=AX$2)),AX$1,-100)) -> 890.625 | AY14: =IF('Ceiling Speaker Calculator'!$C$29="Square",AY$1,IF(OR(AND(ODD($A14)=$A14,ODD(AY$2)=AY$2),AND(EVEN($A14)=$A14,EVEN(AY$2)=AY$2)),AY$1,-100)) -> 909.375 | AZ14: =IF('Ceiling Speaker Calculator'!$C$29="Square",AZ$1,IF(OR(AND(ODD($A14)=$A14,ODD(AZ$2)=AZ$2),AND(EVEN($A14)=$A14,EVEN(AZ$2)=AZ$2)),AZ$1,-100)) -> 928.125 | BA14: =IF('Ceiling Speaker Calculator'!$C$29="Square",BA$1,IF(OR(AND(ODD($A14)=$A14,ODD(BA$2)=BA$2),AND(EVEN($A14)=$A14,EVEN(BA$2)=BA$2)),BA$1,-100)) -> 946.875 | BB14: =IF('Ceiling Speaker Calculator'!$C$29="Square",BB$1,IF(OR(AND(ODD($A14)=$A14,ODD(BB$2)=BB$2),AND(EVEN($A14)=$A14,EVEN(BB$2)=BB$2)),BB$1,-100)) -> 965.625 | BC14: =IF('Ceiling Speaker Calculator'!$C$29="Square",BC$1,IF(OR(AND(ODD($A14)=$A14,ODD(BC$2)=BC$2),AND(EVEN($A14)=$A14,EVEN(BC$2)=BC$2)),BC$1,-100)) -> 984.375 | BD14: =IF('Ceiling Speaker Calculator'!$C$29="Square",BD$1,IF(OR(AND(ODD($A14)=$A14,ODD(BD$2)=BD$2),AND(EVEN($A14)=$A14,EVEN(BD$2)=BD$2)),BD$1,-100)) -> 1003.125 | BE14: =IF('Ceiling Speaker Calculator'!$C$29="Square",BE$1,IF(OR(AND(ODD($A14)=$A14,ODD(BE$2)=BE$2),AND(EVEN($A14)=$A14,EVEN(BE$2)=BE$2)),BE$1,-100)) -> 1021.875 | BF14: =IF('Ceiling Speaker Calculator'!$C$29="Square",BF$1,IF(OR(AND(ODD($A14)=$A14,ODD(BF$2)=BF$2),AND(EVEN($A14)=$A14,EVEN(BF$2)=BF$2)),BF$1,-100)) -> 1040.625 | BG14: =IF('Ceiling Speaker Calculator'!$C$29="Square",BG$1,IF(OR(AND(ODD($A14)=$A14,ODD(BG$2)=BG$2),AND(EVEN($A14)=$A14,EVEN(BG$2)=BG$2)),BG$1,-100)) -> 1059.375 | BH14: =IF('Ceiling Speaker Calculator'!$C$29="Square",BH$1,IF(OR(AND(ODD($A14)=$A14,ODD(BH$2)=BH$2),AND(EVEN($A14)=$A14,EVEN(BH$2)=BH$2)),BH$1,-100)) -> 1078.125 | BI14: =IF('Ceiling Speaker Calculator'!$C$29="Square",BI$1,IF(OR(AND(ODD($A14)=$A14,ODD(BI$2)=BI$2),AND(EVEN($A14)=$A14,EVEN(BI$2)=BI$2)),BI$1,-100)) -> 1096.875 | BJ14: =IF('Ceiling Speaker Calculator'!$C$29="Square",BJ$1,IF(OR(AND(ODD($A14)=$A14,ODD(BJ$2)=BJ$2),AND(EVEN($A14)=$A14,EVEN(BJ$2)=BJ$2)),BJ$1,-100)) -> 1115.625 | BK14: =IF('Ceiling Speaker Calculator'!$C$29="Square",BK$1,IF(OR(AND(ODD($A14)=$A14,ODD(BK$2)=BK$2),AND(EVEN($A14)=$A14,EVEN(BK$2)=BK$2)),BK$1,-100)) -> 1134.375 | BL14: =IF('Ceiling Speaker Calculator'!$C$29="Square",BL$1,IF(OR(AND(ODD($A14)=$A14,ODD(BL$2)=BL$2),AND(EVEN($A14)=$A14,EVEN(BL$2)=BL$2)),BL$1,-100)) -> 1153.125 | BM14: =IF('Ceiling Speaker Calculator'!$C$29="Square",BM$1,IF(OR(AND(ODD($A14)=$A14,ODD(BM$2)=BM$2),AND(EVEN($A14)=$A14,EVEN(BM$2)=BM$2)),BM$1,-100)) -> 1171.875 | BN14: =IF('Ceiling Speaker Calculator'!$C$29="Square",BN$1,IF(OR(AND(ODD($A14)=$A14,ODD(BN$2)=BN$2),AND(EVEN($A14)=$A14,EVEN(BN$2)=BN$2)),BN$1,-100)) -> 1190.625 | BO14: =IF('Ceiling Speaker Calculator'!$C$29="Square",BO$1,IF(OR(AND(ODD($A14)=$A14,ODD(BO$2)=BO$2),AND(EVEN($A14)=$A14,EVEN(BO$2)=BO$2)),BO$1,-100)) -> 1209.375 | BP14: =IF('Ceiling Speaker Calculator'!$C$29="Square",BP$1,IF(OR(AND(ODD($A14)=$A14,ODD(BP$2)=BP$2),AND(EVEN($A14)=$A14,EVEN(BP$2)=BP$2)),BP$1,-100)) -> 1228.125 | BQ14: =IF('Ceiling Speaker Calculator'!$C$29="Square",BQ$1,IF(OR(AND(ODD($A14)=$A14,ODD(BQ$2)=BQ$2),AND(EVEN($A14)=$A14,EVEN(BQ$2)=BQ$2)),BQ$1,-100)) -> 1246.875 | BR14: =IF('Ceiling Speaker Calculator'!$C$29="Square",BR$1,IF(OR(AND(ODD($A14)=$A14,ODD(BR$2)=BR$2),AND(EVEN($A14)=$A14,EVEN(BR$2)=BR$2)),BR$1,-100)) -> 1265.625 | BS14: =IF('Ceiling Speaker Calculator'!$C$29="Square",BS$1,IF(OR(AND(ODD($A14)=$A14,ODD(BS$2)=BS$2),AND(EVEN($A14)=$A14,EVEN(BS$2)=BS$2)),BS$1,-100)) -> 1284.375 | BT14: =IF('Ceiling Speaker Calculator'!$C$29="Square",BT$1,IF(OR(AND(ODD($A14)=$A14,ODD(BT$2)=BT$2),AND(EVEN($A14)=$A14,EVEN(BT$2)=BT$2)),BT$1,-100)) -> 1303.125 | BU14: =IF('Ceiling Speaker Calculator'!$C$29="Square",BU$1,IF(OR(AND(ODD($A14)=$A14,ODD(BU$2)=BU$2),AND(EVEN($A14)=$A14,EVEN(BU$2)=BU$2)),BU$1,-100)) -> 1321.875 | BV14: =IF('Ceiling Speaker Calculator'!$C$29="Square",BV$1,IF(OR(AND(ODD($A14)=$A14,ODD(BV$2)=BV$2),AND(EVEN($A14)=$A14,EVEN(BV$2)=BV$2)),BV$1,-100)) -> 1340.625 | BW14: =IF('Ceiling Speaker Calculator'!$C$29="Square",BW$1,IF(OR(AND(ODD($A14)=$A14,ODD(BW$2)=BW$2),AND(EVEN($A14)=$A14,EVEN(BW$2)=BW$2)),BW$1,-100)) -> 1359.375 | BX14: =IF('Ceiling Speaker Calculator'!$C$29="Square",BX$1,IF(OR(AND(ODD($A14)=$A14,ODD(BX$2)=BX$2),AND(EVEN($A14)=$A14,EVEN(BX$2)=BX$2)),BX$1,-100)) -> 1378.125 | BY14: =IF('Ceiling Speaker Calculator'!$C$29="Square",BY$1,IF(OR(AND(ODD($A14)=$A14,ODD(BY$2)=BY$2),AND(EVEN($A14)=$A14,EVEN(BY$2)=BY$2)),BY$1,-100)) -> 1396.875 | BZ14: =IF('Ceiling Speaker Calculator'!$C$29="Square",BZ$1,IF(OR(AND(ODD($A14)=$A14,ODD(BZ$2)=BZ$2),AND(EVEN($A14)=$A14,EVEN(BZ$2)=BZ$2)),BZ$1,-100)) -> 1415.625 | CA14: =IF('Ceiling Speaker Calculator'!$C$29="Square",CA$1,IF(OR(AND(ODD($A14)=$A14,ODD(CA$2)=CA$2),AND(EVEN($A14)=$A14,EVEN(CA$2)=CA$2)),CA$1,-100)) -> 1434.375 | CB14: =IF('Ceiling Speaker Calculator'!$C$29="Square",CB$1,IF(OR(AND(ODD($A14)=$A14,ODD(CB$2)=CB$2),AND(EVEN($A14)=$A14,EVEN(CB$2)=CB$2)),CB$1,-100)) -> 1453.125 | CC14: =IF('Ceiling Speaker Calculator'!$C$29="Square",CC$1,IF(OR(AND(ODD($A14)=$A14,ODD(CC$2)=CC$2),AND(EVEN($A14)=$A14,EVEN(CC$2)=CC$2)),CC$1,-100)) -> 1471.875 | CD14: =IF('Ceiling Speaker Calculator'!$C$29="Square",CD$1,IF(OR(AND(ODD($A14)=$A14,ODD(CD$2)=CD$2),AND(EVEN($A14)=$A14,EVEN(CD$2)=CD$2)),CD$1,-100)) -> 1490.625 | CE14: =IF('Ceiling Speaker Calculator'!$C$29="Square",CE$1,IF(OR(AND(ODD($A14)=$A14,ODD(CE$2)=CE$2),AND(EVEN($A14)=$A14,EVEN(CE$2)=CE$2)),CE$1,-100)) -> 1509.375 | CF14: =IF('Ceiling Speaker Calculator'!$C$29="Square",CF$1,IF(OR(AND(ODD($A14)=$A14,ODD(CF$2)=CF$2),AND(EVEN($A14)=$A14,EVEN(CF$2)=CF$2)),CF$1,-100)) -> 1528.125 | CG14: =IF('Ceiling Speaker Calculator'!$C$29="Square",CG$1,IF(OR(AND(ODD($A14)=$A14,ODD(CG$2)=CG$2),AND(EVEN($A14)=$A14,EVEN(CG$2)=CG$2)),CG$1,-100)) -> 1546.875 | CH14: =IF('Ceiling Speaker Calculator'!$C$29="Square",CH$1,IF(OR(AND(ODD($A14)=$A14,ODD(CH$2)=CH$2),AND(EVEN($A14)=$A14,EVEN(CH$2)=CH$2)),CH$1,-100)) -> 1565.625 | CI14: =IF('Ceiling Speaker Calculator'!$C$29="Square",CI$1,IF(OR(AND(ODD($A14)=$A14,ODD(CI$2)=CI$2),AND(EVEN($A14)=$A14,EVEN(CI$2)=CI$2)),CI$1,-100)) -> 1584.375 | CJ14: =IF('Ceiling Speaker Calculator'!$C$29="Square",CJ$1,IF(OR(AND(ODD($A14)=$A14,ODD(CJ$2)=CJ$2),AND(EVEN($A14)=$A14,EVEN(CJ$2)=CJ$2)),CJ$1,-100)) -> 1603.125 | CK14: =IF('Ceiling Speaker Calculator'!$C$29="Square",CK$1,IF(OR(AND(ODD($A14)=$A14,ODD(CK$2)=CK$2),AND(EVEN($A14)=$A14,EVEN(CK$2)=CK$2)),CK$1,-100)) -> 1621.875 | CL14: =IF('Ceiling Speaker Calculator'!$C$29="Square",CL$1,IF(OR(AND(ODD($A14)=$A14,ODD(CL$2)=CL$2),AND(EVEN($A14)=$A14,EVEN(CL$2)=CL$2)),CL$1,-100)) -> 1640.625 | CM14: =IF('Ceiling Speaker Calculator'!$C$29="Square",CM$1,IF(OR(AND(ODD($A14)=$A14,ODD(CM$2)=CM$2),AND(EVEN($A14)=$A14,EVEN(CM$2)=CM$2)),CM$1,-100)) -> 1659.375 | CN14: =IF('Ceiling Speaker Calculator'!$C$29="Square",CN$1,IF(OR(AND(ODD($A14)=$A14,ODD(CN$2)=CN$2),AND(EVEN($A14)=$A14,EVEN(CN$2)=CN$2)),CN$1,-100)) -> 1678.125 | CO14: =IF('Ceiling Speaker Calculator'!$C$29="Square",CO$1,IF(OR(AND(ODD($A14)=$A14,ODD(CO$2)=CO$2),AND(EVEN($A14)=$A14,EVEN(CO$2)=CO$2)),CO$1,-100)) -> 1696.875 | CP14: =IF('Ceiling Speaker Calculator'!$C$29="Square",CP$1,IF(OR(AND(ODD($A14)=$A14,ODD(CP$2)=CP$2),AND(EVEN($A14)=$A14,EVEN(CP$2)=CP$2)),CP$1,-100)) -> 1715.625 | CQ14: =IF('Ceiling Speaker Calculator'!$C$29="Square",CQ$1,IF(OR(AND(ODD($A14)=$A14,ODD(CQ$2)=CQ$2),AND(EVEN($A14)=$A14,EVEN(CQ$2)=CQ$2)),CQ$1,-100)) -> 1734.375 | CR14: =IF('Ceiling Speaker Calculator'!$C$29="Square",CR$1,IF(OR(AND(ODD($A14)=$A14,ODD(CR$2)=CR$2),AND(EVEN($A14)=$A14,EVEN(CR$2)=CR$2)),CR$1,-100)) -> 1753.125 | CS14: =IF('Ceiling Speaker Calculator'!$C$29="Square",CS$1,IF(OR(AND(ODD($A14)=$A14,ODD(CS$2)=CS$2),AND(EVEN($A14)=$A14,EVEN(CS$2)=CS$2)),CS$1,-100)) -> 1771.875 | CT14: =IF('Ceiling Speaker Calculator'!$C$29="Square",CT$1,IF(OR(AND(ODD($A14)=$A14,ODD(CT$2)=CT$2),AND(EVEN($A14)=$A14,EVEN(CT$2)=CT$2)),CT$1,-100)) -> 1790.625 | CU14: =IF('Ceiling Speaker Calculator'!$C$29="Square",CU$1,IF(OR(AND(ODD($A14)=$A14,ODD(CU$2)=CU$2),AND(EVEN($A14)=$A14,EVEN(CU$2)=CU$2)),CU$1,-100)) -> 1809.375 | CV14: =IF('Ceiling Speaker Calculator'!$C$29="Square",CV$1,IF(OR(AND(ODD($A14)=$A14,ODD(CV$2)=CV$2),AND(EVEN($A14)=$A14,EVEN(CV$2)=CV$2)),CV$1,-100)) -> 1828.125 | CW14: =IF('Ceiling Speaker Calculator'!$C$29="Square",CW$1,IF(OR(AND(ODD($A14)=$A14,ODD(CW$2)=CW$2),AND(EVEN($A14)=$A14,EVEN(CW$2)=CW$2)),CW$1,-100)) -> 1846.875 | CX14: =IF('Ceiling Speaker Calculator'!$C$29="Square",CX$1,IF(OR(AND(ODD($A14)=$A14,ODD(CX$2)=CX$2),AND(EVEN($A14)=$A14,EVEN(CX$2)=CX$2)),CX$1,-100)) -> 1865.625
A15: 13 | B15: =B14+'Ceiling Speaker Calculator'!$K$16 -> 250 | C15: =IF('Ceiling Speaker Calculator'!$C$29="Square",C$1,IF(OR(AND(ODD($A15)=$A15,ODD(C$2)=C$2),AND(EVEN($A15)=$A15,EVEN(C$2)=C$2)),C$1,-100)) -> 9.375 | D15: =IF('Ceiling Speaker Calculator'!$C$29="Square",D$1,IF(OR(AND(ODD($A15)=$A15,ODD(D$2)=D$2),AND(EVEN($A15)=$A15,EVEN(D$2)=D$2)),D$1,-100)) -> 28.125 | E15: =IF('Ceiling Speaker Calculator'!$C$29="Square",E$1,IF(OR(AND(ODD($A15)=$A15,ODD(E$2)=E$2),AND(EVEN($A15)=$A15,EVEN(E$2)=E$2)),E$1,-100)) -> 46.875 | F15: =IF('Ceiling Speaker Calculator'!$C$29="Square",F$1,IF(OR(AND(ODD($A15)=$A15,ODD(F$2)=F$2),AND(EVEN($A15)=$A15,EVEN(F$2)=F$2)),F$1,-100)) -> 65.625 | G15: =IF('Ceiling Speaker Calculator'!$C$29="Square",G$1,IF(OR(AND(ODD($A15)=$A15,ODD(G$2)=G$2),AND(EVEN($A15)=$A15,EVEN(G$2)=G$2)),G$1,-100)) -> 84.375 | H15: =IF('Ceiling Speaker Calculator'!$C$29="Square",H$1,IF(OR(AND(ODD($A15)=$A15,ODD(H$2)=H$2),AND(EVEN($A15)=$A15,EVEN(H$2)=H$2)),H$1,-100)) -> 103.125 | I15: =IF('Ceiling Speaker Calculator'!$C$29="Square",I$1,IF(OR(AND(ODD($A15)=$A15,ODD(I$2)=I$2),AND(EVEN($A15)=$A15,EVEN(I$2)=I$2)),I$1,-100)) -> 121.875 | J15: =IF('Ceiling Speaker Calculator'!$C$29="Square",J$1,IF(OR(AND(ODD($A15)=$A15,ODD(J$2)=J$2),AND(EVEN($A15)=$A15,EVEN(J$2)=J$2)),J$1,-100)) -> 140.625 | K15: =IF('Ceiling Speaker Calculator'!$C$29="Square",K$1,IF(OR(AND(ODD($A15)=$A15,ODD(K$2)=K$2),AND(EVEN($A15)=$A15,EVEN(K$2)=K$2)),K$1,-100)) -> 159.375 | L15: =IF('Ceiling Speaker Calculator'!$C$29="Square",L$1,IF(OR(AND(ODD($A15)=$A15,ODD(L$2)=L$2),AND(EVEN($A15)=$A15,EVEN(L$2)=L$2)),L$1,-100)) -> 178.125 | M15: =IF('Ceiling Speaker Calculator'!$C$29="Square",M$1,IF(OR(AND(ODD($A15)=$A15,ODD(M$2)=M$2),AND(EVEN($A15)=$A15,EVEN(M$2)=M$2)),M$1,-100)) -> 196.875 | N15: =IF('Ceiling Speaker Calculator'!$C$29="Square",N$1,IF(OR(AND(ODD($A15)=$A15,ODD(N$2)=N$2),AND(EVEN($A15)=$A15,EVEN(N$2)=N$2)),N$1,-100)) -> 215.625 | O15: =IF('Ceiling Speaker Calculator'!$C$29="Square",O$1,IF(OR(AND(ODD($A15)=$A15,ODD(O$2)=O$2),AND(EVEN($A15)=$A15,EVEN(O$2)=O$2)),O$1,-100)) -> 234.375 | P15: =IF('Ceiling Speaker Calculator'!$C$29="Square",P$1,IF(OR(AND(ODD($A15)=$A15,ODD(P$2)=P$2),AND(EVEN($A15)=$A15,EVEN(P$2)=P$2)),P$1,-100)) -> 253.125 | Q15: =IF('Ceiling Speaker Calculator'!$C$29="Square",Q$1,IF(OR(AND(ODD($A15)=$A15,ODD(Q$2)=Q$2),AND(EVEN($A15)=$A15,EVEN(Q$2)=Q$2)),Q$1,-100)) -> 271.875 | R15: =IF('Ceiling Speaker Calculator'!$C$29="Square",R$1,IF(OR(AND(ODD($A15)=$A15,ODD(R$2)=R$2),AND(EVEN($A15)=$A15,EVEN(R$2)=R$2)),R$1,-100)) -> 290.625 | S15: =IF('Ceiling Speaker Calculator'!$C$29="Square",S$1,IF(OR(AND(ODD($A15)=$A15,ODD(S$2)=S$2),AND(EVEN($A15)=$A15,EVEN(S$2)=S$2)),S$1,-100)) -> 309.375 | T15: =IF('Ceiling Speaker Calculator'!$C$29="Square",T$1,IF(OR(AND(ODD($A15)=$A15,ODD(T$2)=T$2),AND(EVEN($A15)=$A15,EVEN(T$2)=T$2)),T$1,-100)) -> 328.125 | U15: =IF('Ceiling Speaker Calculator'!$C$29="Square",U$1,IF(OR(AND(ODD($A15)=$A15,ODD(U$2)=U$2),AND(EVEN($A15)=$A15,EVEN(U$2)=U$2)),U$1,-100)) -> 346.875 | V15: =IF('Ceiling Speaker Calculator'!$C$29="Square",V$1,IF(OR(AND(ODD($A15)=$A15,ODD(V$2)=V$2),AND(EVEN($A15)=$A15,EVEN(V$2)=V$2)),V$1,-100)) -> 365.625 | W15: =IF('Ceiling Speaker Calculator'!$C$29="Square",W$1,IF(OR(AND(ODD($A15)=$A15,ODD(W$2)=W$2),AND(EVEN($A15)=$A15,EVEN(W$2)=W$2)),W$1,-100)) -> 384.375 | X15: =IF('Ceiling Speaker Calculator'!$C$29="Square",X$1,IF(OR(AND(ODD($A15)=$A15,ODD(X$2)=X$2),AND(EVEN($A15)=$A15,EVEN(X$2)=X$2)),X$1,-100)) -> 403.125 | Y15: =IF('Ceiling Speaker Calculator'!$C$29="Square",Y$1,IF(OR(AND(ODD($A15)=$A15,ODD(Y$2)=Y$2),AND(EVEN($A15)=$A15,EVEN(Y$2)=Y$2)),Y$1,-100)) -> 421.875 | Z15: =IF('Ceiling Speaker Calculator'!$C$29="Square",Z$1,IF(OR(AND(ODD($A15)=$A15,ODD(Z$2)=Z$2),AND(EVEN($A15)=$A15,EVEN(Z$2)=Z$2)),Z$1,-100)) -> 440.625 | AA15: =IF('Ceiling Speaker Calculator'!$C$29="Square",AA$1,IF(OR(AND(ODD($A15)=$A15,ODD(AA$2)=AA$2),AND(EVEN($A15)=$A15,EVEN(AA$2)=AA$2)),AA$1,-100)) -> 459.375 | AB15: =IF('Ceiling Speaker Calculator'!$C$29="Square",AB$1,IF(OR(AND(ODD($A15)=$A15,ODD(AB$2)=AB$2),AND(EVEN($A15)=$A15,EVEN(AB$2)=AB$2)),AB$1,-100)) -> 478.125 | AC15: =IF('Ceiling Speaker Calculator'!$C$29="Square",AC$1,IF(OR(AND(ODD($A15)=$A15,ODD(AC$2)=AC$2),AND(EVEN($A15)=$A15,EVEN(AC$2)=AC$2)),AC$1,-100)) -> 496.875 | AD15: =IF('Ceiling Speaker Calculator'!$C$29="Square",AD$1,IF(OR(AND(ODD($A15)=$A15,ODD(AD$2)=AD$2),AND(EVEN($A15)=$A15,EVEN(AD$2)=AD$2)),AD$1,-100)) -> 515.625 | AE15: =IF('Ceiling Speaker Calculator'!$C$29="Square",AE$1,IF(OR(AND(ODD($A15)=$A15,ODD(AE$2)=AE$2),AND(EVEN($A15)=$A15,EVEN(AE$2)=AE$2)),AE$1,-100)) -> 534.375 | AF15: =IF('Ceiling Speaker Calculator'!$C$29="Square",AF$1,IF(OR(AND(ODD($A15)=$A15,ODD(AF$2)=AF$2),AND(EVEN($A15)=$A15,EVEN(AF$2)=AF$2)),AF$1,-100)) -> 553.125 | AG15: =IF('Ceiling Speaker Calculator'!$C$29="Square",AG$1,IF(OR(AND(ODD($A15)=$A15,ODD(AG$2)=AG$2),AND(EVEN($A15)=$A15,EVEN(AG$2)=AG$2)),AG$1,-100)) -> 571.875 | AH15: =IF('Ceiling Speaker Calculator'!$C$29="Square",AH$1,IF(OR(AND(ODD($A15)=$A15,ODD(AH$2)=AH$2),AND(EVEN($A15)=$A15,EVEN(AH$2)=AH$2)),AH$1,-100)) -> 590.625 | AI15: =IF('Ceiling Speaker Calculator'!$C$29="Square",AI$1,IF(OR(AND(ODD($A15)=$A15,ODD(AI$2)=AI$2),AND(EVEN($A15)=$A15,EVEN(AI$2)=AI$2)),AI$1,-100)) -> 609.375 | AJ15: =IF('Ceiling Speaker Calculator'!$C$29="Square",AJ$1,IF(OR(AND(ODD($A15)=$A15,ODD(AJ$2)=AJ$2),AND(EVEN($A15)=$A15,EVEN(AJ$2)=AJ$2)),AJ$1,-100)) -> 628.125 | AK15: =IF('Ceiling Speaker Calculator'!$C$29="Square",AK$1,IF(OR(AND(ODD($A15)=$A15,ODD(AK$2)=AK$2),AND(EVEN($A15)=$A15,EVEN(AK$2)=AK$2)),AK$1,-100)) -> 646.875 | AL15: =IF('Ceiling Speaker Calculator'!$C$29="Square",AL$1,IF(OR(AND(ODD($A15)=$A15,ODD(AL$2)=AL$2),AND(EVEN($A15)=$A15,EVEN(AL$2)=AL$2)),AL$1,-100)) -> 665.625 | AM15: =IF('Ceiling Speaker Calculator'!$C$29="Square",AM$1,IF(OR(AND(ODD($A15)=$A15,ODD(AM$2)=AM$2),AND(EVEN($A15)=$A15,EVEN(AM$2)=AM$2)),AM$1,-100)) -> 684.375 | AN15: =IF('Ceiling Speaker Calculator'!$C$29="Square",AN$1,IF(OR(AND(ODD($A15)=$A15,ODD(AN$2)=AN$2),AND(EVEN($A15)=$A15,EVEN(AN$2)=AN$2)),AN$1,-100)) -> 703.125 | AO15: =IF('Ceiling Speaker Calculator'!$C$29="Square",AO$1,IF(OR(AND(ODD($A15)=$A15,ODD(AO$2)=AO$2),AND(EVEN($A15)=$A15,EVEN(AO$2)=AO$2)),AO$1,-100)) -> 721.875 | AP15: =IF('Ceiling Speaker Calculator'!$C$29="Square",AP$1,IF(OR(AND(ODD($A15)=$A15,ODD(AP$2)=AP$2),AND(EVEN($A15)=$A15,EVEN(AP$2)=AP$2)),AP$1,-100)) -> 740.625 | AQ15: =IF('Ceiling Speaker Calculator'!$C$29="Square",AQ$1,IF(OR(AND(ODD($A15)=$A15,ODD(AQ$2)=AQ$2),AND(EVEN($A15)=$A15,EVEN(AQ$2)=AQ$2)),AQ$1,-100)) -> 759.375 | AR15: =IF('Ceiling Speaker Calculator'!$C$29="Square",AR$1,IF(OR(AND(ODD($A15)=$A15,ODD(AR$2)=AR$2),AND(EVEN($A15)=$A15,EVEN(AR$2)=AR$2)),AR$1,-100)) -> 778.125 | AS15: =IF('Ceiling Speaker Calculator'!$C$29="Square",AS$1,IF(OR(AND(ODD($A15)=$A15,ODD(AS$2)=AS$2),AND(EVEN($A15)=$A15,EVEN(AS$2)=AS$2)),AS$1,-100)) -> 796.875 | AT15: =IF('Ceiling Speaker Calculator'!$C$29="Square",AT$1,IF(OR(AND(ODD($A15)=$A15,ODD(AT$2)=AT$2),AND(EVEN($A15)=$A15,EVEN(AT$2)=AT$2)),AT$1,-100)) -> 815.625 | AU15: =IF('Ceiling Speaker Calculator'!$C$29="Square",AU$1,IF(OR(AND(ODD($A15)=$A15,ODD(AU$2)=AU$2),AND(EVEN($A15)=$A15,EVEN(AU$2)=AU$2)),AU$1,-100)) -> 834.375 | AV15: =IF('Ceiling Speaker Calculator'!$C$29="Square",AV$1,IF(OR(AND(ODD($A15)=$A15,ODD(AV$2)=AV$2),AND(EVEN($A15)=$A15,EVEN(AV$2)=AV$2)),AV$1,-100)) -> 853.125 | AW15: =IF('Ceiling Speaker Calculator'!$C$29="Square",AW$1,IF(OR(AND(ODD($A15)=$A15,ODD(AW$2)=AW$2),AND(EVEN($A15)=$A15,EVEN(AW$2)=AW$2)),AW$1,-100)) -> 871.875 | AX15: =IF('Ceiling Speaker Calculator'!$C$29="Square",AX$1,IF(OR(AND(ODD($A15)=$A15,ODD(AX$2)=AX$2),AND(EVEN($A15)=$A15,EVEN(AX$2)=AX$2)),AX$1,-100)) -> 890.625 | AY15: =IF('Ceiling Speaker Calculator'!$C$29="Square",AY$1,IF(OR(AND(ODD($A15)=$A15,ODD(AY$2)=AY$2),AND(EVEN($A15)=$A15,EVEN(AY$2)=AY$2)),AY$1,-100)) -> 909.375 | AZ15: =IF('Ceiling Speaker Calculator'!$C$29="Square",AZ$1,IF(OR(AND(ODD($A15)=$A15,ODD(AZ$2)=AZ$2),AND(EVEN($A15)=$A15,EVEN(AZ$2)=AZ$2)),AZ$1,-100)) -> 928.125 | BA15: =IF('Ceiling Speaker Calculator'!$C$29="Square",BA$1,IF(OR(AND(ODD($A15)=$A15,ODD(BA$2)=BA$2),AND(EVEN($A15)=$A15,EVEN(BA$2)=BA$2)),BA$1,-100)) -> 946.875 | BB15: =IF('Ceiling Speaker Calculator'!$C$29="Square",BB$1,IF(OR(AND(ODD($A15)=$A15,ODD(BB$2)=BB$2),AND(EVEN($A15)=$A15,EVEN(BB$2)=BB$2)),BB$1,-100)) -> 965.625 | BC15: =IF('Ceiling Speaker Calculator'!$C$29="Square",BC$1,IF(OR(AND(ODD($A15)=$A15,ODD(BC$2)=BC$2),AND(EVEN($A15)=$A15,EVEN(BC$2)=BC$2)),BC$1,-100)) -> 984.375 | BD15: =IF('Ceiling Speaker Calculator'!$C$29="Square",BD$1,IF(OR(AND(ODD($A15)=$A15,ODD(BD$2)=BD$2),AND(EVEN($A15)=$A15,EVEN(BD$2)=BD$2)),BD$1,-100)) -> 1003.125 | BE15: =IF('Ceiling Speaker Calculator'!$C$29="Square",BE$1,IF(OR(AND(ODD($A15)=$A15,ODD(BE$2)=BE$2),AND(EVEN($A15)=$A15,EVEN(BE$2)=BE$2)),BE$1,-100)) -> 1021.875 | BF15: =IF('Ceiling Speaker Calculator'!$C$29="Square",BF$1,IF(OR(AND(ODD($A15)=$A15,ODD(BF$2)=BF$2),AND(EVEN($A15)=$A15,EVEN(BF$2)=BF$2)),BF$1,-100)) -> 1040.625 | BG15: =IF('Ceiling Speaker Calculator'!$C$29="Square",BG$1,IF(OR(AND(ODD($A15)=$A15,ODD(BG$2)=BG$2),AND(EVEN($A15)=$A15,EVEN(BG$2)=BG$2)),BG$1,-100)) -> 1059.375 | BH15: =IF('Ceiling Speaker Calculator'!$C$29="Square",BH$1,IF(OR(AND(ODD($A15)=$A15,ODD(BH$2)=BH$2),AND(EVEN($A15)=$A15,EVEN(BH$2)=BH$2)),BH$1,-100)) -> 1078.125 | BI15: =IF('Ceiling Speaker Calculator'!$C$29="Square",BI$1,IF(OR(AND(ODD($A15)=$A15,ODD(BI$2)=BI$2),AND(EVEN($A15)=$A15,EVEN(BI$2)=BI$2)),BI$1,-100)) -> 1096.875 | BJ15: =IF('Ceiling Speaker Calculator'!$C$29="Square",BJ$1,IF(OR(AND(ODD($A15)=$A15,ODD(BJ$2)=BJ$2),AND(EVEN($A15)=$A15,EVEN(BJ$2)=BJ$2)),BJ$1,-100)) -> 1115.625 | BK15: =IF('Ceiling Speaker Calculator'!$C$29="Square",BK$1,IF(OR(AND(ODD($A15)=$A15,ODD(BK$2)=BK$2),AND(EVEN($A15)=$A15,EVEN(BK$2)=BK$2)),BK$1,-100)) -> 1134.375 | BL15: =IF('Ceiling Speaker Calculator'!$C$29="Square",BL$1,IF(OR(AND(ODD($A15)=$A15,ODD(BL$2)=BL$2),AND(EVEN($A15)=$A15,EVEN(BL$2)=BL$2)),BL$1,-100)) -> 1153.125 | BM15: =IF('Ceiling Speaker Calculator'!$C$29="Square",BM$1,IF(OR(AND(ODD($A15)=$A15,ODD(BM$2)=BM$2),AND(EVEN($A15)=$A15,EVEN(BM$2)=BM$2)),BM$1,-100)) -> 1171.875 | BN15: =IF('Ceiling Speaker Calculator'!$C$29="Square",BN$1,IF(OR(AND(ODD($A15)=$A15,ODD(BN$2)=BN$2),AND(EVEN($A15)=$A15,EVEN(BN$2)=BN$2)),BN$1,-100)) -> 1190.625 | BO15: =IF('Ceiling Speaker Calculator'!$C$29="Square",BO$1,IF(OR(AND(ODD($A15)=$A15,ODD(BO$2)=BO$2),AND(EVEN($A15)=$A15,EVEN(BO$2)=BO$2)),BO$1,-100)) -> 1209.375 | BP15: =IF('Ceiling Speaker Calculator'!$C$29="Square",BP$1,IF(OR(AND(ODD($A15)=$A15,ODD(BP$2)=BP$2),AND(EVEN($A15)=$A15,EVEN(BP$2)=BP$2)),BP$1,-100)) -> 1228.125 | BQ15: =IF('Ceiling Speaker Calculator'!$C$29="Square",BQ$1,IF(OR(AND(ODD($A15)=$A15,ODD(BQ$2)=BQ$2),AND(EVEN($A15)=$A15,EVEN(BQ$2)=BQ$2)),BQ$1,-100)) -> 1246.875 | BR15: =IF('Ceiling Speaker Calculator'!$C$29="Square",BR$1,IF(OR(AND(ODD($A15)=$A15,ODD(BR$2)=BR$2),AND(EVEN($A15)=$A15,EVEN(BR$2)=BR$2)),BR$1,-100)) -> 1265.625 | BS15: =IF('Ceiling Speaker Calculator'!$C$29="Square",BS$1,IF(OR(AND(ODD($A15)=$A15,ODD(BS$2)=BS$2),AND(EVEN($A15)=$A15,EVEN(BS$2)=BS$2)),BS$1,-100)) -> 1284.375 | BT15: =IF('Ceiling Speaker Calculator'!$C$29="Square",BT$1,IF(OR(AND(ODD($A15)=$A15,ODD(BT$2)=BT$2),AND(EVEN($A15)=$A15,EVEN(BT$2)=BT$2)),BT$1,-100)) -> 1303.125 | BU15: =IF('Ceiling Speaker Calculator'!$C$29="Square",BU$1,IF(OR(AND(ODD($A15)=$A15,ODD(BU$2)=BU$2),AND(EVEN($A15)=$A15,EVEN(BU$2)=BU$2)),BU$1,-100)) -> 1321.875 | BV15: =IF('Ceiling Speaker Calculator'!$C$29="Square",BV$1,IF(OR(AND(ODD($A15)=$A15,ODD(BV$2)=BV$2),AND(EVEN($A15)=$A15,EVEN(BV$2)=BV$2)),BV$1,-100)) -> 1340.625 | BW15: =IF('Ceiling Speaker Calculator'!$C$29="Square",BW$1,IF(OR(AND(ODD($A15)=$A15,ODD(BW$2)=BW$2),AND(EVEN($A15)=$A15,EVEN(BW$2)=BW$2)),BW$1,-100)) -> 1359.375 | BX15: =IF('Ceiling Speaker Calculator'!$C$29="Square",BX$1,IF(OR(AND(ODD($A15)=$A15,ODD(BX$2)=BX$2),AND(EVEN($A15)=$A15,EVEN(BX$2)=BX$2)),BX$1,-100)) -> 1378.125 | BY15: =IF('Ceiling Speaker Calculator'!$C$29="Square",BY$1,IF(OR(AND(ODD($A15)=$A15,ODD(BY$2)=BY$2),AND(EVEN($A15)=$A15,EVEN(BY$2)=BY$2)),BY$1,-100)) -> 1396.875 | BZ15: =IF('Ceiling Speaker Calculator'!$C$29="Square",BZ$1,IF(OR(AND(ODD($A15)=$A15,ODD(BZ$2)=BZ$2),AND(EVEN($A15)=$A15,EVEN(BZ$2)=BZ$2)),BZ$1,-100)) -> 1415.625 | CA15: =IF('Ceiling Speaker Calculator'!$C$29="Square",CA$1,IF(OR(AND(ODD($A15)=$A15,ODD(CA$2)=CA$2),AND(EVEN($A15)=$A15,EVEN(CA$2)=CA$2)),CA$1,-100)) -> 1434.375 | CB15: =IF('Ceiling Speaker Calculator'!$C$29="Square",CB$1,IF(OR(AND(ODD($A15)=$A15,ODD(CB$2)=CB$2),AND(EVEN($A15)=$A15,EVEN(CB$2)=CB$2)),CB$1,-100)) -> 1453.125 | CC15: =IF('Ceiling Speaker Calculator'!$C$29="Square",CC$1,IF(OR(AND(ODD($A15)=$A15,ODD(CC$2)=CC$2),AND(EVEN($A15)=$A15,EVEN(CC$2)=CC$2)),CC$1,-100)) -> 1471.875 | CD15: =IF('Ceiling Speaker Calculator'!$C$29="Square",CD$1,IF(OR(AND(ODD($A15)=$A15,ODD(CD$2)=CD$2),AND(EVEN($A15)=$A15,EVEN(CD$2)=CD$2)),CD$1,-100)) -> 1490.625 | CE15: =IF('Ceiling Speaker Calculator'!$C$29="Square",CE$1,IF(OR(AND(ODD($A15)=$A15,ODD(CE$2)=CE$2),AND(EVEN($A15)=$A15,EVEN(CE$2)=CE$2)),CE$1,-100)) -> 1509.375 | CF15: =IF('Ceiling Speaker Calculator'!$C$29="Square",CF$1,IF(OR(AND(ODD($A15)=$A15,ODD(CF$2)=CF$2),AND(EVEN($A15)=$A15,EVEN(CF$2)=CF$2)),CF$1,-100)) -> 1528.125 | CG15: =IF('Ceiling Speaker Calculator'!$C$29="Square",CG$1,IF(OR(AND(ODD($A15)=$A15,ODD(CG$2)=CG$2),AND(EVEN($A15)=$A15,EVEN(CG$2)=CG$2)),CG$1,-100)) -> 1546.875 | CH15: =IF('Ceiling Speaker Calculator'!$C$29="Square",CH$1,IF(OR(AND(ODD($A15)=$A15,ODD(CH$2)=CH$2),AND(EVEN($A15)=$A15,EVEN(CH$2)=CH$2)),CH$1,-100)) -> 1565.625 | CI15: =IF('Ceiling Speaker Calculator'!$C$29="Square",CI$1,IF(OR(AND(ODD($A15)=$A15,ODD(CI$2)=CI$2),AND(EVEN($A15)=$A15,EVEN(CI$2)=CI$2)),CI$1,-100)) -> 1584.375 | CJ15: =IF('Ceiling Speaker Calculator'!$C$29="Square",CJ$1,IF(OR(AND(ODD($A15)=$A15,ODD(CJ$2)=CJ$2),AND(EVEN($A15)=$A15,EVEN(CJ$2)=CJ$2)),CJ$1,-100)) -> 1603.125 | CK15: =IF('Ceiling Speaker Calculator'!$C$29="Square",CK$1,IF(OR(AND(ODD($A15)=$A15,ODD(CK$2)=CK$2),AND(EVEN($A15)=$A15,EVEN(CK$2)=CK$2)),CK$1,-100)) -> 1621.875 | CL15: =IF('Ceiling Speaker Calculator'!$C$29="Square",CL$1,IF(OR(AND(ODD($A15)=$A15,ODD(CL$2)=CL$2),AND(EVEN($A15)=$A15,EVEN(CL$2)=CL$2)),CL$1,-100)) -> 1640.625 | CM15: =IF('Ceiling Speaker Calculator'!$C$29="Square",CM$1,IF(OR(AND(ODD($A15)=$A15,ODD(CM$2)=CM$2),AND(EVEN($A15)=$A15,EVEN(CM$2)=CM$2)),CM$1,-100)) -> 1659.375 | CN15: =IF('Ceiling Speaker Calculator'!$C$29="Square",CN$1,IF(OR(AND(ODD($A15)=$A15,ODD(CN$2)=CN$2),AND(EVEN($A15)=$A15,EVEN(CN$2)=CN$2)),CN$1,-100)) -> 1678.125 | CO15: =IF('Ceiling Speaker Calculator'!$C$29="Square",CO$1,IF(OR(AND(ODD($A15)=$A15,ODD(CO$2)=CO$2),AND(EVEN($A15)=$A15,EVEN(CO$2)=CO$2)),CO$1,-100)) -> 1696.875 | CP15: =IF('Ceiling Speaker Calculator'!$C$29="Square",CP$1,IF(OR(AND(ODD($A15)=$A15,ODD(CP$2)=CP$2),AND(EVEN($A15)=$A15,EVEN(CP$2)=CP$2)),CP$1,-100)) -> 1715.625 | CQ15: =IF('Ceiling Speaker Calculator'!$C$29="Square",CQ$1,IF(OR(AND(ODD($A15)=$A15,ODD(CQ$2)=CQ$2),AND(EVEN($A15)=$A15,EVEN(CQ$2)=CQ$2)),CQ$1,-100)) -> 1734.375 | CR15: =IF('Ceiling Speaker Calculator'!$C$29="Square",CR$1,IF(OR(AND(ODD($A15)=$A15,ODD(CR$2)=CR$2),AND(EVEN($A15)=$A15,EVEN(CR$2)=CR$2)),CR$1,-100)) -> 1753.125 | CS15: =IF('Ceiling Speaker Calculator'!$C$29="Square",CS$1,IF(OR(AND(ODD($A15)=$A15,ODD(CS$2)=CS$2),AND(EVEN($A15)=$A15,EVEN(CS$2)=CS$2)),CS$1,-100)) -> 1771.875 | CT15: =IF('Ceiling Speaker Calculator'!$C$29="Square",CT$1,IF(OR(AND(ODD($A15)=$A15,ODD(CT$2)=CT$2),AND(EVEN($A15)=$A15,EVEN(CT$2)=CT$2)),CT$1,-100)) -> 1790.625 | CU15: =IF('Ceiling Speaker Calculator'!$C$29="Square",CU$1,IF(OR(AND(ODD($A15)=$A15,ODD(CU$2)=CU$2),AND(EVEN($A15)=$A15,EVEN(CU$2)=CU$2)),CU$1,-100)) -> 1809.375 | CV15: =IF('Ceiling Speaker Calculator'!$C$29="Square",CV$1,IF(OR(AND(ODD($A15)=$A15,ODD(CV$2)=CV$2),AND(EVEN($A15)=$A15,EVEN(CV$2)=CV$2)),CV$1,-100)) -> 1828.125 | CW15: =IF('Ceiling Speaker Calculator'!$C$29="Square",CW$1,IF(OR(AND(ODD($A15)=$A15,ODD(CW$2)=CW$2),AND(EVEN($A15)=$A15,EVEN(CW$2)=CW$2)),CW$1,-100)) -> 1846.875 | CX15: =IF('Ceiling Speaker Calculator'!$C$29="Square",CX$1,IF(OR(AND(ODD($A15)=$A15,ODD(CX$2)=CX$2),AND(EVEN($A15)=$A15,EVEN(CX$2)=CX$2)),CX$1,-100)) -> 1865.625
A16: 14 | B16: =B15+'Ceiling Speaker Calculator'!$K$16 -> 270 | C16: =IF('Ceiling Speaker Calculator'!$C$29="Square",C$1,IF(OR(AND(ODD($A16)=$A16,ODD(C$2)=C$2),AND(EVEN($A16)=$A16,EVEN(C$2)=C$2)),C$1,-100)) -> 9.375 | D16: =IF('Ceiling Speaker Calculator'!$C$29="Square",D$1,IF(OR(AND(ODD($A16)=$A16,ODD(D$2)=D$2),AND(EVEN($A16)=$A16,EVEN(D$2)=D$2)),D$1,-100)) -> 28.125 | E16: =IF('Ceiling Speaker Calculator'!$C$29="Square",E$1,IF(OR(AND(ODD($A16)=$A16,ODD(E$2)=E$2),AND(EVEN($A16)=$A16,EVEN(E$2)=E$2)),E$1,-100)) -> 46.875 | F16: =IF('Ceiling Speaker Calculator'!$C$29="Square",F$1,IF(OR(AND(ODD($A16)=$A16,ODD(F$2)=F$2),AND(EVEN($A16)=$A16,EVEN(F$2)=F$2)),F$1,-100)) -> 65.625 | G16: =IF('Ceiling Speaker Calculator'!$C$29="Square",G$1,IF(OR(AND(ODD($A16)=$A16,ODD(G$2)=G$2),AND(EVEN($A16)=$A16,EVEN(G$2)=G$2)),G$1,-100)) -> 84.375 | H16: =IF('Ceiling Speaker Calculator'!$C$29="Square",H$1,IF(OR(AND(ODD($A16)=$A16,ODD(H$2)=H$2),AND(EVEN($A16)=$A16,EVEN(H$2)=H$2)),H$1,-100)) -> 103.125 | I16: =IF('Ceiling Speaker Calculator'!$C$29="Square",I$1,IF(OR(AND(ODD($A16)=$A16,ODD(I$2)=I$2),AND(EVEN($A16)=$A16,EVEN(I$2)=I$2)),I$1,-100)) -> 121.875 | J16: =IF('Ceiling Speaker Calculator'!$C$29="Square",J$1,IF(OR(AND(ODD($A16)=$A16,ODD(J$2)=J$2),AND(EVEN($A16)=$A16,EVEN(J$2)=J$2)),J$1,-100)) -> 140.625 | K16: =IF('Ceiling Speaker Calculator'!$C$29="Square",K$1,IF(OR(AND(ODD($A16)=$A16,ODD(K$2)=K$2),AND(EVEN($A16)=$A16,EVEN(K$2)=K$2)),K$1,-100)) -> 159.375 | L16: =IF('Ceiling Speaker Calculator'!$C$29="Square",L$1,IF(OR(AND(ODD($A16)=$A16,ODD(L$2)=L$2),AND(EVEN($A16)=$A16,EVEN(L$2)=L$2)),L$1,-100)) -> 178.125 | M16: =IF('Ceiling Speaker Calculator'!$C$29="Square",M$1,IF(OR(AND(ODD($A16)=$A16,ODD(M$2)=M$2),AND(EVEN($A16)=$A16,EVEN(M$2)=M$2)),M$1,-100)) -> 196.875 | N16: =IF('Ceiling Speaker Calculator'!$C$29="Square",N$1,IF(OR(AND(ODD($A16)=$A16,ODD(N$2)=N$2),AND(EVEN($A16)=$A16,EVEN(N$2)=N$2)),N$1,-100)) -> 215.625 | O16: =IF('Ceiling Speaker Calculator'!$C$29="Square",O$1,IF(OR(AND(ODD($A16)=$A16,ODD(O$2)=O$2),AND(EVEN($A16)=$A16,EVEN(O$2)=O$2)),O$1,-100)) -> 234.375 | P16: =IF('Ceiling Speaker Calculator'!$C$29="Square",P$1,IF(OR(AND(ODD($A16)=$A16,ODD(P$2)=P$2),AND(EVEN($A16)=$A16,EVEN(P$2)=P$2)),P$1,-100)) -> 253.125 | Q16: =IF('Ceiling Speaker Calculator'!$C$29="Square",Q$1,IF(OR(AND(ODD($A16)=$A16,ODD(Q$2)=Q$2),AND(EVEN($A16)=$A16,EVEN(Q$2)=Q$2)),Q$1,-100)) -> 271.875 | R16: =IF('Ceiling Speaker Calculator'!$C$29="Square",R$1,IF(OR(AND(ODD($A16)=$A16,ODD(R$2)=R$2),AND(EVEN($A16)=$A16,EVEN(R$2)=R$2)),R$1,-100)) -> 290.625 | S16: =IF('Ceiling Speaker Calculator'!$C$29="Square",S$1,IF(OR(AND(ODD($A16)=$A16,ODD(S$2)=S$2),AND(EVEN($A16)=$A16,EVEN(S$2)=S$2)),S$1,-100)) -> 309.375 | T16: =IF('Ceiling Speaker Calculator'!$C$29="Square",T$1,IF(OR(AND(ODD($A16)=$A16,ODD(T$2)=T$2),AND(EVEN($A16)=$A16,EVEN(T$2)=T$2)),T$1,-100)) -> 328.125 | U16: =IF('Ceiling Speaker Calculator'!$C$29="Square",U$1,IF(OR(AND(ODD($A16)=$A16,ODD(U$2)=U$2),AND(EVEN($A16)=$A16,EVEN(U$2)=U$2)),U$1,-100)) -> 346.875 | V16: =IF('Ceiling Speaker Calculator'!$C$29="Square",V$1,IF(OR(AND(ODD($A16)=$A16,ODD(V$2)=V$2),AND(EVEN($A16)=$A16,EVEN(V$2)=V$2)),V$1,-100)) -> 365.625 | W16: =IF('Ceiling Speaker Calculator'!$C$29="Square",W$1,IF(OR(AND(ODD($A16)=$A16,ODD(W$2)=W$2),AND(EVEN($A16)=$A16,EVEN(W$2)=W$2)),W$1,-100)) -> 384.375 | X16: =IF('Ceiling Speaker Calculator'!$C$29="Square",X$1,IF(OR(AND(ODD($A16)=$A16,ODD(X$2)=X$2),AND(EVEN($A16)=$A16,EVEN(X$2)=X$2)),X$1,-100)) -> 403.125 | Y16: =IF('Ceiling Speaker Calculator'!$C$29="Square",Y$1,IF(OR(AND(ODD($A16)=$A16,ODD(Y$2)=Y$2),AND(EVEN($A16)=$A16,EVEN(Y$2)=Y$2)),Y$1,-100)) -> 421.875 | Z16: =IF('Ceiling Speaker Calculator'!$C$29="Square",Z$1,IF(OR(AND(ODD($A16)=$A16,ODD(Z$2)=Z$2),AND(EVEN($A16)=$A16,EVEN(Z$2)=Z$2)),Z$1,-100)) -> 440.625 | AA16: =IF('Ceiling Speaker Calculator'!$C$29="Square",AA$1,IF(OR(AND(ODD($A16)=$A16,ODD(AA$2)=AA$2),AND(EVEN($A16)=$A16,EVEN(AA$2)=AA$2)),AA$1,-100)) -> 459.375 | AB16: =IF('Ceiling Speaker Calculator'!$C$29="Square",AB$1,IF(OR(AND(ODD($A16)=$A16,ODD(AB$2)=AB$2),AND(EVEN($A16)=$A16,EVEN(AB$2)=AB$2)),AB$1,-100)) -> 478.125 | AC16: =IF('Ceiling Speaker Calculator'!$C$29="Square",AC$1,IF(OR(AND(ODD($A16)=$A16,ODD(AC$2)=AC$2),AND(EVEN($A16)=$A16,EVEN(AC$2)=AC$2)),AC$1,-100)) -> 496.875 | AD16: =IF('Ceiling Speaker Calculator'!$C$29="Square",AD$1,IF(OR(AND(ODD($A16)=$A16,ODD(AD$2)=AD$2),AND(EVEN($A16)=$A16,EVEN(AD$2)=AD$2)),AD$1,-100)) -> 515.625 | AE16: =IF('Ceiling Speaker Calculator'!$C$29="Square",AE$1,IF(OR(AND(ODD($A16)=$A16,ODD(AE$2)=AE$2),AND(EVEN($A16)=$A16,EVEN(AE$2)=AE$2)),AE$1,-100)) -> 534.375 | AF16: =IF('Ceiling Speaker Calculator'!$C$29="Square",AF$1,IF(OR(AND(ODD($A16)=$A16,ODD(AF$2)=AF$2),AND(EVEN($A16)=$A16,EVEN(AF$2)=AF$2)),AF$1,-100)) -> 553.125 | AG16: =IF('Ceiling Speaker Calculator'!$C$29="Square",AG$1,IF(OR(AND(ODD($A16)=$A16,ODD(AG$2)=AG$2),AND(EVEN($A16)=$A16,EVEN(AG$2)=AG$2)),AG$1,-100)) -> 571.875 | AH16: =IF('Ceiling Speaker Calculator'!$C$29="Square",AH$1,IF(OR(AND(ODD($A16)=$A16,ODD(AH$2)=AH$2),AND(EVEN($A16)=$A16,EVEN(AH$2)=AH$2)),AH$1,-100)) -> 590.625 | AI16: =IF('Ceiling Speaker Calculator'!$C$29="Square",AI$1,IF(OR(AND(ODD($A16)=$A16,ODD(AI$2)=AI$2),AND(EVEN($A16)=$A16,EVEN(AI$2)=AI$2)),AI$1,-100)) -> 609.375 | AJ16: =IF('Ceiling Speaker Calculator'!$C$29="Square",AJ$1,IF(OR(AND(ODD($A16)=$A16,ODD(AJ$2)=AJ$2),AND(EVEN($A16)=$A16,EVEN(AJ$2)=AJ$2)),AJ$1,-100)) -> 628.125 | AK16: =IF('Ceiling Speaker Calculator'!$C$29="Square",AK$1,IF(OR(AND(ODD($A16)=$A16,ODD(AK$2)=AK$2),AND(EVEN($A16)=$A16,EVEN(AK$2)=AK$2)),AK$1,-100)) -> 646.875 | AL16: =IF('Ceiling Speaker Calculator'!$C$29="Square",AL$1,IF(OR(AND(ODD($A16)=$A16,ODD(AL$2)=AL$2),AND(EVEN($A16)=$A16,EVEN(AL$2)=AL$2)),AL$1,-100)) -> 665.625 | AM16: =IF('Ceiling Speaker Calculator'!$C$29="Square",AM$1,IF(OR(AND(ODD($A16)=$A16,ODD(AM$2)=AM$2),AND(EVEN($A16)=$A16,EVEN(AM$2)=AM$2)),AM$1,-100)) -> 684.375 | AN16: =IF('Ceiling Speaker Calculator'!$C$29="Square",AN$1,IF(OR(AND(ODD($A16)=$A16,ODD(AN$2)=AN$2),AND(EVEN($A16)=$A16,EVEN(AN$2)=AN$2)),AN$1,-100)) -> 703.125 | AO16: =IF('Ceiling Speaker Calculator'!$C$29="Square",AO$1,IF(OR(AND(ODD($A16)=$A16,ODD(AO$2)=AO$2),AND(EVEN($A16)=$A16,EVEN(AO$2)=AO$2)),AO$1,-100)) -> 721.875 | AP16: =IF('Ceiling Speaker Calculator'!$C$29="Square",AP$1,IF(OR(AND(ODD($A16)=$A16,ODD(AP$2)=AP$2),AND(EVEN($A16)=$A16,EVEN(AP$2)=AP$2)),AP$1,-100)) -> 740.625 | AQ16: =IF('Ceiling Speaker Calculator'!$C$29="Square",AQ$1,IF(OR(AND(ODD($A16)=$A16,ODD(AQ$2)=AQ$2),AND(EVEN($A16)=$A16,EVEN(AQ$2)=AQ$2)),AQ$1,-100)) -> 759.375 | AR16: =IF('Ceiling Speaker Calculator'!$C$29="Square",AR$1,IF(OR(AND(ODD($A16)=$A16,ODD(AR$2)=AR$2),AND(EVEN($A16)=$A16,EVEN(AR$2)=AR$2)),AR$1,-100)) -> 778.125 | AS16: =IF('Ceiling Speaker Calculator'!$C$29="Square",AS$1,IF(OR(AND(ODD($A16)=$A16,ODD(AS$2)=AS$2),AND(EVEN($A16)=$A16,EVEN(AS$2)=AS$2)),AS$1,-100)) -> 796.875 | AT16: =IF('Ceiling Speaker Calculator'!$C$29="Square",AT$1,IF(OR(AND(ODD($A16)=$A16,ODD(AT$2)=AT$2),AND(EVEN($A16)=$A16,EVEN(AT$2)=AT$2)),AT$1,-100)) -> 815.625 | AU16: =IF('Ceiling Speaker Calculator'!$C$29="Square",AU$1,IF(OR(AND(ODD($A16)=$A16,ODD(AU$2)=AU$2),AND(EVEN($A16)=$A16,EVEN(AU$2)=AU$2)),AU$1,-100)) -> 834.375 | AV16: =IF('Ceiling Speaker Calculator'!$C$29="Square",AV$1,IF(OR(AND(ODD($A16)=$A16,ODD(AV$2)=AV$2),AND(EVEN($A16)=$A16,EVEN(AV$2)=AV$2)),AV$1,-100)) -> 853.125 | AW16: =IF('Ceiling Speaker Calculator'!$C$29="Square",AW$1,IF(OR(AND(ODD($A16)=$A16,ODD(AW$2)=AW$2),AND(EVEN($A16)=$A16,EVEN(AW$2)=AW$2)),AW$1,-100)) -> 871.875 | AX16: =IF('Ceiling Speaker Calculator'!$C$29="Square",AX$1,IF(OR(AND(ODD($A16)=$A16,ODD(AX$2)=AX$2),AND(EVEN($A16)=$A16,EVEN(AX$2)=AX$2)),AX$1,-100)) -> 890.625 | AY16: =IF('Ceiling Speaker Calculator'!$C$29="Square",AY$1,IF(OR(AND(ODD($A16)=$A16,ODD(AY$2)=AY$2),AND(EVEN($A16)=$A16,EVEN(AY$2)=AY$2)),AY$1,-100)) -> 909.375 | AZ16: =IF('Ceiling Speaker Calculator'!$C$29="Square",AZ$1,IF(OR(AND(ODD($A16)=$A16,ODD(AZ$2)=AZ$2),AND(EVEN($A16)=$A16,EVEN(AZ$2)=AZ$2)),AZ$1,-100)) -> 928.125 | BA16: =IF('Ceiling Speaker Calculator'!$C$29="Square",BA$1,IF(OR(AND(ODD($A16)=$A16,ODD(BA$2)=BA$2),AND(EVEN($A16)=$A16,EVEN(BA$2)=BA$2)),BA$1,-100)) -> 946.875 | BB16: =IF('Ceiling Speaker Calculator'!$C$29="Square",BB$1,IF(OR(AND(ODD($A16)=$A16,ODD(BB$2)=BB$2),AND(EVEN($A16)=$A16,EVEN(BB$2)=BB$2)),BB$1,-100)) -> 965.625 | BC16: =IF('Ceiling Speaker Calculator'!$C$29="Square",BC$1,IF(OR(AND(ODD($A16)=$A16,ODD(BC$2)=BC$2),AND(EVEN($A16)=$A16,EVEN(BC$2)=BC$2)),BC$1,-100)) -> 984.375 | BD16: =IF('Ceiling Speaker Calculator'!$C$29="Square",BD$1,IF(OR(AND(ODD($A16)=$A16,ODD(BD$2)=BD$2),AND(EVEN($A16)=$A16,EVEN(BD$2)=BD$2)),BD$1,-100)) -> 1003.125 | BE16: =IF('Ceiling Speaker Calculator'!$C$29="Square",BE$1,IF(OR(AND(ODD($A16)=$A16,ODD(BE$2)=BE$2),AND(EVEN($A16)=$A16,EVEN(BE$2)=BE$2)),BE$1,-100)) -> 1021.875 | BF16: =IF('Ceiling Speaker Calculator'!$C$29="Square",BF$1,IF(OR(AND(ODD($A16)=$A16,ODD(BF$2)=BF$2),AND(EVEN($A16)=$A16,EVEN(BF$2)=BF$2)),BF$1,-100)) -> 1040.625 | BG16: =IF('Ceiling Speaker Calculator'!$C$29="Square",BG$1,IF(OR(AND(ODD($A16)=$A16,ODD(BG$2)=BG$2),AND(EVEN($A16)=$A16,EVEN(BG$2)=BG$2)),BG$1,-100)) -> 1059.375 | BH16: =IF('Ceiling Speaker Calculator'!$C$29="Square",BH$1,IF(OR(AND(ODD($A16)=$A16,ODD(BH$2)=BH$2),AND(EVEN($A16)=$A16,EVEN(BH$2)=BH$2)),BH$1,-100)) -> 1078.125 | BI16: =IF('Ceiling Speaker Calculator'!$C$29="Square",BI$1,IF(OR(AND(ODD($A16)=$A16,ODD(BI$2)=BI$2),AND(EVEN($A16)=$A16,EVEN(BI$2)=BI$2)),BI$1,-100)) -> 1096.875 | BJ16: =IF('Ceiling Speaker Calculator'!$C$29="Square",BJ$1,IF(OR(AND(ODD($A16)=$A16,ODD(BJ$2)=BJ$2),AND(EVEN($A16)=$A16,EVEN(BJ$2)=BJ$2)),BJ$1,-100)) -> 1115.625 | BK16: =IF('Ceiling Speaker Calculator'!$C$29="Square",BK$1,IF(OR(AND(ODD($A16)=$A16,ODD(BK$2)=BK$2),AND(EVEN($A16)=$A16,EVEN(BK$2)=BK$2)),BK$1,-100)) -> 1134.375 | BL16: =IF('Ceiling Speaker Calculator'!$C$29="Square",BL$1,IF(OR(AND(ODD($A16)=$A16,ODD(BL$2)=BL$2),AND(EVEN($A16)=$A16,EVEN(BL$2)=BL$2)),BL$1,-100)) -> 1153.125 | BM16: =IF('Ceiling Speaker Calculator'!$C$29="Square",BM$1,IF(OR(AND(ODD($A16)=$A16,ODD(BM$2)=BM$2),AND(EVEN($A16)=$A16,EVEN(BM$2)=BM$2)),BM$1,-100)) -> 1171.875 | BN16: =IF('Ceiling Speaker Calculator'!$C$29="Square",BN$1,IF(OR(AND(ODD($A16)=$A16,ODD(BN$2)=BN$2),AND(EVEN($A16)=$A16,EVEN(BN$2)=BN$2)),BN$1,-100)) -> 1190.625 | BO16: =IF('Ceiling Speaker Calculator'!$C$29="Square",BO$1,IF(OR(AND(ODD($A16)=$A16,ODD(BO$2)=BO$2),AND(EVEN($A16)=$A16,EVEN(BO$2)=BO$2)),BO$1,-100)) -> 1209.375 | BP16: =IF('Ceiling Speaker Calculator'!$C$29="Square",BP$1,IF(OR(AND(ODD($A16)=$A16,ODD(BP$2)=BP$2),AND(EVEN($A16)=$A16,EVEN(BP$2)=BP$2)),BP$1,-100)) -> 1228.125 | BQ16: =IF('Ceiling Speaker Calculator'!$C$29="Square",BQ$1,IF(OR(AND(ODD($A16)=$A16,ODD(BQ$2)=BQ$2),AND(EVEN($A16)=$A16,EVEN(BQ$2)=BQ$2)),BQ$1,-100)) -> 1246.875 | BR16: =IF('Ceiling Speaker Calculator'!$C$29="Square",BR$1,IF(OR(AND(ODD($A16)=$A16,ODD(BR$2)=BR$2),AND(EVEN($A16)=$A16,EVEN(BR$2)=BR$2)),BR$1,-100)) -> 1265.625 | BS16: =IF('Ceiling Speaker Calculator'!$C$29="Square",BS$1,IF(OR(AND(ODD($A16)=$A16,ODD(BS$2)=BS$2),AND(EVEN($A16)=$A16,EVEN(BS$2)=BS$2)),BS$1,-100)) -> 1284.375 | BT16: =IF('Ceiling Speaker Calculator'!$C$29="Square",BT$1,IF(OR(AND(ODD($A16)=$A16,ODD(BT$2)=BT$2),AND(EVEN($A16)=$A16,EVEN(BT$2)=BT$2)),BT$1,-100)) -> 1303.125 | BU16: =IF('Ceiling Speaker Calculator'!$C$29="Square",BU$1,IF(OR(AND(ODD($A16)=$A16,ODD(BU$2)=BU$2),AND(EVEN($A16)=$A16,EVEN(BU$2)=BU$2)),BU$1,-100)) -> 1321.875 | BV16: =IF('Ceiling Speaker Calculator'!$C$29="Square",BV$1,IF(OR(AND(ODD($A16)=$A16,ODD(BV$2)=BV$2),AND(EVEN($A16)=$A16,EVEN(BV$2)=BV$2)),BV$1,-100)) -> 1340.625 | BW16: =IF('Ceiling Speaker Calculator'!$C$29="Square",BW$1,IF(OR(AND(ODD($A16)=$A16,ODD(BW$2)=BW$2),AND(EVEN($A16)=$A16,EVEN(BW$2)=BW$2)),BW$1,-100)) -> 1359.375 | BX16: =IF('Ceiling Speaker Calculator'!$C$29="Square",BX$1,IF(OR(AND(ODD($A16)=$A16,ODD(BX$2)=BX$2),AND(EVEN($A16)=$A16,EVEN(BX$2)=BX$2)),BX$1,-100)) -> 1378.125 | BY16: =IF('Ceiling Speaker Calculator'!$C$29="Square",BY$1,IF(OR(AND(ODD($A16)=$A16,ODD(BY$2)=BY$2),AND(EVEN($A16)=$A16,EVEN(BY$2)=BY$2)),BY$1,-100)) -> 1396.875 | BZ16: =IF('Ceiling Speaker Calculator'!$C$29="Square",BZ$1,IF(OR(AND(ODD($A16)=$A16,ODD(BZ$2)=BZ$2),AND(EVEN($A16)=$A16,EVEN(BZ$2)=BZ$2)),BZ$1,-100)) -> 1415.625 | CA16: =IF('Ceiling Speaker Calculator'!$C$29="Square",CA$1,IF(OR(AND(ODD($A16)=$A16,ODD(CA$2)=CA$2),AND(EVEN($A16)=$A16,EVEN(CA$2)=CA$2)),CA$1,-100)) -> 1434.375 | CB16: =IF('Ceiling Speaker Calculator'!$C$29="Square",CB$1,IF(OR(AND(ODD($A16)=$A16,ODD(CB$2)=CB$2),AND(EVEN($A16)=$A16,EVEN(CB$2)=CB$2)),CB$1,-100)) -> 1453.125 | CC16: =IF('Ceiling Speaker Calculator'!$C$29="Square",CC$1,IF(OR(AND(ODD($A16)=$A16,ODD(CC$2)=CC$2),AND(EVEN($A16)=$A16,EVEN(CC$2)=CC$2)),CC$1,-100)) -> 1471.875 | CD16: =IF('Ceiling Speaker Calculator'!$C$29="Square",CD$1,IF(OR(AND(ODD($A16)=$A16,ODD(CD$2)=CD$2),AND(EVEN($A16)=$A16,EVEN(CD$2)=CD$2)),CD$1,-100)) -> 1490.625 | CE16: =IF('Ceiling Speaker Calculator'!$C$29="Square",CE$1,IF(OR(AND(ODD($A16)=$A16,ODD(CE$2)=CE$2),AND(EVEN($A16)=$A16,EVEN(CE$2)=CE$2)),CE$1,-100)) -> 1509.375 | CF16: =IF('Ceiling Speaker Calculator'!$C$29="Square",CF$1,IF(OR(AND(ODD($A16)=$A16,ODD(CF$2)=CF$2),AND(EVEN($A16)=$A16,EVEN(CF$2)=CF$2)),CF$1,-100)) -> 1528.125 | CG16: =IF('Ceiling Speaker Calculator'!$C$29="Square",CG$1,IF(OR(AND(ODD($A16)=$A16,ODD(CG$2)=CG$2),AND(EVEN($A16)=$A16,EVEN(CG$2)=CG$2)),CG$1,-100)) -> 1546.875 | CH16: =IF('Ceiling Speaker Calculator'!$C$29="Square",CH$1,IF(OR(AND(ODD($A16)=$A16,ODD(CH$2)=CH$2),AND(EVEN($A16)=$A16,EVEN(CH$2)=CH$2)),CH$1,-100)) -> 1565.625 | CI16: =IF('Ceiling Speaker Calculator'!$C$29="Square",CI$1,IF(OR(AND(ODD($A16)=$A16,ODD(CI$2)=CI$2),AND(EVEN($A16)=$A16,EVEN(CI$2)=CI$2)),CI$1,-100)) -> 1584.375 | CJ16: =IF('Ceiling Speaker Calculator'!$C$29="Square",CJ$1,IF(OR(AND(ODD($A16)=$A16,ODD(CJ$2)=CJ$2),AND(EVEN($A16)=$A16,EVEN(CJ$2)=CJ$2)),CJ$1,-100)) -> 1603.125 | CK16: =IF('Ceiling Speaker Calculator'!$C$29="Square",CK$1,IF(OR(AND(ODD($A16)=$A16,ODD(CK$2)=CK$2),AND(EVEN($A16)=$A16,EVEN(CK$2)=CK$2)),CK$1,-100)) -> 1621.875 | CL16: =IF('Ceiling Speaker Calculator'!$C$29="Square",CL$1,IF(OR(AND(ODD($A16)=$A16,ODD(CL$2)=CL$2),AND(EVEN($A16)=$A16,EVEN(CL$2)=CL$2)),CL$1,-100)) -> 1640.625 | CM16: =IF('Ceiling Speaker Calculator'!$C$29="Square",CM$1,IF(OR(AND(ODD($A16)=$A16,ODD(CM$2)=CM$2),AND(EVEN($A16)=$A16,EVEN(CM$2)=CM$2)),CM$1,-100)) -> 1659.375 | CN16: =IF('Ceiling Speaker Calculator'!$C$29="Square",CN$1,IF(OR(AND(ODD($A16)=$A16,ODD(CN$2)=CN$2),AND(EVEN($A16)=$A16,EVEN(CN$2)=CN$2)),CN$1,-100)) -> 1678.125 | CO16: =IF('Ceiling Speaker Calculator'!$C$29="Square",CO$1,IF(OR(AND(ODD($A16)=$A16,ODD(CO$2)=CO$2),AND(EVEN($A16)=$A16,EVEN(CO$2)=CO$2)),CO$1,-100)) -> 1696.875 | CP16: =IF('Ceiling Speaker Calculator'!$C$29="Square",CP$1,IF(OR(AND(ODD($A16)=$A16,ODD(CP$2)=CP$2),AND(EVEN($A16)=$A16,EVEN(CP$2)=CP$2)),CP$1,-100)) -> 1715.625 | CQ16: =IF('Ceiling Speaker Calculator'!$C$29="Square",CQ$1,IF(OR(AND(ODD($A16)=$A16,ODD(CQ$2)=CQ$2),AND(EVEN($A16)=$A16,EVEN(CQ$2)=CQ$2)),CQ$1,-100)) -> 1734.375 | CR16: =IF('Ceiling Speaker Calculator'!$C$29="Square",CR$1,IF(OR(AND(ODD($A16)=$A16,ODD(CR$2)=CR$2),AND(EVEN($A16)=$A16,EVEN(CR$2)=CR$2)),CR$1,-100)) -> 1753.125 | CS16: =IF('Ceiling Speaker Calculator'!$C$29="Square",CS$1,IF(OR(AND(ODD($A16)=$A16,ODD(CS$2)=CS$2),AND(EVEN($A16)=$A16,EVEN(CS$2)=CS$2)),CS$1,-100)) -> 1771.875 | CT16: =IF('Ceiling Speaker Calculator'!$C$29="Square",CT$1,IF(OR(AND(ODD($A16)=$A16,ODD(CT$2)=CT$2),AND(EVEN($A16)=$A16,EVEN(CT$2)=CT$2)),CT$1,-100)) -> 1790.625 | CU16: =IF('Ceiling Speaker Calculator'!$C$29="Square",CU$1,IF(OR(AND(ODD($A16)=$A16,ODD(CU$2)=CU$2),AND(EVEN($A16)=$A16,EVEN(CU$2)=CU$2)),CU$1,-100)) -> 1809.375 | CV16: =IF('Ceiling Speaker Calculator'!$C$29="Square",CV$1,IF(OR(AND(ODD($A16)=$A16,ODD(CV$2)=CV$2),AND(EVEN($A16)=$A16,EVEN(CV$2)=CV$2)),CV$1,-100)) -> 1828.125 | CW16: =IF('Ceiling Speaker Calculator'!$C$29="Square",CW$1,IF(OR(AND(ODD($A16)=$A16,ODD(CW$2)=CW$2),AND(EVEN($A16)=$A16,EVEN(CW$2)=CW$2)),CW$1,-100)) -> 1846.875 | CX16: =IF('Ceiling Speaker Calculator'!$C$29="Square",CX$1,IF(OR(AND(ODD($A16)=$A16,ODD(CX$2)=CX$2),AND(EVEN($A16)=$A16,EVEN(CX$2)=CX$2)),CX$1,-100)) -> 1865.625
A17: 15 | B17: =B16+'Ceiling Speaker Calculator'!$K$16 -> 290 | C17: =IF('Ceiling Speaker Calculator'!$C$29="Square",C$1,IF(OR(AND(ODD($A17)=$A17,ODD(C$2)=C$2),AND(EVEN($A17)=$A17,EVEN(C$2)=C$2)),C$1,-100)) -> 9.375 | D17: =IF('Ceiling Speaker Calculator'!$C$29="Square",D$1,IF(OR(AND(ODD($A17)=$A17,ODD(D$2)=D$2),AND(EVEN($A17)=$A17,EVEN(D$2)=D$2)),D$1,-100)) -> 28.125 | E17: =IF('Ceiling Speaker Calculator'!$C$29="Square",E$1,IF(OR(AND(ODD($A17)=$A17,ODD(E$2)=E$2),AND(EVEN($A17)=$A17,EVEN(E$2)=E$2)),E$1,-100)) -> 46.875 | F17: =IF('Ceiling Speaker Calculator'!$C$29="Square",F$1,IF(OR(AND(ODD($A17)=$A17,ODD(F$2)=F$2),AND(EVEN($A17)=$A17,EVEN(F$2)=F$2)),F$1,-100)) -> 65.625 | G17: =IF('Ceiling Speaker Calculator'!$C$29="Square",G$1,IF(OR(AND(ODD($A17)=$A17,ODD(G$2)=G$2),AND(EVEN($A17)=$A17,EVEN(G$2)=G$2)),G$1,-100)) -> 84.375 | H17: =IF('Ceiling Speaker Calculator'!$C$29="Square",H$1,IF(OR(AND(ODD($A17)=$A17,ODD(H$2)=H$2),AND(EVEN($A17)=$A17,EVEN(H$2)=H$2)),H$1,-100)) -> 103.125 | I17: =IF('Ceiling Speaker Calculator'!$C$29="Square",I$1,IF(OR(AND(ODD($A17)=$A17,ODD(I$2)=I$2),AND(EVEN($A17)=$A17,EVEN(I$2)=I$2)),I$1,-100)) -> 121.875 | J17: =IF('Ceiling Speaker Calculator'!$C$29="Square",J$1,IF(OR(AND(ODD($A17)=$A17,ODD(J$2)=J$2),AND(EVEN($A17)=$A17,EVEN(J$2)=J$2)),J$1,-100)) -> 140.625 | K17: =IF('Ceiling Speaker Calculator'!$C$29="Square",K$1,IF(OR(AND(ODD($A17)=$A17,ODD(K$2)=K$2),AND(EVEN($A17)=$A17,EVEN(K$2)=K$2)),K$1,-100)) -> 159.375 | L17: =IF('Ceiling Speaker Calculator'!$C$29="Square",L$1,IF(OR(AND(ODD($A17)=$A17,ODD(L$2)=L$2),AND(EVEN($A17)=$A17,EVEN(L$2)=L$2)),L$1,-100)) -> 178.125 | M17: =IF('Ceiling Speaker Calculator'!$C$29="Square",M$1,IF(OR(AND(ODD($A17)=$A17,ODD(M$2)=M$2),AND(EVEN($A17)=$A17,EVEN(M$2)=M$2)),M$1,-100)) -> 196.875 | N17: =IF('Ceiling Speaker Calculator'!$C$29="Square",N$1,IF(OR(AND(ODD($A17)=$A17,ODD(N$2)=N$2),AND(EVEN($A17)=$A17,EVEN(N$2)=N$2)),N$1,-100)) -> 215.625 | O17: =IF('Ceiling Speaker Calculator'!$C$29="Square",O$1,IF(OR(AND(ODD($A17)=$A17,ODD(O$2)=O$2),AND(EVEN($A17)=$A17,EVEN(O$2)=O$2)),O$1,-100)) -> 234.375 | P17: =IF('Ceiling Speaker Calculator'!$C$29="Square",P$1,IF(OR(AND(ODD($A17)=$A17,ODD(P$2)=P$2),AND(EVEN($A17)=$A17,EVEN(P$2)=P$2)),P$1,-100)) -> 253.125 | Q17: =IF('Ceiling Speaker Calculator'!$C$29="Square",Q$1,IF(OR(AND(ODD($A17)=$A17,ODD(Q$2)=Q$2),AND(EVEN($A17)=$A17,EVEN(Q$2)=Q$2)),Q$1,-100)) -> 271.875 | R17: =IF('Ceiling Speaker Calculator'!$C$29="Square",R$1,IF(OR(AND(ODD($A17)=$A17,ODD(R$2)=R$2),AND(EVEN($A17)=$A17,EVEN(R$2)=R$2)),R$1,-100)) -> 290.625 | S17: =IF('Ceiling Speaker Calculator'!$C$29="Square",S$1,IF(OR(AND(ODD($A17)=$A17,ODD(S$2)=S$2),AND(EVEN($A17)=$A17,EVEN(S$2)=S$2)),S$1,-100)) -> 309.375 | T17: =IF('Ceiling Speaker Calculator'!$C$29="Square",T$1,IF(OR(AND(ODD($A17)=$A17,ODD(T$2)=T$2),AND(EVEN($A17)=$A17,EVEN(T$2)=T$2)),T$1,-100)) -> 328.125 | U17: =IF('Ceiling Speaker Calculator'!$C$29="Square",U$1,IF(OR(AND(ODD($A17)=$A17,ODD(U$2)=U$2),AND(EVEN($A17)=$A17,EVEN(U$2)=U$2)),U$1,-100)) -> 346.875 | V17: =IF('Ceiling Speaker Calculator'!$C$29="Square",V$1,IF(OR(AND(ODD($A17)=$A17,ODD(V$2)=V$2),AND(EVEN($A17)=$A17,EVEN(V$2)=V$2)),V$1,-100)) -> 365.625 | W17: =IF('Ceiling Speaker Calculator'!$C$29="Square",W$1,IF(OR(AND(ODD($A17)=$A17,ODD(W$2)=W$2),AND(EVEN($A17)=$A17,EVEN(W$2)=W$2)),W$1,-100)) -> 384.375 | X17: =IF('Ceiling Speaker Calculator'!$C$29="Square",X$1,IF(OR(AND(ODD($A17)=$A17,ODD(X$2)=X$2),AND(EVEN($A17)=$A17,EVEN(X$2)=X$2)),X$1,-100)) -> 403.125 | Y17: =IF('Ceiling Speaker Calculator'!$C$29="Square",Y$1,IF(OR(AND(ODD($A17)=$A17,ODD(Y$2)=Y$2),AND(EVEN($A17)=$A17,EVEN(Y$2)=Y$2)),Y$1,-100)) -> 421.875 | Z17: =IF('Ceiling Speaker Calculator'!$C$29="Square",Z$1,IF(OR(AND(ODD($A17)=$A17,ODD(Z$2)=Z$2),AND(EVEN($A17)=$A17,EVEN(Z$2)=Z$2)),Z$1,-100)) -> 440.625 | AA17: =IF('Ceiling Speaker Calculator'!$C$29="Square",AA$1,IF(OR(AND(ODD($A17)=$A17,ODD(AA$2)=AA$2),AND(EVEN($A17)=$A17,EVEN(AA$2)=AA$2)),AA$1,-100)) -> 459.375 | AB17: =IF('Ceiling Speaker Calculator'!$C$29="Square",AB$1,IF(OR(AND(ODD($A17)=$A17,ODD(AB$2)=AB$2),AND(EVEN($A17)=$A17,EVEN(AB$2)=AB$2)),AB$1,-100)) -> 478.125 | AC17: =IF('Ceiling Speaker Calculator'!$C$29="Square",AC$1,IF(OR(AND(ODD($A17)=$A17,ODD(AC$2)=AC$2),AND(EVEN($A17)=$A17,EVEN(AC$2)=AC$2)),AC$1,-100)) -> 496.875 | AD17: =IF('Ceiling Speaker Calculator'!$C$29="Square",AD$1,IF(OR(AND(ODD($A17)=$A17,ODD(AD$2)=AD$2),AND(EVEN($A17)=$A17,EVEN(AD$2)=AD$2)),AD$1,-100)) -> 515.625 | AE17: =IF('Ceiling Speaker Calculator'!$C$29="Square",AE$1,IF(OR(AND(ODD($A17)=$A17,ODD(AE$2)=AE$2),AND(EVEN($A17)=$A17,EVEN(AE$2)=AE$2)),AE$1,-100)) -> 534.375 | AF17: =IF('Ceiling Speaker Calculator'!$C$29="Square",AF$1,IF(OR(AND(ODD($A17)=$A17,ODD(AF$2)=AF$2),AND(EVEN($A17)=$A17,EVEN(AF$2)=AF$2)),AF$1,-100)) -> 553.125 | AG17: =IF('Ceiling Speaker Calculator'!$C$29="Square",AG$1,IF(OR(AND(ODD($A17)=$A17,ODD(AG$2)=AG$2),AND(EVEN($A17)=$A17,EVEN(AG$2)=AG$2)),AG$1,-100)) -> 571.875 | AH17: =IF('Ceiling Speaker Calculator'!$C$29="Square",AH$1,IF(OR(AND(ODD($A17)=$A17,ODD(AH$2)=AH$2),AND(EVEN($A17)=$A17,EVEN(AH$2)=AH$2)),AH$1,-100)) -> 590.625 | AI17: =IF('Ceiling Speaker Calculator'!$C$29="Square",AI$1,IF(OR(AND(ODD($A17)=$A17,ODD(AI$2)=AI$2),AND(EVEN($A17)=$A17,EVEN(AI$2)=AI$2)),AI$1,-100)) -> 609.375 | AJ17: =IF('Ceiling Speaker Calculator'!$C$29="Square",AJ$1,IF(OR(AND(ODD($A17)=$A17,ODD(AJ$2)=AJ$2),AND(EVEN($A17)=$A17,EVEN(AJ$2)=AJ$2)),AJ$1,-100)) -> 628.125 | AK17: =IF('Ceiling Speaker Calculator'!$C$29="Square",AK$1,IF(OR(AND(ODD($A17)=$A17,ODD(AK$2)=AK$2),AND(EVEN($A17)=$A17,EVEN(AK$2)=AK$2)),AK$1,-100)) -> 646.875 | AL17: =IF('Ceiling Speaker Calculator'!$C$29="Square",AL$1,IF(OR(AND(ODD($A17)=$A17,ODD(AL$2)=AL$2),AND(EVEN($A17)=$A17,EVEN(AL$2)=AL$2)),AL$1,-100)) -> 665.625 | AM17: =IF('Ceiling Speaker Calculator'!$C$29="Square",AM$1,IF(OR(AND(ODD($A17)=$A17,ODD(AM$2)=AM$2),AND(EVEN($A17)=$A17,EVEN(AM$2)=AM$2)),AM$1,-100)) -> 684.375 | AN17: =IF('Ceiling Speaker Calculator'!$C$29="Square",AN$1,IF(OR(AND(ODD($A17)=$A17,ODD(AN$2)=AN$2),AND(EVEN($A17)=$A17,EVEN(AN$2)=AN$2)),AN$1,-100)) -> 703.125 | AO17: =IF('Ceiling Speaker Calculator'!$C$29="Square",AO$1,IF(OR(AND(ODD($A17)=$A17,ODD(AO$2)=AO$2),AND(EVEN($A17)=$A17,EVEN(AO$2)=AO$2)),AO$1,-100)) -> 721.875 | AP17: =IF('Ceiling Speaker Calculator'!$C$29="Square",AP$1,IF(OR(AND(ODD($A17)=$A17,ODD(AP$2)=AP$2),AND(EVEN($A17)=$A17,EVEN(AP$2)=AP$2)),AP$1,-100)) -> 740.625 | AQ17: =IF('Ceiling Speaker Calculator'!$C$29="Square",AQ$1,IF(OR(AND(ODD($A17)=$A17,ODD(AQ$2)=AQ$2),AND(EVEN($A17)=$A17,EVEN(AQ$2)=AQ$2)),AQ$1,-100)) -> 759.375 | AR17: =IF('Ceiling Speaker Calculator'!$C$29="Square",AR$1,IF(OR(AND(ODD($A17)=$A17,ODD(AR$2)=AR$2),AND(EVEN($A17)=$A17,EVEN(AR$2)=AR$2)),AR$1,-100)) -> 778.125 | AS17: =IF('Ceiling Speaker Calculator'!$C$29="Square",AS$1,IF(OR(AND(ODD($A17)=$A17,ODD(AS$2)=AS$2),AND(EVEN($A17)=$A17,EVEN(AS$2)=AS$2)),AS$1,-100)) -> 796.875 | AT17: =IF('Ceiling Speaker Calculator'!$C$29="Square",AT$1,IF(OR(AND(ODD($A17)=$A17,ODD(AT$2)=AT$2),AND(EVEN($A17)=$A17,EVEN(AT$2)=AT$2)),AT$1,-100)) -> 815.625 | AU17: =IF('Ceiling Speaker Calculator'!$C$29="Square",AU$1,IF(OR(AND(ODD($A17)=$A17,ODD(AU$2)=AU$2),AND(EVEN($A17)=$A17,EVEN(AU$2)=AU$2)),AU$1,-100)) -> 834.375 | AV17: =IF('Ceiling Speaker Calculator'!$C$29="Square",AV$1,IF(OR(AND(ODD($A17)=$A17,ODD(AV$2)=AV$2),AND(EVEN($A17)=$A17,EVEN(AV$2)=AV$2)),AV$1,-100)) -> 853.125 | AW17: =IF('Ceiling Speaker Calculator'!$C$29="Square",AW$1,IF(OR(AND(ODD($A17)=$A17,ODD(AW$2)=AW$2),AND(EVEN($A17)=$A17,EVEN(AW$2)=AW$2)),AW$1,-100)) -> 871.875 | AX17: =IF('Ceiling Speaker Calculator'!$C$29="Square",AX$1,IF(OR(AND(ODD($A17)=$A17,ODD(AX$2)=AX$2),AND(EVEN($A17)=$A17,EVEN(AX$2)=AX$2)),AX$1,-100)) -> 890.625 | AY17: =IF('Ceiling Speaker Calculator'!$C$29="Square",AY$1,IF(OR(AND(ODD($A17)=$A17,ODD(AY$2)=AY$2),AND(EVEN($A17)=$A17,EVEN(AY$2)=AY$2)),AY$1,-100)) -> 909.375 | AZ17: =IF('Ceiling Speaker Calculator'!$C$29="Square",AZ$1,IF(OR(AND(ODD($A17)=$A17,ODD(AZ$2)=AZ$2),AND(EVEN($A17)=$A17,EVEN(AZ$2)=AZ$2)),AZ$1,-100)) -> 928.125 | BA17: =IF('Ceiling Speaker Calculator'!$C$29="Square",BA$1,IF(OR(AND(ODD($A17)=$A17,ODD(BA$2)=BA$2),AND(EVEN($A17)=$A17,EVEN(BA$2)=BA$2)),BA$1,-100)) -> 946.875 | BB17: =IF('Ceiling Speaker Calculator'!$C$29="Square",BB$1,IF(OR(AND(ODD($A17)=$A17,ODD(BB$2)=BB$2),AND(EVEN($A17)=$A17,EVEN(BB$2)=BB$2)),BB$1,-100)) -> 965.625 | BC17: =IF('Ceiling Speaker Calculator'!$C$29="Square",BC$1,IF(OR(AND(ODD($A17)=$A17,ODD(BC$2)=BC$2),AND(EVEN($A17)=$A17,EVEN(BC$2)=BC$2)),BC$1,-100)) -> 984.375 | BD17: =IF('Ceiling Speaker Calculator'!$C$29="Square",BD$1,IF(OR(AND(ODD($A17)=$A17,ODD(BD$2)=BD$2),AND(EVEN($A17)=$A17,EVEN(BD$2)=BD$2)),BD$1,-100)) -> 1003.125 | BE17: =IF('Ceiling Speaker Calculator'!$C$29="Square",BE$1,IF(OR(AND(ODD($A17)=$A17,ODD(BE$2)=BE$2),AND(EVEN($A17)=$A17,EVEN(BE$2)=BE$2)),BE$1,-100)) -> 1021.875 | BF17: =IF('Ceiling Speaker Calculator'!$C$29="Square",BF$1,IF(OR(AND(ODD($A17)=$A17,ODD(BF$2)=BF$2),AND(EVEN($A17)=$A17,EVEN(BF$2)=BF$2)),BF$1,-100)) -> 1040.625 | BG17: =IF('Ceiling Speaker Calculator'!$C$29="Square",BG$1,IF(OR(AND(ODD($A17)=$A17,ODD(BG$2)=BG$2),AND(EVEN($A17)=$A17,EVEN(BG$2)=BG$2)),BG$1,-100)) -> 1059.375 | BH17: =IF('Ceiling Speaker Calculator'!$C$29="Square",BH$1,IF(OR(AND(ODD($A17)=$A17,ODD(BH$2)=BH$2),AND(EVEN($A17)=$A17,EVEN(BH$2)=BH$2)),BH$1,-100)) -> 1078.125 | BI17: =IF('Ceiling Speaker Calculator'!$C$29="Square",BI$1,IF(OR(AND(ODD($A17)=$A17,ODD(BI$2)=BI$2),AND(EVEN($A17)=$A17,EVEN(BI$2)=BI$2)),BI$1,-100)) -> 1096.875 | BJ17: =IF('Ceiling Speaker Calculator'!$C$29="Square",BJ$1,IF(OR(AND(ODD($A17)=$A17,ODD(BJ$2)=BJ$2),AND(EVEN($A17)=$A17,EVEN(BJ$2)=BJ$2)),BJ$1,-100)) -> 1115.625 | BK17: =IF('Ceiling Speaker Calculator'!$C$29="Square",BK$1,IF(OR(AND(ODD($A17)=$A17,ODD(BK$2)=BK$2),AND(EVEN($A17)=$A17,EVEN(BK$2)=BK$2)),BK$1,-100)) -> 1134.375 | BL17: =IF('Ceiling Speaker Calculator'!$C$29="Square",BL$1,IF(OR(AND(ODD($A17)=$A17,ODD(BL$2)=BL$2),AND(EVEN($A17)=$A17,EVEN(BL$2)=BL$2)),BL$1,-100)) -> 1153.125 | BM17: =IF('Ceiling Speaker Calculator'!$C$29="Square",BM$1,IF(OR(AND(ODD($A17)=$A17,ODD(BM$2)=BM$2),AND(EVEN($A17)=$A17,EVEN(BM$2)=BM$2)),BM$1,-100)) -> 1171.875 | BN17: =IF('Ceiling Speaker Calculator'!$C$29="Square",BN$1,IF(OR(AND(ODD($A17)=$A17,ODD(BN$2)=BN$2),AND(EVEN($A17)=$A17,EVEN(BN$2)=BN$2)),BN$1,-100)) -> 1190.625 | BO17: =IF('Ceiling Speaker Calculator'!$C$29="Square",BO$1,IF(OR(AND(ODD($A17)=$A17,ODD(BO$2)=BO$2),AND(EVEN($A17)=$A17,EVEN(BO$2)=BO$2)),BO$1,-100)) -> 1209.375 | BP17: =IF('Ceiling Speaker Calculator'!$C$29="Square",BP$1,IF(OR(AND(ODD($A17)=$A17,ODD(BP$2)=BP$2),AND(EVEN($A17)=$A17,EVEN(BP$2)=BP$2)),BP$1,-100)) -> 1228.125 | BQ17: =IF('Ceiling Speaker Calculator'!$C$29="Square",BQ$1,IF(OR(AND(ODD($A17)=$A17,ODD(BQ$2)=BQ$2),AND(EVEN($A17)=$A17,EVEN(BQ$2)=BQ$2)),BQ$1,-100)) -> 1246.875 | BR17: =IF('Ceiling Speaker Calculator'!$C$29="Square",BR$1,IF(OR(AND(ODD($A17)=$A17,ODD(BR$2)=BR$2),AND(EVEN($A17)=$A17,EVEN(BR$2)=BR$2)),BR$1,-100)) -> 1265.625 | BS17: =IF('Ceiling Speaker Calculator'!$C$29="Square",BS$1,IF(OR(AND(ODD($A17)=$A17,ODD(BS$2)=BS$2),AND(EVEN($A17)=$A17,EVEN(BS$2)=BS$2)),BS$1,-100)) -> 1284.375 | BT17: =IF('Ceiling Speaker Calculator'!$C$29="Square",BT$1,IF(OR(AND(ODD($A17)=$A17,ODD(BT$2)=BT$2),AND(EVEN($A17)=$A17,EVEN(BT$2)=BT$2)),BT$1,-100)) -> 1303.125 | BU17: =IF('Ceiling Speaker Calculator'!$C$29="Square",BU$1,IF(OR(AND(ODD($A17)=$A17,ODD(BU$2)=BU$2),AND(EVEN($A17)=$A17,EVEN(BU$2)=BU$2)),BU$1,-100)) -> 1321.875 | BV17: =IF('Ceiling Speaker Calculator'!$C$29="Square",BV$1,IF(OR(AND(ODD($A17)=$A17,ODD(BV$2)=BV$2),AND(EVEN($A17)=$A17,EVEN(BV$2)=BV$2)),BV$1,-100)) -> 1340.625 | BW17: =IF('Ceiling Speaker Calculator'!$C$29="Square",BW$1,IF(OR(AND(ODD($A17)=$A17,ODD(BW$2)=BW$2),AND(EVEN($A17)=$A17,EVEN(BW$2)=BW$2)),BW$1,-100)) -> 1359.375 | BX17: =IF('Ceiling Speaker Calculator'!$C$29="Square",BX$1,IF(OR(AND(ODD($A17)=$A17,ODD(BX$2)=BX$2),AND(EVEN($A17)=$A17,EVEN(BX$2)=BX$2)),BX$1,-100)) -> 1378.125 | BY17: =IF('Ceiling Speaker Calculator'!$C$29="Square",BY$1,IF(OR(AND(ODD($A17)=$A17,ODD(BY$2)=BY$2),AND(EVEN($A17)=$A17,EVEN(BY$2)=BY$2)),BY$1,-100)) -> 1396.875 | BZ17: =IF('Ceiling Speaker Calculator'!$C$29="Square",BZ$1,IF(OR(AND(ODD($A17)=$A17,ODD(BZ$2)=BZ$2),AND(EVEN($A17)=$A17,EVEN(BZ$2)=BZ$2)),BZ$1,-100)) -> 1415.625 | CA17: =IF('Ceiling Speaker Calculator'!$C$29="Square",CA$1,IF(OR(AND(ODD($A17)=$A17,ODD(CA$2)=CA$2),AND(EVEN($A17)=$A17,EVEN(CA$2)=CA$2)),CA$1,-100)) -> 1434.375 | CB17: =IF('Ceiling Speaker Calculator'!$C$29="Square",CB$1,IF(OR(AND(ODD($A17)=$A17,ODD(CB$2)=CB$2),AND(EVEN($A17)=$A17,EVEN(CB$2)=CB$2)),CB$1,-100)) -> 1453.125 | CC17: =IF('Ceiling Speaker Calculator'!$C$29="Square",CC$1,IF(OR(AND(ODD($A17)=$A17,ODD(CC$2)=CC$2),AND(EVEN($A17)=$A17,EVEN(CC$2)=CC$2)),CC$1,-100)) -> 1471.875 | CD17: =IF('Ceiling Speaker Calculator'!$C$29="Square",CD$1,IF(OR(AND(ODD($A17)=$A17,ODD(CD$2)=CD$2),AND(EVEN($A17)=$A17,EVEN(CD$2)=CD$2)),CD$1,-100)) -> 1490.625 | CE17: =IF('Ceiling Speaker Calculator'!$C$29="Square",CE$1,IF(OR(AND(ODD($A17)=$A17,ODD(CE$2)=CE$2),AND(EVEN($A17)=$A17,EVEN(CE$2)=CE$2)),CE$1,-100)) -> 1509.375 | CF17: =IF('Ceiling Speaker Calculator'!$C$29="Square",CF$1,IF(OR(AND(ODD($A17)=$A17,ODD(CF$2)=CF$2),AND(EVEN($A17)=$A17,EVEN(CF$2)=CF$2)),CF$1,-100)) -> 1528.125 | CG17: =IF('Ceiling Speaker Calculator'!$C$29="Square",CG$1,IF(OR(AND(ODD($A17)=$A17,ODD(CG$2)=CG$2),AND(EVEN($A17)=$A17,EVEN(CG$2)=CG$2)),CG$1,-100)) -> 1546.875 | CH17: =IF('Ceiling Speaker Calculator'!$C$29="Square",CH$1,IF(OR(AND(ODD($A17)=$A17,ODD(CH$2)=CH$2),AND(EVEN($A17)=$A17,EVEN(CH$2)=CH$2)),CH$1,-100)) -> 1565.625 | CI17: =IF('Ceiling Speaker Calculator'!$C$29="Square",CI$1,IF(OR(AND(ODD($A17)=$A17,ODD(CI$2)=CI$2),AND(EVEN($A17)=$A17,EVEN(CI$2)=CI$2)),CI$1,-100)) -> 1584.375 | CJ17: =IF('Ceiling Speaker Calculator'!$C$29="Square",CJ$1,IF(OR(AND(ODD($A17)=$A17,ODD(CJ$2)=CJ$2),AND(EVEN($A17)=$A17,EVEN(CJ$2)=CJ$2)),CJ$1,-100)) -> 1603.125 | CK17: =IF('Ceiling Speaker Calculator'!$C$29="Square",CK$1,IF(OR(AND(ODD($A17)=$A17,ODD(CK$2)=CK$2),AND(EVEN($A17)=$A17,EVEN(CK$2)=CK$2)),CK$1,-100)) -> 1621.875 | CL17: =IF('Ceiling Speaker Calculator'!$C$29="Square",CL$1,IF(OR(AND(ODD($A17)=$A17,ODD(CL$2)=CL$2),AND(EVEN($A17)=$A17,EVEN(CL$2)=CL$2)),CL$1,-100)) -> 1640.625 | CM17: =IF('Ceiling Speaker Calculator'!$C$29="Square",CM$1,IF(OR(AND(ODD($A17)=$A17,ODD(CM$2)=CM$2),AND(EVEN($A17)=$A17,EVEN(CM$2)=CM$2)),CM$1,-100)) -> 1659.375 | CN17: =IF('Ceiling Speaker Calculator'!$C$29="Square",CN$1,IF(OR(AND(ODD($A17)=$A17,ODD(CN$2)=CN$2),AND(EVEN($A17)=$A17,EVEN(CN$2)=CN$2)),CN$1,-100)) -> 1678.125 | CO17: =IF('Ceiling Speaker Calculator'!$C$29="Square",CO$1,IF(OR(AND(ODD($A17)=$A17,ODD(CO$2)=CO$2),AND(EVEN($A17)=$A17,EVEN(CO$2)=CO$2)),CO$1,-100)) -> 1696.875 | CP17: =IF('Ceiling Speaker Calculator'!$C$29="Square",CP$1,IF(OR(AND(ODD($A17)=$A17,ODD(CP$2)=CP$2),AND(EVEN($A17)=$A17,EVEN(CP$2)=CP$2)),CP$1,-100)) -> 1715.625 | CQ17: =IF('Ceiling Speaker Calculator'!$C$29="Square",CQ$1,IF(OR(AND(ODD($A17)=$A17,ODD(CQ$2)=CQ$2),AND(EVEN($A17)=$A17,EVEN(CQ$2)=CQ$2)),CQ$1,-100)) -> 1734.375 | CR17: =IF('Ceiling Speaker Calculator'!$C$29="Square",CR$1,IF(OR(AND(ODD($A17)=$A17,ODD(CR$2)=CR$2),AND(EVEN($A17)=$A17,EVEN(CR$2)=CR$2)),CR$1,-100)) -> 1753.125 | CS17: =IF('Ceiling Speaker Calculator'!$C$29="Square",CS$1,IF(OR(AND(ODD($A17)=$A17,ODD(CS$2)=CS$2),AND(EVEN($A17)=$A17,EVEN(CS$2)=CS$2)),CS$1,-100)) -> 1771.875 | CT17: =IF('Ceiling Speaker Calculator'!$C$29="Square",CT$1,IF(OR(AND(ODD($A17)=$A17,ODD(CT$2)=CT$2),AND(EVEN($A17)=$A17,EVEN(CT$2)=CT$2)),CT$1,-100)) -> 1790.625 | CU17: =IF('Ceiling Speaker Calculator'!$C$29="Square",CU$1,IF(OR(AND(ODD($A17)=$A17,ODD(CU$2)=CU$2),AND(EVEN($A17)=$A17,EVEN(CU$2)=CU$2)),CU$1,-100)) -> 1809.375 | CV17: =IF('Ceiling Speaker Calculator'!$C$29="Square",CV$1,IF(OR(AND(ODD($A17)=$A17,ODD(CV$2)=CV$2),AND(EVEN($A17)=$A17,EVEN(CV$2)=CV$2)),CV$1,-100)) -> 1828.125 | CW17: =IF('Ceiling Speaker Calculator'!$C$29="Square",CW$1,IF(OR(AND(ODD($A17)=$A17,ODD(CW$2)=CW$2),AND(EVEN($A17)=$A17,EVEN(CW$2)=CW$2)),CW$1,-100)) -> 1846.875 | CX17: =IF('Ceiling Speaker Calculator'!$C$29="Square",CX$1,IF(OR(AND(ODD($A17)=$A17,ODD(CX$2)=CX$2),AND(EVEN($A17)=$A17,EVEN(CX$2)=CX$2)),CX$1,-100)) -> 1865.625
A18: 16 | B18: =B17+'Ceiling Speaker Calculator'!$K$16 -> 310 | C18: =IF('Ceiling Speaker Calculator'!$C$29="Square",C$1,IF(OR(AND(ODD($A18)=$A18,ODD(C$2)=C$2),AND(EVEN($A18)=$A18,EVEN(C$2)=C$2)),C$1,-100)) -> 9.375 | D18: =IF('Ceiling Speaker Calculator'!$C$29="Square",D$1,IF(OR(AND(ODD($A18)=$A18,ODD(D$2)=D$2),AND(EVEN($A18)=$A18,EVEN(D$2)=D$2)),D$1,-100)) -> 28.125 | E18: =IF('Ceiling Speaker Calculator'!$C$29="Square",E$1,IF(OR(AND(ODD($A18)=$A18,ODD(E$2)=E$2),AND(EVEN($A18)=$A18,EVEN(E$2)=E$2)),E$1,-100)) -> 46.875 | F18: =IF('Ceiling Speaker Calculator'!$C$29="Square",F$1,IF(OR(AND(ODD($A18)=$A18,ODD(F$2)=F$2),AND(EVEN($A18)=$A18,EVEN(F$2)=F$2)),F$1,-100)) -> 65.625 | G18: =IF('Ceiling Speaker Calculator'!$C$29="Square",G$1,IF(OR(AND(ODD($A18)=$A18,ODD(G$2)=G$2),AND(EVEN($A18)=$A18,EVEN(G$2)=G$2)),G$1,-100)) -> 84.375 | H18: =IF('Ceiling Speaker Calculator'!$C$29="Square",H$1,IF(OR(AND(ODD($A18)=$A18,ODD(H$2)=H$2),AND(EVEN($A18)=$A18,EVEN(H$2)=H$2)),H$1,-100)) -> 103.125 | I18: =IF('Ceiling Speaker Calculator'!$C$29="Square",I$1,IF(OR(AND(ODD($A18)=$A18,ODD(I$2)=I$2),AND(EVEN($A18)=$A18,EVEN(I$2)=I$2)),I$1,-100)) -> 121.875 | J18: =IF('Ceiling Speaker Calculator'!$C$29="Square",J$1,IF(OR(AND(ODD($A18)=$A18,ODD(J$2)=J$2),AND(EVEN($A18)=$A18,EVEN(J$2)=J$2)),J$1,-100)) -> 140.625 | K18: =IF('Ceiling Speaker Calculator'!$C$29="Square",K$1,IF(OR(AND(ODD($A18)=$A18,ODD(K$2)=K$2),AND(EVEN($A18)=$A18,EVEN(K$2)=K$2)),K$1,-100)) -> 159.375 | L18: =IF('Ceiling Speaker Calculator'!$C$29="Square",L$1,IF(OR(AND(ODD($A18)=$A18,ODD(L$2)=L$2),AND(EVEN($A18)=$A18,EVEN(L$2)=L$2)),L$1,-100)) -> 178.125 | M18: =IF('Ceiling Speaker Calculator'!$C$29="Square",M$1,IF(OR(AND(ODD($A18)=$A18,ODD(M$2)=M$2),AND(EVEN($A18)=$A18,EVEN(M$2)=M$2)),M$1,-100)) -> 196.875 | N18: =IF('Ceiling Speaker Calculator'!$C$29="Square",N$1,IF(OR(AND(ODD($A18)=$A18,ODD(N$2)=N$2),AND(EVEN($A18)=$A18,EVEN(N$2)=N$2)),N$1,-100)) -> 215.625 | O18: =IF('Ceiling Speaker Calculator'!$C$29="Square",O$1,IF(OR(AND(ODD($A18)=$A18,ODD(O$2)=O$2),AND(EVEN($A18)=$A18,EVEN(O$2)=O$2)),O$1,-100)) -> 234.375 | P18: =IF('Ceiling Speaker Calculator'!$C$29="Square",P$1,IF(OR(AND(ODD($A18)=$A18,ODD(P$2)=P$2),AND(EVEN($A18)=$A18,EVEN(P$2)=P$2)),P$1,-100)) -> 253.125 | Q18: =IF('Ceiling Speaker Calculator'!$C$29="Square",Q$1,IF(OR(AND(ODD($A18)=$A18,ODD(Q$2)=Q$2),AND(EVEN($A18)=$A18,EVEN(Q$2)=Q$2)),Q$1,-100)) -> 271.875 | R18: =IF('Ceiling Speaker Calculator'!$C$29="Square",R$1,IF(OR(AND(ODD($A18)=$A18,ODD(R$2)=R$2),AND(EVEN($A18)=$A18,EVEN(R$2)=R$2)),R$1,-100)) -> 290.625 | S18: =IF('Ceiling Speaker Calculator'!$C$29="Square",S$1,IF(OR(AND(ODD($A18)=$A18,ODD(S$2)=S$2),AND(EVEN($A18)=$A18,EVEN(S$2)=S$2)),S$1,-100)) -> 309.375 | T18: =IF('Ceiling Speaker Calculator'!$C$29="Square",T$1,IF(OR(AND(ODD($A18)=$A18,ODD(T$2)=T$2),AND(EVEN($A18)=$A18,EVEN(T$2)=T$2)),T$1,-100)) -> 328.125 | U18: =IF('Ceiling Speaker Calculator'!$C$29="Square",U$1,IF(OR(AND(ODD($A18)=$A18,ODD(U$2)=U$2),AND(EVEN($A18)=$A18,EVEN(U$2)=U$2)),U$1,-100)) -> 346.875 | V18: =IF('Ceiling Speaker Calculator'!$C$29="Square",V$1,IF(OR(AND(ODD($A18)=$A18,ODD(V$2)=V$2),AND(EVEN($A18)=$A18,EVEN(V$2)=V$2)),V$1,-100)) -> 365.625 | W18: =IF('Ceiling Speaker Calculator'!$C$29="Square",W$1,IF(OR(AND(ODD($A18)=$A18,ODD(W$2)=W$2),AND(EVEN($A18)=$A18,EVEN(W$2)=W$2)),W$1,-100)) -> 384.375 | X18: =IF('Ceiling Speaker Calculator'!$C$29="Square",X$1,IF(OR(AND(ODD($A18)=$A18,ODD(X$2)=X$2),AND(EVEN($A18)=$A18,EVEN(X$2)=X$2)),X$1,-100)) -> 403.125 | Y18: =IF('Ceiling Speaker Calculator'!$C$29="Square",Y$1,IF(OR(AND(ODD($A18)=$A18,ODD(Y$2)=Y$2),AND(EVEN($A18)=$A18,EVEN(Y$2)=Y$2)),Y$1,-100)) -> 421.875 | Z18: =IF('Ceiling Speaker Calculator'!$C$29="Square",Z$1,IF(OR(AND(ODD($A18)=$A18,ODD(Z$2)=Z$2),AND(EVEN($A18)=$A18,EVEN(Z$2)=Z$2)),Z$1,-100)) -> 440.625 | AA18: =IF('Ceiling Speaker Calculator'!$C$29="Square",AA$1,IF(OR(AND(ODD($A18)=$A18,ODD(AA$2)=AA$2),AND(EVEN($A18)=$A18,EVEN(AA$2)=AA$2)),AA$1,-100)) -> 459.375 | AB18: =IF('Ceiling Speaker Calculator'!$C$29="Square",AB$1,IF(OR(AND(ODD($A18)=$A18,ODD(AB$2)=AB$2),AND(EVEN($A18)=$A18,EVEN(AB$2)=AB$2)),AB$1,-100)) -> 478.125 | AC18: =IF('Ceiling Speaker Calculator'!$C$29="Square",AC$1,IF(OR(AND(ODD($A18)=$A18,ODD(AC$2)=AC$2),AND(EVEN($A18)=$A18,EVEN(AC$2)=AC$2)),AC$1,-100)) -> 496.875 | AD18: =IF('Ceiling Speaker Calculator'!$C$29="Square",AD$1,IF(OR(AND(ODD($A18)=$A18,ODD(AD$2)=AD$2),AND(EVEN($A18)=$A18,EVEN(AD$2)=AD$2)),AD$1,-100)) -> 515.625 | AE18: =IF('Ceiling Speaker Calculator'!$C$29="Square",AE$1,IF(OR(AND(ODD($A18)=$A18,ODD(AE$2)=AE$2),AND(EVEN($A18)=$A18,EVEN(AE$2)=AE$2)),AE$1,-100)) -> 534.375 | AF18: =IF('Ceiling Speaker Calculator'!$C$29="Square",AF$1,IF(OR(AND(ODD($A18)=$A18,ODD(AF$2)=AF$2),AND(EVEN($A18)=$A18,EVEN(AF$2)=AF$2)),AF$1,-100)) -> 553.125 | AG18: =IF('Ceiling Speaker Calculator'!$C$29="Square",AG$1,IF(OR(AND(ODD($A18)=$A18,ODD(AG$2)=AG$2),AND(EVEN($A18)=$A18,EVEN(AG$2)=AG$2)),AG$1,-100)) -> 571.875 | AH18: =IF('Ceiling Speaker Calculator'!$C$29="Square",AH$1,IF(OR(AND(ODD($A18)=$A18,ODD(AH$2)=AH$2),AND(EVEN($A18)=$A18,EVEN(AH$2)=AH$2)),AH$1,-100)) -> 590.625 | AI18: =IF('Ceiling Speaker Calculator'!$C$29="Square",AI$1,IF(OR(AND(ODD($A18)=$A18,ODD(AI$2)=AI$2),AND(EVEN($A18)=$A18,EVEN(AI$2)=AI$2)),AI$1,-100)) -> 609.375 | AJ18: =IF('Ceiling Speaker Calculator'!$C$29="Square",AJ$1,IF(OR(AND(ODD($A18)=$A18,ODD(AJ$2)=AJ$2),AND(EVEN($A18)=$A18,EVEN(AJ$2)=AJ$2)),AJ$1,-100)) -> 628.125 | AK18: =IF('Ceiling Speaker Calculator'!$C$29="Square",AK$1,IF(OR(AND(ODD($A18)=$A18,ODD(AK$2)=AK$2),AND(EVEN($A18)=$A18,EVEN(AK$2)=AK$2)),AK$1,-100)) -> 646.875 | AL18: =IF('Ceiling Speaker Calculator'!$C$29="Square",AL$1,IF(OR(AND(ODD($A18)=$A18,ODD(AL$2)=AL$2),AND(EVEN($A18)=$A18,EVEN(AL$2)=AL$2)),AL$1,-100)) -> 665.625 | AM18: =IF('Ceiling Speaker Calculator'!$C$29="Square",AM$1,IF(OR(AND(ODD($A18)=$A18,ODD(AM$2)=AM$2),AND(EVEN($A18)=$A18,EVEN(AM$2)=AM$2)),AM$1,-100)) -> 684.375 | AN18: =IF('Ceiling Speaker Calculator'!$C$29="Square",AN$1,IF(OR(AND(ODD($A18)=$A18,ODD(AN$2)=AN$2),AND(EVEN($A18)=$A18,EVEN(AN$2)=AN$2)),AN$1,-100)) -> 703.125 | AO18: =IF('Ceiling Speaker Calculator'!$C$29="Square",AO$1,IF(OR(AND(ODD($A18)=$A18,ODD(AO$2)=AO$2),AND(EVEN($A18)=$A18,EVEN(AO$2)=AO$2)),AO$1,-100)) -> 721.875 | AP18: =IF('Ceiling Speaker Calculator'!$C$29="Square",AP$1,IF(OR(AND(ODD($A18)=$A18,ODD(AP$2)=AP$2),AND(EVEN($A18)=$A18,EVEN(AP$2)=AP$2)),AP$1,-100)) -> 740.625 | AQ18: =IF('Ceiling Speaker Calculator'!$C$29="Square",AQ$1,IF(OR(AND(ODD($A18)=$A18,ODD(AQ$2)=AQ$2),AND(EVEN($A18)=$A18,EVEN(AQ$2)=AQ$2)),AQ$1,-100)) -> 759.375 | AR18: =IF('Ceiling Speaker Calculator'!$C$29="Square",AR$1,IF(OR(AND(ODD($A18)=$A18,ODD(AR$2)=AR$2),AND(EVEN($A18)=$A18,EVEN(AR$2)=AR$2)),AR$1,-100)) -> 778.125 | AS18: =IF('Ceiling Speaker Calculator'!$C$29="Square",AS$1,IF(OR(AND(ODD($A18)=$A18,ODD(AS$2)=AS$2),AND(EVEN($A18)=$A18,EVEN(AS$2)=AS$2)),AS$1,-100)) -> 796.875 | AT18: =IF('Ceiling Speaker Calculator'!$C$29="Square",AT$1,IF(OR(AND(ODD($A18)=$A18,ODD(AT$2)=AT$2),AND(EVEN($A18)=$A18,EVEN(AT$2)=AT$2)),AT$1,-100)) -> 815.625 | AU18: =IF('Ceiling Speaker Calculator'!$C$29="Square",AU$1,IF(OR(AND(ODD($A18)=$A18,ODD(AU$2)=AU$2),AND(EVEN($A18)=$A18,EVEN(AU$2)=AU$2)),AU$1,-100)) -> 834.375 | AV18: =IF('Ceiling Speaker Calculator'!$C$29="Square",AV$1,IF(OR(AND(ODD($A18)=$A18,ODD(AV$2)=AV$2),AND(EVEN($A18)=$A18,EVEN(AV$2)=AV$2)),AV$1,-100)) -> 853.125 | AW18: =IF('Ceiling Speaker Calculator'!$C$29="Square",AW$1,IF(OR(AND(ODD($A18)=$A18,ODD(AW$2)=AW$2),AND(EVEN($A18)=$A18,EVEN(AW$2)=AW$2)),AW$1,-100)) -> 871.875 | AX18: =IF('Ceiling Speaker Calculator'!$C$29="Square",AX$1,IF(OR(AND(ODD($A18)=$A18,ODD(AX$2)=AX$2),AND(EVEN($A18)=$A18,EVEN(AX$2)=AX$2)),AX$1,-100)) -> 890.625 | AY18: =IF('Ceiling Speaker Calculator'!$C$29="Square",AY$1,IF(OR(AND(ODD($A18)=$A18,ODD(AY$2)=AY$2),AND(EVEN($A18)=$A18,EVEN(AY$2)=AY$2)),AY$1,-100)) -> 909.375 | AZ18: =IF('Ceiling Speaker Calculator'!$C$29="Square",AZ$1,IF(OR(AND(ODD($A18)=$A18,ODD(AZ$2)=AZ$2),AND(EVEN($A18)=$A18,EVEN(AZ$2)=AZ$2)),AZ$1,-100)) -> 928.125 | BA18: =IF('Ceiling Speaker Calculator'!$C$29="Square",BA$1,IF(OR(AND(ODD($A18)=$A18,ODD(BA$2)=BA$2),AND(EVEN($A18)=$A18,EVEN(BA$2)=BA$2)),BA$1,-100)) -> 946.875 | BB18: =IF('Ceiling Speaker Calculator'!$C$29="Square",BB$1,IF(OR(AND(ODD($A18)=$A18,ODD(BB$2)=BB$2),AND(EVEN($A18)=$A18,EVEN(BB$2)=BB$2)),BB$1,-100)) -> 965.625 | BC18: =IF('Ceiling Speaker Calculator'!$C$29="Square",BC$1,IF(OR(AND(ODD($A18)=$A18,ODD(BC$2)=BC$2),AND(EVEN($A18)=$A18,EVEN(BC$2)=BC$2)),BC$1,-100)) -> 984.375 | BD18: =IF('Ceiling Speaker Calculator'!$C$29="Square",BD$1,IF(OR(AND(ODD($A18)=$A18,ODD(BD$2)=BD$2),AND(EVEN($A18)=$A18,EVEN(BD$2)=BD$2)),BD$1,-100)) -> 1003.125 | BE18: =IF('Ceiling Speaker Calculator'!$C$29="Square",BE$1,IF(OR(AND(ODD($A18)=$A18,ODD(BE$2)=BE$2),AND(EVEN($A18)=$A18,EVEN(BE$2)=BE$2)),BE$1,-100)) -> 1021.875 | BF18: =IF('Ceiling Speaker Calculator'!$C$29="Square",BF$1,IF(OR(AND(ODD($A18)=$A18,ODD(BF$2)=BF$2),AND(EVEN($A18)=$A18,EVEN(BF$2)=BF$2)),BF$1,-100)) -> 1040.625 | BG18: =IF('Ceiling Speaker Calculator'!$C$29="Square",BG$1,IF(OR(AND(ODD($A18)=$A18,ODD(BG$2)=BG$2),AND(EVEN($A18)=$A18,EVEN(BG$2)=BG$2)),BG$1,-100)) -> 1059.375 | BH18: =IF('Ceiling Speaker Calculator'!$C$29="Square",BH$1,IF(OR(AND(ODD($A18)=$A18,ODD(BH$2)=BH$2),AND(EVEN($A18)=$A18,EVEN(BH$2)=BH$2)),BH$1,-100)) -> 1078.125 | BI18: =IF('Ceiling Speaker Calculator'!$C$29="Square",BI$1,IF(OR(AND(ODD($A18)=$A18,ODD(BI$2)=BI$2),AND(EVEN($A18)=$A18,EVEN(BI$2)=BI$2)),BI$1,-100)) -> 1096.875 | BJ18: =IF('Ceiling Speaker Calculator'!$C$29="Square",BJ$1,IF(OR(AND(ODD($A18)=$A18,ODD(BJ$2)=BJ$2),AND(EVEN($A18)=$A18,EVEN(BJ$2)=BJ$2)),BJ$1,-100)) -> 1115.625 | BK18: =IF('Ceiling Speaker Calculator'!$C$29="Square",BK$1,IF(OR(AND(ODD($A18)=$A18,ODD(BK$2)=BK$2),AND(EVEN($A18)=$A18,EVEN(BK$2)=BK$2)),BK$1,-100)) -> 1134.375 | BL18: =IF('Ceiling Speaker Calculator'!$C$29="Square",BL$1,IF(OR(AND(ODD($A18)=$A18,ODD(BL$2)=BL$2),AND(EVEN($A18)=$A18,EVEN(BL$2)=BL$2)),BL$1,-100)) -> 1153.125 | BM18: =IF('Ceiling Speaker Calculator'!$C$29="Square",BM$1,IF(OR(AND(ODD($A18)=$A18,ODD(BM$2)=BM$2),AND(EVEN($A18)=$A18,EVEN(BM$2)=BM$2)),BM$1,-100)) -> 1171.875 | BN18: =IF('Ceiling Speaker Calculator'!$C$29="Square",BN$1,IF(OR(AND(ODD($A18)=$A18,ODD(BN$2)=BN$2),AND(EVEN($A18)=$A18,EVEN(BN$2)=BN$2)),BN$1,-100)) -> 1190.625 | BO18: =IF('Ceiling Speaker Calculator'!$C$29="Square",BO$1,IF(OR(AND(ODD($A18)=$A18,ODD(BO$2)=BO$2),AND(EVEN($A18)=$A18,EVEN(BO$2)=BO$2)),BO$1,-100)) -> 1209.375 | BP18: =IF('Ceiling Speaker Calculator'!$C$29="Square",BP$1,IF(OR(AND(ODD($A18)=$A18,ODD(BP$2)=BP$2),AND(EVEN($A18)=$A18,EVEN(BP$2)=BP$2)),BP$1,-100)) -> 1228.125 | BQ18: =IF('Ceiling Speaker Calculator'!$C$29="Square",BQ$1,IF(OR(AND(ODD($A18)=$A18,ODD(BQ$2)=BQ$2),AND(EVEN($A18)=$A18,EVEN(BQ$2)=BQ$2)),BQ$1,-100)) -> 1246.875 | BR18: =IF('Ceiling Speaker Calculator'!$C$29="Square",BR$1,IF(OR(AND(ODD($A18)=$A18,ODD(BR$2)=BR$2),AND(EVEN($A18)=$A18,EVEN(BR$2)=BR$2)),BR$1,-100)) -> 1265.625 | BS18: =IF('Ceiling Speaker Calculator'!$C$29="Square",BS$1,IF(OR(AND(ODD($A18)=$A18,ODD(BS$2)=BS$2),AND(EVEN($A18)=$A18,EVEN(BS$2)=BS$2)),BS$1,-100)) -> 1284.375 | BT18: =IF('Ceiling Speaker Calculator'!$C$29="Square",BT$1,IF(OR(AND(ODD($A18)=$A18,ODD(BT$2)=BT$2),AND(EVEN($A18)=$A18,EVEN(BT$2)=BT$2)),BT$1,-100)) -> 1303.125 | BU18: =IF('Ceiling Speaker Calculator'!$C$29="Square",BU$1,IF(OR(AND(ODD($A18)=$A18,ODD(BU$2)=BU$2),AND(EVEN($A18)=$A18,EVEN(BU$2)=BU$2)),BU$1,-100)) -> 1321.875 | BV18: =IF('Ceiling Speaker Calculator'!$C$29="Square",BV$1,IF(OR(AND(ODD($A18)=$A18,ODD(BV$2)=BV$2),AND(EVEN($A18)=$A18,EVEN(BV$2)=BV$2)),BV$1,-100)) -> 1340.625 | BW18: =IF('Ceiling Speaker Calculator'!$C$29="Square",BW$1,IF(OR(AND(ODD($A18)=$A18,ODD(BW$2)=BW$2),AND(EVEN($A18)=$A18,EVEN(BW$2)=BW$2)),BW$1,-100)) -> 1359.375 | BX18: =IF('Ceiling Speaker Calculator'!$C$29="Square",BX$1,IF(OR(AND(ODD($A18)=$A18,ODD(BX$2)=BX$2),AND(EVEN($A18)=$A18,EVEN(BX$2)=BX$2)),BX$1,-100)) -> 1378.125 | BY18: =IF('Ceiling Speaker Calculator'!$C$29="Square",BY$1,IF(OR(AND(ODD($A18)=$A18,ODD(BY$2)=BY$2),AND(EVEN($A18)=$A18,EVEN(BY$2)=BY$2)),BY$1,-100)) -> 1396.875 | BZ18: =IF('Ceiling Speaker Calculator'!$C$29="Square",BZ$1,IF(OR(AND(ODD($A18)=$A18,ODD(BZ$2)=BZ$2),AND(EVEN($A18)=$A18,EVEN(BZ$2)=BZ$2)),BZ$1,-100)) -> 1415.625 | CA18: =IF('Ceiling Speaker Calculator'!$C$29="Square",CA$1,IF(OR(AND(ODD($A18)=$A18,ODD(CA$2)=CA$2),AND(EVEN($A18)=$A18,EVEN(CA$2)=CA$2)),CA$1,-100)) -> 1434.375 | CB18: =IF('Ceiling Speaker Calculator'!$C$29="Square",CB$1,IF(OR(AND(ODD($A18)=$A18,ODD(CB$2)=CB$2),AND(EVEN($A18)=$A18,EVEN(CB$2)=CB$2)),CB$1,-100)) -> 1453.125 | CC18: =IF('Ceiling Speaker Calculator'!$C$29="Square",CC$1,IF(OR(AND(ODD($A18)=$A18,ODD(CC$2)=CC$2),AND(EVEN($A18)=$A18,EVEN(CC$2)=CC$2)),CC$1,-100)) -> 1471.875 | CD18: =IF('Ceiling Speaker Calculator'!$C$29="Square",CD$1,IF(OR(AND(ODD($A18)=$A18,ODD(CD$2)=CD$2),AND(EVEN($A18)=$A18,EVEN(CD$2)=CD$2)),CD$1,-100)) -> 1490.625 | CE18: =IF('Ceiling Speaker Calculator'!$C$29="Square",CE$1,IF(OR(AND(ODD($A18)=$A18,ODD(CE$2)=CE$2),AND(EVEN($A18)=$A18,EVEN(CE$2)=CE$2)),CE$1,-100)) -> 1509.375 | CF18: =IF('Ceiling Speaker Calculator'!$C$29="Square",CF$1,IF(OR(AND(ODD($A18)=$A18,ODD(CF$2)=CF$2),AND(EVEN($A18)=$A18,EVEN(CF$2)=CF$2)),CF$1,-100)) -> 1528.125 | CG18: =IF('Ceiling Speaker Calculator'!$C$29="Square",CG$1,IF(OR(AND(ODD($A18)=$A18,ODD(CG$2)=CG$2),AND(EVEN($A18)=$A18,EVEN(CG$2)=CG$2)),CG$1,-100)) -> 1546.875 | CH18: =IF('Ceiling Speaker Calculator'!$C$29="Square",CH$1,IF(OR(AND(ODD($A18)=$A18,ODD(CH$2)=CH$2),AND(EVEN($A18)=$A18,EVEN(CH$2)=CH$2)),CH$1,-100)) -> 1565.625 | CI18: =IF('Ceiling Speaker Calculator'!$C$29="Square",CI$1,IF(OR(AND(ODD($A18)=$A18,ODD(CI$2)=CI$2),AND(EVEN($A18)=$A18,EVEN(CI$2)=CI$2)),CI$1,-100)) -> 1584.375 | CJ18: =IF('Ceiling Speaker Calculator'!$C$29="Square",CJ$1,IF(OR(AND(ODD($A18)=$A18,ODD(CJ$2)=CJ$2),AND(EVEN($A18)=$A18,EVEN(CJ$2)=CJ$2)),CJ$1,-100)) -> 1603.125 | CK18: =IF('Ceiling Speaker Calculator'!$C$29="Square",CK$1,IF(OR(AND(ODD($A18)=$A18,ODD(CK$2)=CK$2),AND(EVEN($A18)=$A18,EVEN(CK$2)=CK$2)),CK$1,-100)) -> 1621.875 | CL18: =IF('Ceiling Speaker Calculator'!$C$29="Square",CL$1,IF(OR(AND(ODD($A18)=$A18,ODD(CL$2)=CL$2),AND(EVEN($A18)=$A18,EVEN(CL$2)=CL$2)),CL$1,-100)) -> 1640.625 | CM18: =IF('Ceiling Speaker Calculator'!$C$29="Square",CM$1,IF(OR(AND(ODD($A18)=$A18,ODD(CM$2)=CM$2),AND(EVEN($A18)=$A18,EVEN(CM$2)=CM$2)),CM$1,-100)) -> 1659.375 | CN18: =IF('Ceiling Speaker Calculator'!$C$29="Square",CN$1,IF(OR(AND(ODD($A18)=$A18,ODD(CN$2)=CN$2),AND(EVEN($A18)=$A18,EVEN(CN$2)=CN$2)),CN$1,-100)) -> 1678.125 | CO18: =IF('Ceiling Speaker Calculator'!$C$29="Square",CO$1,IF(OR(AND(ODD($A18)=$A18,ODD(CO$2)=CO$2),AND(EVEN($A18)=$A18,EVEN(CO$2)=CO$2)),CO$1,-100)) -> 1696.875 | CP18: =IF('Ceiling Speaker Calculator'!$C$29="Square",CP$1,IF(OR(AND(ODD($A18)=$A18,ODD(CP$2)=CP$2),AND(EVEN($A18)=$A18,EVEN(CP$2)=CP$2)),CP$1,-100)) -> 1715.625 | CQ18: =IF('Ceiling Speaker Calculator'!$C$29="Square",CQ$1,IF(OR(AND(ODD($A18)=$A18,ODD(CQ$2)=CQ$2),AND(EVEN($A18)=$A18,EVEN(CQ$2)=CQ$2)),CQ$1,-100)) -> 1734.375 | CR18: =IF('Ceiling Speaker Calculator'!$C$29="Square",CR$1,IF(OR(AND(ODD($A18)=$A18,ODD(CR$2)=CR$2),AND(EVEN($A18)=$A18,EVEN(CR$2)=CR$2)),CR$1,-100)) -> 1753.125 | CS18: =IF('Ceiling Speaker Calculator'!$C$29="Square",CS$1,IF(OR(AND(ODD($A18)=$A18,ODD(CS$2)=CS$2),AND(EVEN($A18)=$A18,EVEN(CS$2)=CS$2)),CS$1,-100)) -> 1771.875 | CT18: =IF('Ceiling Speaker Calculator'!$C$29="Square",CT$1,IF(OR(AND(ODD($A18)=$A18,ODD(CT$2)=CT$2),AND(EVEN($A18)=$A18,EVEN(CT$2)=CT$2)),CT$1,-100)) -> 1790.625 | CU18: =IF('Ceiling Speaker Calculator'!$C$29="Square",CU$1,IF(OR(AND(ODD($A18)=$A18,ODD(CU$2)=CU$2),AND(EVEN($A18)=$A18,EVEN(CU$2)=CU$2)),CU$1,-100)) -> 1809.375 | CV18: =IF('Ceiling Speaker Calculator'!$C$29="Square",CV$1,IF(OR(AND(ODD($A18)=$A18,ODD(CV$2)=CV$2),AND(EVEN($A18)=$A18,EVEN(CV$2)=CV$2)),CV$1,-100)) -> 1828.125 | CW18: =IF('Ceiling Speaker Calculator'!$C$29="Square",CW$1,IF(OR(AND(ODD($A18)=$A18,ODD(CW$2)=CW$2),AND(EVEN($A18)=$A18,EVEN(CW$2)=CW$2)),CW$1,-100)) -> 1846.875 | CX18: =IF('Ceiling Speaker Calculator'!$C$29="Square",CX$1,IF(OR(AND(ODD($A18)=$A18,ODD(CX$2)=CX$2),AND(EVEN($A18)=$A18,EVEN(CX$2)=CX$2)),CX$1,-100)) -> 1865.625
A19: 17 | B19: =B18+'Ceiling Speaker Calculator'!$K$16 -> 330 | C19: =IF('Ceiling Speaker Calculator'!$C$29="Square",C$1,IF(OR(AND(ODD($A19)=$A19,ODD(C$2)=C$2),AND(EVEN($A19)=$A19,EVEN(C$2)=C$2)),C$1,-100)) -> 9.375 | D19: =IF('Ceiling Speaker Calculator'!$C$29="Square",D$1,IF(OR(AND(ODD($A19)=$A19,ODD(D$2)=D$2),AND(EVEN($A19)=$A19,EVEN(D$2)=D$2)),D$1,-100)) -> 28.125 | E19: =IF('Ceiling Speaker Calculator'!$C$29="Square",E$1,IF(OR(AND(ODD($A19)=$A19,ODD(E$2)=E$2),AND(EVEN($A19)=$A19,EVEN(E$2)=E$2)),E$1,-100)) -> 46.875 | F19: =IF('Ceiling Speaker Calculator'!$C$29="Square",F$1,IF(OR(AND(ODD($A19)=$A19,ODD(F$2)=F$2),AND(EVEN($A19)=$A19,EVEN(F$2)=F$2)),F$1,-100)) -> 65.625 | G19: =IF('Ceiling Speaker Calculator'!$C$29="Square",G$1,IF(OR(AND(ODD($A19)=$A19,ODD(G$2)=G$2),AND(EVEN($A19)=$A19,EVEN(G$2)=G$2)),G$1,-100)) -> 84.375 | H19: =IF('Ceiling Speaker Calculator'!$C$29="Square",H$1,IF(OR(AND(ODD($A19)=$A19,ODD(H$2)=H$2),AND(EVEN($A19)=$A19,EVEN(H$2)=H$2)),H$1,-100)) -> 103.125 | I19: =IF('Ceiling Speaker Calculator'!$C$29="Square",I$1,IF(OR(AND(ODD($A19)=$A19,ODD(I$2)=I$2),AND(EVEN($A19)=$A19,EVEN(I$2)=I$2)),I$1,-100)) -> 121.875 | J19: =IF('Ceiling Speaker Calculator'!$C$29="Square",J$1,IF(OR(AND(ODD($A19)=$A19,ODD(J$2)=J$2),AND(EVEN($A19)=$A19,EVEN(J$2)=J$2)),J$1,-100)) -> 140.625 | K19: =IF('Ceiling Speaker Calculator'!$C$29="Square",K$1,IF(OR(AND(ODD($A19)=$A19,ODD(K$2)=K$2),AND(EVEN($A19)=$A19,EVEN(K$2)=K$2)),K$1,-100)) -> 159.375 | L19: =IF('Ceiling Speaker Calculator'!$C$29="Square",L$1,IF(OR(AND(ODD($A19)=$A19,ODD(L$2)=L$2),AND(EVEN($A19)=$A19,EVEN(L$2)=L$2)),L$1,-100)) -> 178.125 | M19: =IF('Ceiling Speaker Calculator'!$C$29="Square",M$1,IF(OR(AND(ODD($A19)=$A19,ODD(M$2)=M$2),AND(EVEN($A19)=$A19,EVEN(M$2)=M$2)),M$1,-100)) -> 196.875 | N19: =IF('Ceiling Speaker Calculator'!$C$29="Square",N$1,IF(OR(AND(ODD($A19)=$A19,ODD(N$2)=N$2),AND(EVEN($A19)=$A19,EVEN(N$2)=N$2)),N$1,-100)) -> 215.625 | O19: =IF('Ceiling Speaker Calculator'!$C$29="Square",O$1,IF(OR(AND(ODD($A19)=$A19,ODD(O$2)=O$2),AND(EVEN($A19)=$A19,EVEN(O$2)=O$2)),O$1,-100)) -> 234.375 | P19: =IF('Ceiling Speaker Calculator'!$C$29="Square",P$1,IF(OR(AND(ODD($A19)=$A19,ODD(P$2)=P$2),AND(EVEN($A19)=$A19,EVEN(P$2)=P$2)),P$1,-100)) -> 253.125 | Q19: =IF('Ceiling Speaker Calculator'!$C$29="Square",Q$1,IF(OR(AND(ODD($A19)=$A19,ODD(Q$2)=Q$2),AND(EVEN($A19)=$A19,EVEN(Q$2)=Q$2)),Q$1,-100)) -> 271.875 | R19: =IF('Ceiling Speaker Calculator'!$C$29="Square",R$1,IF(OR(AND(ODD($A19)=$A19,ODD(R$2)=R$2),AND(EVEN($A19)=$A19,EVEN(R$2)=R$2)),R$1,-100)) -> 290.625 | S19: =IF('Ceiling Speaker Calculator'!$C$29="Square",S$1,IF(OR(AND(ODD($A19)=$A19,ODD(S$2)=S$2),AND(EVEN($A19)=$A19,EVEN(S$2)=S$2)),S$1,-100)) -> 309.375 | T19: =IF('Ceiling Speaker Calculator'!$C$29="Square",T$1,IF(OR(AND(ODD($A19)=$A19,ODD(T$2)=T$2),AND(EVEN($A19)=$A19,EVEN(T$2)=T$2)),T$1,-100)) -> 328.125 | U19: =IF('Ceiling Speaker Calculator'!$C$29="Square",U$1,IF(OR(AND(ODD($A19)=$A19,ODD(U$2)=U$2),AND(EVEN($A19)=$A19,EVEN(U$2)=U$2)),U$1,-100)) -> 346.875 | V19: =IF('Ceiling Speaker Calculator'!$C$29="Square",V$1,IF(OR(AND(ODD($A19)=$A19,ODD(V$2)=V$2),AND(EVEN($A19)=$A19,EVEN(V$2)=V$2)),V$1,-100)) -> 365.625 | W19: =IF('Ceiling Speaker Calculator'!$C$29="Square",W$1,IF(OR(AND(ODD($A19)=$A19,ODD(W$2)=W$2),AND(EVEN($A19)=$A19,EVEN(W$2)=W$2)),W$1,-100)) -> 384.375 | X19: =IF('Ceiling Speaker Calculator'!$C$29="Square",X$1,IF(OR(AND(ODD($A19)=$A19,ODD(X$2)=X$2),AND(EVEN($A19)=$A19,EVEN(X$2)=X$2)),X$1,-100)) -> 403.125 | Y19: =IF('Ceiling Speaker Calculator'!$C$29="Square",Y$1,IF(OR(AND(ODD($A19)=$A19,ODD(Y$2)=Y$2),AND(EVEN($A19)=$A19,EVEN(Y$2)=Y$2)),Y$1,-100)) -> 421.875 | Z19: =IF('Ceiling Speaker Calculator'!$C$29="Square",Z$1,IF(OR(AND(ODD($A19)=$A19,ODD(Z$2)=Z$2),AND(EVEN($A19)=$A19,EVEN(Z$2)=Z$2)),Z$1,-100)) -> 440.625 | AA19: =IF('Ceiling Speaker Calculator'!$C$29="Square",AA$1,IF(OR(AND(ODD($A19)=$A19,ODD(AA$2)=AA$2),AND(EVEN($A19)=$A19,EVEN(AA$2)=AA$2)),AA$1,-100)) -> 459.375 | AB19: =IF('Ceiling Speaker Calculator'!$C$29="Square",AB$1,IF(OR(AND(ODD($A19)=$A19,ODD(AB$2)=AB$2),AND(EVEN($A19)=$A19,EVEN(AB$2)=AB$2)),AB$1,-100)) -> 478.125 | AC19: =IF('Ceiling Speaker Calculator'!$C$29="Square",AC$1,IF(OR(AND(ODD($A19)=$A19,ODD(AC$2)=AC$2),AND(EVEN($A19)=$A19,EVEN(AC$2)=AC$2)),AC$1,-100)) -> 496.875 | AD19: =IF('Ceiling Speaker Calculator'!$C$29="Square",AD$1,IF(OR(AND(ODD($A19)=$A19,ODD(AD$2)=AD$2),AND(EVEN($A19)=$A19,EVEN(AD$2)=AD$2)),AD$1,-100)) -> 515.625 | AE19: =IF('Ceiling Speaker Calculator'!$C$29="Square",AE$1,IF(OR(AND(ODD($A19)=$A19,ODD(AE$2)=AE$2),AND(EVEN($A19)=$A19,EVEN(AE$2)=AE$2)),AE$1,-100)) -> 534.375 | AF19: =IF('Ceiling Speaker Calculator'!$C$29="Square",AF$1,IF(OR(AND(ODD($A19)=$A19,ODD(AF$2)=AF$2),AND(EVEN($A19)=$A19,EVEN(AF$2)=AF$2)),AF$1,-100)) -> 553.125 | AG19: =IF('Ceiling Speaker Calculator'!$C$29="Square",AG$1,IF(OR(AND(ODD($A19)=$A19,ODD(AG$2)=AG$2),AND(EVEN($A19)=$A19,EVEN(AG$2)=AG$2)),AG$1,-100)) -> 571.875 | AH19: =IF('Ceiling Speaker Calculator'!$C$29="Square",AH$1,IF(OR(AND(ODD($A19)=$A19,ODD(AH$2)=AH$2),AND(EVEN($A19)=$A19,EVEN(AH$2)=AH$2)),AH$1,-100)) -> 590.625 | AI19: =IF('Ceiling Speaker Calculator'!$C$29="Square",AI$1,IF(OR(AND(ODD($A19)=$A19,ODD(AI$2)=AI$2),AND(EVEN($A19)=$A19,EVEN(AI$2)=AI$2)),AI$1,-100)) -> 609.375 | AJ19: =IF('Ceiling Speaker Calculator'!$C$29="Square",AJ$1,IF(OR(AND(ODD($A19)=$A19,ODD(AJ$2)=AJ$2),AND(EVEN($A19)=$A19,EVEN(AJ$2)=AJ$2)),AJ$1,-100)) -> 628.125 | AK19: =IF('Ceiling Speaker Calculator'!$C$29="Square",AK$1,IF(OR(AND(ODD($A19)=$A19,ODD(AK$2)=AK$2),AND(EVEN($A19)=$A19,EVEN(AK$2)=AK$2)),AK$1,-100)) -> 646.875 | AL19: =IF('Ceiling Speaker Calculator'!$C$29="Square",AL$1,IF(OR(AND(ODD($A19)=$A19,ODD(AL$2)=AL$2),AND(EVEN($A19)=$A19,EVEN(AL$2)=AL$2)),AL$1,-100)) -> 665.625 | AM19: =IF('Ceiling Speaker Calculator'!$C$29="Square",AM$1,IF(OR(AND(ODD($A19)=$A19,ODD(AM$2)=AM$2),AND(EVEN($A19)=$A19,EVEN(AM$2)=AM$2)),AM$1,-100)) -> 684.375 | AN19: =IF('Ceiling Speaker Calculator'!$C$29="Square",AN$1,IF(OR(AND(ODD($A19)=$A19,ODD(AN$2)=AN$2),AND(EVEN($A19)=$A19,EVEN(AN$2)=AN$2)),AN$1,-100)) -> 703.125 | AO19: =IF('Ceiling Speaker Calculator'!$C$29="Square",AO$1,IF(OR(AND(ODD($A19)=$A19,ODD(AO$2)=AO$2),AND(EVEN($A19)=$A19,EVEN(AO$2)=AO$2)),AO$1,-100)) -> 721.875 | AP19: =IF('Ceiling Speaker Calculator'!$C$29="Square",AP$1,IF(OR(AND(ODD($A19)=$A19,ODD(AP$2)=AP$2),AND(EVEN($A19)=$A19,EVEN(AP$2)=AP$2)),AP$1,-100)) -> 740.625 | AQ19: =IF('Ceiling Speaker Calculator'!$C$29="Square",AQ$1,IF(OR(AND(ODD($A19)=$A19,ODD(AQ$2)=AQ$2),AND(EVEN($A19)=$A19,EVEN(AQ$2)=AQ$2)),AQ$1,-100)) -> 759.375 | AR19: =IF('Ceiling Speaker Calculator'!$C$29="Square",AR$1,IF(OR(AND(ODD($A19)=$A19,ODD(AR$2)=AR$2),AND(EVEN($A19)=$A19,EVEN(AR$2)=AR$2)),AR$1,-100)) -> 778.125 | AS19: =IF('Ceiling Speaker Calculator'!$C$29="Square",AS$1,IF(OR(AND(ODD($A19)=$A19,ODD(AS$2)=AS$2),AND(EVEN($A19)=$A19,EVEN(AS$2)=AS$2)),AS$1,-100)) -> 796.875 | AT19: =IF('Ceiling Speaker Calculator'!$C$29="Square",AT$1,IF(OR(AND(ODD($A19)=$A19,ODD(AT$2)=AT$2),AND(EVEN($A19)=$A19,EVEN(AT$2)=AT$2)),AT$1,-100)) -> 815.625 | AU19: =IF('Ceiling Speaker Calculator'!$C$29="Square",AU$1,IF(OR(AND(ODD($A19)=$A19,ODD(AU$2)=AU$2),AND(EVEN($A19)=$A19,EVEN(AU$2)=AU$2)),AU$1,-100)) -> 834.375 | AV19: =IF('Ceiling Speaker Calculator'!$C$29="Square",AV$1,IF(OR(AND(ODD($A19)=$A19,ODD(AV$2)=AV$2),AND(EVEN($A19)=$A19,EVEN(AV$2)=AV$2)),AV$1,-100)) -> 853.125 | AW19: =IF('Ceiling Speaker Calculator'!$C$29="Square",AW$1,IF(OR(AND(ODD($A19)=$A19,ODD(AW$2)=AW$2),AND(EVEN($A19)=$A19,EVEN(AW$2)=AW$2)),AW$1,-100)) -> 871.875 | AX19: =IF('Ceiling Speaker Calculator'!$C$29="Square",AX$1,IF(OR(AND(ODD($A19)=$A19,ODD(AX$2)=AX$2),AND(EVEN($A19)=$A19,EVEN(AX$2)=AX$2)),AX$1,-100)) -> 890.625 | AY19: =IF('Ceiling Speaker Calculator'!$C$29="Square",AY$1,IF(OR(AND(ODD($A19)=$A19,ODD(AY$2)=AY$2),AND(EVEN($A19)=$A19,EVEN(AY$2)=AY$2)),AY$1,-100)) -> 909.375 | AZ19: =IF('Ceiling Speaker Calculator'!$C$29="Square",AZ$1,IF(OR(AND(ODD($A19)=$A19,ODD(AZ$2)=AZ$2),AND(EVEN($A19)=$A19,EVEN(AZ$2)=AZ$2)),AZ$1,-100)) -> 928.125 | BA19: =IF('Ceiling Speaker Calculator'!$C$29="Square",BA$1,IF(OR(AND(ODD($A19)=$A19,ODD(BA$2)=BA$2),AND(EVEN($A19)=$A19,EVEN(BA$2)=BA$2)),BA$1,-100)) -> 946.875 | BB19: =IF('Ceiling Speaker Calculator'!$C$29="Square",BB$1,IF(OR(AND(ODD($A19)=$A19,ODD(BB$2)=BB$2),AND(EVEN($A19)=$A19,EVEN(BB$2)=BB$2)),BB$1,-100)) -> 965.625 | BC19: =IF('Ceiling Speaker Calculator'!$C$29="Square",BC$1,IF(OR(AND(ODD($A19)=$A19,ODD(BC$2)=BC$2),AND(EVEN($A19)=$A19,EVEN(BC$2)=BC$2)),BC$1,-100)) -> 984.375 | BD19: =IF('Ceiling Speaker Calculator'!$C$29="Square",BD$1,IF(OR(AND(ODD($A19)=$A19,ODD(BD$2)=BD$2),AND(EVEN($A19)=$A19,EVEN(BD$2)=BD$2)),BD$1,-100)) -> 1003.125 | BE19: =IF('Ceiling Speaker Calculator'!$C$29="Square",BE$1,IF(OR(AND(ODD($A19)=$A19,ODD(BE$2)=BE$2),AND(EVEN($A19)=$A19,EVEN(BE$2)=BE$2)),BE$1,-100)) -> 1021.875 | BF19: =IF('Ceiling Speaker Calculator'!$C$29="Square",BF$1,IF(OR(AND(ODD($A19)=$A19,ODD(BF$2)=BF$2),AND(EVEN($A19)=$A19,EVEN(BF$2)=BF$2)),BF$1,-100)) -> 1040.625 | BG19: =IF('Ceiling Speaker Calculator'!$C$29="Square",BG$1,IF(OR(AND(ODD($A19)=$A19,ODD(BG$2)=BG$2),AND(EVEN($A19)=$A19,EVEN(BG$2)=BG$2)),BG$1,-100)) -> 1059.375 | BH19: =IF('Ceiling Speaker Calculator'!$C$29="Square",BH$1,IF(OR(AND(ODD($A19)=$A19,ODD(BH$2)=BH$2),AND(EVEN($A19)=$A19,EVEN(BH$2)=BH$2)),BH$1,-100)) -> 1078.125 | BI19: =IF('Ceiling Speaker Calculator'!$C$29="Square",BI$1,IF(OR(AND(ODD($A19)=$A19,ODD(BI$2)=BI$2),AND(EVEN($A19)=$A19,EVEN(BI$2)=BI$2)),BI$1,-100)) -> 1096.875 | BJ19: =IF('Ceiling Speaker Calculator'!$C$29="Square",BJ$1,IF(OR(AND(ODD($A19)=$A19,ODD(BJ$2)=BJ$2),AND(EVEN($A19)=$A19,EVEN(BJ$2)=BJ$2)),BJ$1,-100)) -> 1115.625 | BK19: =IF('Ceiling Speaker Calculator'!$C$29="Square",BK$1,IF(OR(AND(ODD($A19)=$A19,ODD(BK$2)=BK$2),AND(EVEN($A19)=$A19,EVEN(BK$2)=BK$2)),BK$1,-100)) -> 1134.375 | BL19: =IF('Ceiling Speaker Calculator'!$C$29="Square",BL$1,IF(OR(AND(ODD($A19)=$A19,ODD(BL$2)=BL$2),AND(EVEN($A19)=$A19,EVEN(BL$2)=BL$2)),BL$1,-100)) -> 1153.125 | BM19: =IF('Ceiling Speaker Calculator'!$C$29="Square",BM$1,IF(OR(AND(ODD($A19)=$A19,ODD(BM$2)=BM$2),AND(EVEN($A19)=$A19,EVEN(BM$2)=BM$2)),BM$1,-100)) -> 1171.875 | BN19: =IF('Ceiling Speaker Calculator'!$C$29="Square",BN$1,IF(OR(AND(ODD($A19)=$A19,ODD(BN$2)=BN$2),AND(EVEN($A19)=$A19,EVEN(BN$2)=BN$2)),BN$1,-100)) -> 1190.625 | BO19: =IF('Ceiling Speaker Calculator'!$C$29="Square",BO$1,IF(OR(AND(ODD($A19)=$A19,ODD(BO$2)=BO$2),AND(EVEN($A19)=$A19,EVEN(BO$2)=BO$2)),BO$1,-100)) -> 1209.375 | BP19: =IF('Ceiling Speaker Calculator'!$C$29="Square",BP$1,IF(OR(AND(ODD($A19)=$A19,ODD(BP$2)=BP$2),AND(EVEN($A19)=$A19,EVEN(BP$2)=BP$2)),BP$1,-100)) -> 1228.125 | BQ19: =IF('Ceiling Speaker Calculator'!$C$29="Square",BQ$1,IF(OR(AND(ODD($A19)=$A19,ODD(BQ$2)=BQ$2),AND(EVEN($A19)=$A19,EVEN(BQ$2)=BQ$2)),BQ$1,-100)) -> 1246.875 | BR19: =IF('Ceiling Speaker Calculator'!$C$29="Square",BR$1,IF(OR(AND(ODD($A19)=$A19,ODD(BR$2)=BR$2),AND(EVEN($A19)=$A19,EVEN(BR$2)=BR$2)),BR$1,-100)) -> 1265.625 | BS19: =IF('Ceiling Speaker Calculator'!$C$29="Square",BS$1,IF(OR(AND(ODD($A19)=$A19,ODD(BS$2)=BS$2),AND(EVEN($A19)=$A19,EVEN(BS$2)=BS$2)),BS$1,-100)) -> 1284.375 | BT19: =IF('Ceiling Speaker Calculator'!$C$29="Square",BT$1,IF(OR(AND(ODD($A19)=$A19,ODD(BT$2)=BT$2),AND(EVEN($A19)=$A19,EVEN(BT$2)=BT$2)),BT$1,-100)) -> 1303.125 | BU19: =IF('Ceiling Speaker Calculator'!$C$29="Square",BU$1,IF(OR(AND(ODD($A19)=$A19,ODD(BU$2)=BU$2),AND(EVEN($A19)=$A19,EVEN(BU$2)=BU$2)),BU$1,-100)) -> 1321.875 | BV19: =IF('Ceiling Speaker Calculator'!$C$29="Square",BV$1,IF(OR(AND(ODD($A19)=$A19,ODD(BV$2)=BV$2),AND(EVEN($A19)=$A19,EVEN(BV$2)=BV$2)),BV$1,-100)) -> 1340.625 | BW19: =IF('Ceiling Speaker Calculator'!$C$29="Square",BW$1,IF(OR(AND(ODD($A19)=$A19,ODD(BW$2)=BW$2),AND(EVEN($A19)=$A19,EVEN(BW$2)=BW$2)),BW$1,-100)) -> 1359.375 | BX19: =IF('Ceiling Speaker Calculator'!$C$29="Square",BX$1,IF(OR(AND(ODD($A19)=$A19,ODD(BX$2)=BX$2),AND(EVEN($A19)=$A19,EVEN(BX$2)=BX$2)),BX$1,-100)) -> 1378.125 | BY19: =IF('Ceiling Speaker Calculator'!$C$29="Square",BY$1,IF(OR(AND(ODD($A19)=$A19,ODD(BY$2)=BY$2),AND(EVEN($A19)=$A19,EVEN(BY$2)=BY$2)),BY$1,-100)) -> 1396.875 | BZ19: =IF('Ceiling Speaker Calculator'!$C$29="Square",BZ$1,IF(OR(AND(ODD($A19)=$A19,ODD(BZ$2)=BZ$2),AND(EVEN($A19)=$A19,EVEN(BZ$2)=BZ$2)),BZ$1,-100)) -> 1415.625 | CA19: =IF('Ceiling Speaker Calculator'!$C$29="Square",CA$1,IF(OR(AND(ODD($A19)=$A19,ODD(CA$2)=CA$2),AND(EVEN($A19)=$A19,EVEN(CA$2)=CA$2)),CA$1,-100)) -> 1434.375 | CB19: =IF('Ceiling Speaker Calculator'!$C$29="Square",CB$1,IF(OR(AND(ODD($A19)=$A19,ODD(CB$2)=CB$2),AND(EVEN($A19)=$A19,EVEN(CB$2)=CB$2)),CB$1,-100)) -> 1453.125 | CC19: =IF('Ceiling Speaker Calculator'!$C$29="Square",CC$1,IF(OR(AND(ODD($A19)=$A19,ODD(CC$2)=CC$2),AND(EVEN($A19)=$A19,EVEN(CC$2)=CC$2)),CC$1,-100)) -> 1471.875 | CD19: =IF('Ceiling Speaker Calculator'!$C$29="Square",CD$1,IF(OR(AND(ODD($A19)=$A19,ODD(CD$2)=CD$2),AND(EVEN($A19)=$A19,EVEN(CD$2)=CD$2)),CD$1,-100)) -> 1490.625 | CE19: =IF('Ceiling Speaker Calculator'!$C$29="Square",CE$1,IF(OR(AND(ODD($A19)=$A19,ODD(CE$2)=CE$2),AND(EVEN($A19)=$A19,EVEN(CE$2)=CE$2)),CE$1,-100)) -> 1509.375 | CF19: =IF('Ceiling Speaker Calculator'!$C$29="Square",CF$1,IF(OR(AND(ODD($A19)=$A19,ODD(CF$2)=CF$2),AND(EVEN($A19)=$A19,EVEN(CF$2)=CF$2)),CF$1,-100)) -> 1528.125 | CG19: =IF('Ceiling Speaker Calculator'!$C$29="Square",CG$1,IF(OR(AND(ODD($A19)=$A19,ODD(CG$2)=CG$2),AND(EVEN($A19)=$A19,EVEN(CG$2)=CG$2)),CG$1,-100)) -> 1546.875 | CH19: =IF('Ceiling Speaker Calculator'!$C$29="Square",CH$1,IF(OR(AND(ODD($A19)=$A19,ODD(CH$2)=CH$2),AND(EVEN($A19)=$A19,EVEN(CH$2)=CH$2)),CH$1,-100)) -> 1565.625 | CI19: =IF('Ceiling Speaker Calculator'!$C$29="Square",CI$1,IF(OR(AND(ODD($A19)=$A19,ODD(CI$2)=CI$2),AND(EVEN($A19)=$A19,EVEN(CI$2)=CI$2)),CI$1,-100)) -> 1584.375 | CJ19: =IF('Ceiling Speaker Calculator'!$C$29="Square",CJ$1,IF(OR(AND(ODD($A19)=$A19,ODD(CJ$2)=CJ$2),AND(EVEN($A19)=$A19,EVEN(CJ$2)=CJ$2)),CJ$1,-100)) -> 1603.125 | CK19: =IF('Ceiling Speaker Calculator'!$C$29="Square",CK$1,IF(OR(AND(ODD($A19)=$A19,ODD(CK$2)=CK$2),AND(EVEN($A19)=$A19,EVEN(CK$2)=CK$2)),CK$1,-100)) -> 1621.875 | CL19: =IF('Ceiling Speaker Calculator'!$C$29="Square",CL$1,IF(OR(AND(ODD($A19)=$A19,ODD(CL$2)=CL$2),AND(EVEN($A19)=$A19,EVEN(CL$2)=CL$2)),CL$1,-100)) -> 1640.625 | CM19: =IF('Ceiling Speaker Calculator'!$C$29="Square",CM$1,IF(OR(AND(ODD($A19)=$A19,ODD(CM$2)=CM$2),AND(EVEN($A19)=$A19,EVEN(CM$2)=CM$2)),CM$1,-100)) -> 1659.375 | CN19: =IF('Ceiling Speaker Calculator'!$C$29="Square",CN$1,IF(OR(AND(ODD($A19)=$A19,ODD(CN$2)=CN$2),AND(EVEN($A19)=$A19,EVEN(CN$2)=CN$2)),CN$1,-100)) -> 1678.125 | CO19: =IF('Ceiling Speaker Calculator'!$C$29="Square",CO$1,IF(OR(AND(ODD($A19)=$A19,ODD(CO$2)=CO$2),AND(EVEN($A19)=$A19,EVEN(CO$2)=CO$2)),CO$1,-100)) -> 1696.875 | CP19: =IF('Ceiling Speaker Calculator'!$C$29="Square",CP$1,IF(OR(AND(ODD($A19)=$A19,ODD(CP$2)=CP$2),AND(EVEN($A19)=$A19,EVEN(CP$2)=CP$2)),CP$1,-100)) -> 1715.625 | CQ19: =IF('Ceiling Speaker Calculator'!$C$29="Square",CQ$1,IF(OR(AND(ODD($A19)=$A19,ODD(CQ$2)=CQ$2),AND(EVEN($A19)=$A19,EVEN(CQ$2)=CQ$2)),CQ$1,-100)) -> 1734.375 | CR19: =IF('Ceiling Speaker Calculator'!$C$29="Square",CR$1,IF(OR(AND(ODD($A19)=$A19,ODD(CR$2)=CR$2),AND(EVEN($A19)=$A19,EVEN(CR$2)=CR$2)),CR$1,-100)) -> 1753.125 | CS19: =IF('Ceiling Speaker Calculator'!$C$29="Square",CS$1,IF(OR(AND(ODD($A19)=$A19,ODD(CS$2)=CS$2),AND(EVEN($A19)=$A19,EVEN(CS$2)=CS$2)),CS$1,-100)) -> 1771.875 | CT19: =IF('Ceiling Speaker Calculator'!$C$29="Square",CT$1,IF(OR(AND(ODD($A19)=$A19,ODD(CT$2)=CT$2),AND(EVEN($A19)=$A19,EVEN(CT$2)=CT$2)),CT$1,-100)) -> 1790.625 | CU19: =IF('Ceiling Speaker Calculator'!$C$29="Square",CU$1,IF(OR(AND(ODD($A19)=$A19,ODD(CU$2)=CU$2),AND(EVEN($A19)=$A19,EVEN(CU$2)=CU$2)),CU$1,-100)) -> 1809.375 | CV19: =IF('Ceiling Speaker Calculator'!$C$29="Square",CV$1,IF(OR(AND(ODD($A19)=$A19,ODD(CV$2)=CV$2),AND(EVEN($A19)=$A19,EVEN(CV$2)=CV$2)),CV$1,-100)) -> 1828.125 | CW19: =IF('Ceiling Speaker Calculator'!$C$29="Square",CW$1,IF(OR(AND(ODD($A19)=$A19,ODD(CW$2)=CW$2),AND(EVEN($A19)=$A19,EVEN(CW$2)=CW$2)),CW$1,-100)) -> 1846.875 | CX19: =IF('Ceiling Speaker Calculator'!$C$29="Square",CX$1,IF(OR(AND(ODD($A19)=$A19,ODD(CX$2)=CX$2),AND(EVEN($A19)=$A19,EVEN(CX$2)=CX$2)),CX$1,-100)) -> 1865.625
